Workbook

Sheet Sheet1 (hidden)
A1: CCG | B1: STP area | C1: GP gap 2021 | D1: GP supply 2021 | E1: 2021 STP population | F1: 2021 STP population per GP | G1: Patients per Practice | H1: All Practitioners (excluding Retainers, Registrars & Locums)(FTE) | I1: All Practitioners (excluding Retainers, Registrars & Locums)(headcount) | J1: Headcount % under 35 | K1: Headcount %55 and over - GP | L1: % single handed practices | M1: % where all GP staff male | N1: % where all GP staff female | O1: Senior Partner | P1: Partner / Provider | Q1: Volume Partnered | R1: % GP headcount who are Partnered | S1: % GPs qualified outside UK | T1: Patients per GP | U1: Patients per GP (excluding Retainers, Registrars & Locums) | V1: All Nurses (headcount) | W1: All Nurses (FTE) | X1: Headcount % under 352 | Y1: Headcount %55 and over - nurse | Z1: Patients per Nurse | AA1: Patients per Direct Patient Care | AB1: Direct Patient Care, headcount | AC1: Direct Patient Care, FTE | AD1: DPC under 35% | AE1: DPC over 55% | AF1: Patients per Admin/Non-clinical | AG1: All GPs headcount per 100,000 population
A2: Barking & Dagenham | B2: NEL | C2: 227 | D2: 1077 | E2: 2025761 | F2: =Table1[[#This Row],[2021 STP population]]/Table1[[#This Row],[GP supply 2021]] -> 1880.929434 | G2: 5480.205128 | H2: 87.32713652 | I2: 99 | J2: 6.349206349 | K2: 38.0952381 | L2: 25 | M2: 42.85714286 | N2: 10.71428571 | O2: 31 | P2: 29 | Q2: =P2+O2 -> 60 | R2: =Q2/I2 -> 0.6060606061 | S2: 68.33333333 | T2: 1925.477477 | U2: 2158.868687 | V2: 80 | W2: 47.64801407 | X2: 2.040816327 | Y2: 40.81632653 | Z2: 2671.6 | AA2: 8905.333333 | AB2: 24 | AC2: 15.13571895 | AD2: 10 | AE2: 20 | AF2: 700.747541 | AG2: 55.97748797
A3: Barnet | B3: NCL | C3: 91 | D3: 787 | E3: 1501259 | F3: =Table1[[#This Row],[2021 STP population]]/Table1[[#This Row],[GP supply 2021]] -> 1907.571792 | G3: 6363.15873 | H3: 192.0871725 | I3: 250 | J3: 17.74193548 | K3: 26.88172043 | L3: 12.5 | M3: 10.41666667 | N3: 10.41666667 | O3: 50 | P3: 107 | Q3: 157 | R3: 0.628 | S3: 14.68926554 | T3: 1484.737037 | U3: 1603.516 | V3: 134 | W3: 74.56073446 | X3: 7.52688172 | Y3: 38.70967742 | Z3: 2991.634328 | AA3: 7709.211538 | AB3: 52 | AC3: 34.08395544 | AD3: 29.03225806 | AE3: 12.90322581 | AF3: 632.3012618 | AG3: 72.0163237
A4: Bexley | B4: SEL | C4: 41 | D4: 1001 | E4: 1842200 | F4: =Table1[[#This Row],[2021 STP population]]/Table1[[#This Row],[GP supply 2021]] -> 1840.35964 | G4: 8679.814815 | H4: 104.0768287 | I4: 119 | J4: 13.88888889 | K4: 25.92592593 | L4: 16 | M4: 16 | N4: 4 | O4: 32 | P4: 37 | Q4: 69 | R4: 0.5798319328 | S4: 42.99065421 | T4: 1762.067669 | U4: 1969.369748 | V4: 82 | W4: 58.61827933 | X4: 1.428571429 | Y4: 31.42857143 | Z4: 2857.987805 | AA4: 7323.59375 | AB4: 32 | AC4: 20.35971829 | AD4: 17.85714286 | AE4: 32.14285714 | AF4: 643.8324176 | AG4: 55.44785609
A5: Brent | B5: NWL | C5: 302 | D5: 1129 | E5: 2033422 | F5: =Table1[[#This Row],[2021 STP population]]/Table1[[#This Row],[GP supply 2021]] -> 1801.082374 | G5: 5602.181818 | H5: 178.5742114 | I5: 221 | J5: 17.0984456 | K5: 30.56994819 | L5: 13.79310345 | M5: 12.06896552 | N5: 18.96551724 | O5: 61 | P5: 87 | Q5: 148 | R5: 0.6696832579 | S5: 36.55913978 | T5: 1379.641791 | U5: 1673.049774 | V5: 105 | W5: 58.84605134 | X5: 5.555555556 | Y5: 54.16666667 | Z5: 3521.371429 | AA5: 4865.052632 | AB5: 76 | AC5: 43.09156941 | AD5: 36.92307692 | AE5: 13.84615385 | AF5: 738.011976 | AG5: 83.55104408
A6: Bromley | B6: SEL | C6: 41 | D6: 1001 | E6: 1842200 | F6: =Table1[[#This Row],[2021 STP population]]/Table1[[#This Row],[GP supply 2021]] -> 1840.35964 | G6: 7557.577778 | H6: 169.5708161 | I6: 207 | J6: 15.97222222 | K6: 19.44444444 | L6: 8.823529412 | M6: 8.823529412 | N6: 5.882352941 | O6: 39 | P6: 95 | Q6: 134 | R6: 0.6473429952 | S6: 23.94366197 | T6: 1531.941441 | U6: 1642.951691 | V6: 106 | W6: 60.83597083 | X6: 4 | Y6: 44 | Z6: 3208.40566 | AA6: 8502.275 | AB6: 40 | AC6: 22.24358407 | AD6: 13.63636364 | AE6: 22.72727273 | AF6: 566.8183333 | AG6: 69.09903573
A7: Camden | B7: NCL | C7: 91 | D7: 787 | E7: 1501259 | F7: =Table1[[#This Row],[2021 STP population]]/Table1[[#This Row],[GP supply 2021]] -> 1907.571792 | G7: 7414.342857 | H7: 142.9753949 | I7: 184 | J7: 22.46376812 | K7: 15.94202899 | L7: 7.692307692 | M7: 0 | N7: 15.38461538 | O7: 29 | P7: 63 | Q7: 92 | R7: 0.5 | S7: 6.766917293 | T7: 1081.258333 | U7: 1410.336957 | V7: 74 | W7: 51.17235151 | X7: 17.07317073 | Y7: 24.3902439 | Z7: 3506.783784 | AA7: 6653.897436 | AB7: 39 | AC7: 27.15411948 | AD7: 31.81818182 | AE7: 13.63636364 | AF7: 730.9915493 | AG7: 102.1946297
A8: City & Hackney | B8: NEL | C8: 227 | D8: 1077 | E8: 2025761 | F8: =Table1[[#This Row],[2021 STP population]]/Table1[[#This Row],[GP supply 2021]] -> 1880.929434 | G8: 6906.372093 | H8: 168.5901913 | I8: 212 | J8: 22.6993865 | K8: 17.17791411 | L8: 9.375 | M8: 6.25 | N8: 6.25 | O8: 28 | P8: 95 | Q8: 123 | R8: 0.5801886792 | S8: 14.11042945 | T8: 1237.391667 | U8: 1400.820755 | V8: 84 | W8: 65.24281572 | X8: 12.5 | Y8: 42.85714286 | Z8: 3535.404762 | AA8: 5603.283019 | AB8: 53 | AC8: 35.64250512 | AD8: 25.64102564 | AE8: 33.33333333 | AF8: 815.8626374 | AG8: 88.48839696
A9: Croydon | B9: SWL | C9: 195 | D9: 886 | E9: 1552551 | F9: =Table1[[#This Row],[2021 STP population]]/Table1[[#This Row],[GP supply 2021]] -> 1752.314898 | G9: 6978.948276 | H9: 201.1205659 | I9: 237 | J9: 15.18324607 | K9: 27.22513089 | L9: 10.63829787 | M9: 8.510638298 | N9: 8.510638298 | O9: 51 | P9: 89 | Q9: 140 | R9: 0.5907172996 | S9: 28.57142857 | T9: 1562.853282 | U9: 1707.92827 | V9: 148 | W9: 96.41956356 | X9: 5.042016807 | Y9: 36.97478992 | Z9: 2734.993243 | AA9: 6324.671875 | AB9: 64 | AC9: 40.08180454 | AD9: 8.163265306 | AE9: 36.73469388 | AF9: 634.4498433 | AG9: 68.87565153
A10: Ealing | B10: NWL | C10: 302 | D10: 1129 | E10: 2033422 | F10: =Table1[[#This Row],[2021 STP population]]/Table1[[#This Row],[GP supply 2021]] -> 1801.082374 | G10: 5422.772152 | H10: 194.6049187 | I10: 235 | J10: 11.55778894 | K10: 22.61306533 | L10: 22.53521127 | M10: 21.12676056 | N10: 9.85915493 | O10: 56 | P10: 101 | Q10: 157 | R10: 0.6680851064 | S10: 28.72340426 | T10: 1592.561338 | U10: 1822.974468 | V10: 133 | W10: 87.19027869 | X10: 4.62962963 | Y10: 38.88888889 | Z10: 3221.045113 | AA10: 5789.175676 | AB10: 74 | AC10: 42.7243489 | AD10: 20.63492063 | AE10: 20.63492063 | AF10: 724.8714044 | AG10: 78.62784186
A11: Enfield | B11: NCL | C11: 91 | D11: 787 | E11: 1501259 | F11: =Table1[[#This Row],[2021 STP population]]/Table1[[#This Row],[GP supply 2021]] -> 1907.571792 | G11: 6617.326531 | H11: 149.99797 | I11: 186 | J11: 18.42105263 | K11: 31.57894737 | L11: 14.63414634 | M11: 26.82926829 | N11: 9.756097561 | O11: 37 | P11: 71 | Q11: 108 | R11: 0.5806451613 | S11: 37.93103448 | T11: 1460.581081 | U11: 1743.274194 | V11: 97 | W11: 60.78784687 | X11: 6.849315068 | Y11: 45.20547945 | Z11: 3342.773196 | AA11: 10459.64516 | AB11: 31 | AC11: 19.23469546 | AD11: 27.77777778 | AE11: 16.66666667 | AF11: 700.3218143 | AG11: 68.39734544
A12: Hounslow | B12: NWL | C12: 302 | D12: 1129 | E12: 2033422 | F12: =Table1[[#This Row],[2021 STP population]]/Table1[[#This Row],[GP supply 2021]] -> 1801.082374 | G12: 5691.773585 | H12: 152.9723759 | I12: 185 | J12: 7.920792079 | K12: 31.68316832 | L12: 6.25 | M12: 15.625 | N12: 12.5 | O12: 38 | P12: 81 | Q12: 119 | R12: 0.6432432432 | S12: 27.27272727 | T12: 1443.368421 | U12: 1630.616216 | V12: 108 | W12: 65.45079947 | X12: 3.773584906 | Y12: 45.28301887 | Z12: 2793.185185 | AA12: 4640.984615 | AB12: 65 | AC12: 35.3944136 | AD12: 21.21212121 | AE12: 30.3030303 | AF12: 704.8224299 | AG12: 78.69924087
A13: Greenwich | B13: SEL | C13: 41 | D13: 1001 | E13: 1842200 | F13: =Table1[[#This Row],[2021 STP population]]/Table1[[#This Row],[GP supply 2021]] -> 1840.35964 | G13: 6970.487805 | H13: 132.5600818 | I13: 150 | J13: 23.4375 | K13: 32.8125 | L13: 11.11111111 | M13: 16.66666667 | N13: 16.66666667 | O13: 30 | P13: 63 | Q13: 93 | R13: 0.62 | S13: 42.51968504 | T13: 1633.085714 | U13: 1905.266667 | V13: 97 | W13: 63.53769275 | X13: 7.317073171 | Y13: 43.90243902 | Z13: 2946.28866 | AA13: 7938.611111 | AB13: 36 | AC13: 23.15113658 | AD13: 11.11111111 | AE13: 29.62962963 | AF13: 621.2826087 | AG13: 65.13372885
A14: Hammersmith & Fulham | B14: NWL | C14: 302 | D14: 1129 | E14: 2033422 | F14: =Table1[[#This Row],[2021 STP population]]/Table1[[#This Row],[GP supply 2021]] -> 1801.082374 | G14: 6769.322581 | H14: 107.9522484 | I14: 141 | J14: 15.85365854 | K14: 18.29268293 | L14: 0 | M14: 11.11111111 | N14: 5.555555556 | O14: 33 | P14: 63 | Q14: 96 | R14: 0.6808510638 | S14: 12.32876712 | T14: 1328.158228 | U14: 1488.29078 | V14: 63 | W14: 41.31909082 | X14: 19.35483871 | Y14: 19.35483871 | Z14: 3330.936508 | AA14: 4663.311111 | AB14: 45 | AC14: 32.7936394 | AD14: 36 | AE14: 8 | AF14: 752.1469534 | AG14: 88.58240126
A15: Haringey | B15: NCL | C15: 91 | D15: 787 | E15: 1501259 | F15: =Table1[[#This Row],[2021 STP population]]/Table1[[#This Row],[GP supply 2021]] -> 1907.571792 | G15: 6559.565217 | H15: 134.3136984 | I15: 182 | J15: 15.15151515 | K15: 31.81818182 | L15: 9.375 | M15: 6.25 | N15: 12.5 | O15: 38 | P15: 74 | Q15: 112 | R15: 0.6153846154 | S15: 18.91891892 | T15: 1396.944444 | U15: 1657.912088 | V15: 84 | W15: 53.74083469 | X15: 3.773584906 | Y15: 33.96226415 | Z15: 3592.142857 | AA15: 7184.285714 | AB15: 42 | AC15: 30.15959522 | AD15: 30.76923077 | AE15: 38.46153846 | AF15: 813.3153639 | AG15: 80.73528917
A16: Harrow | B16: NWL | C16: 302 | D16: 1129 | E16: 2033422 | F16: =Table1[[#This Row],[2021 STP population]]/Table1[[#This Row],[GP supply 2021]] -> 1801.082374 | G16: 7627.323529 | H16: 134.1227787 | I16: 171 | J16: 15.26717557 | K16: 24.42748092 | L16: 7.407407407 | M16: 11.11111111 | N16: 3.703703704 | O16: 30 | P16: 66 | Q16: 96 | R16: 0.5614035088 | S16: 28.57142857 | T16: 1316.390863 | U16: 1516.54386 | V16: 97 | W16: 56.44313338 | X16: 7.042253521 | Y16: 39.43661972 | Z16: 2673.494845 | AA16: 5186.58 | AB16: 50 | AC16: 28.95253117 | AD16: 11.76470588 | AE16: 23.52941176 | AF16: 645.0970149 | AG16: 80.0777201
A17: Havering | B17: NEL | C17: 227 | D17: 1077 | E17: 2025761 | F17: =Table1[[#This Row],[2021 STP population]]/Table1[[#This Row],[GP supply 2021]] -> 1880.929434 | G17: 5672.042553 | H17: 122.1955966 | I17: 142 | J17: 10.78431373 | K17: 39.21568627 | L17: 21.05263158 | M17: 26.31578947 | N17: 7.894736842 | O17: 35 | P17: 71 | Q17: 106 | R17: 0.7464788732 | S17: 54.90196078 | T17: 1596.323353 | U17: 1877.366197 | V17: 95 | W17: 60.07757561 | X17: 4 | Y17: 44 | Z17: 2806.168421 | AA17: 12694.57143 | AB17: 21 | AC17: 12.98508243 | AD17: 25 | AE17: 8.333333333 | AF17: 570.8479657 | AG17: 67.89335458
A18: Hillingdon | B18: NWL | C18: 302 | D18: 1129 | E18: 2033422 | F18: =Table1[[#This Row],[2021 STP population]]/Table1[[#This Row],[GP supply 2021]] -> 1801.082374 | G18: 6620.282609 | H18: 125.3792838 | I18: 149 | J18: 11.9047619 | K18: 28.57142857 | L18: 17.94871795 | M18: 5.128205128 | N18: 15.38461538 | O18: 40 | P18: 70 | Q18: 110 | R18: 0.7382550336 | S18: 33.62068966 | T18: 1812.696429 | U18: 2043.845638 | V18: 98 | W18: 57.12153509 | X18: 6.172839506 | Y18: 51.85185185 | Z18: 3107.479592 | AA18: 11279 | AB18: 27 | AC18: 14.62415797 | AD18: 5.555555556 | AE18: 33.33333333 | AF18: 713.1920375 | AG18: 57.39861287
A19: Islington | B19: NCL | C19: 91 | D19: 787 | E19: 1501259 | F19: =Table1[[#This Row],[2021 STP population]]/Table1[[#This Row],[GP supply 2021]] -> 1907.571792 | G19: 6891.617647 | H19: 118.3618535 | I19: 147 | J19: 16.12903226 | K19: 18.5483871 | L19: 16.66666667 | M19: 23.33333333 | N19: 3.333333333 | O19: 27 | P19: 69 | Q19: 96 | R19: 0.6530612245 | S19: 14.40677966 | T19: 1403.083832 | U19: 1593.979592 | V19: 65 | W19: 44.52668028 | X19: 13.20754717 | Y19: 41.50943396 | Z19: 3604.846154 | AA19: 8678.333333 | AB19: 27 | AC19: 20.28066478 | AD19: 25 | AE19: 15 | AF19: 884.2075472 | AG19: 75.55535448
A20: Kingston | B20: SWL | C20: 195 | D20: 886 | E20: 1552551 | F20: =Table1[[#This Row],[2021 STP population]]/Table1[[#This Row],[GP supply 2021]] -> 1752.314898 | G20: 7791.230769 | H20: 108.1000177 | I20: 132 | J20: 15.88785047 | K20: 19.62616822 | L20: 8.333333333 | M20: 8.333333333 | N20: 0 | O20: 22 | P20: 50 | Q20: 72 | R20: 0.5454545455 | S20: 34.28571429 | T20: 1397.048276 | U20: 1534.636364 | V20: 73 | W20: 42.52023387 | X20: 5.882352941 | Y20: 30.88235294 | Z20: 2774.958904 | AA20: 5787.771429 | AB20: 35 | AC20: 23.14330671 | AD20: 9.375 | AE20: 21.875 | AF20: 668.5544554 | AG20: 85.31519552
A21: Lambeth | B21: SEL | C21: 41 | D21: 1001 | E21: 1842200 | F21: =Table1[[#This Row],[2021 STP population]]/Table1[[#This Row],[GP supply 2021]] -> 1840.35964 | G21: 8168.914894 | H21: 185.6340977 | I21: 251 | J21: 19.56521739 | K21: 15.2173913 | L21: 6.976744186 | M21: 6.976744186 | N21: 9.302325581 | O21: 36 | P21: 99 | Q21: 135 | R21: 0.5378486056 | S21: 14.60176991 | T21: 1401.237226 | U21: 1529.63745 | V21: 105 | W21: 78.02882329 | X21: 15.78947368 | Y21: 25.26315789 | Z21: 3656.561905 | AA21: 11634.51515 | AB21: 33 | AC21: 25.06197587 | AD21: 48.27586207 | AE21: 10.34482759 | AF21: 853.1977778 | AG21: 86.10503557
A22: Lewisham | B22: SEL | C22: 41 | D22: 1001 | E22: 1842200 | F22: =Table1[[#This Row],[2021 STP population]]/Table1[[#This Row],[GP supply 2021]] -> 1840.35964 | G22: 7820.025 | H22: 163.0189774 | I22: 203 | J22: 21.91011236 | K22: 28.08988764 | L22: 0 | M22: 8.571428571 | N22: 5.714285714 | O22: 43 | P22: 75 | Q22: 118 | R22: 0.5812807882 | S22: 27.3255814 | T22: 1348.280172 | U22: 1540.891626 | V22: 94 | W22: 66.53795237 | X22: 7.462686567 | Y22: 26.86567164 | Z22: 3327.670213 | AA22: 8231.605263 | AB22: 38 | AC22: 26.18033551 | AD22: 28.57142857 | AE22: 17.85714286 | AF22: 764.794621 | AG22: 79.47028942
A23: Newham | B23: NEL | C23: 227 | D23: 1077 | E23: 2025761 | F23: =Table1[[#This Row],[2021 STP population]]/Table1[[#This Row],[GP supply 2021]] -> 1880.929434 | G23: 6189.6 | H23: 167.6358792 | I23: 209 | J23: 16.46341463 | K23: 32.31707317 | L23: 12.5 | M23: 25 | N23: 8.333333333 | O23: 45 | P23: 78 | Q23: 123 | R23: 0.5885167464 | S23: 42.03821656 | T23: 1503.546559 | U23: 1776.91866 | V23: 113 | W23: 71.77945644 | X23: 4.054054054 | Y23: 48.64864865 | Z23: 3286.513274 | AA23: 6631.714286 | AB23: 56 | AC23: 40.70166239 | AD23: 34.14634146 | AE23: 7.317073171 | AF23: 686.4621072 | AG23: 76.15887914
A24: Redbridge | B24: NEL | C24: 227 | D24: 1077 | E24: 2025761 | F24: =Table1[[#This Row],[2021 STP population]]/Table1[[#This Row],[GP supply 2021]] -> 1880.929434 | G24: 6540.652174 | H24: 120.1154416 | I24: 146 | J24: 12.19512195 | K24: 29.26829268 | L24: 12.5 | M24: 17.5 | N24: 15 | O24: 34 | P24: 64 | Q24: 98 | R24: 0.6712328767 | S24: 48.69565217 | T24: 1690.280899 | U24: 2060.753425 | V24: 83 | W24: 47.20800998 | X24: 9.375 | Y24: 43.75 | Z24: 3624.939759 | AA24: 9705.483871 | AB24: 31 | AC24: 20.38367879 | AD24: 31.81818182 | AE24: 22.72727273 | AF24: 761.6962025 | AG24: 60.73945164
A25: Richmond | B25: SWL | C25: 195 | D25: 886 | E25: 1552551 | F25: =Table1[[#This Row],[2021 STP population]]/Table1[[#This Row],[GP supply 2021]] -> 1752.314898 | G25: 7492.357143 | H25: 106.4089143 | I25: 140 | J25: 12.17391304 | K25: 22.60869565 | L25: 4.347826087 | M25: 4.347826087 | N25: 13.04347826 | O25: 26 | P25: 58 | Q25: 84 | R25: 0.6 | S25: 7.894736842 | T25: 1371.150327 | U25: 1498.471429 | V25: 57 | W25: 32.20105544 | X25: 13.04347826 | Y25: 39.13043478 | Z25: 3680.45614 | AA25: 5993.885714 | AB25: 35 | AC25: 22.54888122 | AD25: 21.42857143 | AE25: 25 | AF25: 743.9219858 | AG25: 79.0350492
A26: Southwark | B26: SEL | C26: 41 | D26: 1001 | E26: 1842200 | F26: =Table1[[#This Row],[2021 STP population]]/Table1[[#This Row],[GP supply 2021]] -> 1840.35964 | G26: 7096.409091 | H26: 153.1839738 | I26: 196 | J26: 18.75 | K26: 20.13888889 | L26: 25.71428571 | M26: 20 | N26: 17.14285714 | O26: 36 | P26: 59 | Q26: 95 | R26: 0.4846938776 | S26: 30.21582734 | T26: 1459.074766 | U26: 1593.071429 | V26: 104 | W26: 70.52398127 | X26: 10.29411765 | Y26: 35.29411765 | Z26: 3002.326923 | AA26: 6122.392157 | AB26: 51 | AC26: 31.1368581 | AD26: 34.28571429 | AE26: 20 | AF26: 722.7824074 | AG26: 70.73491594
A27: Merton | B27: SWL | C27: 195 | D27: 886 | E27: 1552551 | F27: =Table1[[#This Row],[2021 STP population]]/Table1[[#This Row],[GP supply 2021]] -> 1752.314898 | G27: 9194.291667 | H27: 106.6246072 | I27: 136 | J27: 18.4 | K27: 16.8 | L27: 0 | M27: 8.695652174 | N27: 0 | O27: 25 | P27: 51 | Q27: 76 | R27: 0.5588235294 | S27: 18.91891892 | T27: 1501.108844 | U27: 1622.522059 | V27: 63 | W27: 46.5555163 | X27: 10.34482759 | Y27: 50 | Z27: 3502.587302 | AA27: 9594.043478 | AB27: 23 | AC27: 16.39110765 | AD27: 28.57142857 | AE27: 38.0952381 | AF27: 750.5544218 | AG27: 72.23054812
A28: Sutton | B28: SWL | C28: 195 | D28: 886 | E28: 1552551 | F28: =Table1[[#This Row],[2021 STP population]]/Table1[[#This Row],[GP supply 2021]] -> 1752.314898 | G28: 7053.296296 | H28: 95.78843235 | I28: 125 | J28: 13.51351351 | K28: 25.22522523 | L28: 4.166666667 | M28: 12.5 | N28: 8.333333333 | O28: 29 | P28: 48 | Q28: 77 | R28: 0.616 | S28: 22.01834862 | T28: 1421.186567 | U28: 1523.512 | V28: 66 | W28: 43.60114658 | X28: 5.454545455 | Y28: 41.81818182 | Z28: 2885.439394 | AA28: 6801.392857 | AB28: 28 | AC28: 17.65505394 | AD28: 16.66666667 | AE28: 25 | AF28: 647.7517007 | AG28: 67.6309972
A29: Tower Hamlets | B29: NEL | C29: 227 | D29: 1077 | E29: 2025761 | F29: =Table1[[#This Row],[2021 STP population]]/Table1[[#This Row],[GP supply 2021]] -> 1880.929434 | G29: 8382.742857 | H29: 165.0762781 | I29: 218 | J29: 17.39130435 | K29: 17.39130435 | L29: 3.125 | M29: 12.5 | N29: 3.125 | O29: 28 | P29: 96 | Q29: 124 | R29: 0.5688073394 | S29: 21.78217822 | T29: 1270.112554 | U29: 1345.853211 | V29: 100 | W29: 78.63135732 | X29: 26.43678161 | Y29: 19.54022989 | Z29: 2933.96 | AA29: 4191.371429 | AB29: 70 | AC29: 45.86656234 | AD29: 43.93939394 | AE29: 9.090909091 | AF29: 705.2788462 | AG29: 81.33373237
A30: Waltham Forest | B30: NEL | C30: 227 | D30: 1077 | E30: 2025761 | F30: =Table1[[#This Row],[2021 STP population]]/Table1[[#This Row],[GP supply 2021]] -> 1880.929434 | G30: 6616.288889 | H30: 136.2732761 | I30: 169 | J30: 17.85714286 | K30: 33.03571429 | L30: 12.12121212 | M30: 18.18181818 | N30: 12.12121212 | O30: 46 | P30: 57 | Q30: 103 | R30: 0.6094674556 | S30: 46.36363636 | T30: 1466.665025 | U30: 1761.733728 | V30: 97 | W30: 60.73785221 | X30: 6.557377049 | Y30: 54.09836066 | Z30: 3069.412371 | AA30: 8756.852941 | AB30: 34 | AC30: 22.29022443 | AD30: 15.38461538 | AE30: 30.76923077 | AF30: 622.8723849 | AG30: 75.74061637
A31: Wandsworth | B31: SWL | C31: 195 | D31: 886 | E31: 1552551 | F31: =Table1[[#This Row],[2021 STP population]]/Table1[[#This Row],[GP supply 2021]] -> 1752.314898 | G31: 9339.243902 | H31: 204.8838274 | I31: 270 | J31: 19.91701245 | K31: 19.50207469 | L31: 2.857142857 | M31: 2.857142857 | N31: 8.571428571 | O31: 40 | P31: 105 | Q31: 145 | R31: 0.537037037 | S31: 17.16738197 | T31: 1311.332192 | U31: 1418.181481 | V31: 106 | W31: 77.46283054 | X31: 15.38461538 | Y31: 35.16483516 | Z31: 3612.349057 | AA31: 5715.059701 | AB31: 67 | AC31: 45.62741714 | AD31: 29.31034483 | AE31: 18.96551724 | AF31: 845.2737307 | AG31: 93.54626856
A32: West London (K&C & QPP) | B32: NWL | C32: 302 | D32: 1129 | E32: 2033422 | F32: =Table1[[#This Row],[2021 STP population]]/Table1[[#This Row],[GP supply 2021]] -> 1801.082374 | G32: 4950.163265 | H32: 135.0839649 | I32: 162 | J32: 17.54385965 | K32: 31.57894737 | L32: 17.14285714 | M32: 20 | N32: 8.571428571 | O32: 33 | P32: 51 | Q32: 84 | R32: 0.5185185185 | S32: 21.2962963 | T32: 1332.736264 | U32: 1497.271605 | V32: 77 | W32: 51.48059244 | X32: 11.62790698 | Y32: 37.20930233 | Z32: 3150.103896 | AA32: 4950.163265 | AB32: 49 | AC32: 34.57677039 | AD32: 50 | AE32: 20.58823529 | AF32: 839.3010381 | AG32: 81.93621581
A33: Central London (Westminster) | B33: NWL | C33: 302 | D33: 1129 | E33: 2033422 | F33: =Table1[[#This Row],[2021 STP population]]/Table1[[#This Row],[GP supply 2021]] -> 1801.082374 | G33: 6501.21875 | H33: 96.34313839 | I33: 128 | J33: 22.47191011 | K33: 22.47191011 | L33: 9.523809524 | M33: 14.28571429 | N33: 0 | O33: 20 | P33: 51 | Q33: 71 | R33: 0.5546875 | S33: 15.29411765 | T33: 1475.453901 | U33: 1625.304688 | V33: 64 | W33: 45.33055272 | X33: 19.04761905 | Y33: 28.57142857 | Z33: 3250.609375 | AA33: 5334.333333 | AB33: 39 | AC33: 21.55267465 | AD33: 20 | AE33: 24 | AF33: 866.8291667 | AG33: 84.25052881

Sheet Sheet4 (hidden)
D2: =IF(Sheet3!AB3="ERROR","The CCG and STP areas selected do not match, the chart below is based on the CCG selected","") -> The CCG and STP areas selected do not match, the chart below is based on the CCG selected
C6: CCG | D6: Greenwich | G6: STP | H6: NWL | K6: Role | L6: GP | R6: All | S6: CCG level | T6: GP
R7: Barking & Dagenham | S7: SEL | T7: Nurse
R8: Barnet | S8: SWL | T8: Other
D9: Appointment type split | R9: Bexley | S9: NWL
C10: % appointments taken by this staff type | D10: Face to Face | E10: Telephone | F10: Home visit | G10: Admin time | R10: Brent | S10: NCL
C11: 0.7 | D11: 0.5 | E11: 0.1 | F11: 0.4 | G11: 0.3 | R11: Bromley | S11: NEL
R12: Camden
R13: City & Hackney
R14: Croydon
R15: Ealing
R16: Enfield
R17: Hounslow
R18: Greenwich
R19: Hammersmith & Fulham
R20: Haringey
R21: Harrow
R22: Havering
R23: Hillingdon
R24: Islington
R25: Kingston
R26: Lambeth
R27: Lewisham
R28: Newham
R29: Redbridge
R30: Richmond
R31: Southwark
R32: Merton
R33: Sutton
R34: Tower Hamlets
R35: Waltham Forest
R36: Wandsworth
R37: West London (K&C & QPP)
R38: Central London (Westminster)

Sheet Sheet3 (hidden)
F1: GP | G1: GP | H1: GP | I1: GP | J1: Nurse
A2: CCG | B2: STP area | C2: 2016 Population | D2: 2021 population | E2: %population change | F2: All Practitioners (excluding Retainers, Registrars & Locums)(FTE) | G2: Expected ST1 recruits | H2: Expected additional recruits | I2: percentage over 55 | J2: Current staff numbers | K2: Expected other recruits | O2: 100 | R2: Staff Index | S2: Staff to Find | T2: CCG | U2: STP | V2: Master | W2: Master | Y2: STP | AA2: Master | AB2: CCG Match STP | AE2: 2016 | AF2: 2017 | AG2: 2018 | AH2: 2019 | AI2: 2020 | AJ2: 2021
A3: Barking & Dagenham | B3: NEL | C3: 205773.0092 | D3: 222143.3815 | E3: =(D3/C3)^0.2 -> 1.015427671 | F3: 87.32713652 | G3: 5 | H3: 10 | I3: 0.380952381 | J3: 47.64801407 | K3: 20 | R3: =IF(S3="GP",6,IF(S3="nurse",10,IF(S3="other","14",""))) -> 6 | S3: GP | W3: Greenwich | Y3: NWL | AA3: =IF(W3="All","STP","CCG") -> CCG | AB3: =IF(VLOOKUP(W3,A:B,2,FALSE)<>Y3,"ERROR","") -> ERROR | AD3: =Sheet4!L6&" Supply" -> GP Supply | AE3: =IF(AA3="CCG",VLOOKUP(W3,A:J,R3,FALSE),SUMIF(B:B,Y3,IF(S3="GP",F:F,""))) -> 132.5600818 | AF3: =AE3+(IF($AA$3="CCG",VLOOKUP($W$3,$A:$J,$R$3+1,FALSE),SUMIF($B:$B,$Y$3,IF($S$3="GP",$G:$G,"")))+IF($AA$3="CCG",VLOOKUP($W$3,$A:$J,$R$3+2,FALSE),SUMIF($B:$B,$Y$3,IF($S$3="GP",$H:$H,""))))-($AE$3*VLOOKUP($S$3,$A$37:$F440,2,FALSE)*(IF($AA43="CCG",VLOOKUP($W$3,$A:$J,IF($S$3="GP",$R$3+3,),FALSE),AVERAGEIF($B:$B,$Y$3,IF($S$3="GP",$I:$I,)))))-AE3*VLOOKUP($S$3,$A$37:$F$40,3,FALSE) -> 133.5109483 | AG3: =AF3+(IF($AA$3="CCG",VLOOKUP($W$3,$A:$J,$R$3+1,FALSE),SUMIF($B:$B,$Y$3,IF($S$3="GP",$G:$G,"")))+IF($AA$3="CCG",VLOOKUP($W$3,$A:$J,$R$3+2,FALSE),SUMIF($B:$B,$Y$3,IF($S$3="GP",$H:$H,""))))-($AE$3*VLOOKUP($S$3,$A$37:$F440,2,FALSE)*(IF($AA43="CCG",VLOOKUP($W$3,$A:$J,IF($S$3="GP",$R$3+3,),FALSE),AVERAGEIF($B:$B,$Y$3,IF($S$3="GP",$I:$I,)))))-AF3*VLOOKUP($S$3,$A$37:$F$40,3,FALSE) -> 134.4047629 | AH3: =AG3+(IF($AA$3="CCG",VLOOKUP($W$3,$A:$J,$R$3+1,FALSE),SUMIF($B:$B,$Y$3,IF($S$3="GP",$G:$G,"")))+IF($AA$3="CCG",VLOOKUP($W$3,$A:$J,$R$3+2,FALSE),SUMIF($B:$B,$Y$3,IF($S$3="GP",$H:$H,""))))-($AE$3*VLOOKUP($S$3,$A$37:$F440,2,FALSE)*(IF($AA43="CCG",VLOOKUP($W$3,$A:$J,IF($S$3="GP",$R$3+3,),FALSE),AVERAGEIF($B:$B,$Y$3,IF($S$3="GP",$I:$I,)))))-AG3*VLOOKUP($S$3,$A$37:$F$40,3,FALSE) -> 135.2449486 | AI3: =AH3+(IF($AA$3="CCG",VLOOKUP($W$3,$A:$J,$R$3+1,FALSE),SUMIF($B:$B,$Y$3,IF($S$3="GP",$G:$G,"")))+IF($AA$3="CCG",VLOOKUP($W$3,$A:$J,$R$3+2,FALSE),SUMIF($B:$B,$Y$3,IF($S$3="GP",$H:$H,""))))-($AE$3*VLOOKUP($S$3,$A$37:$F440,2,FALSE)*(IF($AA43="CCG",VLOOKUP($W$3,$A:$J,IF($S$3="GP",$R$3+3,),FALSE),AVERAGEIF($B:$B,$Y$3,IF($S$3="GP",$I:$I,)))))-AH3*VLOOKUP($S$3,$A$37:$F$40,3,FALSE) -> 136.0347231 | AJ3: =AI3+(IF($AA$3="CCG",VLOOKUP($W$3,$A:$J,$R$3+1,FALSE),SUMIF($B:$B,$Y$3,IF($S$3="GP",$G:$G,"")))+IF($AA$3="CCG",VLOOKUP($W$3,$A:$J,$R$3+2,FALSE),SUMIF($B:$B,$Y$3,IF($S$3="GP",$H:$H,""))))-($AE$3*VLOOKUP($S$3,$A$37:$F440,2,FALSE)*(IF($AA43="CCG",VLOOKUP($W$3,$A:$J,IF($S$3="GP",$R$3+3,),FALSE),AVERAGEIF($B:$B,$Y$3,IF($S$3="GP",$I:$I,)))))-AI3*VLOOKUP($S$3,$A$37:$F$40,3,FALSE) -> 136.7771111
A4: Barnet | B4: NCL | C4: 385107.6572 | D4: 409895.3742 | E4: =(D4/C4)^0.2 -> 1.012553951 | F4: 192.0871725 | G4: 5 | H4: 10 | I4: 0.2688172043 | J4: 74.56073446 | AD4: =Sheet4!L6&" Demand" -> GP Demand | AE4: =IF(AA3="CCG",VLOOKUP(W3,A:J,3,FALSE),SUMIF(B:B,Y3,IF(S3="GP",C:C,"")))*B44 -> 825091.9524
A5: Bexley | B5: SEL | C5: 243302.5947 | D5: 248378.1074 | E5: 1.004137797 | F5: 104.0768287 | G5: 5 | H5: 10 | I5: 0.2592592593 | J5: 58.61827933 | AD5: Total Apps | AE5: =IF(AA3="CCG",VLOOKUP(W3,A:J,3,FALSE),SUMIF(B:B,Y3,IF(S3="GP",C:C,"")))*B44 -> 825091.9524
A6: Brent | B6: NWL | C6: 328567.7276 | D6: 345659.8734 | E6: 1.010194065 | F6: 178.5742114 | G6: 5 | H6: 10 | I6: 0.3056994819 | J6: 58.84605134
A7: Bromley | B7: SEL | C7: 326559.5853 | D7: 333607.5681 | E7: 1.004279717 | F7: 169.5708161 | G7: 5 | H7: 10 | I7: 0.1944444444 | J7: 60.83597083 | AC7: retirement | AD7: =AE3*VLOOKUP(S3,A37:F40,2,FALSE)*(IF(AA3="CCG",VLOOKUP(W3,A:J,IF(S3="GP",R3+3,),FALSE),AVERAGEIF(B:B,Y3,IF(S3="GP",I:I,)))) -> 7.611848448
A8: Camden | B8: NCL | C8: 240595.1876 | D8: 249811.742 | E8: 1.007546694 | F8: 142.9753949 | G8: 5 | H8: 10 | I8: 0.1594202899 | J8: 51.17235151 | AC8: leaving for other reasons | AD8: =AE3*VLOOKUP(S3,A37:F40,3,FALSE) -> 7.953604909
A9: City & Hackney | B9: NEL | C9: 279460.0813 | D9: 298024.2591 | E9: 1.012946171 | F9: 168.5901913 | G9: 5 | H9: 10 | I9: 0.1717791411 | J9: 65.24281572
A10: Croydon | B10: SWL | C10: 383407.6197 | D10: 399552.0842 | E10: 1.008283203 | F10: 201.1205659 | G10: 5 | H10: 10 | I10: 0.2722513089 | J10: 96.41956356
A11: Ealing | B11: NWL | C11: 348532.5076 | D11: 364118.8288 | E11: 1.008788143 | F11: 194.6049187 | G11: 5 | H11: 10 | I11: 0.2261306533 | J11: 87.19027869
A12: Enfield | B12: NCL | C12: 330967.757 | D12: 341277.2065 | E12: 1.006153679 | F12: 149.99797 | G12: 5 | H12: 10 | I12: 0.3157894737 | J12: 60.78784687
A13: Hounslow | B13: NWL | C13: 275868.493 | D13: 300643.7565 | E13: 1.017349128 | F13: 152.9723759 | G13: 5 | H13: 10 | I13: 0.3168316832 | J13: 65.45079947
A14: Greenwich | B14: SEL | C14: 183353.7672 | D14: 192209.9651 | E14: 1.009478823 | F14: 132.5600818 | G14: 5 | H14: 10 | I14: 0.328125 | J14: 63.53769275
A15: Hammersmith & Fulham | B15: NWL | C15: 274802.7844 | D15: 290455.0671 | E15: 1.011140639 | F15: 107.9522484 | G15: 5 | H15: 10 | I15: 0.1829268293 | J15: 41.31909082
A16: Haringey | B16: NCL | C16: 250702.932 | D16: 258522.4137 | E16: 1.006161645 | F16: 134.3136984 | G16: 5 | H16: 10 | I16: 0.3181818182 | J16: 53.74083469
A17: Harrow | B17: NWL | C17: 251610.7349 | D17: 265446.8105 | E17: 1.010763776 | F17: 134.1227787 | G17: 5 | H17: 10 | I17: 0.2442748092 | J17: 56.44313338
A18: Havering | B18: NEL | C18: 299473.6783 | D18: 307062.0456 | E18: 1.005017205 | F18: 122.1955966 | G18: 5 | H18: 10 | I18: 0.3921568627 | J18: 60.07757561
A19: Hillingdon | B19: NWL | C19: 272101.6454 | D19: 282830.2214 | E19: 1.007764206 | F19: 125.3792838 | G19: 5 | H19: 10 | I19: 0.2857142857 | J19: 57.12153509
A20: Islington | B20: NCL | C20: 228397.1873 | D20: 241248.224 | E20: 1.011008192 | F20: 118.3618535 | G20: 5 | H20: 10 | I20: 0.185483871 | J20: 44.52668028
A21: Kingston | B21: SWL | C21: 158447.2042 | D21: 161987.1734 | E21: 1.004428922 | F21: 108.1000177 | G21: 5 | H21: 10 | I21: 0.1962616822 | J21: 42.52023387
A22: Lambeth | B22: SEL | C22: 173853.3709 | D22: 181326.684 | E22: 1.008453136 | F22: 185.6340977 | G22: 5 | H22: 10 | I22: 0.152173913 | J22: 78.02882329
A23: Lewisham | B23: SEL | C23: 325454.6437 | D23: 342398.23 | E23: 1.010201962 | F23: 163.0189774 | G23: 5 | H23: 10 | I23: 0.2808988764 | J23: 66.53795237
A24: Newham | B24: NEL | C24: 299817.3844 | D24: 316842.3797 | E24: 1.011107405 | F24: 167.6358792 | G24: 5 | H24: 10 | I24: 0.3231707317 | J24: 71.77945644
A25: Redbridge | B25: NEL | C25: 207140.6699 | D25: 212185.0439 | E25: 1.00482372 | F25: 120.1154416 | G25: 5 | H25: 10 | I25: 0.2926829268 | J25: 47.20800998
A26: Richmond | B26: SWL | C26: 337378.1807 | D26: 362819.6276 | E26: 1.014646487 | F26: 106.4089143 | G26: 5 | H26: 10 | I26: 0.2260869565 | J26: 32.20105544
A27: Southwark | B27: SEL | C27: 301021.6161 | D27: 316853.4049 | E27: 1.010304155 | F27: 153.1839738 | G27: 5 | H27: 10 | I27: 0.2013888889 | J27: 70.52398127
A28: Merton | B28: SWL | C28: 196602.2286 | D28: 200158.6816 | E28: 1.003592019 | F28: 106.6246072 | G28: 5 | H28: 10 | I28: 0.168 | J28: 46.5555163
A29: Sutton | B29: SWL | C29: 310642.3523 | D29: 332523.7542 | E29: 1.013706898 | F29: 95.78843235 | G29: 5 | H29: 10 | I29: 0.2522522523 | J29: 43.60114658
A30: Tower Hamlets | B30: NEL | C30: 201750.7963 | D30: 205926.3036 | E30: 1.004105424 | F30: 165.0762781 | G30: 5 | H30: 10 | I30: 0.1739130435 | J30: 78.63135732
A31: Waltham Forest | B31: NEL | C31: 297804.9566 | D31: 337617.385 | E31: 1.025412426 | F31: 136.2732761 | G31: 5 | H31: 10 | I31: 0.3303571429 | J31: 60.73785221
A32: Wandsworth | B32: SWL | C32: 274139.4078 | D32: 284554.6096 | E32: 1.007485562 | F32: 204.8838274 | G32: 5 | H32: 10 | I32: 0.1950207469 | J32: 77.46283054
A33: West London (K&C & QPP) | B33: NWL | C33: 318253.4708 | D33: 331558.5638 | E33: 1.008224903 | F33: 135.0839649 | G33: 5 | H33: 10 | I33: 0.3157894737 | J33: 51.48059244
A34: Central London (Westminster) | B34: NWL | C34: 239861.5274 | D34: 250416.2946 | E34: 1.00864978 | F34: 96.34313839 | G34: 5 | H34: 10 | I34: 0.2247191011 | J34: 45.33055272
A36: Staff info
B37: %over 55 retiring | C37: %leavers | D37: face to face appt time (mins) | E37: Telephone appt time | F37: home visit appt time | G37: days worked per year | H37: hours per day
A38: GP | B38: 0.175 | C38: 0.06 | D38: 12.5 | E38: 10 | F38: 45 | G38: 200 | H38: 10.5
A39: Nurse | B39: 0.15 | C39: 0.02 | D39: 20 | E39: 10 | F39: 60 | G39: 210 | H39: 8
A40: Other | B40: 0.1 | C40: 0.02 | D40: 17 | E40: 10 | F40: 45 | G40: 210 | H40: 8
A42: Population info
B43: 2016 appts per year | C43: %increase in apps per year
A44: Population | B44: 4.5

Sheet Sheet2 (hidden)
A1: Staff type | B1: CCG | C1: STP | D1: 2016 pop | E1: 2021 pop | F1: Annual % increase | G1: Total Staff FTE | H1: Joiners | I1: %staff over 55 | J1: %over 55 retiring | K1: %leavers | L1: face to face appt time (mins) | M1: Telephone appt time | N1: home visit appt time | O1: days worked per year | P1: hours per day | Q1: appts per person | R1: %change in apps per year | U1: Staff info
A2: GP | B2: Barking & Dagenham | C2: NEL | D2: 205773.0092 | E2: 222143.3815 | F2: =(E2/D2)^0.2 -> 1.015427671 | G2: 87.32713652 | H2: 20 | I2: 0.380952381 | J2: =VLOOKUP($A2,$U$2:$AB$5,2,FALSE) -> 0.175 | K2: =VLOOKUP($A2,$U$2:$AB$5,3,FALSE) -> 0.06 | L2: =VLOOKUP($A2,$U$2:$AB$5,4,FALSE) -> 12.5 | M2: =VLOOKUP($A2,$U$2:$AB$5,5,FALSE) -> 10 | N2: =VLOOKUP($A2,$U$2:$AB$5,6,FALSE) -> 45 | O2: =VLOOKUP($A2,$U$2:$AB$5,7,FALSE) -> 200 | P2: =VLOOKUP($A2,$U$2:$AB$5,8,FALSE) -> 10.5 | Q2: 4.5 | R2: =(15^0.2)/100 -> 0.01718771928 | V2: %over 55 retiring | W2: %leavers | X2: face to face appt time (mins) | Y2: Telephone appt time | Z2: home visit appt time | AA2: days worked per year | AB2: hours per day | AD2: Staff type | AE2: Nurse
A3: GP | B3: Barnet | C3: NCL | D3: 385107.6572 | E3: 409895.3742 | F3: =(E3/D3)^0.2 -> 1.012553951 | G3: 192.0871725 | H3: 20 | I3: 0.2688172043 | J3: =VLOOKUP($A3,$U$2:$AB$5,2,FALSE) -> 0.175 | K3: =VLOOKUP($A3,$U$2:$AB$5,3,FALSE) -> 0.06 | L3: =VLOOKUP($A3,$U$2:$AB$5,4,FALSE) -> 12.5 | M3: =VLOOKUP($A3,$U$2:$AB$5,5,FALSE) -> 10 | N3: =VLOOKUP($A3,$U$2:$AB$5,6,FALSE) -> 45 | O3: =VLOOKUP($A3,$U$2:$AB$5,7,FALSE) -> 200 | P3: =VLOOKUP($A3,$U$2:$AB$5,8,FALSE) -> 10.5 | Q3: 4.5 | R3: =(15^0.2)/100 -> 0.01718771928 | U3: GP | V3: 0.175 | W3: 0.06 | X3: 12.5 | Y3: 10 | Z3: 45 | AA3: 200 | AB3: 10.5
A4: GP | B4: Bexley | C4: SEL | D4: 243302.5947 | E4: 248378.1074 | F4: 1.004137797 | G4: 104.0768287 | H4: 20 | I4: 0.2592592593 | J4: 0.175 | K4: 0.06 | L4: 12.5 | M4: 10 | N4: 45 | O4: 200 | P4: 10.5 | Q4: 4.5 | R4: 0.01718771928 | U4: Nurse | V4: 0.15 | W4: 0.02 | X4: 20 | Y4: 10 | Z4: 60 | AA4: 210 | AB4: 8 | AD4: Row Labels | AE4: Sum of 2016 pop | AF4: Average of Annual % increase | AG4: Sum of Joiners | AH4: Average of %staff over 55 | AI4: Sum of Total Staff FTE | AJ4: Average of %over 55 retiring | AK4: Average of %leavers | AL4: Average of face to face appt time (mins) | AM4: Average of Telephone appt time | AN4: Average of home visit appt time | AO4: Average of days worked per year | AP4: Average of hours per day | AQ4: Average of appts per person | AR4: Average of %change in apps per year
A5: GP | B5: Brent | C5: NWL | D5: 328567.7276 | E5: 345659.8734 | F5: 1.010194065 | G5: 178.5742114 | H5: 20 | I5: 0.3056994819 | J5: 0.175 | K5: 0.06 | L5: 12.5 | M5: 10 | N5: 45 | O5: 200 | P5: 10.5 | Q5: 4.5 | R5: 0.01718771928 | U5: Other | V5: 0.1 | W5: 0.02 | X5: 17 | Y5: 10 | Z5: 45 | AA5: 210 | AB5: 8 | AD5: SEL | AE5: 325454.6437 | AF5: 1.010201962 | AG5: 20 | AH5: 0.2686567164 | AI5: 66.53795237 | AJ5: 0.15 | AK5: 0.02 | AL5: 20 | AM5: 10 | AN5: 60 | AO5: 210 | AP5: 8 | AQ5: 4.5 | AR5: 0.01718771928
A6: GP | B6: Bromley | C6: SEL | D6: 326559.5853 | E6: 333607.5681 | F6: 1.004279717 | G6: 169.5708161 | H6: 20 | I6: 0.1944444444 | J6: 0.175 | K6: 0.06 | L6: 12.5 | M6: 10 | N6: 45 | O6: 200 | P6: 10.5 | Q6: 4.5 | R6: 0.01718771928 | AD6: Lewisham | AE6: 325454.6437 | AF6: 1.010201962 | AG6: 20 | AH6: 0.2686567164 | AI6: 66.53795237 | AJ6: 0.15 | AK6: 0.02 | AL6: 20 | AM6: 10 | AN6: 60 | AO6: 210 | AP6: 8 | AQ6: 4.5 | AR6: 0.01718771928
A7: GP | B7: Camden | C7: NCL | D7: 240595.1876 | E7: 249811.742 | F7: 1.007546694 | G7: 142.9753949 | H7: 20 | I7: 0.1594202899 | J7: 0.175 | K7: 0.06 | L7: 12.5 | M7: 10 | N7: 45 | O7: 200 | P7: 10.5 | Q7: 4.5 | R7: 0.01718771928 | V7: Appointment type split | AD7: Grand Total | AE7: 325454.6437 | AF7: 1.010201962 | AG7: 20 | AH7: 0.2686567164 | AI7: 66.53795237 | AJ7: 0.15 | AK7: 0.02 | AL7: 20 | AM7: 10 | AN7: 60 | AO7: 210 | AP7: 8 | AQ7: 4.5 | AR7: 0.01718771928
A8: GP | B8: City & Hackney | C8: NEL | D8: 279460.0813 | E8: 298024.2591 | F8: 1.012946171 | G8: 168.5901913 | H8: 20 | I8: 0.1717791411 | J8: 0.175 | K8: 0.06 | L8: 12.5 | M8: 10 | N8: 45 | O8: 200 | P8: 10.5 | Q8: 4.5 | R8: 0.01718771928 | U8: % appointments taken by this staff type | V8: Face to Face | W8: Telephone | X8: Home visit | Y8: Admin time
A9: GP | B9: Croydon | C9: SWL | D9: 383407.6197 | E9: 399552.0842 | F9: 1.008283203 | G9: 201.1205659 | H9: 20 | I9: 0.2722513089 | J9: 0.175 | K9: 0.06 | L9: 12.5 | M9: 10 | N9: 45 | O9: 200 | P9: 10.5 | Q9: 4.5 | R9: 0.01718771928 | U9: 0.7 | V9: 0.5 | W9: 0.1 | X9: 0.4 | Y9: 0.3
A10: GP | B10: Ealing | C10: NWL | D10: 348532.5076 | E10: 364118.8288 | F10: 1.008788143 | G10: 194.6049187 | H10: 20 | I10: 0.2261306533 | J10: 0.175 | K10: 0.06 | L10: 12.5 | M10: 10 | N10: 45 | O10: 200 | P10: 10.5 | Q10: 4.5 | R10: 0.01718771928
A11: GP | B11: Enfield | C11: NCL | D11: 330967.757 | E11: 341277.2065 | F11: 1.006153679 | G11: 149.99797 | H11: 20 | I11: 0.3157894737 | J11: 0.175 | K11: 0.06 | L11: 12.5 | M11: 10 | N11: 45 | O11: 200 | P11: 10.5 | Q11: 4.5 | R11: 0.01718771928
A12: GP | B12: Hounslow | C12: NWL | D12: 275868.493 | E12: 300643.7565 | F12: 1.017349128 | G12: 152.9723759 | H12: 20 | I12: 0.3168316832 | J12: 0.175 | K12: 0.06 | L12: 12.5 | M12: 10 | N12: 45 | O12: 200 | P12: 10.5 | Q12: 4.5 | R12: 0.01718771928
A13: GP | B13: Greenwich | C13: SEL | D13: 183353.7672 | E13: 192209.9651 | F13: 1.009478823 | G13: 132.5600818 | H13: 20 | I13: 0.328125 | J13: 0.175 | K13: 0.06 | L13: 12.5 | M13: 10 | N13: 45 | O13: 200 | P13: 10.5 | Q13: 4.5 | R13: 0.01718771928
A14: GP | B14: Hammersmith & Fulham | C14: NWL | D14: 274802.7844 | E14: 290455.0671 | F14: 1.011140639 | G14: 107.9522484 | H14: 20 | I14: 0.1829268293 | J14: 0.175 | K14: 0.06 | L14: 12.5 | M14: 10 | N14: 45 | O14: 200 | P14: 10.5 | Q14: 4.5 | R14: 0.01718771928 | AE14: 2016 | AF14: 2017 | AG14: 2018 | AH14: 2019 | AI14: 2020 | AJ14: 2021
A15: GP | B15: Haringey | C15: NCL | D15: 250702.932 | E15: 258522.4137 | F15: 1.006161645 | G15: 134.3136984 | H15: 20 | I15: 0.3181818182 | J15: 0.175 | K15: 0.06 | L15: 12.5 | M15: 10 | N15: 45 | O15: 200 | P15: 10.5 | Q15: 4.5 | R15: 0.01718771928 | AD15: GP Supply | AE15: =GETPIVOTDATA("Sum of Total Staff FTE",$AD$4) -> 66.53795237 | AF15: =AE15-(AE15*GETPIVOTDATA("Average of %staff over 55",$AD$4)*GETPIVOTDATA("Average of %over 55 retiring",$AD$4))-(AE15*GETPIVOTDATA("Average of %leavers",$AD$4))+GETPIVOTDATA("Sum of Joiners",$AD$4) -> 82.52581315 | AG15: =AF15-(AF15*GETPIVOTDATA("Average of %staff over 55",$AD$4)*GETPIVOTDATA("Average of %over 55 retiring",$AD$4))-(AF15*GETPIVOTDATA("Average of %leavers",$AD$4))+GETPIVOTDATA("Sum of Joiners",$AD$4) -> 97.54962979 | AH15: 111.6675327 | AI15: 124.9341472 | AJ15: 137.4008046
A16: GP | B16: Harrow | C16: NWL | D16: 251610.7349 | E16: 265446.8105 | F16: 1.010763776 | G16: 134.1227787 | H16: 20 | I16: 0.2442748092 | J16: 0.175 | K16: 0.06 | L16: 12.5 | M16: 10 | N16: 45 | O16: 200 | P16: 10.5 | Q16: 4.5 | R16: 0.01718771928 | AD16: GP Demand | AE16: =AE21/AE20 -> 508.5228807 | AF16: =AF21/AF20 -> 513.7108119 | AG16: 518.9516701 | AH16: 524.2459953 | AI16: 529.5943331 | AJ16: 534.9972343
A17: GP | B17: Havering | C17: NEL | D17: 299473.6783 | E17: 307062.0456 | F17: 1.005017205 | G17: 122.1955966 | H17: 20 | I17: 0.3921568627 | J17: 0.175 | K17: 0.06 | L17: 12.5 | M17: 10 | N17: 45 | O17: 200 | P17: 10.5 | Q17: 4.5 | R17: 0.01718771928
A18: GP | B18: Hillingdon | C18: NWL | D18: 272101.6454 | E18: 282830.2214 | F18: 1.007764206 | G18: 125.3792838 | H18: 20 | I18: 0.2857142857 | J18: 0.175 | K18: 0.06 | L18: 12.5 | M18: 10 | N18: 45 | O18: 200 | P18: 10.5 | Q18: 4.5 | R18: 0.01718771928 | AD18: Population | AE18: =GETPIVOTDATA("Sum of 2016 pop",$AD$4) -> 325454.6437 | AF18: =AE18*GETPIVOTDATA("Average of Annual % increase",$AD$4) -> 328774.9196 | AG18: =AF18*GETPIVOTDATA("Average of Annual % increase",$AD$4) -> 332129.0688 | AH18: 335517.437 | AI18: 338940.3732 | AJ18: 342398.23
A19: GP | B19: Islington | C19: NCL | D19: 228397.1873 | E19: 241248.224 | F19: 1.011008192 | G19: 118.3618535 | H19: 20 | I19: 0.185483871 | J19: 0.175 | K19: 0.06 | L19: 12.5 | M19: 10 | N19: 45 | O19: 200 | P19: 10.5 | Q19: 4.5 | R19: 0.01718771928 | AD19: Total Appts | AE19: =AE18*GETPIVOTDATA("Average of appts per person",$AD$4)*$U$9 -> 1025182.128 | AF19: =AF18*(GETPIVOTDATA("Average of appts per person",$AD$4)*(1+GETPIVOTDATA("Average of %change in apps per year",$AD$4))^AF13)*$U$9 -> 1035640.997 | AG19: =AG18*(GETPIVOTDATA("Average of appts per person",$AD$4)*(1+GETPIVOTDATA("Average of %change in apps per year",$AD$4))^AG13)*$U$9 -> 1046206.567 | AH19: 1056879.927 | AI19: 1067662.175 | AJ19: 1078554.424
A20: GP | B20: Kingston | C20: SWL | D20: 158447.2042 | E20: 161987.1734 | F20: 1.004428922 | G20: 108.1000177 | H20: 20 | I20: 0.1962616822 | J20: 0.175 | K20: 0.06 | L20: 12.5 | M20: 10 | N20: 45 | O20: 200 | P20: 10.5 | Q20: 4.5 | R20: 0.01718771928 | AD20: Time per FTE | AE20: =GETPIVOTDATA("Average of days worked per year",$AD$4)*GETPIVOTDATA("Average of hours per day",$AD$4)*(1-$Y$9)*60 -> 70560 | AF20: =GETPIVOTDATA("Average of days worked per year",$AD$4)*GETPIVOTDATA("Average of hours per day",$AD$4)*(1-$Y$9)*60 -> 70560 | AG20: 70560 | AH20: 70560 | AI20: 70560 | AJ20: 70560
A21: GP | B21: Lambeth | C21: SEL | D21: 173853.3709 | E21: 181326.684 | F21: 1.008453136 | G21: 185.6340977 | H21: 20 | I21: 0.152173913 | J21: 0.175 | K21: 0.06 | L21: 12.5 | M21: 10 | N21: 45 | O21: 200 | P21: 10.5 | Q21: 4.5 | R21: 0.01718771928 | AD21: Time required | AE21: =(AE19*$V$9*GETPIVOTDATA("Average of face to face appt time (mins)",$AD$4))+(AE19*$W$9*GETPIVOTDATA("Average of Telephone appt time",$AD$4))+(AE19*$X$9*GETPIVOTDATA("Average of home visit appt time",$AD$4)) -> 35881374.46 | AF21: =(AF19*$V$9*GETPIVOTDATA("Average of face to face appt time (mins)",$AD$4))+(AF19*$W$9*GETPIVOTDATA("Average of Telephone appt time",$AD$4))+(AF19*$X$9*GETPIVOTDATA("Average of home visit appt time",$AD$4)) -> 36247434.88 | AG21: 36617229.84 | AH21: 36990797.43 | AI21: 37368176.14 | AJ21: 37749404.85
A22: GP | B22: Lewisham | C22: SEL | D22: 325454.6437 | E22: 342398.23 | F22: 1.010201962 | G22: 163.0189774 | H22: 20 | I22: 0.2808988764 | J22: 0.175 | K22: 0.06 | L22: 12.5 | M22: 10 | N22: 45 | O22: 200 | P22: 10.5 | Q22: 4.5 | R22: 0.01718771928
A23: GP | B23: Newham | C23: NEL | D23: 299817.3844 | E23: 316842.3797 | F23: 1.011107405 | G23: 167.6358792 | H23: 20 | I23: 0.3231707317 | J23: 0.175 | K23: 0.06 | L23: 12.5 | M23: 10 | N23: 45 | O23: 200 | P23: 10.5 | Q23: 4.5 | R23: 0.01718771928
A24: GP | B24: Redbridge | C24: NEL | D24: 207140.6699 | E24: 212185.0439 | F24: 1.00482372 | G24: 120.1154416 | H24: 20 | I24: 0.2926829268 | J24: 0.175 | K24: 0.06 | L24: 12.5 | M24: 10 | N24: 45 | O24: 200 | P24: 10.5 | Q24: 4.5 | R24: 0.01718771928
A25: GP | B25: Richmond | C25: SWL | D25: 337378.1807 | E25: 362819.6276 | F25: 1.014646487 | G25: 106.4089143 | H25: 20 | I25: 0.2260869565 | J25: 0.175 | K25: 0.06 | L25: 12.5 | M25: 10 | N25: 45 | O25: 200 | P25: 10.5 | Q25: 4.5 | R25: 0.01718771928
A26: GP | B26: Southwark | C26: SEL | D26: 301021.6161 | E26: 316853.4049 | F26: 1.010304155 | G26: 153.1839738 | H26: 20 | I26: 0.2013888889 | J26: 0.175 | K26: 0.06 | L26: 12.5 | M26: 10 | N26: 45 | O26: 200 | P26: 10.5 | Q26: 4.5 | R26: 0.01718771928
A27: GP | B27: Merton | C27: SWL | D27: 196602.2286 | E27: 200158.6816 | F27: 1.003592019 | G27: 106.6246072 | H27: 20 | I27: 0.168 | J27: 0.175 | K27: 0.06 | L27: 12.5 | M27: 10 | N27: 45 | O27: 200 | P27: 10.5 | Q27: 4.5 | R27: 0.01718771928
A28: GP | B28: Sutton | C28: SWL | D28: 310642.3523 | E28: 332523.7542 | F28: 1.013706898 | G28: 95.78843235 | H28: 20 | I28: 0.2522522523 | J28: 0.175 | K28: 0.06 | L28: 12.5 | M28: 10 | N28: 45 | O28: 200 | P28: 10.5 | Q28: 4.5 | R28: 0.01718771928 | V28: 100
A29: GP | B29: Tower Hamlets | C29: NEL | D29: 201750.7963 | E29: 205926.3036 | F29: 1.004105424 | G29: 165.0762781 | H29: 20 | I29: 0.1739130435 | J29: 0.175 | K29: 0.06 | L29: 12.5 | M29: 10 | N29: 45 | O29: 200 | P29: 10.5 | Q29: 4.5 | R29: 0.01718771928
A30: GP | B30: Waltham Forest | C30: NEL | D30: 297804.9566 | E30: 337617.385 | F30: 1.025412426 | G30: 136.2732761 | H30: 20 | I30: 0.3303571429 | J30: 0.175 | K30: 0.06 | L30: 12.5 | M30: 10 | N30: 45 | O30: 200 | P30: 10.5 | Q30: 4.5 | R30: 0.01718771928
A31: GP | B31: Wandsworth | C31: SWL | D31: 274139.4078 | E31: 284554.6096 | F31: 1.007485562 | G31: 204.8838274 | H31: 20 | I31: 0.1950207469 | J31: 0.175 | K31: 0.06 | L31: 12.5 | M31: 10 | N31: 45 | O31: 200 | P31: 10.5 | Q31: 4.5 | R31: 0.01718771928
A32: GP | B32: West London (K&C & QPP) | C32: NWL | D32: 318253.4708 | E32: 331558.5638 | F32: 1.008224903 | G32: 135.0839649 | H32: 20 | I32: 0.3157894737 | J32: 0.175 | K32: 0.06 | L32: 12.5 | M32: 10 | N32: 45 | O32: 200 | P32: 10.5 | Q32: 4.5 | R32: 0.01718771928
A33: GP | B33: Central London (Westminster) | C33: NWL | D33: 239861.5274 | E33: 250416.2946 | F33: 1.00864978 | G33: 96.34313839 | H33: 20 | I33: 0.2247191011 | J33: 0.175 | K33: 0.06 | L33: 12.5 | M33: 10 | N33: 45 | O33: 200 | P33: 10.5 | Q33: 4.5 | R33: 0.01718771928
A34: Nurse | B34: Barking & Dagenham | C34: NEL | D34: 205773.0092 | E34: 222143.3815 | F34: =(E34/D34)^0.2 -> 1.015427671 | G34: 47.64801407 | H34: 20 | I34: 0.4081632653 | J34: 0.15 | K34: 0.02 | L34: 20 | M34: 10 | N34: 60 | O34: 210 | P34: 8 | Q34: 4.5 | R34: 0.01718771928
A35: Nurse | B35: Barnet | C35: NCL | D35: 385107.6572 | E35: 409895.3742 | F35: =(E35/D35)^0.2 -> 1.012553951 | G35: 74.56073446 | H35: 20 | I35: 0.3870967742 | J35: 0.15 | K35: 0.02 | L35: 20 | M35: 10 | N35: 60 | O35: 210 | P35: 8 | Q35: 4.5 | R35: 0.01718771928
A36: Nurse | B36: Bexley | C36: SEL | D36: 243302.5947 | E36: 248378.1074 | F36: 1.004137797 | G36: 58.61827933 | H36: 20 | I36: 0.3142857143 | J36: 0.15 | K36: 0.02 | L36: 20 | M36: 10 | N36: 60 | O36: 210 | P36: 8 | Q36: 4.5 | R36: 0.01718771928
A37: Nurse | B37: Brent | C37: NWL | D37: 328567.7276 | E37: 345659.8734 | F37: 1.010194065 | G37: 58.84605134 | H37: 20 | I37: 0.5416666667 | J37: 0.15 | K37: 0.02 | L37: 20 | M37: 10 | N37: 60 | O37: 210 | P37: 8 | Q37: 4.5 | R37: 0.01718771928
A38: Nurse | B38: Bromley | C38: SEL | D38: 326559.5853 | E38: 333607.5681 | F38: 1.004279717 | G38: 60.83597083 | H38: 20 | I38: 0.44 | J38: 0.15 | K38: 0.02 | L38: 20 | M38: 10 | N38: 60 | O38: 210 | P38: 8 | Q38: 4.5 | R38: 0.01718771928
A39: Nurse | B39: Camden | C39: NCL | D39: 240595.1876 | E39: 249811.742 | F39: 1.007546694 | G39: 51.17235151 | H39: 20 | I39: 0.243902439 | J39: 0.15 | K39: 0.02 | L39: 20 | M39: 10 | N39: 60 | O39: 210 | P39: 8 | Q39: 4.5 | R39: 0.01718771928
A40: Nurse | B40: City & Hackney | C40: NEL | D40: 279460.0813 | E40: 298024.2591 | F40: 1.012946171 | G40: 65.24281572 | H40: 20 | I40: 0.4285714286 | J40: 0.15 | K40: 0.02 | L40: 20 | M40: 10 | N40: 60 | O40: 210 | P40: 8 | Q40: 4.5 | R40: 0.01718771928
A41: Nurse | B41: Croydon | C41: SWL | D41: 383407.6197 | E41: 399552.0842 | F41: 1.008283203 | G41: 96.41956356 | H41: 20 | I41: 0.3697478992 | J41: 0.15 | K41: 0.02 | L41: 20 | M41: 10 | N41: 60 | O41: 210 | P41: 8 | Q41: 4.5 | R41: 0.01718771928
A42: Nurse | B42: Ealing | C42: NWL | D42: 348532.5076 | E42: 364118.8288 | F42: 1.008788143 | G42: 87.19027869 | H42: 20 | I42: 0.3888888889 | J42: 0.15 | K42: 0.02 | L42: 20 | M42: 10 | N42: 60 | O42: 210 | P42: 8 | Q42: 4.5 | R42: 0.01718771928
A43: Nurse | B43: Enfield | C43: NCL | D43: 330967.757 | E43: 341277.2065 | F43: 1.006153679 | G43: 60.78784687 | H43: 20 | I43: 0.4520547945 | J43: 0.15 | K43: 0.02 | L43: 20 | M43: 10 | N43: 60 | O43: 210 | P43: 8 | Q43: 4.5 | R43: 0.01718771928
A44: Nurse | B44: Hounslow | C44: NWL | D44: 275868.493 | E44: 300643.7565 | F44: 1.017349128 | G44: 65.45079947 | H44: 20 | I44: 0.4528301887 | J44: 0.15 | K44: 0.02 | L44: 20 | M44: 10 | N44: 60 | O44: 210 | P44: 8 | Q44: 4.5 | R44: 0.01718771928
A45: Nurse | B45: Greenwich | C45: SEL | D45: 183353.7672 | E45: 192209.9651 | F45: 1.009478823 | G45: 63.53769275 | H45: 20 | I45: 0.4390243902 | J45: 0.15 | K45: 0.02 | L45: 20 | M45: 10 | N45: 60 | O45: 210 | P45: 8 | Q45: 4.5 | R45: 0.01718771928
A46: Nurse | B46: Hammersmith & Fulham | C46: NWL | D46: 274802.7844 | E46: 290455.0671 | F46: 1.011140639 | G46: 41.31909082 | H46: 20 | I46: 0.1935483871 | J46: 0.15 | K46: 0.02 | L46: 20 | M46: 10 | N46: 60 | O46: 210 | P46: 8 | Q46: 4.5 | R46: 0.01718771928
A47: Nurse | B47: Haringey | C47: NCL | D47: 250702.932 | E47: 258522.4137 | F47: 1.006161645 | G47: 53.74083469 | H47: 20 | I47: 0.3396226415 | J47: 0.15 | K47: 0.02 | L47: 20 | M47: 10 | N47: 60 | O47: 210 | P47: 8 | Q47: 4.5 | R47: 0.01718771928
A48: Nurse | B48: Harrow | C48: NWL | D48: 251610.7349 | E48: 265446.8105 | F48: 1.010763776 | G48: 56.44313338 | H48: 20 | I48: 0.3943661972 | J48: 0.15 | K48: 0.02 | L48: 20 | M48: 10 | N48: 60 | O48: 210 | P48: 8 | Q48: 4.5 | R48: 0.01718771928
A49: Nurse | B49: Havering | C49: NEL | D49: 299473.6783 | E49: 307062.0456 | F49: 1.005017205 | G49: 60.07757561 | H49: 20 | I49: 0.44 | J49: 0.15 | K49: 0.02 | L49: 20 | M49: 10 | N49: 60 | O49: 210 | P49: 8 | Q49: 4.5 | R49: 0.01718771928
A50: Nurse | B50: Hillingdon | C50: NWL | D50: 272101.6454 | E50: 282830.2214 | F50: 1.007764206 | G50: 57.12153509 | H50: 20 | I50: 0.5185185185 | J50: 0.15 | K50: 0.02 | L50: 20 | M50: 10 | N50: 60 | O50: 210 | P50: 8 | Q50: 4.5 | R50: 0.01718771928
A51: Nurse | B51: Islington | C51: NCL | D51: 228397.1873 | E51: 241248.224 | F51: 1.011008192 | G51: 44.52668028 | H51: 20 | I51: 0.4150943396 | J51: 0.15 | K51: 0.02 | L51: 20 | M51: 10 | N51: 60 | O51: 210 | P51: 8 | Q51: 4.5 | R51: 0.01718771928
A52: Nurse | B52: Kingston | C52: SWL | D52: 158447.2042 | E52: 161987.1734 | F52: 1.004428922 | G52: 42.52023387 | H52: 20 | I52: 0.3088235294 | J52: 0.15 | K52: 0.02 | L52: 20 | M52: 10 | N52: 60 | O52: 210 | P52: 8 | Q52: 4.5 | R52: 0.01718771928
A53: Nurse | B53: Lambeth | C53: SEL | D53: 173853.3709 | E53: 181326.684 | F53: 1.008453136 | G53: 78.02882329 | H53: 20 | I53: 0.2526315789 | J53: 0.15 | K53: 0.02 | L53: 20 | M53: 10 | N53: 60 | O53: 210 | P53: 8 | Q53: 4.5 | R53: 0.01718771928
A54: Nurse | B54: Lewisham | C54: SEL | D54: 325454.6437 | E54: 342398.23 | F54: 1.010201962 | G54: 66.53795237 | H54: 20 | I54: 0.2686567164 | J54: 0.15 | K54: 0.02 | L54: 20 | M54: 10 | N54: 60 | O54: 210 | P54: 8 | Q54: 4.5 | R54: 0.01718771928
A55: Nurse | B55: Newham | C55: NEL | D55: 299817.3844 | E55: 316842.3797 | F55: 1.011107405 | G55: 71.77945644 | H55: 20 | I55: 0.4864864865 | J55: 0.15 | K55: 0.02 | L55: 20 | M55: 10 | N55: 60 | O55: 210 | P55: 8 | Q55: 4.5 | R55: 0.01718771928
A56: Nurse | B56: Redbridge | C56: NEL | D56: 207140.6699 | E56: 212185.0439 | F56: 1.00482372 | G56: 47.20800998 | H56: 20 | I56: 0.4375 | J56: 0.15 | K56: 0.02 | L56: 20 | M56: 10 | N56: 60 | O56: 210 | P56: 8 | Q56: 4.5 | R56: 0.01718771928
A57: Nurse | B57: Richmond | C57: SWL | D57: 337378.1807 | E57: 362819.6276 | F57: 1.014646487 | G57: 32.20105544 | H57: 20 | I57: 0.3913043478 | J57: 0.15 | K57: 0.02 | L57: 20 | M57: 10 | N57: 60 | O57: 210 | P57: 8 | Q57: 4.5 | R57: 0.01718771928
A58: Nurse | B58: Southwark | C58: SEL | D58: 301021.6161 | E58: 316853.4049 | F58: 1.010304155 | G58: 70.52398127 | H58: 20 | I58: 0.3529411765 | J58: 0.15 | K58: 0.02 | L58: 20 | M58: 10 | N58: 60 | O58: 210 | P58: 8 | Q58: 4.5 | R58: 0.01718771928
A59: Nurse | B59: Merton | C59: SWL | D59: 196602.2286 | E59: 200158.6816 | F59: 1.003592019 | G59: 46.5555163 | H59: 20 | I59: 0.5 | J59: 0.15 | K59: 0.02 | L59: 20 | M59: 10 | N59: 60 | O59: 210 | P59: 8 | Q59: 4.5 | R59: 0.01718771928
A60: Nurse | B60: Sutton | C60: SWL | D60: 310642.3523 | E60: 332523.7542 | F60: 1.013706898 | G60: 43.60114658 | H60: 20 | I60: 0.4181818182 | J60: 0.15 | K60: 0.02 | L60: 20 | M60: 10 | N60: 60 | O60: 210 | P60: 8 | Q60: 4.5 | R60: 0.01718771928
A61: Nurse | B61: Tower Hamlets | C61: NEL | D61: 201750.7963 | E61: 205926.3036 | F61: 1.004105424 | G61: 78.63135732 | H61: 20 | I61: 0.1954022989 | J61: 0.15 | K61: 0.02 | L61: 20 | M61: 10 | N61: 60 | O61: 210 | P61: 8 | Q61: 4.5 | R61: 0.01718771928
A62: Nurse | B62: Waltham Forest | C62: NEL | D62: 297804.9566 | E62: 337617.385 | F62: 1.025412426 | G62: 60.73785221 | H62: 20 | I62: 0.5409836066 | J62: 0.15 | K62: 0.02 | L62: 20 | M62: 10 | N62: 60 | O62: 210 | P62: 8 | Q62: 4.5 | R62: 0.01718771928
A63: Nurse | B63: Wandsworth | C63: SWL | D63: 274139.4078 | E63: 284554.6096 | F63: 1.007485562 | G63: 77.46283054 | H63: 20 | I63: 0.3516483516 | J63: 0.15 | K63: 0.02 | L63: 20 | M63: 10 | N63: 60 | O63: 210 | P63: 8 | Q63: 4.5 | R63: 0.01718771928
A64: Nurse | B64: West London (K&C & QPP) | C64: NWL | D64: 318253.4708 | E64: 331558.5638 | F64: 1.008224903 | G64: 51.48059244 | H64: 20 | I64: 0.3720930233 | J64: 0.15 | K64: 0.02 | L64: 20 | M64: 10 | N64: 60 | O64: 210 | P64: 8 | Q64: 4.5 | R64: 0.01718771928
A65: Nurse | B65: Central London (Westminster) | C65: NWL | D65: 239861.5274 | E65: 250416.2946 | F65: 1.00864978 | G65: 45.33055272 | H65: 20 | I65: 0.2857142857 | J65: 0.15 | K65: 0.02 | L65: 20 | M65: 10 | N65: 60 | O65: 210 | P65: 8 | Q65: 4.5 | R65: 0.01718771928
A66: Other | B66: Barking & Dagenham | C66: NEL | D66: 205773.0092 | E66: 222143.3815 | F66: =(E66/D66)^0.2 -> 1.015427671 | G66: 15.13571895 | H66: 20 | I66: 0.2 | J66: 0.1 | K66: 0.02 | L66: 17 | M66: 10 | N66: 45 | O66: 210 | P66: 8 | Q66: 4.5 | R66: 0.01718771928
A67: Other | B67: Barnet | C67: NCL | D67: 385107.6572 | E67: 409895.3742 | F67: =(E67/D67)^0.2 -> 1.012553951 | G67: 34.08395544 | H67: 20 | I67: 0.1290322581 | J67: =VLOOKUP($A67,$U$2:$AB$5,2,FALSE) -> 0.1 | K67: =VLOOKUP($A67,$U$2:$AB$5,3,FALSE) -> 0.02 | L67: =VLOOKUP($A67,$U$2:$AB$5,4,FALSE) -> 17 | M67: =VLOOKUP($A67,$U$2:$AB$5,5,FALSE) -> 10 | N67: =VLOOKUP($A67,$U$2:$AB$5,6,FALSE) -> 45 | O67: =VLOOKUP($A67,$U$2:$AB$5,7,FALSE) -> 210 | P67: =VLOOKUP($A67,$U$2:$AB$5,8,FALSE) -> 8 | Q67: 4.5 | R67: =(15^0.2)/100 -> 0.01718771928
A68: Other | B68: Bexley | C68: SEL | D68: 243302.5947 | E68: 248378.1074 | F68: 1.004137797 | G68: 20.35971829 | H68: 20 | I68: 0.3214285714 | J68: 0.1 | K68: 0.02 | L68: 17 | M68: 10 | N68: 45 | O68: 210 | P68: 8 | Q68: 4.5 | R68: 0.01718771928
A69: Other | B69: Brent | C69: NWL | D69: 328567.7276 | E69: 345659.8734 | F69: 1.010194065 | G69: 43.09156941 | H69: 20 | I69: 0.1384615385 | J69: 0.1 | K69: 0.02 | L69: 17 | M69: 10 | N69: 45 | O69: 210 | P69: 8 | Q69: 4.5 | R69: 0.01718771928
A70: Other | B70: Bromley | C70: SEL | D70: 326559.5853 | E70: 333607.5681 | F70: 1.004279717 | G70: 22.24358407 | H70: 20 | I70: 0.2272727273 | J70: 0.1 | K70: 0.02 | L70: 17 | M70: 10 | N70: 45 | O70: 210 | P70: 8 | Q70: 4.5 | R70: 0.01718771928
A71: Other | B71: Camden | C71: NCL | D71: 240595.1876 | E71: 249811.742 | F71: 1.007546694 | G71: 27.15411948 | H71: 20 | I71: 0.1363636364 | J71: 0.1 | K71: 0.02 | L71: 17 | M71: 10 | N71: 45 | O71: 210 | P71: 8 | Q71: 4.5 | R71: 0.01718771928
A72: Other | B72: City & Hackney | C72: NEL | D72: 279460.0813 | E72: 298024.2591 | F72: 1.012946171 | G72: 35.64250512 | H72: 20 | I72: 0.3333333333 | J72: 0.1 | K72: 0.02 | L72: 17 | M72: 10 | N72: 45 | O72: 210 | P72: 8 | Q72: 4.5 | R72: 0.01718771928
A73: Other | B73: Croydon | C73: SWL | D73: 383407.6197 | E73: 399552.0842 | F73: 1.008283203 | G73: 40.08180454 | H73: 20 | I73: 0.3673469388 | J73: 0.1 | K73: 0.02 | L73: 17 | M73: 10 | N73: 45 | O73: 210 | P73: 8 | Q73: 4.5 | R73: 0.01718771928
A74: Other | B74: Ealing | C74: NWL | D74: 348532.5076 | E74: 364118.8288 | F74: 1.008788143 | G74: 42.7243489 | H74: 20 | I74: 0.2063492063 | J74: 0.1 | K74: 0.02 | L74: 17 | M74: 10 | N74: 45 | O74: 210 | P74: 8 | Q74: 4.5 | R74: 0.01718771928
A75: Other | B75: Enfield | C75: NCL | D75: 330967.757 | E75: 341277.2065 | F75: 1.006153679 | G75: 19.23469546 | H75: 20 | I75: 0.1666666667 | J75: 0.1 | K75: 0.02 | L75: 17 | M75: 10 | N75: 45 | O75: 210 | P75: 8 | Q75: 4.5 | R75: 0.01718771928
A76: Other | B76: Hounslow | C76: NWL | D76: 275868.493 | E76: 300643.7565 | F76: 1.017349128 | G76: 35.3944136 | H76: 20 | I76: 0.303030303 | J76: 0.1 | K76: 0.02 | L76: 17 | M76: 10 | N76: 45 | O76: 210 | P76: 8 | Q76: 4.5 | R76: 0.01718771928
A77: Other | B77: Greenwich | C77: SEL | D77: 183353.7672 | E77: 192209.9651 | F77: 1.009478823 | G77: 23.15113658 | H77: 20 | I77: 0.2962962963 | J77: 0.1 | K77: 0.02 | L77: 17 | M77: 10 | N77: 45 | O77: 210 | P77: 8 | Q77: 4.5 | R77: 0.01718771928
A78: Other | B78: Hammersmith & Fulham | C78: NWL | D78: 274802.7844 | E78: 290455.0671 | F78: 1.011140639 | G78: 32.7936394 | H78: 20 | I78: 0.08 | J78: 0.1 | K78: 0.02 | L78: 17 | M78: 10 | N78: 45 | O78: 210 | P78: 8 | Q78: 4.5 | R78: 0.01718771928
A79: Other | B79: Haringey | C79: NCL | D79: 250702.932 | E79: 258522.4137 | F79: 1.006161645 | G79: 30.15959522 | H79: 20 | I79: 0.3846153846 | J79: 0.1 | K79: 0.02 | L79: 17 | M79: 10 | N79: 45 | O79: 210 | P79: 8 | Q79: 4.5 | R79: 0.01718771928
A80: Other | B80: Harrow | C80: NWL | D80: 251610.7349 | E80: 265446.8105 | F80: 1.010763776 | G80: 28.95253117 | H80: 20 | I80: 0.2352941176 | J80: 0.1 | K80: 0.02 | L80: 17 | M80: 10 | N80: 45 | O80: 210 | P80: 8 | Q80: 4.5 | R80: 0.01718771928
A81: Other | B81: Havering | C81: NEL | D81: 299473.6783 | E81: 307062.0456 | F81: 1.005017205 | G81: 12.98508243 | H81: 20 | I81: 0.08333333333 | J81: 0.1 | K81: 0.02 | L81: 17 | M81: 10 | N81: 45 | O81: 210 | P81: 8 | Q81: 4.5 | R81: 0.01718771928
A82: Other | B82: Hillingdon | C82: NWL | D82: 272101.6454 | E82: 282830.2214 | F82: 1.007764206 | G82: 14.62415797 | H82: 20 | I82: 0.3333333333 | J82: 0.1 | K82: 0.02 | L82: 17 | M82: 10 | N82: 45 | O82: 210 | P82: 8 | Q82: 4.5 | R82: 0.01718771928
A83: Other | B83: Islington | C83: NCL | D83: 228397.1873 | E83: 241248.224 | F83: 1.011008192 | G83: 20.28066478 | H83: 20 | I83: 0.15 | J83: 0.1 | K83: 0.02 | L83: 17 | M83: 10 | N83: 45 | O83: 210 | P83: 8 | Q83: 4.5 | R83: 0.01718771928
A84: Other | B84: Kingston | C84: SWL | D84: 158447.2042 | E84: 161987.1734 | F84: 1.004428922 | G84: 23.14330671 | H84: 20 | I84: 0.21875 | J84: 0.1 | K84: 0.02 | L84: 17 | M84: 10 | N84: 45 | O84: 210 | P84: 8 | Q84: 4.5 | R84: 0.01718771928
A85: Other | B85: Lambeth | C85: SEL | D85: 173853.3709 | E85: 181326.684 | F85: 1.008453136 | G85: 25.06197587 | H85: 20 | I85: 0.1034482759 | J85: 0.1 | K85: 0.02 | L85: 17 | M85: 10 | N85: 45 | O85: 210 | P85: 8 | Q85: 4.5 | R85: 0.01718771928
A86: Other | B86: Lewisham | C86: SEL | D86: 325454.6437 | E86: 342398.23 | F86: 1.010201962 | G86: 26.18033551 | H86: 20 | I86: 0.1785714286 | J86: 0.1 | K86: 0.02 | L86: 17 | M86: 10 | N86: 45 | O86: 210 | P86: 8 | Q86: 4.5 | R86: 0.01718771928
A87: Other | B87: Newham | C87: NEL | D87: 299817.3844 | E87: 316842.3797 | F87: 1.011107405 | G87: 40.70166239 | H87: 20 | I87: 0.07317073171 | J87: 0.1 | K87: 0.02 | L87: 17 | M87: 10 | N87: 45 | O87: 210 | P87: 8 | Q87: 4.5 | R87: 0.01718771928
A88: Other | B88: Redbridge | C88: NEL | D88: 207140.6699 | E88: 212185.0439 | F88: 1.00482372 | G88: 20.38367879 | H88: 20 | I88: 0.2272727273 | J88: 0.1 | K88: 0.02 | L88: 17 | M88: 10 | N88: 45 | O88: 210 | P88: 8 | Q88: 4.5 | R88: 0.01718771928
A89: Other | B89: Richmond | C89: SWL | D89: 337378.1807 | E89: 362819.6276 | F89: 1.014646487 | G89: 22.54888122 | H89: 20 | I89: 0.25 | J89: 0.1 | K89: 0.02 | L89: 17 | M89: 10 | N89: 45 | O89: 210 | P89: 8 | Q89: 4.5 | R89: 0.01718771928
A90: Other | B90: Southwark | C90: SEL | D90: 301021.6161 | E90: 316853.4049 | F90: 1.010304155 | G90: 31.1368581 | H90: 20 | I90: 0.2 | J90: 0.1 | K90: 0.02 | L90: 17 | M90: 10 | N90: 45 | O90: 210 | P90: 8 | Q90: 4.5 | R90: 0.01718771928
A91: Other | B91: Merton | C91: SWL | D91: 196602.2286 | E91: 200158.6816 | F91: 1.003592019 | G91: 16.39110765 | H91: 20 | I91: 0.380952381 | J91: 0.1 | K91: 0.02 | L91: 17 | M91: 10 | N91: 45 | O91: 210 | P91: 8 | Q91: 4.5 | R91: 0.01718771928
A92: Other | B92: Sutton | C92: SWL | D92: 310642.3523 | E92: 332523.7542 | F92: 1.013706898 | G92: 17.65505394 | H92: 20 | I92: 0.25 | J92: 0.1 | K92: 0.02 | L92: 17 | M92: 10 | N92: 45 | O92: 210 | P92: 8 | Q92: 4.5 | R92: 0.01718771928
A93: Other | B93: Tower Hamlets | C93: NEL | D93: 201750.7963 | E93: 205926.3036 | F93: 1.004105424 | G93: 45.86656234 | H93: 20 | I93: 0.09090909091 | J93: 0.1 | K93: 0.02 | L93: 17 | M93: 10 | N93: 45 | O93: 210 | P93: 8 | Q93: 4.5 | R93: 0.01718771928
A94: Other | B94: Waltham Forest | C94: NEL | D94: 297804.9566 | E94: 337617.385 | F94: 1.025412426 | G94: 22.29022443 | H94: 20 | I94: 0.3076923077 | J94: 0.1 | K94: 0.02 | L94: 17 | M94: 10 | N94: 45 | O94: 210 | P94: 8 | Q94: 4.5 | R94: 0.01718771928
A95: Other | B95: Wandsworth | C95: SWL | D95: 274139.4078 | E95: 284554.6096 | F95: 1.007485562 | G95: 45.62741714 | H95: 20 | I95: 0.1896551724 | J95: 0.1 | K95: 0.02 | L95: 17 | M95: 10 | N95: 45 | O95: 210 | P95: 8 | Q95: 4.5 | R95: 0.01718771928
A96: Other | B96: West London (K&C & QPP) | C96: NWL | D96: 318253.4708 | E96: 331558.5638 | F96: 1.008224903 | G96: 34.57677039 | H96: 20 | I96: 0.2058823529 | J96: 0.1 | K96: 0.02 | L96: 17 | M96: 10 | N96: 45 | O96: 210 | P96: 8 | Q96: 4.5 | R96: 0.01718771928
A97: Other | B97: Central London (Westminster) | C97: NWL | D97: 239861.5274 | E97: 250416.2946 | F97: 1.00864978 | G97: 21.55267465 | H97: 20 | I97: 0.24 | J97: 0.1 | K97: 0.02 | L97: 17 | M97: 10 | N97: 45 | O97: 210 | P97: 8 | Q97: 4.5 | R97: 0.01718771928

Sheet Data back sheet (hidden)
S1: Supply | Y1: Demand
A2: Staff type | B2: CCG | C2: STP | D2: 2016 pop | E2: 2021 pop | F2: Annual % increase | G2: Total Staff FTE | H2: ST1 joiners | I2: %staff over 55 | J2: %over 55 retiring | K2: %leavers | L2: face to face appt time (mins) | M2: Telephone appt time | N2: home visit appt time | O2: days worked per year | P2: hours per day | Q2: appts per person | R2: %change in apps per year | S2: 2016 | T2: 2017 | U2: 2018 | V2: 2019 | W2: 2020 | X2: 2021 | Y2: 2016 | Z2: 2017 | AA2: 2018 | AB2: 2019 | AC2: 2020 | AD2: 2021
A3: GP | B3: Barking & Dagenham | C3: NEL | D3: 205773.0092 | E3: 222143.3815 | F3: 1.015427671 | G3: 87.32713652 | H3: 5 | I3: 0.380952381 | J3: 0.175 | K3: 0.06 | L3: 12.5 | M3: 10 | N3: 45 | O3: 210 | P3: 11 | Q3: 5.1 | R3: 0.01718771928 | S3: =G3 -> 87.32713652 | T3: =S3+'Input Sheet'!$A$23+$H$3-(S3*$I$3*'Input Sheet'!$A$20)-(S3*'Input Sheet'!$A$21) -> 89.84195339 | U3: =T3+'Input Sheet'!$A$23+$H$3-(T3*$I$3*'Input Sheet'!$A$20)-(T3*'Input Sheet'!$A$21) -> 92.14121453 | V3: =U3+'Input Sheet'!$A$23+$H$3-(U3*$I$3*'Input Sheet'!$A$20)-(U3*'Input Sheet'!$A$21) -> 94.24339614 | W3: =V3+'Input Sheet'!$A$23+$H$3-(V3*$I$3*'Input Sheet'!$A$20)-(V3*'Input Sheet'!$A$21) -> 96.16539075 | X3: =W3+'Input Sheet'!$A$23+$H$3-(W3*$I$3*'Input Sheet'!$A$20)-(W3*'Input Sheet'!$A$21) -> 97.92264298 | Y3: =(Q3*D3*'Input Sheet'!$A$28*'Input Sheet'!$A$30)/(O3*P3*60*(1-'Input Sheet'!$A$29)) -> 98.88458719 | Z3: =Y3*(F3+R3) -> 102.1097466 | AA3: =Z3*(F3+R3) -> 105.4400958 | AB3: =AA3*(F3+R3) -> 108.8790657 | AC3: =AB3*(F3+R3) -> 112.4301989 | AD3: =AC3*(F3+R3) -> 116.0971537
A4: GP | B4: Barnet | C4: NCL | D4: 385107.6572 | E4: 409895.3742 | F4: 1.012553951 | G4: 192.0871725 | H4: 5 | I4: 0.2688172043 | J4: 0.175 | K4: 0.06 | L4: 12.5 | M4: 10 | N4: 45 | O4: 200 | P4: 10.5 | Q4: 5.1 | R4: 0.01718771928 | S4: =G4 -> 192.0871725 | T4: =S4+'Input Sheet'!$A$23+$H$4-(S4*$I$4*'Input Sheet'!$A$20)-(S4*'Input Sheet'!$A$21) -> 188.2073252 | U4: =T4+'Input Sheet'!$A$23+$H$4-(T4*$I$4*'Input Sheet'!$A$20)-(T4*'Input Sheet'!$A$21) -> 184.6078281 | V4: =U4+'Input Sheet'!$A$23+$H$4-(U4*$I$4*'Input Sheet'!$A$20)-(U4*'Input Sheet'!$A$21) -> 181.2684238 | W4: =V4+'Input Sheet'!$A$23+$H$4-(V4*$I$4*'Input Sheet'!$A$20)-(V4*'Input Sheet'!$A$21) -> 178.1703183 | X4: =W4+'Input Sheet'!$A$23+$H$4-(W4*$I$4*'Input Sheet'!$A$20)-(W4*'Input Sheet'!$A$21) -> 175.2960759 | Y4: =(Q4*D4*'Input Sheet'!$A$28*'Input Sheet'!$A$30)/(O4*P4*60*(1-'Input Sheet'!$A$29)) -> 203.57059 | Z4: =Y4*(F4+R4) -> 209.6251193 | AA4: =Z4*(F4+R4) -> 215.8597205 | AB4: =AA4*(F4+R4) -> 222.2797492 | AC4: =AB4*(F4+R4) -> 228.8907202 | AD4: =AC4*(F4+R4) -> 235.6983125
A5: GP | B5: Bexley | C5: SEL | D5: 243302.5947 | E5: 248378.1074 | F5: 1.004137797 | G5: 104.0768287 | H5: 5 | I5: 0.2592592593 | J5: 0.175 | K5: 0.06 | L5: 12.5 | M5: 10 | N5: 45 | O5: 200 | P5: 10.5 | Q5: 5.1 | R5: 0.01718771928 | S5: 104.0768287 | T5: =S5+'Input Sheet'!$A$23+$H$5-(S5*$I$5*'Input Sheet'!$A$20)-(S5*'Input Sheet'!$A$21) -> 106.6758098 | U5: =T5+'Input Sheet'!$A$23+$H$5-(T5*$I$5*'Input Sheet'!$A$20)-(T5*'Input Sheet'!$A$21) -> 109.0899744 | V5: =U5+'Input Sheet'!$A$23+$H$5-(U5*$I$5*'Input Sheet'!$A$20)-(U5*'Input Sheet'!$A$21) -> 111.3324651 | W5: =V5+'Input Sheet'!$A$23+$H$5-(V5*$I$5*'Input Sheet'!$A$20)-(V5*'Input Sheet'!$A$21) -> 113.4154898 | X5: =W5+'Input Sheet'!$A$23+$H$5-(W5*$I$5*'Input Sheet'!$A$20)-(W5*'Input Sheet'!$A$21) -> 115.3503883 | Y5: =(Q5*D5*'Input Sheet'!$A$28*'Input Sheet'!$A$30)/(O5*P5*60*(1-'Input Sheet'!$A$29)) -> 128.6114462 | Z5: 131.3541516 | AA5: 134.1553467 | AB5: 137.0162787 | AC5: 139.9382215 | AD5: 142.9224763
A6: GP | B6: Brent | C6: NWL | D6: 328567.7276 | E6: 345659.8734 | F6: 1.010194065 | G6: 178.5742114 | H6: 5 | I6: 0.3056994819 | J6: 0.175 | K6: 0.06 | L6: 12.5 | M6: 10 | N6: 45 | O6: 200 | P6: 10.5 | Q6: 5.1 | R6: 0.01718771928 | S6: 178.5742114 | T6: =S6+'Input Sheet'!$A$23+$H$6-(S6*$I$6*'Input Sheet'!$A$20)-(S6*'Input Sheet'!$A$21) -> 174.8804377 | U6: =T6+'Input Sheet'!$A$23+$H$6-(T6*$I$6*'Input Sheet'!$A$20)-(T6*'Input Sheet'!$A$21) -> 171.469917 | V6: =U6+'Input Sheet'!$A$23+$H$6-(U6*$I$6*'Input Sheet'!$A$20)-(U6*'Input Sheet'!$A$21) -> 168.3209286 | W6: =V6+'Input Sheet'!$A$23+$H$6-(V6*$I$6*'Input Sheet'!$A$20)-(V6*'Input Sheet'!$A$21) -> 165.413417 | X6: =W6+'Input Sheet'!$A$23+$H$6-(W6*$I$6*'Input Sheet'!$A$20)-(W6*'Input Sheet'!$A$21) -> 162.7288648 | Y6: =(Q6*D6*'Input Sheet'!$A$28*'Input Sheet'!$A$30)/(O6*P6*60*(1-'Input Sheet'!$A$29)) -> 173.6831893 | Z6: 178.4389449 | AA6: 183.3249215 | AB6: 188.3446849 | AC6: 193.5018983 | AD6: 198.8003255
A7: GP | B7: Bromley | C7: SEL | D7: 326559.5853 | E7: 333607.5681 | F7: 1.004279717 | G7: 169.5708161 | H7: 5 | I7: 0.1944444444 | J7: 0.175 | K7: 0.06 | L7: 12.5 | M7: 10 | N7: 45 | O7: 200 | P7: 10.5 | Q7: 5.1 | R7: 0.01718771928 | S7: 169.5708161 | T7: =S7+'Input Sheet'!$A$23+$H$7-(S7*$I$7*'Input Sheet'!$A$20)-(S7*'Input Sheet'!$A$21) -> 168.8313311 | U7: =T7+'Input Sheet'!$A$23+$H$7-(T7*$I$7*'Input Sheet'!$A$20)-(T7*'Input Sheet'!$A$21) -> 168.1386801 | V7: =U7+'Input Sheet'!$A$23+$H$7-(U7*$I$7*'Input Sheet'!$A$20)-(U7*'Input Sheet'!$A$21) -> 167.489897 | W7: =V7+'Input Sheet'!$A$23+$H$7-(V7*$I$7*'Input Sheet'!$A$20)-(V7*'Input Sheet'!$A$21) -> 166.8822036 | X7: =W7+'Input Sheet'!$A$23+$H$7-(W7*$I$7*'Input Sheet'!$A$20)-(W7*'Input Sheet'!$A$21) -> 166.3129973 | Y7: =(Q7*D7*'Input Sheet'!$A$28*'Input Sheet'!$A$30)/(O7*P7*60*(1-'Input Sheet'!$A$29)) -> 172.6216713 | Z7: 176.3274161 | AA7: 180.1127138 | AB7: 183.979272 | AC7: 187.9288354 | AD7: 191.9631858
A8: GP | B8: Camden | C8: NCL | D8: 240595.1876 | E8: 249811.742 | F8: 1.007546694 | G8: 142.9753949 | H8: 5 | I8: 0.1594202899 | J8: 0.175 | K8: 0.06 | L8: 12.5 | M8: 10 | N8: 45 | O8: 200 | P8: 10.5 | Q8: 5.1 | R8: 0.01718771928 | S8: 142.9753949 | T8: =S8+'Input Sheet'!$A$23+$H$8-(S8*$I$8*'Input Sheet'!$A$20)-(S8*'Input Sheet'!$A$21) -> 144.5211977 | U8: =T8+'Input Sheet'!$A$23+$H$8-(T8*$I$8*'Input Sheet'!$A$20)-(T8*'Input Sheet'!$A$21) -> 145.9755964 | V8: =U8+'Input Sheet'!$A$23+$H$8-(U8*$I$8*'Input Sheet'!$A$20)-(U8*'Input Sheet'!$A$21) -> 147.3439959 | W8: =V8+'Input Sheet'!$A$23+$H$8-(V8*$I$8*'Input Sheet'!$A$20)-(V8*'Input Sheet'!$A$21) -> 148.6314814 | X8: =W8+'Input Sheet'!$A$23+$H$8-(W8*$I$8*'Input Sheet'!$A$20)-(W8*'Input Sheet'!$A$21) -> 149.8428373 | Y8: =(Q8*D8*'Input Sheet'!$A$28*'Input Sheet'!$A$30)/(O8*P8*60*(1-'Input Sheet'!$A$29)) -> 127.180292 | Z8: 130.3260219 | AA8: 133.5495595 | AB8: 136.8528295 | AC8: 140.2378039 | AD8: 143.7065037
A9: GP | B9: City & Hackney | C9: NEL | D9: 279460.0813 | E9: 298024.2591 | F9: 1.012946171 | G9: 168.5901913 | H9: 5 | I9: 0.1717791411 | J9: 0.175 | K9: 0.06 | L9: 12.5 | M9: 10 | N9: 45 | O9: 200 | P9: 10.5 | Q9: 5.1 | R9: 0.01718771928 | S9: 168.5901913 | T9: =S9+'Input Sheet'!$A$23+$H$9-(S9*$I$9*'Input Sheet'!$A$20)-(S9*'Input Sheet'!$A$21) -> 168.3713503 | U9: =T9+'Input Sheet'!$A$23+$H$9-(T9*$I$9*'Input Sheet'!$A$20)-(T9*'Input Sheet'!$A$21) -> 168.165774 | V9: =U9+'Input Sheet'!$A$23+$H$9-(U9*$I$9*'Input Sheet'!$A$20)-(U9*'Input Sheet'!$A$21) -> 167.9726583 | W9: =V9+'Input Sheet'!$A$23+$H$9-(V9*$I$9*'Input Sheet'!$A$20)-(V9*'Input Sheet'!$A$21) -> 167.7912481 | X9: =W9+'Input Sheet'!$A$23+$H$9-(W9*$I$9*'Input Sheet'!$A$20)-(W9*'Input Sheet'!$A$21) -> 167.6208338 | Y9: =(Q9*D9*'Input Sheet'!$A$28*'Input Sheet'!$A$30)/(O9*P9*60*(1-'Input Sheet'!$A$29)) -> 147.7245455 | Z9: 152.1760607 | AA9: 156.7617175 | AB9: 161.4855579 | AC9: 166.351746 | AD9: 171.3645713
A10: GP | B10: Croydon | C10: SWL | D10: 383407.6197 | E10: 399552.0842 | F10: 1.008283203 | G10: 201.1205659 | H10: 5 | I10: 0.2722513089 | J10: 0.175 | K10: 0.06 | L10: 12.5 | M10: 10 | N10: 45 | O10: 200 | P10: 10.5 | Q10: 5.1 | R10: 0.01718771928 | S10: 201.1205659 | T10: =S10+'Input Sheet'!$A$23+$H$10-(S10*$I$10*'Input Sheet'!$A$20)-(S10*'Input Sheet'!$A$21) -> 196.5051028 | U10: =T10+'Input Sheet'!$A$23+$H$10-(T10*$I$10*'Input Sheet'!$A$20)-(T10*'Input Sheet'!$A$21) -> 192.2250461 | V10: =U10+'Input Sheet'!$A$23+$H$10-(U10*$I$10*'Input Sheet'!$A$20)-(U10*'Input Sheet'!$A$21) -> 188.2560218 | W10: =V10+'Input Sheet'!$A$23+$H$10-(V10*$I$10*'Input Sheet'!$A$20)-(V10*'Input Sheet'!$A$21) -> 184.5754271 | X10: =W10+'Input Sheet'!$A$23+$H$10-(W10*$I$10*'Input Sheet'!$A$20)-(W10*'Input Sheet'!$A$21) -> 181.1623019 | Y10: =(Q10*D10*'Input Sheet'!$A$28*'Input Sheet'!$A$30)/(O10*P10*60*(1-'Input Sheet'!$A$29)) -> 202.6719383 | Z10: 207.8341794 | AA10: 213.1279075 | AB10: 218.5564718 | AC10: 224.1233066 | AD10: 229.8319338
A11: GP | B11: Ealing | C11: NWL | D11: 348532.5076 | E11: 364118.8288 | F11: 1.008788143 | G11: 194.6049187 | H11: 5 | I11: 0.2261306533 | J11: 0.175 | K11: 0.06 | L11: 12.5 | M11: 10 | N11: 45 | O11: 200 | P11: 10.5 | Q11: 5.1 | R11: 0.01718771928 | S11: 194.6049187 | T11: =S11+'Input Sheet'!$A$23+$H$11-(S11*$I$11*'Input Sheet'!$A$20)-(S11*'Input Sheet'!$A$21) -> 191.5399855 | U11: =T11+'Input Sheet'!$A$23+$H$11-(T11*$I$11*'Input Sheet'!$A$20)-(T11*'Input Sheet'!$A$21) -> 188.6808186 | V11: =U11+'Input Sheet'!$A$23+$H$11-(U11*$I$11*'Input Sheet'!$A$20)-(U11*'Input Sheet'!$A$21) -> 186.0136039 | W11: =V11+'Input Sheet'!$A$23+$H$11-(V11*$I$11*'Input Sheet'!$A$20)-(V11*'Input Sheet'!$A$21) -> 183.5254544 | X11: =W11+'Input Sheet'!$A$23+$H$11-(W11*$I$11*'Input Sheet'!$A$20)-(W11*'Input Sheet'!$A$21) -> 181.2043485 | Y11: =(Q11*D11*'Input Sheet'!$A$28*'Input Sheet'!$A$30)/(O11*P11*60*(1-'Input Sheet'!$A$29)) -> 184.2367111 | Z11: 189.0224186 | AA11: 193.932439 | AB11: 198.9700015 | AC11: 204.1384189 | AD11: 209.4410905
A12: GP | B12: Enfield | C12: NCL | D12: 330967.757 | E12: 341277.2065 | F12: 1.006153679 | G12: 149.99797 | H12: 5 | I12: 0.3157894737 | J12: 0.175 | K12: 0.06 | L12: 12.5 | M12: 10 | N12: 45 | O12: 200 | P12: 10.5 | Q12: 5.1 | R12: 0.01718771928 | S12: 149.99797 | T12: =S12+'Input Sheet'!$A$23+$H$12-(S12*$I$12*'Input Sheet'!$A$20)-(S12*'Input Sheet'!$A$21) -> 148.3139176 | U12: =T12+'Input Sheet'!$A$23+$H$12-(T12*$I$12*'Input Sheet'!$A$20)-(T12*'Input Sheet'!$A$21) -> 146.761044 | V12: =U12+'Input Sheet'!$A$23+$H$12-(U12*$I$12*'Input Sheet'!$A$20)-(U12*'Input Sheet'!$A$21) -> 145.3291311 | W12: =V12+'Input Sheet'!$A$23+$H$12-(V12*$I$12*'Input Sheet'!$A$20)-(V12*'Input Sheet'!$A$21) -> 144.0087567 | X12: =W12+'Input Sheet'!$A$23+$H$12-(W12*$I$12*'Input Sheet'!$A$20)-(W12*'Input Sheet'!$A$21) -> 142.7912325 | Y12: =(Q12*D12*'Input Sheet'!$A$28*'Input Sheet'!$A$30)/(O12*P12*60*(1-'Input Sheet'!$A$29)) -> 174.9518616 | Z12: 179.0354826 | AA12: 183.214421 | AB12: 187.4909017 | AC12: 191.8672014 | AD12: 196.3456501
A13: GP | B13: Hounslow | C13: NWL | D13: 275868.493 | E13: 300643.7565 | F13: 1.017349128 | G13: 152.9723759 | H13: 5 | I13: 0.3168316832 | J13: 0.175 | K13: 0.06 | L13: 12.5 | M13: 10 | N13: 45 | O13: 200 | P13: 10.5 | Q13: 5.1 | R13: 0.01718771928 | S13: 152.9723759 | T13: =S13+'Input Sheet'!$A$23+$H$13-(S13*$I$13*'Input Sheet'!$A$20)-(S13*'Input Sheet'!$A$21) -> 151.0375014 | U13: =T13+'Input Sheet'!$A$23+$H$13-(T13*$I$13*'Input Sheet'!$A$20)-(T13*'Input Sheet'!$A$21) -> 149.2535855 | V13: =U13+'Input Sheet'!$A$23+$H$13-(U13*$I$13*'Input Sheet'!$A$20)-(U13*'Input Sheet'!$A$21) -> 147.6088503 | W13: =V13+'Input Sheet'!$A$23+$H$13-(V13*$I$13*'Input Sheet'!$A$20)-(V13*'Input Sheet'!$A$21) -> 146.092437 | X13: =W13+'Input Sheet'!$A$23+$H$13-(W13*$I$13*'Input Sheet'!$A$20)-(W13*'Input Sheet'!$A$21) -> 144.694334 | Y13: =(Q13*D13*'Input Sheet'!$A$28*'Input Sheet'!$A$30)/(O13*P13*60*(1-'Input Sheet'!$A$29)) -> 145.8260069 | Z13: 150.8623775 | AA13: 156.0726884 | AB13: 161.4629471 | AC13: 167.0393683 | AD13: 172.8083815
A14: GP | B14: Greenwich | C14: SEL | D14: 183353.7672 | E14: 192209.9651 | F14: 1.009478823 | G14: 132.5600818 | H14: 5 | I14: 0.328125 | J14: 0.175 | K14: 0.06 | L14: 12.5 | M14: 10 | N14: 45 | O14: 200 | P14: 10.5 | Q14: 5.1 | R14: 0.01718771928 | S14: 132.5600818 | T14: =S14+'Input Sheet'!$A$23+$H$14-(S14*$I$14*'Input Sheet'!$A$20)-(S14*'Input Sheet'!$A$21) -> 132.0381253 | U14: =T14+'Input Sheet'!$A$23+$H$14-(T14*$I$14*'Input Sheet'!$A$20)-(T14*'Input Sheet'!$A$21) -> 131.5575991 | V14: =U14+'Input Sheet'!$A$23+$H$14-(U14*$I$14*'Input Sheet'!$A$20)-(U14*'Input Sheet'!$A$21) -> 131.1152147 | W14: =V14+'Input Sheet'!$A$23+$H$14-(V14*$I$14*'Input Sheet'!$A$20)-(V14*'Input Sheet'!$A$21) -> 130.7079445 | X14: =W14+'Input Sheet'!$A$23+$H$14-(W14*$I$14*'Input Sheet'!$A$20)-(W14*'Input Sheet'!$A$21) -> 130.3330014 | Y14: =(Q14*D14*'Input Sheet'!$A$28*'Input Sheet'!$A$30)/(O14*P14*60*(1-'Input Sheet'!$A$29)) -> 96.92207844 | Z14: 99.5066551 | AA14: 102.1601535 | AB14: 104.8844115 | AC14: 107.681316 | AD14: 110.5528043
A15: GP | B15: Hammersmith & Fulham | C15: NWL | D15: 274802.7844 | E15: 290455.0671 | F15: 1.011140639 | G15: 107.9522484 | H15: 5 | I15: 0.1829268293 | J15: 0.175 | K15: 0.06 | L15: 12.5 | M15: 10 | N15: 45 | O15: 200 | P15: 10.5 | Q15: 5.1 | R15: 0.01718771928 | S15: 107.9522484 | T15: =S15+'Input Sheet'!$A$23+$H$15-(S15*$I$15*'Input Sheet'!$A$20)-(S15*'Input Sheet'!$A$21) -> 111.264475 | U15: =T15+'Input Sheet'!$A$23+$H$15-(T15*$I$15*'Input Sheet'!$A$20)-(T15*'Input Sheet'!$A$21) -> 114.3715051 | V15: =U15+'Input Sheet'!$A$23+$H$15-(U15*$I$15*'Input Sheet'!$A$20)-(U15*'Input Sheet'!$A$21) -> 117.2860508 | W15: =V15+'Input Sheet'!$A$23+$H$15-(V15*$I$15*'Input Sheet'!$A$20)-(V15*'Input Sheet'!$A$21) -> 120.020037 | X15: =W15+'Input Sheet'!$A$23+$H$15-(W15*$I$15*'Input Sheet'!$A$20)-(W15*'Input Sheet'!$A$21) -> 122.5846493 | Y15: =(Q15*D15*'Input Sheet'!$A$28*'Input Sheet'!$A$30)/(O15*P15*60*(1-'Input Sheet'!$A$29)) -> 145.2626659 | Z15: 149.3777188 | AA15: 153.6093443 | AB15: 157.9608449 | AC15: 162.4356164 | AD15: 167.0371507
A16: GP | B16: Haringey | C16: NCL | D16: 250702.932 | E16: 258522.4137 | F16: 1.006161645 | G16: 134.3136984 | H16: 5 | I16: 0.3181818182 | J16: 0.175 | K16: 0.06 | L16: 12.5 | M16: 10 | N16: 45 | O16: 200 | P16: 10.5 | Q16: 5.1 | R16: 0.01718771928 | S16: 134.3136984 | T16: =S16+'Input Sheet'!$A$23+$H$16-(S16*$I$16*'Input Sheet'!$A$20)-(S16*'Input Sheet'!$A$21) -> 133.8128093 | U16: =T16+'Input Sheet'!$A$23+$H$16-(T16*$I$16*'Input Sheet'!$A$20)-(T16*'Input Sheet'!$A$21) -> 133.3510806 | V16: =U16+'Input Sheet'!$A$23+$H$16-(U16*$I$16*'Input Sheet'!$A$20)-(U16*'Input Sheet'!$A$21) -> 132.9254506 | W16: =V16+'Input Sheet'!$A$23+$H$16-(V16*$I$16*'Input Sheet'!$A$20)-(V16*'Input Sheet'!$A$21) -> 132.5330972 | X16: =W16+'Input Sheet'!$A$23+$H$16-(W16*$I$16*'Input Sheet'!$A$20)-(W16*'Input Sheet'!$A$21) -> 132.1714187 | Y16: =(Q16*D16*'Input Sheet'!$A$28*'Input Sheet'!$A$30)/(O16*P16*60*(1-'Input Sheet'!$A$29)) -> 132.5233161 | Z16: 135.6176512 | AA16: 138.7842371 | AB16: 142.0247607 | AC16: 145.3409486 | AD16: 148.7345672
A17: GP | B17: Harrow | C17: NWL | D17: 251610.7349 | E17: 265446.8105 | F17: 1.010763776 | G17: 134.1227787 | H17: 5 | I17: 0.2442748092 | J17: 0.175 | K17: 0.06 | L17: 12.5 | M17: 10 | N17: 45 | O17: 200 | P17: 10.5 | Q17: 5.1 | R17: 0.01718771928 | S17: 134.1227787 | T17: =S17+'Input Sheet'!$A$23+$H$17-(S17*$I$17*'Input Sheet'!$A$20)-(S17*'Input Sheet'!$A$21) -> 134.8263296 | U17: =T17+'Input Sheet'!$A$23+$H$17-(T17*$I$17*'Input Sheet'!$A$20)-(T17*'Input Sheet'!$A$21) -> 135.4811153 | V17: =U17+'Input Sheet'!$A$23+$H$17-(U17*$I$17*'Input Sheet'!$A$20)-(U17*'Input Sheet'!$A$21) -> 136.0905159 | W17: =V17+'Input Sheet'!$A$23+$H$17-(V17*$I$17*'Input Sheet'!$A$20)-(V17*'Input Sheet'!$A$21) -> 136.6576771 | X17: =W17+'Input Sheet'!$A$23+$H$17-(W17*$I$17*'Input Sheet'!$A$20)-(W17*'Input Sheet'!$A$21) -> 137.1855266 | Y17: =(Q17*D17*'Input Sheet'!$A$28*'Input Sheet'!$A$30)/(O17*P17*60*(1-'Input Sheet'!$A$29)) -> 133.003187 | Z17: 136.7208249 | AA17: 140.5423763 | AB17: 144.4707459 | AC17: 148.5089192 | AD17: 152.6599655
A18: GP | B18: Havering | C18: NEL | D18: 299473.6783 | E18: 307062.0456 | F18: 1.005017205 | G18: 122.1955966 | H18: 5 | I18: 0.3921568627 | J18: 0.175 | K18: 0.06 | L18: 12.5 | M18: 10 | N18: 45 | O18: 200 | P18: 10.5 | Q18: 5.1 | R18: 0.01718771928 | S18: 122.1955966 | T18: =S18+'Input Sheet'!$A$23+$H$18-(S18*$I$18*'Input Sheet'!$A$20)-(S18*'Input Sheet'!$A$21) -> 121.5573917 | U18: =T18+'Input Sheet'!$A$23+$H$18-(T18*$I$18*'Input Sheet'!$A$20)-(T18*'Input Sheet'!$A$21) -> 120.9747482 | V18: =U18+'Input Sheet'!$A$23+$H$18-(U18*$I$18*'Input Sheet'!$A$20)-(U18*'Input Sheet'!$A$21) -> 120.442829 | W18: =V18+'Input Sheet'!$A$23+$H$18-(V18*$I$18*'Input Sheet'!$A$20)-(V18*'Input Sheet'!$A$21) -> 119.957218 | X18: =W18+'Input Sheet'!$A$23+$H$18-(W18*$I$18*'Input Sheet'!$A$20)-(W18*'Input Sheet'!$A$21) -> 119.5138837 | Y18: =(Q18*D18*'Input Sheet'!$A$28*'Input Sheet'!$A$30)/(O18*P18*60*(1-'Input Sheet'!$A$29)) -> 158.3038722 | Z18: 161.8189977 | AA18: 165.4121762 | AB18: 169.085141 | AC18: 172.8396637 | AD18: 176.6775553
A19: GP | B19: Hillingdon | C19: NWL | D19: 272101.6454 | E19: 282830.2214 | F19: 1.007764206 | G19: 125.3792838 | H19: 5 | I19: 0.2857142857 | J19: 0.175 | K19: 0.06 | L19: 12.5 | M19: 10 | N19: 45 | O19: 200 | P19: 10.5 | Q19: 5.1 | R19: 0.01718771928 | S19: 125.3792838 | T19: =S19+'Input Sheet'!$A$23+$H$19-(S19*$I$19*'Input Sheet'!$A$20)-(S19*'Input Sheet'!$A$21) -> 126.0653941 | U19: =T19+'Input Sheet'!$A$23+$H$19-(T19*$I$19*'Input Sheet'!$A$20)-(T19*'Input Sheet'!$A$21) -> 126.7005363 | V19: =U19+'Input Sheet'!$A$23+$H$19-(U19*$I$19*'Input Sheet'!$A$20)-(U19*'Input Sheet'!$A$21) -> 127.2884964 | W19: =V19+'Input Sheet'!$A$23+$H$19-(V19*$I$19*'Input Sheet'!$A$20)-(V19*'Input Sheet'!$A$21) -> 127.8327796 | X19: =W19+'Input Sheet'!$A$23+$H$19-(W19*$I$19*'Input Sheet'!$A$20)-(W19*'Input Sheet'!$A$21) -> 128.3366302 | Y19: =(Q19*D19*'Input Sheet'!$A$28*'Input Sheet'!$A$30)/(O19*P19*60*(1-'Input Sheet'!$A$29)) -> 143.834825 | Z19: 147.4237809 | AA19: 151.1022881 | AB19: 154.8725812 | AC19: 158.7369503 | AD19: 162.6977429
A20: GP | B20: Islington | C20: NCL | D20: 228397.1873 | E20: 241248.224 | F20: 1.011008192 | G20: 118.3618535 | H20: 5 | I20: 0.185483871 | J20: 0.175 | K20: 0.06 | L20: 12.5 | M20: 10 | N20: 45 | O20: 200 | P20: 10.5 | Q20: 5.1 | R20: 0.01718771928 | S20: 118.3618535 | T20: =S20+'Input Sheet'!$A$23+$H$20-(S20*$I$20*'Input Sheet'!$A$20)-(S20*'Input Sheet'!$A$21) -> 120.9928735 | U20: =T20+'Input Sheet'!$A$23+$H$20-(T20*$I$20*'Input Sheet'!$A$20)-(T20*'Input Sheet'!$A$21) -> 123.4600914 | V20: =U20+'Input Sheet'!$A$23+$H$20-(U20*$I$20*'Input Sheet'!$A$20)-(U20*'Input Sheet'!$A$21) -> 125.7737051 | W20: =V20+'Input Sheet'!$A$23+$H$20-(V20*$I$20*'Input Sheet'!$A$20)-(V20*'Input Sheet'!$A$21) -> 127.9432776 | X20: =W20+'Input Sheet'!$A$23+$H$20-(W20*$I$20*'Input Sheet'!$A$20)-(W20*'Input Sheet'!$A$21) -> 129.9777768 | Y20: =(Q20*D20*'Input Sheet'!$A$28*'Input Sheet'!$A$30)/(O20*P20*60*(1-'Input Sheet'!$A$29)) -> 120.732344 | Z20: 124.1365025 | AA20: 127.6366444 | AB20: 131.2354759 | AC20: 134.9357798 | AD20: 138.7404171
A21: GP | B21: Kingston | C21: SWL | D21: 158447.2042 | E21: 161987.1734 | F21: 1.004428922 | G21: 108.1000177 | H21: 5 | I21: 0.1962616822 | J21: 0.175 | K21: 0.06 | L21: 12.5 | M21: 10 | N21: 45 | O21: 200 | P21: 10.5 | Q21: 5.1 | R21: 0.01718771928 | S21: 108.1000177 | T21: =S21+'Input Sheet'!$A$23+$H$21-(S21*$I$21*'Input Sheet'!$A$20)-(S21*'Input Sheet'!$A$21) -> 111.23011 | U21: =T21+'Input Sheet'!$A$23+$H$21-(T21*$I$21*'Input Sheet'!$A$20)-(T21*'Input Sheet'!$A$21) -> 114.1612806 | V21: =U21+'Input Sheet'!$A$23+$H$21-(U21*$I$21*'Input Sheet'!$A$20)-(U21*'Input Sheet'!$A$21) -> 116.9061712 | W21: =V21+'Input Sheet'!$A$23+$H$21-(V21*$I$21*'Input Sheet'!$A$20)-(V21*'Input Sheet'!$A$21) -> 119.4766201 | X21: =W21+'Input Sheet'!$A$23+$H$21-(W21*$I$21*'Input Sheet'!$A$20)-(W21*'Input Sheet'!$A$21) -> 121.8837134 | Y21: =(Q21*D21*'Input Sheet'!$A$28*'Input Sheet'!$A$30)/(O21*P21*60*(1-'Input Sheet'!$A$29)) -> 83.75629577 | Z21: 85.56682554 | AA21: 87.41649289 | AB21: 89.30614383 | AC21: 91.23664267 | AD21: 93.20887242
A22: GP | B22: Lambeth | C22: SEL | D22: 173853.3709 | E22: 181326.684 | F22: 1.008453136 | G22: 185.6340977 | H22: 5 | I22: 0.152173913 | J22: 0.175 | K22: 0.06 | L22: 12.5 | M22: 10 | N22: 45 | O22: 200 | P22: 10.5 | Q22: 5.1 | R22: 0.01718771928 | S22: 185.6340977 | T22: =S22+'Input Sheet'!$A$23+$H$22-(S22*$I$22*'Input Sheet'!$A$20)-(S22*'Input Sheet'!$A$21) -> 184.8188938 | U22: =T22+'Input Sheet'!$A$23+$H$22-(T22*$I$22*'Input Sheet'!$A$20)-(T22*'Input Sheet'!$A$21) -> 184.0511843 | V22: =U22+'Input Sheet'!$A$23+$H$22-(U22*$I$22*'Input Sheet'!$A$20)-(U22*'Input Sheet'!$A$21) -> 183.3282023 | W22: =V22+'Input Sheet'!$A$23+$H$22-(V22*$I$22*'Input Sheet'!$A$20)-(V22*'Input Sheet'!$A$21) -> 182.6473418 | X22: =W22+'Input Sheet'!$A$23+$H$22-(W22*$I$22*'Input Sheet'!$A$20)-(W22*'Input Sheet'!$A$21) -> 182.0061488 | Y22: =(Q22*D22*'Input Sheet'!$A$28*'Input Sheet'!$A$30)/(O22*P22*60*(1-'Input Sheet'!$A$29)) -> 91.90010277 | Z22: 94.25649999 | AA22: 96.67331724 | AB22: 99.15210376 | AC22: 101.6944485 | AD22: 104.3019811
A23: GP | B23: Lewisham | C23: SEL | D23: 325454.6437 | E23: 342398.23 | F23: 1.010201962 | G23: 163.0189774 | H23: 5 | I23: 0.2808988764 | J23: 0.175 | K23: 0.06 | L23: 12.5 | M23: 10 | N23: 45 | O23: 200 | P23: 10.5 | Q23: 5.1 | R23: 0.01718771928 | S23: 163.0189774 | T23: =S23+'Input Sheet'!$A$23+$H$23-(S23*$I$23*'Input Sheet'!$A$20)-(S23*'Input Sheet'!$A$21) -> 161.0031966 | U23: =T23+'Input Sheet'!$A$23+$H$23-(T23*$I$23*'Input Sheet'!$A$20)-(T23*'Input Sheet'!$A$21) -> 159.1359947 | V23: =U23+'Input Sheet'!$A$23+$H$23-(U23*$I$23*'Input Sheet'!$A$20)-(U23*'Input Sheet'!$A$21) -> 157.4064202 | W23: =V23+'Input Sheet'!$A$23+$H$23-(V23*$I$23*'Input Sheet'!$A$20)-(V23*'Input Sheet'!$A$21) -> 155.804329 | X23: =W23+'Input Sheet'!$A$23+$H$23-(W23*$I$23*'Input Sheet'!$A$20)-(W23*'Input Sheet'!$A$21) -> 154.3203246 | Y23: =(Q23*D23*'Input Sheet'!$A$28*'Input Sheet'!$A$30)/(O23*P23*60*(1-'Input Sheet'!$A$29)) -> 172.0375915 | Z23: 176.7496463 | AA23: 181.5907628 | AB23: 186.5644759 | AC23: 191.6744174 | AD23: 196.9243187
A24: GP | B24: Newham | C24: NEL | D24: 299817.3844 | E24: 316842.3797 | F24: 1.011107405 | G24: 167.6358792 | H24: 5 | I24: 0.3231707317 | J24: 0.175 | K24: 0.06 | L24: 12.5 | M24: 10 | N24: 45 | O24: 200 | P24: 10.5 | Q24: 5.1 | R24: 0.01718771928 | S24: 167.6358792 | T24: =S24+'Input Sheet'!$A$23+$H$24-(S24*$I$24*'Input Sheet'!$A$20)-(S24*'Input Sheet'!$A$21) -> 164.4294428 | U24: =T24+'Input Sheet'!$A$23+$H$24-(T24*$I$24*'Input Sheet'!$A$20)-(T24*'Input Sheet'!$A$21) -> 161.4756111 | V24: =U24+'Input Sheet'!$A$23+$H$24-(U24*$I$24*'Input Sheet'!$A$20)-(U24*'Input Sheet'!$A$21) -> 158.7544837 | W24: =V24+'Input Sheet'!$A$23+$H$24-(V24*$I$24*'Input Sheet'!$A$20)-(V24*'Input Sheet'!$A$21) -> 156.247728 | X24: =W24+'Input Sheet'!$A$23+$H$24-(W24*$I$24*'Input Sheet'!$A$20)-(W24*'Input Sheet'!$A$21) -> 153.9384558 | Y24: =(Q24*D24*'Input Sheet'!$A$28*'Input Sheet'!$A$30)/(O24*P24*60*(1-'Input Sheet'!$A$29)) -> 158.4855577 | Z24: 162.9699263 | AA24: 167.5811806 | AB24: 172.3229109 | AC24: 177.1988091 | AD24: 182.2126715
A25: GP | B25: Redbridge | C25: NEL | D25: 207140.6699 | E25: 212185.0439 | F25: 1.00482372 | G25: 120.1154416 | H25: 5 | I25: 0.2926829268 | J25: 0.175 | K25: 0.06 | L25: 12.5 | M25: 10 | N25: 45 | O25: 200 | P25: 10.5 | Q25: 5.1 | R25: 0.01718771928 | S25: 120.1154416 | T25: =S25+'Input Sheet'!$A$23+$H$25-(S25*$I$25*'Input Sheet'!$A$20)-(S25*'Input Sheet'!$A$21) -> 121.0921353 | U25: =T25+'Input Sheet'!$A$23+$H$25-(T25*$I$25*'Input Sheet'!$A$20)-(T25*'Input Sheet'!$A$21) -> 121.9954578 | V25: =U25+'Input Sheet'!$A$23+$H$25-(U25*$I$25*'Input Sheet'!$A$20)-(U25*'Input Sheet'!$A$21) -> 122.830921 | W25: =V25+'Input Sheet'!$A$23+$H$25-(V25*$I$25*'Input Sheet'!$A$20)-(V25*'Input Sheet'!$A$21) -> 123.6036225 | X25: =W25+'Input Sheet'!$A$23+$H$25-(W25*$I$25*'Input Sheet'!$A$20)-(W25*'Input Sheet'!$A$21) -> 124.3182772 | Y25: =(Q25*D25*'Input Sheet'!$A$28*'Input Sheet'!$A$30)/(O25*P25*60*(1-'Input Sheet'!$A$29)) -> 109.4960009 | Z25: 111.9061654 | AA25: 114.3693812 | AB25: 116.8868159 | AC25: 119.4596629 | AD25: 122.089142
A26: GP | B26: Richmond | C26: SWL | D26: 337378.1807 | E26: 362819.6276 | F26: 1.014646487 | G26: 106.4089143 | H26: 5 | I26: 0.2260869565 | J26: 0.175 | K26: 0.06 | L26: 12.5 | M26: 10 | N26: 45 | O26: 200 | P26: 10.5 | Q26: 5.1 | R26: 0.01718771928 | S26: 106.4089143 | T26: =S26+'Input Sheet'!$A$23+$H$26-(S26*$I$26*'Input Sheet'!$A$20)-(S26*'Input Sheet'!$A$21) -> 109.2656376 | U26: =T26+'Input Sheet'!$A$23+$H$26-(T26*$I$26*'Input Sheet'!$A$20)-(T26*'Input Sheet'!$A$21) -> 111.9305879 | V26: =U26+'Input Sheet'!$A$23+$H$26-(U26*$I$26*'Input Sheet'!$A$20)-(U26*'Input Sheet'!$A$21) -> 114.4166388 | W26: =V26+'Input Sheet'!$A$23+$H$26-(V26*$I$26*'Input Sheet'!$A$20)-(V26*'Input Sheet'!$A$21) -> 116.7358001 | X26: =W26+'Input Sheet'!$A$23+$H$26-(W26*$I$26*'Input Sheet'!$A$20)-(W26*'Input Sheet'!$A$21) -> 118.8992751 | Y26: =(Q26*D26*'Input Sheet'!$A$28*'Input Sheet'!$A$30)/(O26*P26*60*(1-'Input Sheet'!$A$29)) -> 178.3404562 | Z26: 184.0177832 | AA26: 189.8758433 | AB26: 195.9203902 | AC26: 202.1573604 | AD26: 208.5928796
A27: GP | B27: Southwark | C27: SEL | D27: 301021.6161 | E27: 316853.4049 | F27: 1.010304155 | G27: 153.1839738 | H27: 5 | I27: 0.2013888889 | J27: 0.175 | K27: 0.06 | L27: 12.5 | M27: 10 | N27: 45 | O27: 200 | P27: 10.5 | Q27: 5.1 | R27: 0.01718771928 | S27: 153.1839738 | T27: =S27+'Input Sheet'!$A$23+$H$27-(S27*$I$27*'Input Sheet'!$A$20)-(S27*'Input Sheet'!$A$21) -> 153.3546689 | U27: =T27+'Input Sheet'!$A$23+$H$27-(T27*$I$27*'Input Sheet'!$A$20)-(T27*'Input Sheet'!$A$21) -> 153.5144109 | V27: =U27+'Input Sheet'!$A$23+$H$27-(U27*$I$27*'Input Sheet'!$A$20)-(U27*'Input Sheet'!$A$21) -> 153.6639029 | W27: =V27+'Input Sheet'!$A$23+$H$27-(V27*$I$27*'Input Sheet'!$A$20)-(V27*'Input Sheet'!$A$21) -> 153.8038025 | X27: =W27+'Input Sheet'!$A$23+$H$27-(W27*$I$27*'Input Sheet'!$A$20)-(W27*'Input Sheet'!$A$21) -> 153.9347251 | Y27: =(Q27*D27*'Input Sheet'!$A$28*'Input Sheet'!$A$30)/(O27*P27*60*(1-'Input Sheet'!$A$29)) -> 159.1221229 | Z27: 163.4966883 | AA27: 167.9915187 | AB27: 172.6099204 | AC27: 177.3552907 | AD27: 182.23112
A28: GP | B28: Merton | C28: SWL | D28: 196602.2286 | E28: 200158.6816 | F28: 1.003592019 | G28: 106.6246072 | H28: 5 | I28: 0.168 | J28: 0.175 | K28: 0.06 | L28: 12.5 | M28: 10 | N28: 45 | O28: 200 | P28: 10.5 | Q28: 5.1 | R28: 0.01718771928 | S28: 106.6246072 | T28: =S28+'Input Sheet'!$A$23+$H$28-(S28*$I$28*'Input Sheet'!$A$20)-(S28*'Input Sheet'!$A$21) -> 110.2100709 | U28: =T28+'Input Sheet'!$A$23+$H$28-(T28*$I$28*'Input Sheet'!$A$20)-(T28*'Input Sheet'!$A$21) -> 113.579833 | V28: =U28+'Input Sheet'!$A$23+$H$28-(U28*$I$28*'Input Sheet'!$A$20)-(U28*'Input Sheet'!$A$21) -> 116.7468702 | W28: =V28+'Input Sheet'!$A$23+$H$28-(V28*$I$28*'Input Sheet'!$A$20)-(V28*'Input Sheet'!$A$21) -> 119.7233785 | X28: =W28+'Input Sheet'!$A$23+$H$28-(W28*$I$28*'Input Sheet'!$A$20)-(W28*'Input Sheet'!$A$21) -> 122.5208201 | Y28: =(Q28*D28*'Input Sheet'!$A$28*'Input Sheet'!$A$30)/(O28*P28*60*(1-'Input Sheet'!$A$29)) -> 103.9253074 | Z28: 106.0848481 | AA28: 108.2892635 | AB28: 110.5394861 | AC28: 112.8364677 | AD28: 115.18118
A29: GP | B29: Sutton | C29: SWL | D29: 310642.3523 | E29: 332523.7542 | F29: 1.013706898 | G29: 95.78843235 | H29: 5 | I29: 0.2522522523 | J29: 0.175 | K29: 0.06 | L29: 12.5 | M29: 10 | N29: 45 | O29: 200 | P29: 10.5 | Q29: 5.1 | R29: 0.01718771928 | S29: 95.78843235 | T29: =S29+'Input Sheet'!$A$23+$H$29-(S29*$I$29*'Input Sheet'!$A$20)-(S29*'Input Sheet'!$A$21) -> 99.05735332 | U29: =T29+'Input Sheet'!$A$23+$H$29-(T29*$I$29*'Input Sheet'!$A$20)-(T29*'Input Sheet'!$A$21) -> 102.0965663 | V29: =U29+'Input Sheet'!$A$23+$H$29-(U29*$I$29*'Input Sheet'!$A$20)-(U29*'Input Sheet'!$A$21) -> 104.922213 | W29: =V29+'Input Sheet'!$A$23+$H$29-(V29*$I$29*'Input Sheet'!$A$20)-(V29*'Input Sheet'!$A$21) -> 107.5493008 | X29: =W29+'Input Sheet'!$A$23+$H$29-(W29*$I$29*'Input Sheet'!$A$20)-(W29*'Input Sheet'!$A$21) -> 109.9917823 | Y29: =(Q29*D29*'Input Sheet'!$A$28*'Input Sheet'!$A$30)/(O29*P29*60*(1-'Input Sheet'!$A$29)) -> 164.2077111 | Z29: 169.2808455 | AA29: 174.5107124 | AB29: 179.9021541 | AC29: 185.4601623 | AD29: 191.1898831
A30: GP | B30: Tower Hamlets | C30: NEL | D30: 201750.7963 | E30: 205926.3036 | F30: 1.004105424 | G30: 165.0762781 | H30: 5 | I30: 0.1739130435 | J30: 0.175 | K30: 0.06 | L30: 12.5 | M30: 10 | N30: 45 | O30: 200 | P30: 10.5 | Q30: 5.1 | R30: 0.01718771928 | S30: 165.0762781 | T30: =S30+'Input Sheet'!$A$23+$H$30-(S30*$I$30*'Input Sheet'!$A$20)-(S30*'Input Sheet'!$A$21) -> 165.0281568 | U30: =T30+'Input Sheet'!$A$23+$H$30-(T30*$I$30*'Input Sheet'!$A$20)-(T30*'Input Sheet'!$A$21) -> 164.9829647 | V30: =U30+'Input Sheet'!$A$23+$H$30-(U30*$I$30*'Input Sheet'!$A$20)-(U30*'Input Sheet'!$A$21) -> 164.9405234 | W30: =V30+'Input Sheet'!$A$23+$H$30-(V30*$I$30*'Input Sheet'!$A$20)-(V30*'Input Sheet'!$A$21) -> 164.9006654 | X30: =W30+'Input Sheet'!$A$23+$H$30-(W30*$I$30*'Input Sheet'!$A$20)-(W30*'Input Sheet'!$A$21) -> 164.8632336 | Y30: =(Q30*D30*'Input Sheet'!$A$28*'Input Sheet'!$A$30)/(O30*P30*60*(1-'Input Sheet'!$A$29)) -> 106.6468762 | Z30: 108.9177234 | AA30: 111.2369242 | AB30: 113.605508 | AC30: 116.0245264 | AD30: 118.4950533
A31: GP | B31: Waltham Forest | C31: NEL | D31: 297804.9566 | E31: 337617.385 | F31: 1.025412426 | G31: 136.2732761 | H31: 5 | I31: 0.3303571429 | J31: 0.175 | K31: 0.06 | L31: 12.5 | M31: 10 | N31: 45 | O31: 200 | P31: 10.5 | Q31: 5.1 | R31: 0.01718771928 | S31: 136.2732761 | T31: =S31+'Input Sheet'!$A$23+$H$31-(S31*$I$31*'Input Sheet'!$A$20)-(S31*'Input Sheet'!$A$21) -> 135.420083 | U31: =T31+'Input Sheet'!$A$23+$H$31-(T31*$I$31*'Input Sheet'!$A$20)-(T31*'Input Sheet'!$A$21) -> 134.6348407 | V31: =U31+'Input Sheet'!$A$23+$H$31-(U31*$I$31*'Input Sheet'!$A$20)-(U31*'Input Sheet'!$A$21) -> 133.9121373 | W31: =V31+'Input Sheet'!$A$23+$H$31-(V31*$I$31*'Input Sheet'!$A$20)-(V31*'Input Sheet'!$A$21) -> 133.2469921 | X31: =W31+'Input Sheet'!$A$23+$H$31-(W31*$I$31*'Input Sheet'!$A$20)-(W31*'Input Sheet'!$A$21) -> 132.6348209 | Y31: =(Q31*D31*'Input Sheet'!$A$28*'Input Sheet'!$A$30)/(O31*P31*60*(1-'Input Sheet'!$A$29)) -> 157.4217743 | Z31: 164.1279648 | AA31: 171.11984 | AB31: 178.40957 | AC31: 186.0098437 | AD31: 193.9338901
A32: GP | B32: Wandsworth | C32: SWL | D32: 274139.4078 | E32: 284554.6096 | F32: 1.007485562 | G32: 204.8838274 | H32: 5 | I32: 0.1950207469 | J32: 0.175 | K32: 0.06 | L32: 12.5 | M32: 10 | N32: 45 | O32: 200 | P32: 10.5 | Q32: 5.1 | R32: 0.01718771928 | S32: 204.8838274 | T32: =S32+'Input Sheet'!$A$23+$H$32-(S32*$I$32*'Input Sheet'!$A$20)-(S32*'Input Sheet'!$A$21) -> 201.8936827 | U32: =T32+'Input Sheet'!$A$23+$H$32-(T32*$I$32*'Input Sheet'!$A$20)-(T32*'Input Sheet'!$A$21) -> 199.0931206 | V32: =U32+'Input Sheet'!$A$23+$H$32-(U32*$I$32*'Input Sheet'!$A$20)-(U32*'Input Sheet'!$A$21) -> 196.470121 | W32: =V32+'Input Sheet'!$A$23+$H$32-(V32*$I$32*'Input Sheet'!$A$20)-(V32*'Input Sheet'!$A$21) -> 194.0134262 | X32: =W32+'Input Sheet'!$A$23+$H$32-(W32*$I$32*'Input Sheet'!$A$20)-(W32*'Input Sheet'!$A$21) -> 191.712492 | Y32: =(Q32*D32*'Input Sheet'!$A$28*'Input Sheet'!$A$30)/(O32*P32*60*(1-'Input Sheet'!$A$29)) -> 144.9120004 | Z32: 148.4874549 | AA32: 152.1511276 | AB32: 155.9051951 | AC32: 159.7518878 | AD32: 163.6934911
A33: GP | B33: West London (K&C & QPP) | C33: NWL | D33: 318253.4708 | E33: 331558.5638 | F33: 1.008224903 | G33: 135.0839649 | H33: 5 | I33: 0.3157894737 | J33: 0.175 | K33: 0.06 | L33: 12.5 | M33: 10 | N33: 45 | O33: 200 | P33: 10.5 | Q33: 5.1 | R33: 0.01718771928 | S33: 135.0839649 | T33: =S33+'Input Sheet'!$A$23+$H$33-(S33*$I$33*'Input Sheet'!$A$20)-(S33*'Input Sheet'!$A$21) -> 134.561635 | U33: =T33+'Input Sheet'!$A$23+$H$33-(T33*$I$33*'Input Sheet'!$A$20)-(T33*'Input Sheet'!$A$21) -> 134.0799919 | V33: =U33+'Input Sheet'!$A$23+$H$33-(U33*$I$33*'Input Sheet'!$A$20)-(U33*'Input Sheet'!$A$21) -> 133.6358662 | W33: =V33+'Input Sheet'!$A$23+$H$33-(V33*$I$33*'Input Sheet'!$A$20)-(V33*'Input Sheet'!$A$21) -> 133.2263356 | X33: =W33+'Input Sheet'!$A$23+$H$33-(W33*$I$33*'Input Sheet'!$A$20)-(W33*'Input Sheet'!$A$21) -> 132.8487052 | Y33: =(Q33*D33*'Input Sheet'!$A$28*'Input Sheet'!$A$30)/(O33*P33*60*(1-'Input Sheet'!$A$29)) -> 168.2310014 | Z33: 172.5061922 | AA33: 176.8900269 | AB33: 181.3852664 | AC33: 185.9947416 | AD33: 190.7213557
A34: GP | B34: Central London (Westminster) | C34: NWL | D34: 239861.5274 | E34: 250416.2946 | F34: 1.00864978 | G34: 96.34313839 | H34: 5 | I34: 0.2247191011 | J34: 0.175 | K34: 0.06 | L34: 12.5 | M34: 10 | N34: 45 | O34: 200 | P34: 10.5 | Q34: 5.1 | R34: 0.01718771928 | S34: 96.34313839 | T34: =S34+'Input Sheet'!$A$23+$H$34-(S34*$I$34*'Input Sheet'!$A$20)-(S34*'Input Sheet'!$A$21) -> 99.89139564 | U34: =T34+'Input Sheet'!$A$23+$H$34-(T34*$I$34*'Input Sheet'!$A$20)-(T34*'Input Sheet'!$A$21) -> 103.2020393 | V34: =U34+'Input Sheet'!$A$23+$H$34-(U34*$I$34*'Input Sheet'!$A$20)-(U34*'Input Sheet'!$A$21) -> 106.2909814 | W34: =V34+'Input Sheet'!$A$23+$H$34-(V34*$I$34*'Input Sheet'!$A$20)-(V34*'Input Sheet'!$A$21) -> 109.1730684 | X34: =W34+'Input Sheet'!$A$23+$H$34-(W34*$I$34*'Input Sheet'!$A$20)-(W34*'Input Sheet'!$A$21) -> 111.8621528 | Y34: =(Q34*D34*'Input Sheet'!$A$28*'Input Sheet'!$A$30)/(O34*P34*60*(1-'Input Sheet'!$A$29)) -> 126.7924741 | Z34: =Y34*(F34+R34) -> 130.0684745 | AA34: 133.4291186 | AB34: 136.8765933 | AC34: 140.4131422 | AD34: 144.0410666
A36: Practice Line | B36: ='Introduction and Summary Sheet'!L16 -> 0 | D36: ='Introduction and Summary Sheet'!I18 -> 11437 | F36: =1+'Introduction and Summary Sheet'!K20 -> 1.06 | G36: ='Introduction and Summary Sheet'!M24 -> 8.340000153 | O36: 200 | P36: ='GP Input Sheet'!$I$8 -> 11.5 | Q36: ='Introduction and Summary Sheet'!K32 -> 5 | R36: ='Introduction and Summary Sheet'!K20/5 -> 0.012 | S36: 8.340000153 | T36: =S36 -> 8.340000153 | U36: =T36 -> 8.340000153 | V36: 8.340000153 | W36: 8.340000153 | X36: 8.340000153 | Y36: =(Q36*D36*'GP Input Sheet'!K6*'Introduction and Summary Sheet'!$H$25)/(O36*P36*60*(1-'GP Input Sheet'!$M$17)) -> 4.21518299 | Z36: =Y36*(1+$R$36) -> 4.265765186 | AA36: =Z36*(1+$R$36) -> 4.316954368 | AB36: 4.36875782 | AC36: 4.421182914 | AD36: 4.474237109
S37: =SUM(S3:S34) -> 4560.953949 | X37: =SUM(X3:X34) -> 4560.764671 | Y37: =SUM(Y3:Y34) -> 4615.8204 | AD37: =SUM(AD3:AD34) -> 5272.896693
X38: =(X37-S37)/S37 -> -4.149971358e-05 | AD38: =(AD37-Y37)/Y37 -> 0.142353089
S40: 2016 | T40: 2017 | U40: 2018 | V40: 2019 | W40: 2020 | X40: 2021 | Y40: 2016 | Z40: 2017 | AA40: 2018 | AB40: 2019 | AC40: 2020 | AD40: 2021
A41: Nurse | B41: Barking & Dagenham | C41: NEL | D41: 205773.0092 | E41: 222143.3815 | F41: 1.015427671 | G41: 47.64801407 | H41: 5 | I41: 0.4081632653 | J41: 0.15 | K41: 0.02 | L41: 20 | M41: 10 | N41: 60 | O41: 210 | P41: 8 | Q41: 4 | R41: 0.01718771928 | S41: 47.64801407 | T41: =S41+'Input Sheet'!$A$24+H41-(S41*I41*'Input Sheet'!$A$20)-(S41*'Input Sheet'!$A$21) -> 48.40831322 | U41: =T41+'Input Sheet'!$A$24+H41-(T41*I41*'Input Sheet'!$A$20)-(T41*'Input Sheet'!$A$21) -> 49.10096127 | V41: =U41+'Input Sheet'!$A$24+H41-(U41*I41*'Input Sheet'!$A$20)-(U41*'Input Sheet'!$A$21) -> 49.73197778 | W41: =V41+'Input Sheet'!$A$24+H41-(V41*I41*'Input Sheet'!$A$20)-(V41*'Input Sheet'!$A$21) -> 50.30684669 | X41: =W41+'Input Sheet'!$A$24+H41-(W41*I41*'Input Sheet'!$A$20)-(W41*'Input Sheet'!$A$21) -> 50.83056401 | Y41: =(Q41*D41*'Input Sheet'!$A$28*'Input Sheet'!$A$31)/(O41*P41*60*(1-'Input Sheet'!$A$29)) -> 30.46864031 | Z41: =Y41*(F41+R41) -> 31.4623869 | AA41: =Z41*(F41+R41) -> 32.48854492 | AB41: =AA41*(F41+R41) -> 33.54817149 | AC41: =AB41*(F41+R41) -> 34.64235819 | AD41: =AC41*(F41+R41) -> 35.77223222
A42: Nurse | B42: Barnet | C42: NCL | D42: 385107.6572 | E42: 409895.3742 | F42: 1.012553951 | G42: 74.56073446 | H42: 5 | I42: 0.3870967742 | J42: 0.15 | K42: 0.02 | L42: 20 | M42: 10 | N42: 60 | O42: 210 | P42: 8 | Q42: 4 | R42: 0.01718771928 | S42: 74.56073446 | T42: =S42+'Input Sheet'!$A$24+H42-(S42*I42*'Input Sheet'!$A$20)-(S42*'Input Sheet'!$A$21) -> 73.1148387 | U42: =T42+'Input Sheet'!$A$24+H42-(T42*I42*'Input Sheet'!$A$20)-(T42*'Input Sheet'!$A$21) -> 71.79394297 | V42: =U42+'Input Sheet'!$A$24+H42-(U42*I42*'Input Sheet'!$A$20)-(U42*'Input Sheet'!$A$21) -> 70.5872408 | W42: =V42+'Input Sheet'!$A$24+H42-(V42*I42*'Input Sheet'!$A$20)-(V42*'Input Sheet'!$A$21) -> 69.48485999 | X42: =W42+'Input Sheet'!$A$24+H42-(W42*I42*'Input Sheet'!$A$20)-(W42*'Input Sheet'!$A$21) -> 68.47778177 | Y42: =(Q42*D42*'Input Sheet'!$A$28*'Input Sheet'!$A$31)/(O42*P42*60*(1-'Input Sheet'!$A$29)) -> 57.02257422 | Z42: =Y42*(F42+R42) -> 58.71852082 | AA42: =Z42*(F42+R42) -> 60.46490771 | AB42: =AA42*(F42+R42) -> 62.26323506 | AC42: =AB42*(F42+R42) -> 64.11504767 | AD42: =AC42*(F42+R42) -> 66.02193628
A43: Nurse | B43: Bexley | C43: SEL | D43: 243302.5947 | E43: 248378.1074 | F43: 1.004137797 | G43: 58.61827933 | H43: 5 | I43: 0.3142857143 | J43: 0.15 | K43: 0.02 | L43: 20 | M43: 10 | N43: 60 | O43: 210 | P43: 8 | Q43: 4 | R43: 0.01718771928 | S43: 58.61827933 | T43: =S43+'Input Sheet'!$A$24+H43-(S43*I43*'Input Sheet'!$A$20)-(S43*'Input Sheet'!$A$21) -> 59.06280162 | U43: =T43+'Input Sheet'!$A$24+H43-(T43*I43*'Input Sheet'!$A$20)-(T43*'Input Sheet'!$A$21) -> 59.47277818 | V43: =U43+'Input Sheet'!$A$24+H43-(U43*I43*'Input Sheet'!$A$20)-(U43*'Input Sheet'!$A$21) -> 59.85089371 | W43: =V43+'Input Sheet'!$A$24+H43-(V43*I43*'Input Sheet'!$A$20)-(V43*'Input Sheet'!$A$21) -> 60.19962425 | X43: =W43+'Input Sheet'!$A$24+H43-(W43*I43*'Input Sheet'!$A$20)-(W43*'Input Sheet'!$A$21) -> 60.52125345 | Y43: =(Q43*D43*'Input Sheet'!$A$28*'Input Sheet'!$A$31)/(O43*P43*60*(1-'Input Sheet'!$A$29)) -> 36.02561518 | Z43: 36.79388001 | AA43: 37.57852848 | AB43: 38.37990999 | AC43: 39.19838137 | AD43: 40.03430708
A44: Nurse | B44: Brent | C44: NWL | D44: 328567.7276 | E44: 345659.8734 | F44: 1.010194065 | G44: 58.84605134 | H44: 5 | I44: 0.5416666667 | J44: 0.15 | K44: 0.02 | L44: 20 | M44: 10 | N44: 60 | O44: 210 | P44: 8 | Q44: 4 | R44: 0.01718771928 | S44: 58.84605134 | T44: =S44+'Input Sheet'!$A$24+H44-(S44*I44*'Input Sheet'!$A$20)-(S44*'Input Sheet'!$A$21) -> 57.66721595 | U44: =T44+'Input Sheet'!$A$24+H44-(T44*I44*'Input Sheet'!$A$20)-(T44*'Input Sheet'!$A$21) -> 56.61215828 | V44: =U44+'Input Sheet'!$A$24+H44-(U44*I44*'Input Sheet'!$A$20)-(U44*'Input Sheet'!$A$21) -> 55.66788166 | W44: =V44+'Input Sheet'!$A$24+H44-(V44*I44*'Input Sheet'!$A$20)-(V44*'Input Sheet'!$A$21) -> 54.82275408 | X44: =W44+'Input Sheet'!$A$24+H44-(W44*I44*'Input Sheet'!$A$20)-(W44*'Input Sheet'!$A$21) -> 54.0663649 | Y44: =(Q44*D44*'Input Sheet'!$A$28*'Input Sheet'!$A$31)/(O44*P44*60*(1-'Input Sheet'!$A$29)) -> 48.65075331 | Z44: 49.98289772 | AA44: 51.35151863 | AB44: 52.75761481 | AC44: 54.20221242 | AD44: 55.68636568
A45: Nurse | B45: Bromley | C45: SEL | D45: 326559.5853 | E45: 333607.5681 | F45: 1.004279717 | G45: 60.83597083 | H45: 5 | I45: 0.44 | J45: 0.15 | K45: 0.02 | L45: 20 | M45: 10 | N45: 60 | O45: 210 | P45: 8 | Q45: 4 | R45: 0.01718771928 | S45: 60.83597083 | T45: =S45+'Input Sheet'!$A$24+H45-(S45*I45*'Input Sheet'!$A$20)-(S45*'Input Sheet'!$A$21) -> 60.19039274 | U45: =T45+'Input Sheet'!$A$24+H45-(T45*I45*'Input Sheet'!$A$20)-(T45*'Input Sheet'!$A$21) -> 59.60472429 | V45: =U45+'Input Sheet'!$A$24+H45-(U45*I45*'Input Sheet'!$A$20)-(U45*'Input Sheet'!$A$21) -> 59.07340588 | W45: =V45+'Input Sheet'!$A$24+H45-(V45*I45*'Input Sheet'!$A$20)-(V45*'Input Sheet'!$A$21) -> 58.59139381 | X45: =W45+'Input Sheet'!$A$24+H45-(W45*I45*'Input Sheet'!$A$20)-(W45*'Input Sheet'!$A$21) -> 58.15411247 | Y45: =(Q45*D45*'Input Sheet'!$A$28*'Input Sheet'!$A$31)/(O45*P45*60*(1-'Input Sheet'!$A$29)) -> 48.35340934 | Z45: 49.39143309 | AA45: 50.45174055 | AB45: 51.53481009 | AC45: 52.64113036 | AD45: 53.77120049
A46: Nurse | B46: Camden | C46: NCL | D46: 240595.1876 | E46: 249811.742 | F46: 1.007546694 | G46: 51.17235151 | H46: 5 | I46: 0.243902439 | J46: 0.15 | K46: 0.02 | L46: 20 | M46: 10 | N46: 60 | O46: 210 | P46: 8 | Q46: 4 | R46: 0.01718771928 | S46: 51.17235151 | T46: =S46+'Input Sheet'!$A$24+H46-(S46*I46*'Input Sheet'!$A$20)-(S46*'Input Sheet'!$A$21) -> 52.62773009 | U46: =T46+'Input Sheet'!$A$24+H46-(T46*I46*'Input Sheet'!$A$20)-(T46*'Input Sheet'!$A$21) -> 53.98229708 | V46: =U46+'Input Sheet'!$A$24+H46-(U46*I46*'Input Sheet'!$A$20)-(U46*'Input Sheet'!$A$21) -> 55.24303553 | W46: =V46+'Input Sheet'!$A$24+H46-(V46*I46*'Input Sheet'!$A$20)-(V46*'Input Sheet'!$A$21) -> 56.41644477 | X46: =W46+'Input Sheet'!$A$24+H46-(W46*I46*'Input Sheet'!$A$20)-(W46*'Input Sheet'!$A$21) -> 57.50857396 | Y46: =(Q46*D46*'Input Sheet'!$A$28*'Input Sheet'!$A$31)/(O46*P46*60*(1-'Input Sheet'!$A$29)) -> 35.62473164 | Z46: 36.50588847 | AA46: 37.4088402 | AB46: 38.33412591 | AC46: 39.28229802 | AD46: 40.25392261
A47: Nurse | B47: City & Hackney | C47: NEL | D47: 279460.0813 | E47: 298024.2591 | F47: 1.012946171 | G47: 65.24281572 | H47: 5 | I47: 0.4285714286 | J47: 0.15 | K47: 0.02 | L47: 20 | M47: 10 | N47: 60 | O47: 210 | P47: 8 | Q47: 4 | R47: 0.01718771928 | S47: 65.24281572 | T47: =S47+'Input Sheet'!$A$24+H47-(S47*I47*'Input Sheet'!$A$20)-(S47*'Input Sheet'!$A$21) -> 64.27775828 | U47: =T47+'Input Sheet'!$A$24+H47-(T47*I47*'Input Sheet'!$A$20)-(T47*'Input Sheet'!$A$21) -> 63.40093467 | V47: =U47+'Input Sheet'!$A$24+H47-(U47*I47*'Input Sheet'!$A$20)-(U47*'Input Sheet'!$A$21) -> 62.60427778 | W47: =V47+'Input Sheet'!$A$24+H47-(V47*I47*'Input Sheet'!$A$20)-(V47*'Input Sheet'!$A$21) -> 61.8804581 | X47: =W47+'Input Sheet'!$A$24+H47-(W47*I47*'Input Sheet'!$A$20)-(W47*'Input Sheet'!$A$21) -> 61.22281622 | Y47: =(Q47*D47*'Input Sheet'!$A$28*'Input Sheet'!$A$31)/(O47*P47*60*(1-'Input Sheet'!$A$29)) -> 41.3794245 | Z47: 42.62634755 | AA47: 43.91084523 | AB47: 45.23404983 | AC47: 46.59712773 | AD47: 48.00128048
A48: Nurse | B48: Croydon | C48: SWL | D48: 383407.6197 | E48: 399552.0842 | F48: 1.008283203 | G48: 96.41956356 | H48: 5 | I48: 0.3697478992 | J48: 0.15 | K48: 0.02 | L48: 20 | M48: 10 | N48: 60 | O48: 210 | P48: 8 | Q48: 4 | R48: 0.01718771928 | S48: 96.41956356 | T48: =S48+'Input Sheet'!$A$24+H48-(S48*I48*'Input Sheet'!$A$20)-(S48*'Input Sheet'!$A$21) -> 93.28466929 | U48: =T48+'Input Sheet'!$A$24+H48-(T48*I48*'Input Sheet'!$A$20)-(T48*'Input Sheet'!$A$21) -> 90.41426526 | V48: =U48+'Input Sheet'!$A$24+H48-(U48*I48*'Input Sheet'!$A$20)-(U48*'Input Sheet'!$A$21) -> 87.78603649 | W48: =V48+'Input Sheet'!$A$24+H48-(V48*I48*'Input Sheet'!$A$20)-(V48*'Input Sheet'!$A$21) -> 85.37955072 | X48: =W48+'Input Sheet'!$A$24+H48-(W48*I48*'Input Sheet'!$A$20)-(W48*'Input Sheet'!$A$21) -> 83.17609955 | Y48: =(Q48*D48*'Input Sheet'!$A$28*'Input Sheet'!$A$31)/(O48*P48*60*(1-'Input Sheet'!$A$29)) -> 56.77085106 | Z48: 58.21685697 | AA48: 59.69969399 | AB48: 61.22030023 | AC48: 62.77963771 | AD48: 64.37869295
A49: Nurse | B49: Ealing | C49: NWL | D49: 348532.5076 | E49: 364118.8288 | F49: 1.008788143 | G49: 87.19027869 | H49: 5 | I49: 0.3888888889 | J49: 0.15 | K49: 0.02 | L49: 20 | M49: 10 | N49: 60 | O49: 210 | P49: 8 | Q49: 4 | R49: 0.01718771928 | S49: 87.19027869 | T49: =S49+'Input Sheet'!$A$24+H49-(S49*I49*'Input Sheet'!$A$20)-(S49*'Input Sheet'!$A$21) -> 84.63378787 | U49: =T49+'Input Sheet'!$A$24+H49-(T49*I49*'Input Sheet'!$A$20)-(T49*'Input Sheet'!$A$21) -> 82.29885959 | V49: =U49+'Input Sheet'!$A$24+H49-(U49*I49*'Input Sheet'!$A$20)-(U49*'Input Sheet'!$A$21) -> 80.16629176 | W49: =V49+'Input Sheet'!$A$24+H49-(V49*I49*'Input Sheet'!$A$20)-(V49*'Input Sheet'!$A$21) -> 78.21854647 | X49: =W49+'Input Sheet'!$A$24+H49-(W49*I49*'Input Sheet'!$A$20)-(W49*'Input Sheet'!$A$21) -> 76.43960578 | Y49: =(Q49*D49*'Input Sheet'!$A$28*'Input Sheet'!$A$31)/(O49*P49*60*(1-'Input Sheet'!$A$29)) -> 51.60692188 | Z49: 52.9474562 | AA49: 54.32281206 | AB49: 55.73389397 | AC49: 57.18162995 | AD49: 58.66697212
A50: Nurse | B50: Enfield | C50: NCL | D50: 330967.757 | E50: 341277.2065 | F50: 1.006153679 | G50: 60.78784687 | H50: 5 | I50: 0.4520547945 | J50: 0.15 | K50: 0.02 | L50: 20 | M50: 10 | N50: 60 | O50: 210 | P50: 8 | Q50: 4 | R50: 0.01718771928 | S50: 60.78784687 | T50: =S50+'Input Sheet'!$A$24+H50-(S50*I50*'Input Sheet'!$A$20)-(S50*'Input Sheet'!$A$21) -> 60.05880048 | U50: =T50+'Input Sheet'!$A$24+H50-(T50*I50*'Input Sheet'!$A$20)-(T50*'Input Sheet'!$A$21) -> 59.39846422 | V50: =U50+'Input Sheet'!$A$24+H50-(U50*I50*'Input Sheet'!$A$20)-(U50*'Input Sheet'!$A$21) -> 58.80036239 | W50: =V50+'Input Sheet'!$A$24+H50-(V50*I50*'Input Sheet'!$A$20)-(V50*'Input Sheet'!$A$21) -> 58.2586296 | X50: =W50+'Input Sheet'!$A$24+H50-(W50*I50*'Input Sheet'!$A$20)-(W50*'Input Sheet'!$A$21) -> 57.76795328 | Y50: =(Q50*D50*'Input Sheet'!$A$28*'Input Sheet'!$A$31)/(O50*P50*60*(1-'Input Sheet'!$A$29)) -> 49.00612369 | Z50: 50.14999512 | AA50: 51.3205661 | AB50: 52.51845985 | AC50: 53.74431412 | AD50: 54.99878153
A51: Nurse | B51: Hounslow | C51: NWL | D51: 275868.493 | E51: 300643.7565 | F51: 1.017349128 | G51: 65.45079947 | H51: 5 | I51: 0.4528301887 | J51: 0.15 | K51: 0.02 | L51: 20 | M51: 10 | N51: 60 | O51: 210 | P51: 8 | Q51: 4 | R51: 0.01718771928 | S51: 65.45079947 | T51: =S51+'Input Sheet'!$A$24+H51-(S51*I51*'Input Sheet'!$A$20)-(S51*'Input Sheet'!$A$21) -> 64.27619575 | U51: =T51+'Input Sheet'!$A$24+H51-(T51*I51*'Input Sheet'!$A$20)-(T51*'Input Sheet'!$A$21) -> 63.2124037 | V51: =U51+'Input Sheet'!$A$24+H51-(U51*I51*'Input Sheet'!$A$20)-(U51*'Input Sheet'!$A$21) -> 62.24896939 | W51: =V51+'Input Sheet'!$A$24+H51-(V51*I51*'Input Sheet'!$A$20)-(V51*'Input Sheet'!$A$21) -> 61.37642511 | X51: =W51+'Input Sheet'!$A$24+H51-(W51*I51*'Input Sheet'!$A$20)-(W51*'Input Sheet'!$A$21) -> 60.58619632 | Y51: =(Q51*D51*'Input Sheet'!$A$28*'Input Sheet'!$A$31)/(O51*P51*60*(1-'Input Sheet'!$A$29)) -> 40.84762097 | Z51: 42.25836904 | AA51: 43.71783989 | AB51: 45.22771627 | AC51: 46.78973902 | AD51: 48.40570911
A52: Nurse | B52: Greenwich | C52: SEL | D52: 183353.7672 | E52: 192209.9651 | F52: 1.009478823 | G52: 63.53769275 | H52: 5 | I52: 0.4390243902 | J52: 0.15 | K52: 0.02 | L52: 20 | M52: 10 | N52: 60 | O52: 210 | P52: 8 | Q52: 4 | R52: 0.01718771928 | S52: 63.53769275 | T52: =S52+'Input Sheet'!$A$24+H52-(S52*I52*'Input Sheet'!$A$20)-(S52*'Input Sheet'!$A$21) -> 62.64883342 | U52: =T52+'Input Sheet'!$A$24+H52-(T52*I52*'Input Sheet'!$A$20)-(T52*'Input Sheet'!$A$21) -> 61.84235618 | V52: =U52+'Input Sheet'!$A$24+H52-(U52*I52*'Input Sheet'!$A$20)-(U52*'Input Sheet'!$A$21) -> 61.11062561 | W52: =V52+'Input Sheet'!$A$24+H52-(V52*I52*'Input Sheet'!$A$20)-(V52*'Input Sheet'!$A$21) -> 60.44671397 | X52: =W52+'Input Sheet'!$A$24+H52-(W52*I52*'Input Sheet'!$A$20)-(W52*'Input Sheet'!$A$21) -> 59.8443356 | Y52: =(Q52*D52*'Input Sheet'!$A$28*'Input Sheet'!$A$31)/(O52*P52*60*(1-'Input Sheet'!$A$29)) -> 27.14904158 | Z52: 27.87301263 | AA52: 28.61628949 | AB52: 29.37938697 | AC52: 30.16283362 | AD52: 30.96717209
A53: Nurse | B53: Hammersmith & Fulham | C53: NWL | D53: 274802.7844 | E53: 290455.0671 | F53: 1.011140639 | G53: 41.31909082 | H53: 5 | I53: 0.1935483871 | J53: 0.15 | K53: 0.02 | L53: 20 | M53: 10 | N53: 60 | O53: 210 | P53: 8 | Q53: 4 | R53: 0.01718771928 | S53: 41.31909082 | T53: =S53+'Input Sheet'!$A$24+H53-(S53*I53*'Input Sheet'!$A$20)-(S53*'Input Sheet'!$A$21) -> 43.70665798 | U53: =T53+'Input Sheet'!$A$24+H53-(T53*I53*'Input Sheet'!$A$20)-(T53*'Input Sheet'!$A$21) -> 45.94326928 | V53: =U53+'Input Sheet'!$A$24+H53-(U53*I53*'Input Sheet'!$A$20)-(U53*'Input Sheet'!$A$21) -> 48.03846903 | W53: =V53+'Input Sheet'!$A$24+H53-(V53*I53*'Input Sheet'!$A$20)-(V53*'Input Sheet'!$A$21) -> 50.00119809 | X53: =W53+'Input Sheet'!$A$24+H53-(W53*I53*'Input Sheet'!$A$20)-(W53*'Input Sheet'!$A$21) -> 51.83983201 | Y53: =(Q53*D53*'Input Sheet'!$A$28*'Input Sheet'!$A$31)/(O53*P53*60*(1-'Input Sheet'!$A$29)) -> 40.68982238 | Z53: 41.84249825 | AA53: 43.02782755 | AB53: 44.24673527 | AC53: 45.50017265 | AD53: 46.78911786
A54: Nurse | B54: Haringey | C54: NCL | D54: 250702.932 | E54: 258522.4137 | F54: 1.006161645 | G54: 53.74083469 | H54: 5 | I54: 0.3396226415 | J54: 0.15 | K54: 0.02 | L54: 20 | M54: 10 | N54: 60 | O54: 210 | P54: 8 | Q54: 4 | R54: 0.01718771928 | S54: 53.74083469 | T54: =S54+'Input Sheet'!$A$24+H54-(S54*I54*'Input Sheet'!$A$20)-(S54*'Input Sheet'!$A$21) -> 54.4010088 | U54: =T54+'Input Sheet'!$A$24+H54-(T54*I54*'Input Sheet'!$A$20)-(T54*'Input Sheet'!$A$21) -> 55.00787073 | V54: =U54+'Input Sheet'!$A$24+H54-(U54*I54*'Input Sheet'!$A$20)-(U54*'Input Sheet'!$A$21) -> 55.5657257 | W54: =V54+'Input Sheet'!$A$24+H54-(V54*I54*'Input Sheet'!$A$20)-(V54*'Input Sheet'!$A$21) -> 56.07853124 | X54: =W54+'Input Sheet'!$A$24+H54-(W54*I54*'Input Sheet'!$A$20)-(W54*'Input Sheet'!$A$21) -> 56.54992532 | Y54: =(Q54*D54*'Input Sheet'!$A$28*'Input Sheet'!$A$31)/(O54*P54*60*(1-'Input Sheet'!$A$29)) -> 37.12137705 | Z54: 37.98813759 | AA54: 38.87513644 | AB54: 39.78284614 | AC54: 40.7117503 | AD54: 41.66234377
A55: Nurse | B55: Harrow | C55: NWL | D55: 251610.7349 | E55: 265446.8105 | F55: 1.010763776 | G55: 56.44313338 | H55: 5 | I55: 0.3943661972 | J55: 0.15 | K55: 0.02 | L55: 20 | M55: 10 | N55: 60 | O55: 210 | P55: 8 | Q55: 4 | R55: 0.01718771928 | S55: 56.44313338 | T55: =S55+'Input Sheet'!$A$24+H55-(S55*I55*'Input Sheet'!$A$20)-(S55*'Input Sheet'!$A$21) -> 56.51429638 | U55: =T55+'Input Sheet'!$A$24+H55-(T55*I55*'Input Sheet'!$A$20)-(T55*'Input Sheet'!$A$21) -> 56.57924515 | V55: =U55+'Input Sheet'!$A$24+H55-(U55*I55*'Input Sheet'!$A$20)-(U55*'Input Sheet'!$A$21) -> 56.63852233 | W55: =V55+'Input Sheet'!$A$24+H55-(V55*I55*'Input Sheet'!$A$20)-(V55*'Input Sheet'!$A$21) -> 56.6926232 | X55: =W55+'Input Sheet'!$A$24+H55-(W55*I55*'Input Sheet'!$A$20)-(W55*'Input Sheet'!$A$21) -> 56.74199977 | Y55: =(Q55*D55*'Input Sheet'!$A$28*'Input Sheet'!$A$31)/(O55*P55*60*(1-'Input Sheet'!$A$29)) -> 37.25579467 | Z55: 38.29714983 | AA55: 39.36761242 | AB55: 40.46799604 | AC55: 41.59913702 | AD55: 42.76189509
A56: Nurse | B56: Havering | C56: NEL | D56: 299473.6783 | E56: 307062.0456 | F56: 1.005017205 | G56: 60.07757561 | H56: 5 | I56: 0.44 | J56: 0.15 | K56: 0.02 | L56: 20 | M56: 10 | N56: 60 | O56: 210 | P56: 8 | Q56: 4 | R56: 0.01718771928 | S56: 60.07757561 | T56: =S56+'Input Sheet'!$A$24+H56-(S56*I56*'Input Sheet'!$A$20)-(S56*'Input Sheet'!$A$21) -> 59.50237659 | U56: =T56+'Input Sheet'!$A$24+H56-(T56*I56*'Input Sheet'!$A$20)-(T56*'Input Sheet'!$A$21) -> 58.98055605 | V56: =U56+'Input Sheet'!$A$24+H56-(U56*I56*'Input Sheet'!$A$20)-(U56*'Input Sheet'!$A$21) -> 58.50716044 | W56: =V56+'Input Sheet'!$A$24+H56-(V56*I56*'Input Sheet'!$A$20)-(V56*'Input Sheet'!$A$21) -> 58.07769595 | X56: =W56+'Input Sheet'!$A$24+H56-(W56*I56*'Input Sheet'!$A$20)-(W56*'Input Sheet'!$A$21) -> 57.68808577 | Y56: =(Q56*D56*'Input Sheet'!$A$28*'Input Sheet'!$A$31)/(O56*P56*60*(1-'Input Sheet'!$A$29)) -> 44.34282135 | Z56: 45.32745032 | AA56: 46.33394291 | AB56: 47.36278459 | AC56: 48.41447162 | AD56: 49.48951128
A57: Nurse | B57: Hillingdon | C57: NWL | D57: 272101.6454 | E57: 282830.2214 | F57: 1.007764206 | G57: 57.12153509 | H57: 5 | I57: 0.5185185185 | J57: 0.15 | K57: 0.02 | L57: 20 | M57: 10 | N57: 60 | O57: 210 | P57: 8 | Q57: 4 | R57: 0.01718771928 | S57: 57.12153509 | T57: =S57+'Input Sheet'!$A$24+H57-(S57*I57*'Input Sheet'!$A$20)-(S57*'Input Sheet'!$A$21) -> 56.28244484 | U57: =T57+'Input Sheet'!$A$24+H57-(T57*I57*'Input Sheet'!$A$20)-(T57*'Input Sheet'!$A$21) -> 55.52912826 | V57: =U57+'Input Sheet'!$A$24+H57-(U57*I57*'Input Sheet'!$A$20)-(U57*'Input Sheet'!$A$21) -> 54.85281737 | W57: =V57+'Input Sheet'!$A$24+H57-(V57*I57*'Input Sheet'!$A$20)-(V57*'Input Sheet'!$A$21) -> 54.24564048 | X57: =W57+'Input Sheet'!$A$24+H57-(W57*I57*'Input Sheet'!$A$20)-(W57*'Input Sheet'!$A$21) -> 53.70053057 | Y57: =(Q57*D57*'Input Sheet'!$A$28*'Input Sheet'!$A$31)/(O57*P57*60*(1-'Input Sheet'!$A$29)) -> 40.28986695 | Z57: 41.29517671 | AA57: 42.3255709 | AB57: 43.3816754 | AC57: 44.46413174 | AD57: 45.57359745
A58: Nurse | B58: Islington | C58: NCL | D58: 228397.1873 | E58: 241248.224 | F58: 1.011008192 | G58: 44.52668028 | H58: 5 | I58: 0.4150943396 | J58: 0.15 | K58: 0.02 | L58: 20 | M58: 10 | N58: 60 | O58: 210 | P58: 8 | Q58: 4 | R58: 0.01718771928 | S58: 44.52668028 | T58: =S58+'Input Sheet'!$A$24+H58-(S58*I58*'Input Sheet'!$A$20)-(S58*'Input Sheet'!$A$21) -> 45.52768031 | U58: =T58+'Input Sheet'!$A$24+H58-(T58*I58*'Input Sheet'!$A$20)-(T58*'Input Sheet'!$A$21) -> 46.43877921 | V58: =U58+'Input Sheet'!$A$24+H58-(U58*I58*'Input Sheet'!$A$20)-(U58*'Input Sheet'!$A$21) -> 47.26805112 | W58: =V58+'Input Sheet'!$A$24+H58-(V58*I58*'Input Sheet'!$A$20)-(V58*'Input Sheet'!$A$21) -> 48.02284502 | X58: =W58+'Input Sheet'!$A$24+H58-(W58*I58*'Input Sheet'!$A$20)-(W58*'Input Sheet'!$A$21) -> 48.70984988 | Y58: =(Q58*D58*'Input Sheet'!$A$28*'Input Sheet'!$A$31)/(O58*P58*60*(1-'Input Sheet'!$A$29)) -> 33.81858376 | Z58: 34.77212956 | AA58: 35.75256145 | AB58: 36.76063751 | AC58: 37.79713719 | AD58: 38.86286193
A59: Nurse | B59: Kingston | C59: SWL | D59: 158447.2042 | E59: 161987.1734 | F59: 1.004428922 | G59: 42.52023387 | H59: 5 | I59: 0.3088235294 | J59: 0.15 | K59: 0.02 | L59: 20 | M59: 10 | N59: 60 | O59: 210 | P59: 8 | Q59: 4 | R59: 0.01718771928 | S59: 42.52023387 | T59: =S59+'Input Sheet'!$A$24+H59-(S59*I59*'Input Sheet'!$A$20)-(S59*'Input Sheet'!$A$21) -> 44.24367467 | U59: =T59+'Input Sheet'!$A$24+H59-(T59*I59*'Input Sheet'!$A$20)-(T59*'Input Sheet'!$A$21) -> 45.83430915 | V59: =U59+'Input Sheet'!$A$24+H59-(U59*I59*'Input Sheet'!$A$20)-(U59*'Input Sheet'!$A$21) -> 47.30237121 | W59: =V59+'Input Sheet'!$A$24+H59-(V59*I59*'Input Sheet'!$A$20)-(V59*'Input Sheet'!$A$21) -> 48.65730614 | X59: =W59+'Input Sheet'!$A$24+H59-(W59*I59*'Input Sheet'!$A$20)-(W59*'Input Sheet'!$A$21) -> 49.90783137 | Y59: =(Q59*D59*'Input Sheet'!$A$28*'Input Sheet'!$A$31)/(O59*P59*60*(1-'Input Sheet'!$A$29)) -> 23.46114727 | Z59: 23.96829847 | AA59: 24.48641257 | AB59: 25.01572656 | AC59: 25.55648254 | AD59: 26.10892785
A60: Nurse | B60: Lambeth | C60: SEL | D60: 173853.3709 | E60: 181326.684 | F60: 1.008453136 | G60: 78.02882329 | H60: 5 | I60: 0.2526315789 | J60: 0.15 | K60: 0.02 | L60: 20 | M60: 10 | N60: 60 | O60: 210 | P60: 8 | Q60: 4 | R60: 0.01718771928 | S60: 78.02882329 | T60: =S60+'Input Sheet'!$A$24+H60-(S60*I60*'Input Sheet'!$A$20)-(S60*'Input Sheet'!$A$21) -> 77.54216498 | U60: =T60+'Input Sheet'!$A$24+H60-(T60*I60*'Input Sheet'!$A$20)-(T60*'Input Sheet'!$A$21) -> 77.08972643 | V60: =U60+'Input Sheet'!$A$24+H60-(U60*I60*'Input Sheet'!$A$20)-(U60*'Input Sheet'!$A$21) -> 76.66910146 | W60: =V60+'Input Sheet'!$A$24+H60-(V60*I60*'Input Sheet'!$A$20)-(V60*'Input Sheet'!$A$21) -> 76.27805306 | X60: =W60+'Input Sheet'!$A$24+H60-(W60*I60*'Input Sheet'!$A$20)-(W60*'Input Sheet'!$A$21) -> 75.91450154 | Y60: =(Q60*D60*'Input Sheet'!$A$28*'Input Sheet'!$A$31)/(O60*P60*60*(1-'Input Sheet'!$A$29)) -> 25.74232571 | Z60: 26.40238095 | AA60: 27.07936057 | AB60: 27.77369853 | AC60: 28.48583991 | AD60: 29.2162412
A61: Nurse | B61: Lewisham | C61: SEL | D61: 325454.6437 | E61: 342398.23 | F61: 1.010201962 | G61: 66.53795237 | H61: 5 | I61: 0.2686567164 | J61: 0.15 | K61: 0.02 | L61: 20 | M61: 10 | N61: 60 | O61: 210 | P61: 8 | Q61: 4 | R61: 0.01718771928 | S61: 66.53795237 | T61: =S61+'Input Sheet'!$A$24+H61-(S61*I61*'Input Sheet'!$A$20)-(S61*'Input Sheet'!$A$21) -> 66.73133014 | U61: =T61+'Input Sheet'!$A$24+H61-(T61*I61*'Input Sheet'!$A$20)-(T61*'Input Sheet'!$A$21) -> 66.91073853 | V61: =U61+'Input Sheet'!$A$24+H61-(U61*I61*'Input Sheet'!$A$20)-(U61*'Input Sheet'!$A$21) -> 67.07718667 | W61: =V61+'Input Sheet'!$A$24+H61-(V61*I61*'Input Sheet'!$A$20)-(V61*'Input Sheet'!$A$21) -> 67.2316108 | X61: =W61+'Input Sheet'!$A$24+H61-(W61*I61*'Input Sheet'!$A$20)-(W61*'Input Sheet'!$A$21) -> 67.37487951 | Y61: =(Q61*D61*'Input Sheet'!$A$28*'Input Sheet'!$A$31)/(O61*P61*60*(1-'Input Sheet'!$A$29)) -> 48.18980154 | Z61: 49.50970485 | AA61: 50.86575988 | AB61: 52.25895684 | AC61: 53.69031301 | AD61: 55.16087357
A62: Nurse | B62: Newham | C62: NEL | D62: 299817.3844 | E62: 316842.3797 | F62: 1.011107405 | G62: 71.77945644 | H62: 5 | I62: 0.4864864865 | J62: 0.15 | K62: 0.02 | L62: 20 | M62: 10 | N62: 60 | O62: 210 | P62: 8 | Q62: 4 | R62: 0.01718771928 | S62: 71.77945644 | T62: =S62+'Input Sheet'!$A$24+H62-(S62*I62*'Input Sheet'!$A$20)-(S62*'Input Sheet'!$A$21) -> 69.71790991 | U62: =T62+'Input Sheet'!$A$24+H62-(T62*I62*'Input Sheet'!$A$20)-(T62*'Input Sheet'!$A$21) -> 67.85917499 | V62: =U62+'Input Sheet'!$A$24+H62-(U62*I62*'Input Sheet'!$A$20)-(U62*'Input Sheet'!$A$21) -> 66.1832994 | W62: =V62+'Input Sheet'!$A$24+H62-(V62*I62*'Input Sheet'!$A$20)-(V62*'Input Sheet'!$A$21) -> 64.67229373 | X62: =W62+'Input Sheet'!$A$24+H62-(W62*I62*'Input Sheet'!$A$20)-(W62*'Input Sheet'!$A$21) -> 63.30993834 | Y62: =(Q62*D62*'Input Sheet'!$A$28*'Input Sheet'!$A$31)/(O62*P62*60*(1-'Input Sheet'!$A$29)) -> 44.39371364 | Z62: 45.64983929 | AA62: 46.94150717 | AB62: 48.26972295 | AC62: 49.63552076 | AD62: 51.039964
A63: Nurse | B63: Redbridge | C63: NEL | D63: 207140.6699 | E63: 212185.0439 | F63: 1.00482372 | G63: 47.20800998 | H63: 5 | I63: 0.4375 | J63: 0.15 | K63: 0.02 | L63: 20 | M63: 10 | N63: 60 | O63: 210 | P63: 8 | Q63: 4 | R63: 0.01718771928 | S63: 47.20800998 | T63: =S63+'Input Sheet'!$A$24+H63-(S63*I63*'Input Sheet'!$A$20)-(S63*'Input Sheet'!$A$21) -> 47.84126906 | U63: =T63+'Input Sheet'!$A$24+H63-(T63*I63*'Input Sheet'!$A$20)-(T63*'Input Sheet'!$A$21) -> 48.41595167 | V63: =U63+'Input Sheet'!$A$24+H63-(U63*I63*'Input Sheet'!$A$20)-(U63*'Input Sheet'!$A$21) -> 48.93747614 | W63: =V63+'Input Sheet'!$A$24+H63-(V63*I63*'Input Sheet'!$A$20)-(V63*'Input Sheet'!$A$21) -> 49.4107596 | X63: =W63+'Input Sheet'!$A$24+H63-(W63*I63*'Input Sheet'!$A$20)-(W63*'Input Sheet'!$A$21) -> 49.84026434 | Y63: =(Q63*D63*'Input Sheet'!$A$28*'Input Sheet'!$A$31)/(O63*P63*60*(1-'Input Sheet'!$A$29)) -> 30.67114871 | Z63: 31.34626483 | AA63: 32.03624123 | AB63: 32.74140501 | AC63: 33.46209045 | AD63: 34.19863922
A64: Nurse | B64: Richmond | C64: SWL | D64: 337378.1807 | E64: 362819.6276 | F64: 1.014646487 | G64: 32.20105544 | H64: 5 | I64: 0.3913043478 | J64: 0.15 | K64: 0.02 | L64: 20 | M64: 10 | N64: 60 | O64: 210 | P64: 8 | Q64: 4 | R64: 0.01718771928 | S64: 32.20105544 | T64: =S64+'Input Sheet'!$A$24+H64-(S64*I64*'Input Sheet'!$A$20)-(S64*'Input Sheet'!$A$21) -> 34.40096367 | U64: =T64+'Input Sheet'!$A$24+H64-(T64*I64*'Input Sheet'!$A$20)-(T64*'Input Sheet'!$A$21) -> 36.40957552 | V64: =U64+'Input Sheet'!$A$24+H64-(U64*I64*'Input Sheet'!$A$20)-(U64*'Input Sheet'!$A$21) -> 38.24352548 | W64: =V64+'Input Sheet'!$A$24+H64-(V64*I64*'Input Sheet'!$A$20)-(V64*'Input Sheet'!$A$21) -> 39.91800152 | X64: =W64+'Input Sheet'!$A$24+H64-(W64*I64*'Input Sheet'!$A$20)-(W64*'Input Sheet'!$A$21) -> 41.44687095 | Y64: =(Q64*D64*'Input Sheet'!$A$28*'Input Sheet'!$A$31)/(O64*P64*60*(1-'Input Sheet'!$A$29)) -> 49.95530986 | Z64: 51.54559752 | AA64: 53.18651073 | AB64: 54.87966111 | AC64: 56.62671159 | AD64: 58.42937803
A65: Nurse | B65: Southwark | C65: SEL | D65: 301021.6161 | E65: 316853.4049 | F65: 1.010304155 | G65: 70.52398127 | H65: 5 | I65: 0.3529411765 | J65: 0.15 | K65: 0.02 | L65: 20 | M65: 10 | N65: 60 | O65: 210 | P65: 8 | Q65: 4 | R65: 0.01718771928 | S65: 70.52398127 | T65: =S65+'Input Sheet'!$A$24+H65-(S65*I65*'Input Sheet'!$A$20)-(S65*'Input Sheet'!$A$21) -> 69.71612398 | U65: =T65+'Input Sheet'!$A$24+H65-(T65*I65*'Input Sheet'!$A$20)-(T65*'Input Sheet'!$A$21) -> 68.97479613 | V65: =U65+'Input Sheet'!$A$24+H65-(U65*I65*'Input Sheet'!$A$20)-(U65*'Input Sheet'!$A$21) -> 68.2945188 | W65: =V65+'Input Sheet'!$A$24+H65-(V65*I65*'Input Sheet'!$A$20)-(V65*'Input Sheet'!$A$21) -> 67.67026431 | X65: =W65+'Input Sheet'!$A$24+H65-(W65*I65*'Input Sheet'!$A$20)-(W65*'Input Sheet'!$A$21) -> 67.09741901 | Y65: =(Q65*D65*'Input Sheet'!$A$28*'Input Sheet'!$A$31)/(O65*P65*60*(1-'Input Sheet'!$A$29)) -> 44.57202324 | Z65: 45.79739169 | AA65: 47.05644782 | AB65: 48.35011777 | AC65: 49.67935313 | AD65: 51.04513165
A66: Nurse | B66: Merton | C66: SWL | D66: 196602.2286 | E66: 200158.6816 | F66: 1.003592019 | G66: 46.5555163 | H66: 5 | I66: 0.5 | J66: 0.15 | K66: 0.02 | L66: 20 | M66: 10 | N66: 60 | O66: 210 | P66: 8 | Q66: 4 | R66: 0.01718771928 | S66: 46.5555163 | T66: =S66+'Input Sheet'!$A$24+H66-(S66*I66*'Input Sheet'!$A$20)-(S66*'Input Sheet'!$A$21) -> 46.89996467 | U66: =T66+'Input Sheet'!$A$24+H66-(T66*I66*'Input Sheet'!$A$20)-(T66*'Input Sheet'!$A$21) -> 47.2099682 | V66: =U66+'Input Sheet'!$A$24+H66-(U66*I66*'Input Sheet'!$A$20)-(U66*'Input Sheet'!$A$21) -> 47.48897138 | W66: =V66+'Input Sheet'!$A$24+H66-(V66*I66*'Input Sheet'!$A$20)-(V66*'Input Sheet'!$A$21) -> 47.74007424 | X66: =W66+'Input Sheet'!$A$24+H66-(W66*I66*'Input Sheet'!$A$20)-(W66*'Input Sheet'!$A$21) -> 47.96606682 | Y66: =(Q66*D66*'Input Sheet'!$A$28*'Input Sheet'!$A$31)/(O66*P66*60*(1-'Input Sheet'!$A$29)) -> 29.11073037 | Z66: 29.71564373 | AA66: 30.33312704 | AB66: 30.96344149 | AC66: 31.60685371 | AD66: 32.26363586
A67: Nurse | B67: Sutton | C67: SWL | D67: 310642.3523 | E67: 332523.7542 | F67: 1.013706898 | G67: 43.60114658 | H67: 5 | I67: 0.4181818182 | J67: 0.15 | K67: 0.02 | L67: 20 | M67: 10 | N67: 60 | O67: 210 | P67: 8 | Q67: 4 | R67: 0.01718771928 | S67: 43.60114658 | T67: =S67+'Input Sheet'!$A$24+H67-(S67*I67*'Input Sheet'!$A$20)-(S67*'Input Sheet'!$A$21) -> 44.66911591 | U67: =T67+'Input Sheet'!$A$24+H67-(T67*I67*'Input Sheet'!$A$20)-(T67*'Input Sheet'!$A$21) -> 45.64077382 | V67: =U67+'Input Sheet'!$A$24+H67-(U67*I67*'Input Sheet'!$A$20)-(U67*'Input Sheet'!$A$21) -> 46.52480585 | W67: =V67+'Input Sheet'!$A$24+H67-(V67*I67*'Input Sheet'!$A$20)-(V67*'Input Sheet'!$A$21) -> 47.32911427 | X67: =W67+'Input Sheet'!$A$24+H67-(W67*I67*'Input Sheet'!$A$20)-(W67*'Input Sheet'!$A$21) -> 48.06088869 | Y67: =(Q67*D67*'Input Sheet'!$A$28*'Input Sheet'!$A$31)/(O67*P67*60*(1-'Input Sheet'!$A$29)) -> 45.99655773 | Z67: 47.41760378 | AA67: 48.88255251 | AB67: 50.39276026 | AC67: 51.9496253 | AD67: 53.5545891
A68: Nurse | B68: Tower Hamlets | C68: NEL | D68: 201750.7963 | E68: 205926.3036 | F68: 1.004105424 | G68: 78.63135732 | H68: 5 | I68: 0.1954022989 | J68: 0.15 | K68: 0.02 | L68: 20 | M68: 10 | N68: 60 | O68: 210 | P68: 8 | Q68: 4 | R68: 0.01718771928 | S68: 78.63135732 | T68: =S68+'Input Sheet'!$A$24+H68-(S68*I68*'Input Sheet'!$A$20)-(S68*'Input Sheet'!$A$21) -> 78.64233327 | U68: =T68+'Input Sheet'!$A$24+H68-(T68*I68*'Input Sheet'!$A$20)-(T68*'Input Sheet'!$A$21) -> 78.65261281 | V68: =U68+'Input Sheet'!$A$24+H68-(U68*I68*'Input Sheet'!$A$20)-(U68*'Input Sheet'!$A$21) -> 78.66224014 | W68: =V68+'Input Sheet'!$A$24+H68-(V68*I68*'Input Sheet'!$A$20)-(V68*'Input Sheet'!$A$21) -> 78.67125663 | X68: =W68+'Input Sheet'!$A$24+H68-(W68*I68*'Input Sheet'!$A$20)-(W68*'Input Sheet'!$A$21) -> 78.67970103 | Y68: =(Q68*D68*'Input Sheet'!$A$28*'Input Sheet'!$A$31)/(O68*P68*60*(1-'Input Sheet'!$A$29)) -> 29.87307455 | Z68: 30.50916622 | AA68: 31.15880229 | AB68: 31.82227114 | AC68: 32.49986734 | AD68: 33.19189168
A69: Nurse | B69: Waltham Forest | C69: NEL | D69: 297804.9566 | E69: 337617.385 | F69: 1.025412426 | G69: 60.73785221 | H69: 5 | I69: 0.5409836066 | J69: 0.15 | K69: 0.02 | L69: 20 | M69: 10 | N69: 60 | O69: 210 | P69: 8 | Q69: 4 | R69: 0.01718771928 | S69: 60.73785221 | T69: =S69+'Input Sheet'!$A$24+H69-(S69*I69*'Input Sheet'!$A$20)-(S69*'Input Sheet'!$A$21) -> 59.36535624 | U69: =T69+'Input Sheet'!$A$24+H69-(T69*I69*'Input Sheet'!$A$20)-(T69*'Input Sheet'!$A$21) -> 58.13685985 | V69: =U69+'Input Sheet'!$A$24+H69-(U69*I69*'Input Sheet'!$A$20)-(U69*'Input Sheet'!$A$21) -> 57.03725488 | W69: =V69+'Input Sheet'!$A$24+H69-(V69*I69*'Input Sheet'!$A$20)-(V69*'Input Sheet'!$A$21) -> 56.05301831 | X69: =W69+'Input Sheet'!$A$24+H69-(W69*I69*'Input Sheet'!$A$20)-(W69*'Input Sheet'!$A$21) -> 55.17204589 | Y69: =(Q69*D69*'Input Sheet'!$A$28*'Input Sheet'!$A$31)/(O69*P69*60*(1-'Input Sheet'!$A$29)) -> 44.0957351 | Z69: 45.97421983 | AA69: 47.93272828 | AB69: 49.97466948 | AC69: 52.10359766 | AD69: 54.3232185
A70: Nurse | B70: Wandsworth | C70: SWL | D70: 274139.4078 | E70: 284554.6096 | F70: 1.007485562 | G70: 77.46283054 | H70: 5 | I70: 0.3516483516 | J70: 0.15 | K70: 0.02 | L70: 20 | M70: 10 | N70: 60 | O70: 210 | P70: 8 | Q70: 4 | R70: 0.01718771928 | S70: 77.46283054 | T70: =S70+'Input Sheet'!$A$24+H70-(S70*I70*'Input Sheet'!$A$20)-(S70*'Input Sheet'!$A$21) -> 76.09555612 | U70: =T70+'Input Sheet'!$A$24+H70-(T70*I70*'Input Sheet'!$A$20)-(T70*'Input Sheet'!$A$21) -> 74.84066865 | V70: =U70+'Input Sheet'!$A$24+H70-(U70*I70*'Input Sheet'!$A$20)-(U70*'Input Sheet'!$A$21) -> 73.68893017 | W70: =V70+'Input Sheet'!$A$24+H70-(V70*I70*'Input Sheet'!$A$20)-(V70*'Input Sheet'!$A$21) -> 72.63186207 | X70: =W70+'Input Sheet'!$A$24+H70-(W70*I70*'Input Sheet'!$A$20)-(W70*'Input Sheet'!$A$21) -> 71.66168264 | Y70: =(Q70*D70*'Input Sheet'!$A$28*'Input Sheet'!$A$31)/(O70*P70*60*(1-'Input Sheet'!$A$29)) -> 40.59159675 | Z70: 41.59312463 | AA70: 42.61936348 | AB70: 43.67092301 | AC70: 44.74842797 | AD70: 45.8525185
A71: Nurse | B71: West London (K&C & QPP) | C71: NWL | D71: 318253.4708 | E71: 331558.5638 | F71: 1.008224903 | G71: 51.48059244 | H71: 5 | I71: 0.3720930233 | J71: 0.15 | K71: 0.02 | L71: 20 | M71: 10 | N71: 60 | O71: 210 | P71: 8 | Q71: 4 | R71: 0.01718771928 | S71: 51.48059244 | T71: =S71+'Input Sheet'!$A$24+H71-(S71*I71*'Input Sheet'!$A$20)-(S71*'Input Sheet'!$A$21) -> 52.12270043 | U71: =T71+'Input Sheet'!$A$24+H71-(T71*I71*'Input Sheet'!$A$20)-(T71*'Input Sheet'!$A$21) -> 52.71045323 | V71: =U71+'Input Sheet'!$A$24+H71-(U71*I71*'Input Sheet'!$A$20)-(U71*'Input Sheet'!$A$21) -> 53.24845207 | W71: =V71+'Input Sheet'!$A$24+H71-(V71*I71*'Input Sheet'!$A$20)-(V71*'Input Sheet'!$A$21) -> 53.74090869 | X71: =W71+'Input Sheet'!$A$24+H71-(W71*I71*'Input Sheet'!$A$20)-(W71*'Input Sheet'!$A$21) -> 54.19167828 | Y71: =(Q71*D71*'Input Sheet'!$A$28*'Input Sheet'!$A$31)/(O71*P71*60*(1-'Input Sheet'!$A$29)) -> 47.12352979 | Z71: 48.32106225 | AA71: 49.54902715 | AB71: 50.80819786 | AC71: 52.09936739 | AD71: 53.42334893
A72: Nurse | B72: Central London (Westminster) | C72: NWL | D72: 239861.5274 | E72: 250416.2946 | F72: 1.00864978 | G72: 45.33055272 | H72: 5 | I72: 0.2857142857 | J72: 0.15 | K72: 0.02 | L72: 20 | M72: 10 | N72: 60 | O72: 210 | P72: 8 | Q72: 4 | R72: 0.01718771928 | S72: 45.33055272 | T72: =S72+'Input Sheet'!$A$24+H72-(S72*I72*'Input Sheet'!$A$20)-(S72*'Input Sheet'!$A$21) -> 46.96314023 | U72: =T72+'Input Sheet'!$A$24+H72-(T72*I72*'Input Sheet'!$A$20)-(T72*'Input Sheet'!$A$21) -> 48.47444982 | V72: =U72+'Input Sheet'!$A$24+H72-(U72*I72*'Input Sheet'!$A$20)-(U72*'Input Sheet'!$A$21) -> 49.87349069 | W72: =V72+'Input Sheet'!$A$24+H72-(V72*I72*'Input Sheet'!$A$20)-(V72*'Input Sheet'!$A$21) -> 51.16860281 | X72: =W72+'Input Sheet'!$A$24+H72-(W72*I72*'Input Sheet'!$A$20)-(W72*'Input Sheet'!$A$21) -> 52.3675066 | Y72: =(Q72*D72*'Input Sheet'!$A$28*'Input Sheet'!$A$31)/(O72*P72*60*(1-'Input Sheet'!$A$29)) -> 35.51609918 | Z72: 36.43374636 | AA72: 37.37510324 | AB72: 38.34078244 | AC72: 39.33141237 | AD72: 40.3476377
S73: =SUM(S41:S72) -> 1916.138609 | X73: =SUM(X41:X72) -> 1896.817156 | Y73: =SUM(Y41:Y72) -> 1295.716767 | AD73: =SUM(AD41:AD72) -> 1480.253896
A74: Nurse | B74: Practice Line | D74: ='Introduction and Summary Sheet'!I18 -> 11437 | F74: =1+'Introduction and Summary Sheet'!K20 -> 1.06 | G74: ='Introduction and Summary Sheet'!M25 -> 1.25999999 | O74: 210 | P74: ='Nurse Input Sheet'!$I$8 -> 8 | Q74: ='Introduction and Summary Sheet'!K32 -> 5 | R74: ='Introduction and Summary Sheet'!K20/5 -> 0.012 | S74: 1.25999999 | T74: =S74 -> 1.25999999 | U74: =T74 -> 1.25999999 | V74: 1.25999999 | W74: 1.25999999 | X74: 1.25999999 | Y74: =(Q74*D74*'Nurse Input Sheet'!K6*'Introduction and Summary Sheet'!$H$26)/(O74*P74*60*(1-'Nurse Input Sheet'!$M$17)) -> 2.17847619 | Z74: =Y74*(1+$R$74) -> 2.204617905 | AA74: =Z74*(1+$R$74) -> 2.23107332 | AB74: 2.257846199 | AC74: 2.284940354 | AD74: 2.312359638
S76: 2016 | T76: 2017 | U76: 2018 | V76: 2019 | W76: 2020 | X76: 2021 | Y76: 2016 | Z76: 2017 | AA76: 2018 | AB76: 2019 | AC76: 2020 | AD76: 2021
A77: Other | B77: Barking & Dagenham | C77: NEL | D77: 205773.0092 | E77: 222143.3815 | F77: 1.015427671 | G77: 15.13571895 | H77: 2 | I77: 0.2 | J77: 0.1 | K77: 0.02 | L77: 17 | M77: 10 | N77: 45 | O77: 210 | P77: 8 | Q77: 4 | R77: 0.01718771928 | S77: =G77 -> 15.13571895 | T77: =S77+'Input Sheet'!$A$25+H77-(S77*I77*'Input Sheet'!$A$20)-(S77*'Input Sheet'!$A$21) -> 16.16703294 | U77: =T77+'Input Sheet'!$A$25+H77-(T77*I77*'Input Sheet'!$A$20)-(T77*'Input Sheet'!$A$21) -> 17.13234283 | V77: =U77+'Input Sheet'!$A$25+H77-(U77*I77*'Input Sheet'!$A$20)-(U77*'Input Sheet'!$A$21) -> 18.03587289 | W77: =V77+'Input Sheet'!$A$25+H77-(V77*I77*'Input Sheet'!$A$20)-(V77*'Input Sheet'!$A$21) -> 18.88157703 | X77: =W77+'Input Sheet'!$A$25+H77-(W77*I77*'Input Sheet'!$A$20)-(W77*'Input Sheet'!$A$21) -> 19.6731561 | Y77: =(Q77*D77*'Input Sheet'!$A$28*'Input Sheet'!$A$32)/(O77*P77*60*(1-'Input Sheet'!$A$29)) -> 15.23432016 | Z77: =Y77*(F77+R77) -> 15.73119345 | AA77: =Z77*(F77+R77) -> 16.24427246 | AB77: =AA77*(F77+R77) -> 16.77408575 | AC77: =AB77*(F77+R77) -> 17.3211791 | AD77: =AC77*(F77+R77) -> 17.88611611
A78: Other | B78: Barnet | C78: NCL | D78: 385107.6572 | E78: 409895.3742 | F78: 1.012553951 | G78: 34.08395544 | H78: 2 | I78: 0.1290322581 | J78: 0.1 | K78: 0.02 | L78: 17 | M78: 10 | N78: 45 | O78: 210 | P78: 8 | Q78: 4 | R78: 0.01718771928 | S78: =G78 -> 34.08395544 | T78: =S78+'Input Sheet'!$A$25+H78-(S78*I78*'Input Sheet'!$A$20)-(S78*'Input Sheet'!$A$21) -> 34.19284565 | U78: =T78+'Input Sheet'!$A$25+H78-(T78*I78*'Input Sheet'!$A$20)-(T78*'Input Sheet'!$A$21) -> 34.29569422 | V78: =U78+'Input Sheet'!$A$25+H78-(U78*I78*'Input Sheet'!$A$20)-(U78*'Input Sheet'!$A$21) -> 34.39283634 | W78: =V78+'Input Sheet'!$A$25+H78-(V78*I78*'Input Sheet'!$A$20)-(V78*'Input Sheet'!$A$21) -> 34.48458865 | X78: =W78+'Input Sheet'!$A$25+H78-(W78*I78*'Input Sheet'!$A$20)-(W78*'Input Sheet'!$A$21) -> 34.57125018 | Y78: =(Q78*D78*'Input Sheet'!$A$28*'Input Sheet'!$A$32)/(O78*P78*60*(1-'Input Sheet'!$A$29)) -> 28.51128711 | Z78: =Y78*(F78+R78) -> 29.35926041 | AA78: =Z78*(F78+R78) -> 30.23245385 | AB78: =AA78*(F78+R78) -> 31.13161753 | AC78: =AB78*(F78+R78) -> 32.05752384 | AD78: =AC78*(F78+R78) -> 33.01096814
A79: Other | B79: Bexley | C79: SEL | D79: 243302.5947 | E79: 248378.1074 | F79: 1.004137797 | G79: 20.35971829 | H79: 2 | I79: 0.3214285714 | J79: 0.1 | K79: 0.02 | L79: 17 | M79: 10 | N79: 45 | O79: 210 | P79: 8 | Q79: 4 | R79: 0.01718771928 | S79: 20.35971829 | T79: =S79+'Input Sheet'!$A$25+H79-(S79*I79*'Input Sheet'!$A$20)-(S79*'Input Sheet'!$A$21) -> 20.76002614 | U79: =T79+'Input Sheet'!$A$25+H79-(T79*I79*'Input Sheet'!$A$20)-(T79*'Input Sheet'!$A$21) -> 21.12888123 | V79: =U79+'Input Sheet'!$A$25+H79-(U79*I79*'Input Sheet'!$A$20)-(U79*'Input Sheet'!$A$21) -> 21.46875484 | W79: =V79+'Input Sheet'!$A$25+H79-(V79*I79*'Input Sheet'!$A$20)-(V79*'Input Sheet'!$A$21) -> 21.78192411 | X79: =W79+'Input Sheet'!$A$25+H79-(W79*I79*'Input Sheet'!$A$20)-(W79*'Input Sheet'!$A$21) -> 22.07048721 | Y79: =(Q79*D79*'Input Sheet'!$A$28*'Input Sheet'!$A$32)/(O79*P79*60*(1-'Input Sheet'!$A$29)) -> 18.01280759 | Z79: 18.39694 | AA79: 18.78926424 | AB79: 19.189955 | AC79: 19.59919069 | AD79: 20.01715354
A80: Other | B80: Brent | C80: NWL | D80: 328567.7276 | E80: 345659.8734 | F80: 1.010194065 | G80: 43.09156941 | H80: 2 | I80: 0.1384615385 | J80: 0.1 | K80: 0.02 | L80: 17 | M80: 10 | N80: 45 | O80: 210 | P80: 8 | Q80: 4 | R80: 0.01718771928 | S80: 43.09156941 | T80: =S80+'Input Sheet'!$A$25+H80-(S80*I80*'Input Sheet'!$A$20)-(S80*'Input Sheet'!$A$21) -> 42.65192363 | U80: =T80+'Input Sheet'!$A$25+H80-(T80*I80*'Input Sheet'!$A$20)-(T80*'Input Sheet'!$A$21) -> 42.23716857 | V80: =U80+'Input Sheet'!$A$25+H80-(U80*I80*'Input Sheet'!$A$20)-(U80*'Input Sheet'!$A$21) -> 41.84589503 | W80: =V80+'Input Sheet'!$A$25+H80-(V80*I80*'Input Sheet'!$A$20)-(V80*'Input Sheet'!$A$21) -> 41.47677358 | X80: =W80+'Input Sheet'!$A$25+H80-(W80*I80*'Input Sheet'!$A$20)-(W80*'Input Sheet'!$A$21) -> 41.1285501 | Y80: =(Q80*D80*'Input Sheet'!$A$28*'Input Sheet'!$A$32)/(O80*P80*60*(1-'Input Sheet'!$A$29)) -> 24.32537666 | Z80: 24.99144886 | AA80: 25.67575931 | AB80: 26.37880741 | AC80: 27.10110621 | AD80: 27.84318284
A81: Other | B81: Bromley | C81: SEL | D81: 326559.5853 | E81: 333607.5681 | F81: 1.004279717 | G81: 22.24358407 | H81: 2 | I81: 0.2272727273 | J81: 0.1 | K81: 0.02 | L81: 17 | M81: 10 | N81: 45 | O81: 210 | P81: 8 | Q81: 4 | R81: 0.01718771928 | S81: 22.24358407 | T81: =S81+'Input Sheet'!$A$25+H81-(S81*I81*'Input Sheet'!$A$20)-(S81*'Input Sheet'!$A$21) -> 22.7471975 | U81: =T81+'Input Sheet'!$A$25+H81-(T81*I81*'Input Sheet'!$A$20)-(T81*'Input Sheet'!$A$21) -> 23.21693149 | V81: =U81+'Input Sheet'!$A$25+H81-(U81*I81*'Input Sheet'!$A$20)-(U81*'Input Sheet'!$A$21) -> 23.65506519 | W81: =V81+'Input Sheet'!$A$25+H81-(V81*I81*'Input Sheet'!$A$20)-(V81*'Input Sheet'!$A$21) -> 24.06372444 | X81: =W81+'Input Sheet'!$A$25+H81-(W81*I81*'Input Sheet'!$A$20)-(W81*'Input Sheet'!$A$21) -> 24.44489207 | Y81: =(Q81*D81*'Input Sheet'!$A$28*'Input Sheet'!$A$32)/(O81*P81*60*(1-'Input Sheet'!$A$29)) -> 24.17670467 | Z81: 24.69571654 | AA81: 25.22587027 | AB81: 25.76740505 | AC81: 26.32056518 | AD81: 26.88560025
A82: Other | B82: Camden | C82: NCL | D82: 240595.1876 | E82: 249811.742 | F82: 1.007546694 | G82: 27.15411948 | H82: 2 | I82: 0.1363636364 | J82: 0.1 | K82: 0.02 | L82: 17 | M82: 10 | N82: 45 | O82: 210 | P82: 8 | Q82: 4 | R82: 0.01718771928 | S82: 27.15411948 | T82: =S82+'Input Sheet'!$A$25+H82-(S82*I82*'Input Sheet'!$A$20)-(S82*'Input Sheet'!$A$21) -> 27.62361457 | U82: =T82+'Input Sheet'!$A$25+H82-(T82*I82*'Input Sheet'!$A$20)-(T82*'Input Sheet'!$A$21) -> 28.0666472 | V82: =U82+'Input Sheet'!$A$25+H82-(U82*I82*'Input Sheet'!$A$20)-(U82*'Input Sheet'!$A$21) -> 28.4847089 | W82: =V82+'Input Sheet'!$A$25+H82-(V82*I82*'Input Sheet'!$A$20)-(V82*'Input Sheet'!$A$21) -> 28.87920713 | X82: =W82+'Input Sheet'!$A$25+H82-(W82*I82*'Input Sheet'!$A$20)-(W82*'Input Sheet'!$A$21) -> 29.25147 | Y82: =(Q82*D82*'Input Sheet'!$A$28*'Input Sheet'!$A$32)/(O82*P82*60*(1-'Input Sheet'!$A$29)) -> 17.81236582 | Z82: 18.25294424 | AA82: 18.7044201 | AB82: 19.16706296 | AC82: 19.64114901 | AD82: 20.12696131
A83: Other | B83: City & Hackney | C83: NEL | D83: 279460.0813 | E83: 298024.2591 | F83: 1.012946171 | G83: 35.64250512 | H83: 2 | I83: 0.3333333333 | J83: 0.1 | K83: 0.02 | L83: 17 | M83: 10 | N83: 45 | O83: 210 | P83: 8 | Q83: 4 | R83: 0.01718771928 | S83: 35.64250512 | T83: =S83+'Input Sheet'!$A$25+H83-(S83*I83*'Input Sheet'!$A$20)-(S83*'Input Sheet'!$A$21) -> 34.79110471 | U83: =T83+'Input Sheet'!$A$25+H83-(T83*I83*'Input Sheet'!$A$20)-(T83*'Input Sheet'!$A$21) -> 34.00781633 | V83: =U83+'Input Sheet'!$A$25+H83-(U83*I83*'Input Sheet'!$A$20)-(U83*'Input Sheet'!$A$21) -> 33.28719103 | W83: =V83+'Input Sheet'!$A$25+H83-(V83*I83*'Input Sheet'!$A$20)-(V83*'Input Sheet'!$A$21) -> 32.62421575 | X83: =W83+'Input Sheet'!$A$25+H83-(W83*I83*'Input Sheet'!$A$20)-(W83*'Input Sheet'!$A$21) -> 32.01427849 | Y83: =(Q83*D83*'Input Sheet'!$A$28*'Input Sheet'!$A$32)/(O83*P83*60*(1-'Input Sheet'!$A$29)) -> 20.68971225 | Z83: 21.31317377 | AA83: 21.95542262 | AB83: 22.61702492 | AC83: 23.29856387 | AD83: 24.00064024
A84: Other | B84: Croydon | C84: SWL | D84: 383407.6197 | E84: 399552.0842 | F84: 1.008283203 | G84: 40.08180454 | H84: 2 | I84: 0.3673469388 | J84: 0.1 | K84: 0.02 | L84: 17 | M84: 10 | N84: 45 | O84: 210 | P84: 8 | Q84: 4 | R84: 0.01718771928 | S84: 40.08180454 | T84: =S84+'Input Sheet'!$A$25+H84-(S84*I84*'Input Sheet'!$A$20)-(S84*'Input Sheet'!$A$21) -> 38.71166098 | U84: =T84+'Input Sheet'!$A$25+H84-(T84*I84*'Input Sheet'!$A$20)-(T84*'Input Sheet'!$A$21) -> 37.45672132 | V84: =U84+'Input Sheet'!$A$25+H84-(U84*I84*'Input Sheet'!$A$20)-(U84*'Input Sheet'!$A$21) -> 36.30729904 | W84: =V84+'Input Sheet'!$A$25+H84-(V84*I84*'Input Sheet'!$A$20)-(V84*'Input Sheet'!$A$21) -> 35.25452206 | X84: =W84+'Input Sheet'!$A$25+H84-(W84*I84*'Input Sheet'!$A$20)-(W84*'Input Sheet'!$A$21) -> 34.29026428 | Y84: =(Q84*D84*'Input Sheet'!$A$28*'Input Sheet'!$A$32)/(O84*P84*60*(1-'Input Sheet'!$A$29)) -> 28.38542553 | Z84: 29.10842849 | AA84: 29.84984699 | AB84: 30.61015011 | AC84: 31.38981885 | AD84: 32.18934648
A85: Other | B85: Ealing | C85: NWL | D85: 348532.5076 | E85: 364118.8288 | F85: 1.008788143 | G85: 42.7243489 | H85: 2 | I85: 0.2063492063 | J85: 0.1 | K85: 0.02 | L85: 17 | M85: 10 | N85: 45 | O85: 210 | P85: 8 | Q85: 4 | R85: 0.01718771928 | S85: 42.7243489 | T85: =S85+'Input Sheet'!$A$25+H85-(S85*I85*'Input Sheet'!$A$20)-(S85*'Input Sheet'!$A$21) -> 41.95743868 | U85: =T85+'Input Sheet'!$A$25+H85-(T85*I85*'Input Sheet'!$A$20)-(T85*'Input Sheet'!$A$21) -> 41.24019504 | V85: =U85+'Input Sheet'!$A$25+H85-(U85*I85*'Input Sheet'!$A$20)-(U85*'Input Sheet'!$A$21) -> 40.56940145 | W85: =V85+'Input Sheet'!$A$25+H85-(V85*I85*'Input Sheet'!$A$20)-(V85*'Input Sheet'!$A$21) -> 39.94204974 | X85: =W85+'Input Sheet'!$A$25+H85-(W85*I85*'Input Sheet'!$A$20)-(W85*'Input Sheet'!$A$21) -> 39.35532652 | Y85: =(Q85*D85*'Input Sheet'!$A$28*'Input Sheet'!$A$32)/(O85*P85*60*(1-'Input Sheet'!$A$29)) -> 25.80346094 | Z85: 26.4737281 | AA85: 27.16140603 | AB85: 27.86694698 | AC85: 28.59081497 | AD85: 29.33348606
A86: Other | B86: Enfield | C86: NCL | D86: 330967.757 | E86: 341277.2065 | F86: 1.006153679 | G86: 19.23469546 | H86: 2 | I86: 0.1666666667 | J86: 0.1 | K86: 0.02 | L86: 17 | M86: 10 | N86: 45 | O86: 210 | P86: 8 | Q86: 4 | R86: 0.01718771928 | S86: 19.23469546 | T86: =S86+'Input Sheet'!$A$25+H86-(S86*I86*'Input Sheet'!$A$20)-(S86*'Input Sheet'!$A$21) -> 20.08061373 | U86: =T86+'Input Sheet'!$A$25+H86-(T86*I86*'Input Sheet'!$A$20)-(T86*'Input Sheet'!$A$21) -> 20.87577691 | V86: =U86+'Input Sheet'!$A$25+H86-(U86*I86*'Input Sheet'!$A$20)-(U86*'Input Sheet'!$A$21) -> 21.6232303 | W86: =V86+'Input Sheet'!$A$25+H86-(V86*I86*'Input Sheet'!$A$20)-(V86*'Input Sheet'!$A$21) -> 22.32583648 | X86: =W86+'Input Sheet'!$A$25+H86-(W86*I86*'Input Sheet'!$A$20)-(W86*'Input Sheet'!$A$21) -> 22.98628629 | Y86: =(Q86*D86*'Input Sheet'!$A$28*'Input Sheet'!$A$32)/(O86*P86*60*(1-'Input Sheet'!$A$29)) -> 24.50306184 | Z86: 25.07499756 | AA86: 25.66028305 | AB86: 26.25922993 | AC86: 26.87215706 | AD86: 27.49939077
A87: Other | B87: Hounslow | C87: NWL | D87: 275868.493 | E87: 300643.7565 | F87: 1.017349128 | G87: 35.3944136 | H87: 2 | I87: 0.303030303 | J87: 0.1 | K87: 0.02 | L87: 17 | M87: 10 | N87: 45 | O87: 210 | P87: 8 | Q87: 4 | R87: 0.01718771928 | S87: 35.3944136 | T87: =S87+'Input Sheet'!$A$25+H87-(S87*I87*'Input Sheet'!$A$20)-(S87*'Input Sheet'!$A$21) -> 34.69156747 | U87: =T87+'Input Sheet'!$A$25+H87-(T87*I87*'Input Sheet'!$A$20)-(T87*'Input Sheet'!$A$21) -> 34.04239323 | V87: =U87+'Input Sheet'!$A$25+H87-(U87*I87*'Input Sheet'!$A$20)-(U87*'Input Sheet'!$A$21) -> 33.44279229 | W87: =V87+'Input Sheet'!$A$25+H87-(V87*I87*'Input Sheet'!$A$20)-(V87*'Input Sheet'!$A$21) -> 32.88897906 | X87: =W87+'Input Sheet'!$A$25+H87-(W87*I87*'Input Sheet'!$A$20)-(W87*'Input Sheet'!$A$21) -> 32.37745702 | Y87: =(Q87*D87*'Input Sheet'!$A$28*'Input Sheet'!$A$32)/(O87*P87*60*(1-'Input Sheet'!$A$29)) -> 20.42381049 | Z87: 21.12918452 | AA87: 21.85891995 | AB87: 22.61385813 | AC87: 23.39486951 | AD87: 24.20285455
A88: Other | B88: Greenwich | C88: SEL | D88: 183353.7672 | E88: 192209.9651 | F88: 1.009478823 | G88: 23.15113658 | H88: 2 | I88: 0.2962962963 | J88: 0.1 | K88: 0.02 | L88: 17 | M88: 10 | N88: 45 | O88: 210 | P88: 8 | Q88: 4 | R88: 0.01718771928 | S88: 23.15113658 | T88: =S88+'Input Sheet'!$A$25+H88-(S88*I88*'Input Sheet'!$A$20)-(S88*'Input Sheet'!$A$21) -> 23.40193959 | U88: =T88+'Input Sheet'!$A$25+H88-(T88*I88*'Input Sheet'!$A$20)-(T88*'Input Sheet'!$A$21) -> 23.63379304 | V88: =U88+'Input Sheet'!$A$25+H88-(U88*I88*'Input Sheet'!$A$20)-(U88*'Input Sheet'!$A$21) -> 23.84812868 | W88: =V88+'Input Sheet'!$A$25+H88-(V88*I88*'Input Sheet'!$A$20)-(V88*'Input Sheet'!$A$21) -> 24.04627007 | X88: =W88+'Input Sheet'!$A$25+H88-(W88*I88*'Input Sheet'!$A$20)-(W88*'Input Sheet'!$A$21) -> 24.22944077 | Y88: =(Q88*D88*'Input Sheet'!$A$28*'Input Sheet'!$A$32)/(O88*P88*60*(1-'Input Sheet'!$A$29)) -> 13.57452079 | Z88: 13.93650632 | AA88: 14.30814474 | AB88: 14.68969348 | AC88: 15.08141681 | AD88: 15.48358604
A89: Other | B89: Hammersmith & Fulham | C89: NWL | D89: 274802.7844 | E89: 290455.0671 | F89: 1.011140639 | G89: 32.7936394 | H89: 2 | I89: 0.08 | J89: 0.1 | K89: 0.02 | L89: 17 | M89: 10 | N89: 45 | O89: 210 | P89: 8 | Q89: 4 | R89: 0.01718771928 | S89: 32.7936394 | T89: =S89+'Input Sheet'!$A$25+H89-(S89*I89*'Input Sheet'!$A$20)-(S89*'Input Sheet'!$A$21) -> 33.16707489 | U89: =T89+'Input Sheet'!$A$25+H89-(T89*I89*'Input Sheet'!$A$20)-(T89*'Input Sheet'!$A$21) -> 33.52198797 | V89: =U89+'Input Sheet'!$A$25+H89-(U89*I89*'Input Sheet'!$A$20)-(U89*'Input Sheet'!$A$21) -> 33.85929737 | W89: =V89+'Input Sheet'!$A$25+H89-(V89*I89*'Input Sheet'!$A$20)-(V89*'Input Sheet'!$A$21) -> 34.17987622 | X89: =W89+'Input Sheet'!$A$25+H89-(W89*I89*'Input Sheet'!$A$20)-(W89*'Input Sheet'!$A$21) -> 34.48455436 | Y89: =(Q89*D89*'Input Sheet'!$A$28*'Input Sheet'!$A$32)/(O89*P89*60*(1-'Input Sheet'!$A$29)) -> 20.34491119 | Z89: 20.92124913 | AA89: 21.51391377 | AB89: 22.12336764 | AC89: 22.75008633 | AD89: 23.39455893
A90: Other | B90: Haringey | C90: NCL | D90: 250702.932 | E90: 258522.4137 | F90: 1.006161645 | G90: 30.15959522 | H90: 2 | I90: 0.3846153846 | J90: 0.1 | K90: 0.02 | L90: 17 | M90: 10 | N90: 45 | O90: 210 | P90: 8 | Q90: 4 | R90: 0.01718771928 | S90: 30.15959522 | T90: =S90+'Input Sheet'!$A$25+H90-(S90*I90*'Input Sheet'!$A$20)-(S90*'Input Sheet'!$A$21) -> 29.5612301 | U90: =T90+'Input Sheet'!$A$25+H90-(T90*I90*'Input Sheet'!$A$20)-(T90*'Input Sheet'!$A$21) -> 29.01441643 | V90: =U90+'Input Sheet'!$A$25+H90-(U90*I90*'Input Sheet'!$A$20)-(U90*'Input Sheet'!$A$21) -> 28.51471286 | W90: =V90+'Input Sheet'!$A$25+H90-(V90*I90*'Input Sheet'!$A$20)-(V90*'Input Sheet'!$A$21) -> 28.05806067 | X90: =W90+'Input Sheet'!$A$25+H90-(W90*I90*'Input Sheet'!$A$20)-(W90*'Input Sheet'!$A$21) -> 27.64075083 | Y90: =(Q90*D90*'Input Sheet'!$A$28*'Input Sheet'!$A$32)/(O90*P90*60*(1-'Input Sheet'!$A$29)) -> 18.56068852 | Z90: 18.99406879 | AA90: 19.43756822 | AB90: 19.89142307 | AC90: 20.35587515 | AD90: 20.83117188
A91: Other | B91: Harrow | C91: NWL | D91: 251610.7349 | E91: 265446.8105 | F91: 1.010763776 | G91: 28.95253117 | H91: 2 | I91: 0.2352941176 | J91: 0.1 | K91: 0.02 | L91: 17 | M91: 10 | N91: 45 | O91: 210 | P91: 8 | Q91: 4 | R91: 0.01718771928 | S91: 28.95253117 | T91: =S91+'Input Sheet'!$A$25+H91-(S91*I91*'Input Sheet'!$A$20)-(S91*'Input Sheet'!$A$21) -> 28.97694669 | U91: =T91+'Input Sheet'!$A$25+H91-(T91*I91*'Input Sheet'!$A$20)-(T91*'Input Sheet'!$A$21) -> 28.99969621 | V91: =U91+'Input Sheet'!$A$25+H91-(U91*I91*'Input Sheet'!$A$20)-(U91*'Input Sheet'!$A$21) -> 29.02089341 | W91: =V91+'Input Sheet'!$A$25+H91-(V91*I91*'Input Sheet'!$A$20)-(V91*'Input Sheet'!$A$21) -> 29.04064421 | X91: =W91+'Input Sheet'!$A$25+H91-(W91*I91*'Input Sheet'!$A$20)-(W91*'Input Sheet'!$A$21) -> 29.05904731 | Y91: =(Q91*D91*'Input Sheet'!$A$28*'Input Sheet'!$A$32)/(O91*P91*60*(1-'Input Sheet'!$A$29)) -> 18.62789734 | Z91: 19.14857491 | AA91: 19.68380621 | AB91: 20.23399802 | AC91: 20.79956851 | AD91: 21.38094755
A92: Other | B92: Havering | C92: NEL | D92: 299473.6783 | E92: 307062.0456 | F92: 1.005017205 | G92: 12.98508243 | H92: 2 | I92: 0.08333333333 | J92: 0.1 | K92: 0.02 | L92: 17 | M92: 10 | N92: 45 | O92: 210 | P92: 8 | Q92: 4 | R92: 0.01718771928 | S92: 12.98508243 | T92: =S92+'Input Sheet'!$A$25+H92-(S92*I92*'Input Sheet'!$A$20)-(S92*'Input Sheet'!$A$21) -> 14.33582831 | U92: =T92+'Input Sheet'!$A$25+H92-(T92*I92*'Input Sheet'!$A$20)-(T92*'Input Sheet'!$A$21) -> 15.6190369 | V92: =U92+'Input Sheet'!$A$25+H92-(U92*I92*'Input Sheet'!$A$20)-(U92*'Input Sheet'!$A$21) -> 16.83808505 | W92: =V92+'Input Sheet'!$A$25+H92-(V92*I92*'Input Sheet'!$A$20)-(V92*'Input Sheet'!$A$21) -> 17.9961808 | X92: =W92+'Input Sheet'!$A$25+H92-(W92*I92*'Input Sheet'!$A$20)-(W92*'Input Sheet'!$A$21) -> 19.09637176 | Y92: =(Q92*D92*'Input Sheet'!$A$28*'Input Sheet'!$A$32)/(O92*P92*60*(1-'Input Sheet'!$A$29)) -> 22.17141068 | Z92: 22.66372516 | AA92: 23.16697146 | AB92: 23.68139229 | AC92: 24.20723581 | AD92: 24.74475564
A93: Other | B93: Hillingdon | C93: NWL | D93: 272101.6454 | E93: 282830.2214 | F93: 1.007764206 | G93: 14.62415797 | H93: 2 | I93: 0.3333333333 | J93: 0.1 | K93: 0.02 | L93: 17 | M93: 10 | N93: 45 | O93: 210 | P93: 8 | Q93: 4 | R93: 0.01718771928 | S93: 14.62415797 | T93: =S93+'Input Sheet'!$A$25+H93-(S93*I93*'Input Sheet'!$A$20)-(S93*'Input Sheet'!$A$21) -> 15.45422533 | U93: =T93+'Input Sheet'!$A$25+H93-(T93*I93*'Input Sheet'!$A$20)-(T93*'Input Sheet'!$A$21) -> 16.21788731 | V93: =U93+'Input Sheet'!$A$25+H93-(U93*I93*'Input Sheet'!$A$20)-(U93*'Input Sheet'!$A$21) -> 16.92045632 | W93: =V93+'Input Sheet'!$A$25+H93-(V93*I93*'Input Sheet'!$A$20)-(V93*'Input Sheet'!$A$21) -> 17.56681982 | X93: =W93+'Input Sheet'!$A$25+H93-(W93*I93*'Input Sheet'!$A$20)-(W93*'Input Sheet'!$A$21) -> 18.16147423 | Y93: =(Q93*D93*'Input Sheet'!$A$28*'Input Sheet'!$A$32)/(O93*P93*60*(1-'Input Sheet'!$A$29)) -> 20.14493347 | Z93: 20.64758836 | AA93: 21.16278545 | AB93: 21.6908377 | AC93: 22.23206587 | AD93: 22.78679873
A94: Other | B94: Islington | C94: NCL | D94: 228397.1873 | E94: 241248.224 | F94: 1.011008192 | G94: 20.28066478 | H94: 2 | I94: 0.15 | J94: 0.1 | K94: 0.02 | L94: 17 | M94: 10 | N94: 45 | O94: 210 | P94: 8 | Q94: 4 | R94: 0.01718771928 | S94: 20.28066478 | T94: =S94+'Input Sheet'!$A$25+H94-(S94*I94*'Input Sheet'!$A$20)-(S94*'Input Sheet'!$A$21) -> 21.10438622 | U94: =T94+'Input Sheet'!$A$25+H94-(T94*I94*'Input Sheet'!$A$20)-(T94*'Input Sheet'!$A$21) -> 21.88033182 | V94: =U94+'Input Sheet'!$A$25+H94-(U94*I94*'Input Sheet'!$A$20)-(U94*'Input Sheet'!$A$21) -> 22.61127257 | W94: =V94+'Input Sheet'!$A$25+H94-(V94*I94*'Input Sheet'!$A$20)-(V94*'Input Sheet'!$A$21) -> 23.29981876 | X94: =W94+'Input Sheet'!$A$25+H94-(W94*I94*'Input Sheet'!$A$20)-(W94*'Input Sheet'!$A$21) -> 23.94842928 | Y94: =(Q94*D94*'Input Sheet'!$A$28*'Input Sheet'!$A$32)/(O94*P94*60*(1-'Input Sheet'!$A$29)) -> 16.90929188 | Z94: 17.38606478 | AA94: 17.87628072 | AB94: 18.38031875 | AC94: 18.8985686 | AD94: 19.43143097
A95: Other | B95: Kingston | C95: SWL | D95: 158447.2042 | E95: 161987.1734 | F95: 1.004428922 | G95: 23.14330671 | H95: 2 | I95: 0.21875 | J95: 0.1 | K95: 0.02 | L95: 17 | M95: 10 | N95: 45 | O95: 210 | P95: 8 | Q95: 4 | R95: 0.01718771928 | S95: 23.14330671 | T95: =S95+'Input Sheet'!$A$25+H95-(S95*I95*'Input Sheet'!$A$20)-(S95*'Input Sheet'!$A$21) -> 23.61006264 | U95: =T95+'Input Sheet'!$A$25+H95-(T95*I95*'Input Sheet'!$A$20)-(T95*'Input Sheet'!$A$21) -> 24.04589599 | V95: =U95+'Input Sheet'!$A$25+H95-(U95*I95*'Input Sheet'!$A$20)-(U95*'Input Sheet'!$A$21) -> 24.45285538 | W95: =V95+'Input Sheet'!$A$25+H95-(V95*I95*'Input Sheet'!$A$20)-(V95*'Input Sheet'!$A$21) -> 24.83285371 | X95: =W95+'Input Sheet'!$A$25+H95-(W95*I95*'Input Sheet'!$A$20)-(W95*'Input Sheet'!$A$21) -> 25.18767715 | Y95: =(Q95*D95*'Input Sheet'!$A$28*'Input Sheet'!$A$32)/(O95*P95*60*(1-'Input Sheet'!$A$29)) -> 11.73057364 | Z95: 11.98414924 | AA95: 12.24320629 | AB95: 12.50786328 | AC95: 12.77824127 | AD95: 13.05446392
A96: Other | B96: Lambeth | C96: SEL | D96: 173853.3709 | E96: 181326.684 | F96: 1.008453136 | G96: 25.06197587 | H96: 2 | I96: 0.1034482759 | J96: 0.1 | K96: 0.02 | L96: 17 | M96: 10 | N96: 45 | O96: 210 | P96: 8 | Q96: 4 | R96: 0.01718771928 | S96: 25.06197587 | T96: =S96+'Input Sheet'!$A$25+H96-(S96*I96*'Input Sheet'!$A$20)-(S96*'Input Sheet'!$A$21) -> 25.74838265 | U96: =T96+'Input Sheet'!$A$25+H96-(T96*I96*'Input Sheet'!$A$20)-(T96*'Input Sheet'!$A$21) -> 26.39881225 | V96: =U96+'Input Sheet'!$A$25+H96-(U96*I96*'Input Sheet'!$A$20)-(U96*'Input Sheet'!$A$21) -> 27.01515036 | W96: =V96+'Input Sheet'!$A$25+H96-(V96*I96*'Input Sheet'!$A$20)-(V96*'Input Sheet'!$A$21) -> 27.59918386 | X96: =W96+'Input Sheet'!$A$25+H96-(W96*I96*'Input Sheet'!$A$20)-(W96*'Input Sheet'!$A$21) -> 28.15260595 | Y96: =(Q96*D96*'Input Sheet'!$A$28*'Input Sheet'!$A$32)/(O96*P96*60*(1-'Input Sheet'!$A$29)) -> 12.87116285 | Z96: 13.20119047 | AA96: 13.53968029 | AB96: 13.88684927 | AC96: 14.24291996 | AD96: 14.6081206
A97: Other | B97: Lewisham | C97: SEL | D97: 325454.6437 | E97: 342398.23 | F97: 1.010201962 | G97: 26.18033551 | H97: 2 | I97: 0.1785714286 | J97: 0.1 | K97: 0.02 | L97: 17 | M97: 10 | N97: 45 | O97: 210 | P97: 8 | Q97: 4 | R97: 0.01718771928 | S97: 26.18033551 | T97: =S97+'Input Sheet'!$A$25+H97-(S97*I97*'Input Sheet'!$A$20)-(S97*'Input Sheet'!$A$21) -> 26.5721149 | U97: =T97+'Input Sheet'!$A$25+H97-(T97*I97*'Input Sheet'!$A$20)-(T97*'Input Sheet'!$A$21) -> 26.93982784 | V97: =U97+'Input Sheet'!$A$25+H97-(U97*I97*'Input Sheet'!$A$20)-(U97*'Input Sheet'!$A$21) -> 27.2849527 | W97: =V97+'Input Sheet'!$A$25+H97-(V97*I97*'Input Sheet'!$A$20)-(V97*'Input Sheet'!$A$21) -> 27.60887704 | X97: =W97+'Input Sheet'!$A$25+H97-(W97*I97*'Input Sheet'!$A$20)-(W97*'Input Sheet'!$A$21) -> 27.91290316 | Y97: =(Q97*D97*'Input Sheet'!$A$28*'Input Sheet'!$A$32)/(O97*P97*60*(1-'Input Sheet'!$A$29)) -> 24.09490077 | Z97: 24.75485242 | AA97: 25.43287994 | AB97: 26.12947842 | AC97: 26.84515651 | AD97: 27.58043679
A98: Other | B98: Newham | C98: NEL | D98: 299817.3844 | E98: 316842.3797 | F98: 1.011107405 | G98: 40.70166239 | H98: 2 | I98: 0.07317073171 | J98: 0.1 | K98: 0.02 | L98: 17 | M98: 10 | N98: 45 | O98: 210 | P98: 8 | Q98: 4 | R98: 0.01718771928 | S98: 40.70166239 | T98: =S98+'Input Sheet'!$A$25+H98-(S98*I98*'Input Sheet'!$A$20)-(S98*'Input Sheet'!$A$21) -> 40.71621545 | U98: =T98+'Input Sheet'!$A$25+H98-(T98*I98*'Input Sheet'!$A$20)-(T98*'Input Sheet'!$A$21) -> 40.7300586 | V98: =U98+'Input Sheet'!$A$25+H98-(U98*I98*'Input Sheet'!$A$20)-(U98*'Input Sheet'!$A$21) -> 40.74322647 | W98: =V98+'Input Sheet'!$A$25+H98-(V98*I98*'Input Sheet'!$A$20)-(V98*'Input Sheet'!$A$21) -> 40.75575201 | X98: =W98+'Input Sheet'!$A$25+H98-(W98*I98*'Input Sheet'!$A$20)-(W98*'Input Sheet'!$A$21) -> 40.76766654 | Y98: =(Q98*D98*'Input Sheet'!$A$28*'Input Sheet'!$A$32)/(O98*P98*60*(1-'Input Sheet'!$A$29)) -> 22.19685682 | Z98: 22.82491964 | AA98: 23.47075358 | AB98: 24.13486147 | AC98: 24.81776038 | AD98: 25.519982
A99: Other | B99: Redbridge | C99: NEL | D99: 207140.6699 | E99: 212185.0439 | F99: 1.00482372 | G99: 20.38367879 | H99: 2 | I99: 0.2272727273 | J99: 0.1 | K99: 0.02 | L99: 17 | M99: 10 | N99: 45 | O99: 210 | P99: 8 | Q99: 4 | R99: 0.01718771928 | S99: 20.38367879 | T99: =S99+'Input Sheet'!$A$25+H99-(S99*I99*'Input Sheet'!$A$20)-(S99*'Input Sheet'!$A$21) -> 21.01241312 | U99: =T99+'Input Sheet'!$A$25+H99-(T99*I99*'Input Sheet'!$A$20)-(T99*'Input Sheet'!$A$21) -> 21.59885079 | V99: =U99+'Input Sheet'!$A$25+H99-(U99*I99*'Input Sheet'!$A$20)-(U99*'Input Sheet'!$A$21) -> 22.14583719 | W99: =V99+'Input Sheet'!$A$25+H99-(V99*I99*'Input Sheet'!$A$20)-(V99*'Input Sheet'!$A$21) -> 22.65602632 | X99: =W99+'Input Sheet'!$A$25+H99-(W99*I99*'Input Sheet'!$A$20)-(W99*'Input Sheet'!$A$21) -> 23.13189364 | Y99: =(Q99*D99*'Input Sheet'!$A$28*'Input Sheet'!$A$32)/(O99*P99*60*(1-'Input Sheet'!$A$29)) -> 15.33557435 | Z99: 15.67313242 | AA99: 16.01812062 | AB99: 16.3707025 | AC99: 16.73104523 | AD99: 17.09931961
A100: Other | B100: Richmond | C100: SWL | D100: 337378.1807 | E100: 362819.6276 | F100: 1.014646487 | G100: 22.54888122 | H100: 2 | I100: 0.25 | J100: 0.1 | K100: 0.02 | L100: 17 | M100: 10 | N100: 45 | O100: 210 | P100: 8 | Q100: 4 | R100: 0.01718771928 | S100: 22.54888122 | T100: =S100+'Input Sheet'!$A$25+H100-(S100*I100*'Input Sheet'!$A$20)-(S100*'Input Sheet'!$A$21) -> 22.97045953 | U100: =T100+'Input Sheet'!$A$25+H100-(T100*I100*'Input Sheet'!$A$20)-(T100*'Input Sheet'!$A$21) -> 23.36252737 | V100: =U100+'Input Sheet'!$A$25+H100-(U100*I100*'Input Sheet'!$A$20)-(U100*'Input Sheet'!$A$21) -> 23.72715045 | W100: =V100+'Input Sheet'!$A$25+H100-(V100*I100*'Input Sheet'!$A$20)-(V100*'Input Sheet'!$A$21) -> 24.06624992 | X100: =W100+'Input Sheet'!$A$25+H100-(W100*I100*'Input Sheet'!$A$20)-(W100*'Input Sheet'!$A$21) -> 24.38161242 | Y100: =(Q100*D100*'Input Sheet'!$A$28*'Input Sheet'!$A$32)/(O100*P100*60*(1-'Input Sheet'!$A$29)) -> 24.97765493 | Z100: 25.77279876 | AA100: 26.59325537 | AB100: 27.43983056 | AC100: 28.31335579 | AD100: 29.21468902
A101: Other | B101: Southwark | C101: SEL | D101: 301021.6161 | E101: 316853.4049 | F101: 1.010304155 | G101: 31.1368581 | H101: 2 | I101: 0.2 | J101: 0.1 | K101: 0.02 | L101: 17 | M101: 10 | N101: 45 | O101: 210 | P101: 8 | Q101: 4 | R101: 0.01718771928 | S101: 31.1368581 | T101: =S101+'Input Sheet'!$A$25+H101-(S101*I101*'Input Sheet'!$A$20)-(S101*'Input Sheet'!$A$21) -> 31.14409918 | U101: =T101+'Input Sheet'!$A$25+H101-(T101*I101*'Input Sheet'!$A$20)-(T101*'Input Sheet'!$A$21) -> 31.15087683 | V101: =U101+'Input Sheet'!$A$25+H101-(U101*I101*'Input Sheet'!$A$20)-(U101*'Input Sheet'!$A$21) -> 31.15722072 | W101: =V101+'Input Sheet'!$A$25+H101-(V101*I101*'Input Sheet'!$A$20)-(V101*'Input Sheet'!$A$21) -> 31.16315859 | X101: =W101+'Input Sheet'!$A$25+H101-(W101*I101*'Input Sheet'!$A$20)-(W101*'Input Sheet'!$A$21) -> 31.16871644 | Y101: =(Q101*D101*'Input Sheet'!$A$28*'Input Sheet'!$A$32)/(O101*P101*60*(1-'Input Sheet'!$A$29)) -> 22.28601162 | Z101: 22.89869585 | AA101: 23.52822391 | AB101: 24.17505889 | AC101: 24.83967656 | AD101: 25.52256583
A102: Other | B102: Merton | C102: SWL | D102: 196602.2286 | E102: 200158.6816 | F102: 1.003592019 | G102: 16.39110765 | H102: 2 | I102: 0.380952381 | J102: 0.1 | K102: 0.02 | L102: 17 | M102: 10 | N102: 45 | O102: 210 | P102: 8 | Q102: 4 | R102: 0.01718771928 | S102: 16.39110765 | T102: =S102+'Input Sheet'!$A$25+H102-(S102*I102*'Input Sheet'!$A$20)-(S102*'Input Sheet'!$A$21) -> 16.98615556 | U102: =T102+'Input Sheet'!$A$25+H102-(T102*I102*'Input Sheet'!$A$20)-(T102*'Input Sheet'!$A$21) -> 17.53019937 | V102: =U102+'Input Sheet'!$A$25+H102-(U102*I102*'Input Sheet'!$A$20)-(U102*'Input Sheet'!$A$21) -> 18.02761085 | W102: =V102+'Input Sheet'!$A$25+H102-(V102*I102*'Input Sheet'!$A$20)-(V102*'Input Sheet'!$A$21) -> 18.48238707 | X102: =W102+'Input Sheet'!$A$25+H102-(W102*I102*'Input Sheet'!$A$20)-(W102*'Input Sheet'!$A$21) -> 18.89818246 | Y102: =(Q102*D102*'Input Sheet'!$A$28*'Input Sheet'!$A$32)/(O102*P102*60*(1-'Input Sheet'!$A$29)) -> 14.55536519 | Z102: 14.85782187 | AA102: 15.16656352 | AB102: 15.48172074 | AC102: 15.80342685 | AD102: 16.13181793
A103: Other | B103: Sutton | C103: SWL | D103: 310642.3523 | E103: 332523.7542 | F103: 1.013706898 | G103: 17.65505394 | H103: 2 | I103: 0.25 | J103: 0.1 | K103: 0.02 | L103: 17 | M103: 10 | N103: 45 | O103: 210 | P103: 8 | Q103: 4 | R103: 0.01718771928 | S103: 17.65505394 | T103: =S103+'Input Sheet'!$A$25+H103-(S103*I103*'Input Sheet'!$A$20)-(S103*'Input Sheet'!$A$21) -> 18.41920017 | U103: =T103+'Input Sheet'!$A$25+H103-(T103*I103*'Input Sheet'!$A$20)-(T103*'Input Sheet'!$A$21) -> 19.12985615 | V103: =U103+'Input Sheet'!$A$25+H103-(U103*I103*'Input Sheet'!$A$20)-(U103*'Input Sheet'!$A$21) -> 19.79076622 | W103: =V103+'Input Sheet'!$A$25+H103-(V103*I103*'Input Sheet'!$A$20)-(V103*'Input Sheet'!$A$21) -> 20.40541259 | X103: =W103+'Input Sheet'!$A$25+H103-(W103*I103*'Input Sheet'!$A$20)-(W103*'Input Sheet'!$A$21) -> 20.97703371 | Y103: =(Q103*D103*'Input Sheet'!$A$28*'Input Sheet'!$A$32)/(O103*P103*60*(1-'Input Sheet'!$A$29)) -> 22.99827887 | Z103: 23.70880189 | AA103: 24.44127625 | AB103: 25.19638013 | AC103: 25.97481265 | AD103: 26.77729455
A104: Other | B104: Tower Hamlets | C104: NEL | D104: 201750.7963 | E104: 205926.3036 | F104: 1.004105424 | G104: 45.86656234 | H104: 2 | I104: 0.09090909091 | J104: 0.1 | K104: 0.02 | L104: 17 | M104: 10 | N104: 45 | O104: 210 | P104: 8 | Q104: 4 | R104: 0.01718771928 | S104: 45.86656234 | T104: =S104+'Input Sheet'!$A$25+H104-(S104*I104*'Input Sheet'!$A$20)-(S104*'Input Sheet'!$A$21) -> 45.53153735 | U104: =T104+'Input Sheet'!$A$25+H104-(T104*I104*'Input Sheet'!$A$20)-(T104*'Input Sheet'!$A$21) -> 45.21356818 | V104: =U104+'Input Sheet'!$A$25+H104-(U104*I104*'Input Sheet'!$A$20)-(U104*'Input Sheet'!$A$21) -> 44.91178652 | W104: =V104+'Input Sheet'!$A$25+H104-(V104*I104*'Input Sheet'!$A$20)-(V104*'Input Sheet'!$A$21) -> 44.6253683 | X104: =W104+'Input Sheet'!$A$25+H104-(W104*I104*'Input Sheet'!$A$20)-(W104*'Input Sheet'!$A$21) -> 44.35353137 | Y104: =(Q104*D104*'Input Sheet'!$A$28*'Input Sheet'!$A$32)/(O104*P104*60*(1-'Input Sheet'!$A$29)) -> 14.93653728 | Z104: 15.25458311 | AA104: 15.57940114 | AB104: 15.91113557 | AC104: 16.24993367 | AD104: 16.59594584
A105: Other | B105: Waltham Forest | C105: NEL | D105: 297804.9566 | E105: 337617.385 | F105: 1.025412426 | G105: 22.29022443 | H105: 2 | I105: 0.3076923077 | J105: 0.1 | K105: 0.02 | L105: 17 | M105: 10 | N105: 45 | O105: 210 | P105: 8 | Q105: 4 | R105: 0.01718771928 | S105: 22.29022443 | T105: =S105+'Input Sheet'!$A$25+H105-(S105*I105*'Input Sheet'!$A$20)-(S105*'Input Sheet'!$A$21) -> 22.57559178 | U105: =T105+'Input Sheet'!$A$25+H105-(T105*I105*'Input Sheet'!$A$20)-(T105*'Input Sheet'!$A$21) -> 22.8390078 | V105: =U105+'Input Sheet'!$A$25+H105-(U105*I105*'Input Sheet'!$A$20)-(U105*'Input Sheet'!$A$21) -> 23.08216105 | W105: =V105+'Input Sheet'!$A$25+H105-(V105*I105*'Input Sheet'!$A$20)-(V105*'Input Sheet'!$A$21) -> 23.3066102 | X105: =W105+'Input Sheet'!$A$25+H105-(W105*I105*'Input Sheet'!$A$20)-(W105*'Input Sheet'!$A$21) -> 23.51379403 | Y105: =(Q105*D105*'Input Sheet'!$A$28*'Input Sheet'!$A$32)/(O105*P105*60*(1-'Input Sheet'!$A$29)) -> 22.04786755 | Z105: 22.98710991 | AA105: 23.96636414 | AB105: 24.98733474 | AC105: 26.05179883 | AD105: 27.16160925
A106: Other | B106: Wandsworth | C106: SWL | D106: 274139.4078 | E106: 284554.6096 | F106: 1.007485562 | G106: 45.62741714 | H106: 2 | I106: 0.1896551724 | J106: 0.1 | K106: 0.02 | L106: 17 | M106: 10 | N106: 45 | O106: 210 | P106: 8 | Q106: 4 | R106: 0.01718771928 | S106: 45.62741714 | T106: =S106+'Input Sheet'!$A$25+H106-(S106*I106*'Input Sheet'!$A$20)-(S106*'Input Sheet'!$A$21) -> 44.76390338 | U106: =T106+'Input Sheet'!$A$25+H106-(T106*I106*'Input Sheet'!$A$20)-(T106*'Input Sheet'!$A$21) -> 43.95458255 | V106: =U106+'Input Sheet'!$A$25+H106-(U106*I106*'Input Sheet'!$A$20)-(U106*'Input Sheet'!$A$21) -> 43.19605357 | W106: =V106+'Input Sheet'!$A$25+H106-(V106*I106*'Input Sheet'!$A$20)-(V106*'Input Sheet'!$A$21) -> 42.48512883 | X106: =W106+'Input Sheet'!$A$25+H106-(W106*I106*'Input Sheet'!$A$20)-(W106*'Input Sheet'!$A$21) -> 41.81882075 | Y106: =(Q106*D106*'Input Sheet'!$A$28*'Input Sheet'!$A$32)/(O106*P106*60*(1-'Input Sheet'!$A$29)) -> 20.29579838 | Z106: 20.79656231 | AA106: 21.30968174 | AB106: 21.83546151 | AC106: 22.37421398 | AD106: 22.92625925
A107: Other | B107: West London (K&C & QPP) | C107: NWL | D107: 318253.4708 | E107: 331558.5638 | F107: 1.008224903 | G107: 34.57677039 | H107: 2 | I107: 0.2058823529 | J107: 0.1 | K107: 0.02 | L107: 17 | M107: 10 | N107: 45 | O107: 210 | P107: 8 | Q107: 4 | R107: 0.01718771928 | S107: 34.57677039 | T107: =S107+'Input Sheet'!$A$25+H107-(S107*I107*'Input Sheet'!$A$20)-(S107*'Input Sheet'!$A$21) -> 34.33944995 | U107: =T107+'Input Sheet'!$A$25+H107-(T107*I107*'Input Sheet'!$A$20)-(T107*'Input Sheet'!$A$21) -> 34.11748555 | V107: =U107+'Input Sheet'!$A$25+H107-(U107*I107*'Input Sheet'!$A$20)-(U107*'Input Sheet'!$A$21) -> 33.90988354 | W107: =V107+'Input Sheet'!$A$25+H107-(V107*I107*'Input Sheet'!$A$20)-(V107*'Input Sheet'!$A$21) -> 33.7157146 | X107: =W107+'Input Sheet'!$A$25+H107-(W107*I107*'Input Sheet'!$A$20)-(W107*'Input Sheet'!$A$21) -> 33.53410954 | Y107: =(Q107*D107*'Input Sheet'!$A$28*'Input Sheet'!$A$32)/(O107*P107*60*(1-'Input Sheet'!$A$29)) -> 23.5617649 | Z107: 24.16053113 | AA107: 24.77451358 | AB107: 25.40409893 | AC107: 26.0496837 | AD107: 26.71167447
A108: Other | B108: Central London (Westminster) | C108: NWL | D108: 239861.5274 | E108: 250416.2946 | F108: 1.00864978 | G108: 21.55267465 | H108: 2 | I108: 0.24 | J108: 0.1 | K108: 0.02 | L108: 17 | M108: 10 | N108: 45 | O108: 210 | P108: 8 | Q108: 4 | R108: 0.01718771928 | S108: 21.55267465 | T108: =S108+'Input Sheet'!$A$25+H108-(S108*I108*'Input Sheet'!$A$20)-(S108*'Input Sheet'!$A$21) -> 22.06985063 | U108: =T108+'Input Sheet'!$A$25+H108-(T108*I108*'Input Sheet'!$A$20)-(T108*'Input Sheet'!$A$21) -> 22.55144491 | V108: =U108+'Input Sheet'!$A$25+H108-(U108*I108*'Input Sheet'!$A$20)-(U108*'Input Sheet'!$A$21) -> 22.9999055 | W108: =V108+'Input Sheet'!$A$25+H108-(V108*I108*'Input Sheet'!$A$20)-(V108*'Input Sheet'!$A$21) -> 23.417512 | X108: =W108+'Input Sheet'!$A$25+H108-(W108*I108*'Input Sheet'!$A$20)-(W108*'Input Sheet'!$A$21) -> 23.80638718 | Y108: =(Q108*D108*'Input Sheet'!$A$28*'Input Sheet'!$A$32)/(O108*P108*60*(1-'Input Sheet'!$A$29)) -> 17.75804959 | Z108: 18.21687318 | AA108: 18.68755162 | AB108: 19.17039122 | AC108: 19.66570618 | AD108: 20.17381885
S109: =SUM(S77:S108) -> 891.2097499 | X109: =SUM(X77:X108) -> 916.3884211 | Y109: =SUM(Y77:Y108) -> 647.8583836 | AD109: =SUM(AD77:AD108) -> 740.1269479
X110: =(X109-S109)/S109 -> 0.02825223939 | AD110: =(AD109-Y109)/Y109 -> 0.1424208849
A111: DPC | B111: Practice Line | D111: ='Introduction and Summary Sheet'!I18 -> 11437 | F111: =1+'Introduction and Summary Sheet'!K20 -> 1.06 | G111: ='Introduction and Summary Sheet'!M26 -> 1.600000024 | O111: 210 | P111: ='DPC Input Sheet'!$I$8 -> 7 | Q111: ='Introduction and Summary Sheet'!K32 -> 5 | R111: ='Introduction and Summary Sheet'!K20/5 -> 0.012 | S111: =G111 -> 1.600000024 | T111: =S111 -> 1.600000024 | U111: =T111 -> 1.600000024 | V111: 1.600000024 | W111: 1.600000024 | X111: 1.600000024 | Y111: =(Q111*D111*'DPC Input Sheet'!K6*'Introduction and Summary Sheet'!$H$27)/(O111*P111*60*(1-'DPC Input Sheet'!$M$17)) -> 1.485324675 | Z111: =Y111*(1+$R$111) -> 1.503148571 | AA111: =Z111*(1+$R$111) -> 1.521186354 | AB111: 1.539440591 | AC111: 1.557913878 | AD111: 1.576608844

Sheet Input Sheet (hidden)
A1: GP Implications Input
E4: Practice Growth | H4: GP Activity Split | J4: Nurse Activity Split | L4: DPC Activity Split | N4: Total Consultations
E5: 0.01 | H5: 0 | J5: 0 | L5: 0 | N5: 3 | Q5: Average minutes per consultation | T5: Average hours worked
E6: =E5+0.01 -> 0.02 | H6: 0.05 | J6: 0.05 | L6: 0.05 | N6: =N5+0.5 -> 3.5 | Q6: 5 | T6: 0
E7: =E6+0.01 -> 0.03 | H7: =H6+5% -> 0.1 | J7: =J6+5% -> 0.1 | L7: =L6+5% -> 0.1 | N7: =N6+0.5 -> 4 | Q7: =Q6+1 -> 6 | T7: 0.5
E8: 0.04 | H8: =H7+5% -> 0.15 | J8: 0.15 | L8: 0.15 | N8: 4.5 | Q8: =Q7+1 -> 7 | T8: =T7+0.5 -> 1
E9: 0.05 | H9: 0.2 | J9: 0.2 | L9: 0.2 | N9: 5 | Q9: 8 | T9: =T8+0.5 -> 1.5
E10: 0.06 | H10: 0.25 | J10: 0.25 | L10: 0.25 | N10: 5.5 | Q10: 9 | T10: 2
E11: 0.07 | H11: 0.3 | J11: 0.3 | L11: 0.3 | N11: 6 | Q11: 10 | T11: 2.5
E12: 0.08 | H12: 0.35 | J12: 0.35 | L12: 0.35 | N12: 6.5 | Q12: 11 | T12: 3
E13: 0.09 | H13: 0.4 | J13: 0.4 | L13: 0.4 | N13: 7 | Q13: 12 | T13: 3.5
E14: 0.1 | H14: 0.45 | J14: 0.45 | L14: 0.45 | N14: 7.5 | Q14: 13 | T14: 4
H15: 0.5 | J15: 0.5 | L15: 0.5 | Q15: 14 | T15: 4.5
H16: 0.55 | Q16: 15 | T16: 5
H17: 0.6 | T17: 5.5
H18: 0.65 | T18: 6
H19: 0.7 | T19: 6.5
A20: 0.12 | B20: retirement factor | D20: Supply factors | H20: 0.75 | T20: 7
A21: 0.04 | B21: leaver factor | H21: 0.8 | T21: 7.5
H22: 0.85 | T22: 8
A23: 5 | B23: GPnon NQ joiners | H23: 0.9 | T23: 8.5 | U23: Appintment split | V23: Appoint type split | X23: Ave time | Z23: Days worked | AB23: Admin time | AD23: Hours in day | AF23: Ave n appts
A24: 0 | B24: Nurse additional joiners | H24: 0.95 | T24: 9 | U24: 70 | V24: HV | X24: 45
A25: 0 | B25: DPC additional joiners | H25: 1 | T25: 9.5 | U25: 20 | V25: F2f | X25: 15
T26: 10
T27: 10.5
A28: 12.5 | B28: Ave appt time | T28: 11 | U28: 10 | V28: telephone | X28: 10
A29: 0.33 | B29: Admin time % | D29: Demand factors | T29: 11.5
A30: 0.7 | B30: GP % Appts | T30: 12 | W30: Supply | Y30: FTE | AA30: Retirement | AC30: Turnover | AE30: Recruitment training | AH30: Recruitment non-training
A31: 0.2 | B31: Nurse % Appts | T31: 12.5
A32: 0.1 | B32: DPC % Appts | T32: 13
V35: Appt type | Y35: Appt time
T36: Staff Type | U36: Appintment split | V36: HV | W36: F2f | X36: telephone | Y36: HV | Z36: F2f | AA36: telephone
T37: GP | U37: 70 | V37: 30 | W37: 50 | X37: 20
T38: Nurses | U38: 20
T39: Other | U39: 10

Sheet Introduction to the Tool
A2: HLP Primary Care Workforce Calculator (Practice Level)
A3: This 'quick start' workbook was created in December 2016 to support London practices to better understand their workforce and to carry out capacity
A4: modelling where it is not practical to adapt and run the system dynamics model.
A6: This tool is designed to support General Practice activity. The key to understanding the impacts
A7: of new role development is being able to track the benefits. This tool is therefore designed
A8: to support GP Practices looking at interventions and new ways of working. It is intended to help them and their sponsors to quantify and articulate
A9: the wider workforce benefits of these new roles and ways of working.
A11: The tool is designed to work alongside the outcome measures for the Care Navigator career pathway development
A12: to provide a quantitative view of the benefits alongside the qualitative evaluation.
A14: We have created a number of simple, easy to use tabs within this worksheet for users in GP sites to complete.
A15: Please complete all tabs where possible and consult the comments and user guidance where appropriate.
A16: Where possible we have included drop down menus to help provide numbers and to auto-populate with data.
A18: The tool has been designed in conjunction with a number of HEE and GP stakeholders themselves to strengthen how
A19: workload and capacity questions are factored in accurately.
A21: Data within the tool is taken from the HSCIC Workforce numbers (26th September 2016)
A23: For further information please contact us using the contact form at https://www.healthylondon.org/

Sheet Introduction and Summary Sheet
U4: 0.01
A8: This sheet is the basis for the model behind the workforce calculator tool.
A10: This sheet seeks information about your practice and your current ways of working to help us understand the time
A11: allocations at your specific practice. Once you have completed the entire workbook this sheet will illustrate a practice level workforce capacity view
A14: Workforce information
L15: If you do not know your practice code
A16: Please identify your practice | E16: E84069 | F16: (select practice code from the drop down list) | K16: =VLOOKUP(L16,'Practice Level Data'!B1:AH7614,2,FALSE) -> 
L17: (select practice name from the drop down list)
A18: Please tell us here how many patients are currently registered in your practice? | I18: =VLOOKUP(E16,'Practice Level Data'!A1:AH7614,13,FALSE) -> 11437
A20: Do you intend for the practice to grow its list in the coming 5 year period? If so, by how much? | K20: 0.06 | L20: (% growth over 5 years)
A23: Please help us understand how activity is split between GPs and other roles in your practice | L23: Practice workforce | M23: (FTE)
L24: GPs | M24: =VLOOKUP(E16,'Practice Level Data'!A1:AH7614,17,FALSE) -> 8.340000153
A25: What % of appointments would the GP typically see? | G25: GP | H25: 0.65 | I25: % | L25: Nurse | M25: =VLOOKUP(E16,'Practice Level Data'!A1:AH7614,30,FALSE) -> 1.25999999
A26: What % of appointments would the Nurse typically see? | G26: Nurse | H26: 0.2 | L26: DPC | M26: =VLOOKUP(E16,'Practice Level Data'!A1:AH7614,32,FALSE) -> 1.600000024
A27: What % of appointments would Other DPC roles typically see? | G27: DPC | H27: 0.15 | I27: % | L27: Admin | M27: =VLOOKUP(E16,'Practice Level Data'!A1:AH7614,34,FALSE) -> 5.910000205
I29: %
A32: On average, how many appointments per patient per year does your practice fulfill? | K32: 5 | L32: (number to nearest 0.5)
A43: Practice Benchmarking
A60: GP information
B65: Relevant KPIs | D65: Time
B66: Non patient facing admin time | D66: ='GP Input Sheet'!D26 -> 0.2971014493
B67: Average consultations per day | D67: ='GP Input Sheet'!D27 -> 44.09090909
B68: GP FTE: Patient ratio | D68: ='GP Input Sheet'!D28 -> 1371.342901
A77: Nurse information
B82: Relevant KPIs | D82: Time
B83: Non patient facing admin time | D83: ='Nurse Input Sheet'!D26 -> 0.21875
B84: Average consultations per day | D84: ='Nurse Input Sheet'!D27 -> 25
B85: Nurse FTE: Patient ratio | D85: ='Nurse Input Sheet'!D28 -> 9076.984199
A94: Other information
B99: Relevant KPIs | D99: Time
B100: Non patient facing admin time | D100: ='DPC Input Sheet'!D26 -> 0.3452380952
B101: Average consultations per day | D101: ='DPC Input Sheet'!D27 -> 27.5
B102: DPC FTE: Patient ratio | D102: ='DPC Input Sheet'!D28 -> 7148.124893
A111: Admin information
B116: Relevant KPIs | D116: Time
B117: Non patient facing admin time | D117: ='Admin Input Sheet'!D28 -> -
B118: Average consultations per day | D118: ='Admin Input Sheet'!D29 -> -
B119: DPC FTE: Patient ratio | D119: ='Admin Input Sheet'!D30 -> 1935.194518
A150: Registered Patients | F150: GP Patient Ratio | K150: Nurse Patient Ratio | P150: DPC Patient Ratio
A151: Your practice | B151: =I18 -> 11437 | F151: Your practice | G151: =D68 -> 1371.342901 | K151: Your practice | L151: =D85 -> 9076.984199 | P151: Your practice | Q151: =D102 -> 7148.124893
A152: London average | B152: 6787 | F152: London average | G152: =$H$155/4561 -> 2053.459548 | K152: London average | L152: =$H$155/1916 -> 4888.219729 | P152: London average | Q152: =$H$155/891 -> 10511.59259
A153: England average | B153: 7450 | F153: England average | G153: =$H$156/29271 -> 1953.138977 | K153: England average | L153: =$H$156/15398 -> 3712.841343 | P153: England average | Q153: =$H$156/9149 -> 6248.806536
F155: Registered Patients London | H155: 9365829
F156: Registered Patients England | H156: 57170331

Sheet Practice Level Data (hidden)
A1: PRAC_CODE | B1: PRAC_NAME | C1: PRAC_CODE | D1: CCG_CODE | E1: CCG_NAME | F1: REGION_GEOG_CODE | G1: REGION_GEOG_NAME | H1: REGION_CODE | I1: REGION_NAME | J1: HEE_REGION_CODE | K1: HEE_REGION_NAME | L1: CONTRACT | M1: TOTAL_PATIENTS | N1: TOTAL_MALE | O1: TOTAL_FEMALE | P1: TOTAL_GP_HC | Q1: TOTAL_GP_FTE | R1: TOTAL_GP_HC_UNDER30 | S1: TOTAL_GP_HC_30TO34 | T1: TOTAL_GP_HC_35TO39 | U1: TOTAL_GP_HC_40TO44 | V1: TOTAL_GP_HC_45TO49 | W1: TOTAL_GP_HC_50TO54 | X1: TOTAL_GP_HC_55TO59 | Y1: TOTAL_GP_HC_60TO64 | Z1: TOTAL_GP_HC_65TO69 | AA1: TOTAL_GP_HC_70PLUS | AB1: TOTAL_GP_HC_UNKNOWN_AGE | AC1: TOTAL_N_PRAC_NURSE_HC | AD1: TOTAL_NURSES_FTE | AE1: TOTAL_DPC_HC | AF1: TOTAL_DPC_FTE | AG1: TOTAL_ADMIN_HC | AH1: TOTAL_ADMIN_FTE
A2: A81002 | B2: QUEENS PARK MEDICAL CENTRE | C2: A81002 | D2: 00K | E2: NHS HARTLEPOOL AND STOCKTON-ON-TEES CCG | F2: Q74 | G2: NHS ENGLAND NORTH (CUMBRIA AND NORTH EAST) | H2: Y54 | I2: North of England | J2: YDF30 | K2: HEALTH EDUCATION NORTH EAST | L2: GMS | M2: 19698 | N2: 9715 | O2: 9983 | P2: 12 | Q2: 11.20000005 | R2: 0 | S2: 1 | T2: 3 | U2: 5 | V2: 1 | W2: 0 | X2: 2 | Y2: 0 | Z2: 0 | AA2: 0 | AB2: 0 | AC2: 6 | AD2: 5.25999999 | AE2: 6 | AF2: 4.340000033 | AG2: 40 | AH2: 28.98000008
A3: A81007 | B3: BANKHOUSE SURGERY | C3: A81007 | D3: 00K | E3: NHS HARTLEPOOL AND STOCKTON-ON-TEES CCG | F3: Q74 | G3: NHS ENGLAND NORTH (CUMBRIA AND NORTH EAST) | H3: Y54 | I3: North of England | J3: YDF30 | K3: HEALTH EDUCATION NORTH EAST | L3: GMS | M3: 9746 | N3: 4757 | O3: 4989 | P3: 9 | Q3: 7.229999959 | R3: 0 | S3: 2 | T3: 3 | U3: 1 | V3: 1 | W3: 0 | X3: 2 | Y3: 0 | Z3: 0 | AA3: 0 | AB3: 0 | AC3: 0 | AD3: 2.170000017 | AE3: 1 | AF3: 1 | AG3: 15 | AH3: 12.68000004
A4: A81009 | B4: VILLAGE MEDICAL CENTRE | C4: A81009 | D4: 00M | E4: NHS SOUTH TEES CCG | F4: Q74 | G4: NHS ENGLAND NORTH (CUMBRIA AND NORTH EAST) | H4: Y54 | I4: North of England | J4: YDF30 | K4: HEALTH EDUCATION NORTH EAST | L4: GMS | M4: 9173 | N4: 4528 | O4: 4645 | P4: 6 | Q4: 3.320000038 | R4: 0 | S4: 0 | T4: 1 | U4: 1 | V4: 2 | W4: 1 | X4: 0 | Y4: 1 | Z4: 0 | AA4: 0 | AB4: 0 | AC4: 4 | AD4: 4.349999964 | AE4: 2 | AF4: 1.430000007 | AG4: 16 | AH4: 13.23000003
A5: A81011 | B5: CHADWICK PRACTICE | C5: A81011 | D5: 00K | E5: NHS HARTLEPOOL AND STOCKTON-ON-TEES CCG | F5: Q74 | G5: NHS ENGLAND NORTH (CUMBRIA AND NORTH EAST) | H5: Y54 | I5: North of England | J5: YDF30 | K5: HEALTH EDUCATION NORTH EAST | L5: GMS | M5: 11433 | N5: 5575 | O5: 5858 | P5: 6 | Q5: 5.330000013 | R5: 0 | S5: 0 | T5: 1 | U5: 2 | V5: 2 | W5: 0 | X5: 0 | Y5: 1 | Z5: 0 | AA5: 0 | AB5: 0 | AC5: 0 | AD5: 1.629999995 | AE5: 0 | AF5: 0 | AG5: 1 | AH5: 0.850000024
A6: A81013 | B6: BROTTON SURGERY | C6: A81013 | D6: 00M | E6: NHS SOUTH TEES CCG | F6: Q74 | G6: NHS ENGLAND NORTH (CUMBRIA AND NORTH EAST) | H6: Y54 | I6: North of England | J6: YDF30 | K6: HEALTH EDUCATION NORTH EAST | L6: GMS | M6: 6184 | N6: 3082 | O6: 3102 | P6: 4 | Q6: 3.200000048 | R6: 0 | S6: 1 | T6: 0 | U6: 1 | V6: 1 | W6: 1 | X6: 0 | Y6: 0 | Z6: 0 | AA6: 0 | AB6: 0 | AC6: 2 | AD6: 1.649999976 | AE6: 0 | AF6: 0 | AG6: 11 | AH6: 7.999999911
A7: A81015 | B7: LAGAN SURGERY | C7: A81015 | D7: 00M | E7: NHS SOUTH TEES CCG | F7: Q74 | G7: NHS ENGLAND NORTH (CUMBRIA AND NORTH EAST) | H7: Y54 | I7: North of England | J7: YDF30 | K7: HEALTH EDUCATION NORTH EAST | L7: GMS | M7: 3060 | N7: 1500 | O7: 1560 | P7: 2 | Q7: 2.660000086 | R7: 0 | S7: 0 | T7: 0 | U7: 0 | V7: 0 | W7: 2 | X7: 0 | Y7: 0 | Z7: 0 | AA7: 0 | AB7: 0 | AC7: 1 | AD7: 1.069999993 | AE7: 1 | AF7: 0.529999971 | AG7: 6 | AH7: 3.379999876
A8: A81016 | B8: PARK SURGERY | C8: A81016 | D8: 00M | E8: NHS SOUTH TEES CCG | F8: Q74 | G8: NHS ENGLAND NORTH (CUMBRIA AND NORTH EAST) | H8: Y54 | I8: North of England | J8: YDF30 | K8: HEALTH EDUCATION NORTH EAST | L8: GMS | M8: 9629 | N8: 5017 | O8: 4612 | P8: 6 | Q8: 5.060000062 | R8: 0 | S8: 0 | T8: 1 | U8: 2 | V8: 0 | W8: 2 | X8: 0 | Y8: 0 | Z8: 1 | AA8: 0 | AB8: 0 | AC8: 4 | AD8: 4.100000083 | AE8: 3 | AF8: 2.569999993 | AG8: 18 | AH8: 13.29000011
A9: A81018 | B9: BENTLEY MEDICAL PRACTICE | C9: A81018 | D9: 00M | E9: NHS SOUTH TEES CCG | F9: Q74 | G9: NHS ENGLAND NORTH (CUMBRIA AND NORTH EAST) | H9: Y54 | I9: North of England | J9: YDF30 | K9: HEALTH EDUCATION NORTH EAST | L9: GMS | M9: 5477 | N9: 2846 | O9: 2631 | P9: 4 | Q9: 3.220000029 | R9: 0 | S9: 1 | T9: 0 | U9: 0 | V9: 2 | W9: 0 | X9: 0 | Y9: 0 | Z9: 0 | AA9: 1 | AB9: 0 | AC9: 4 | AD9: 4.499999985 | AE9: 3 | AF9: 3 | AG9: 16 | AH9: 12.51000008
A10: A81022 | B10: HILLSIDE PRACTICE | C10: A81022 | D10: 00M | E10: NHS SOUTH TEES CCG | F10: Q74 | G10: NHS ENGLAND NORTH (CUMBRIA AND NORTH EAST) | H10: Y54 | I10: North of England | J10: YDF30 | K10: HEALTH EDUCATION NORTH EAST | L10: GMS | M10: 10743 | N10: 5352 | O10: 5391 | P10: 5 | Q10: 5.190000176 | R10: 0 | S10: 0 | T10: 1 | U10: 1 | V10: 1 | W10: 2 | X10: 0 | Y10: 0 | Z10: 0 | AA10: 0 | AB10: 0 | AC10: 4 | AD10: 3.770000026 | AE10: 4 | AF10: 2.109999999 | AG10: 20 | AH10: 15.09000018
A11: A81027 | B11: YARM MEDICAL PRACTICE | C11: A81027 | D11: 00K | E11: NHS HARTLEPOOL AND STOCKTON-ON-TEES CCG | F11: Q74 | G11: NHS ENGLAND NORTH (CUMBRIA AND NORTH EAST) | H11: Y54 | I11: North of England | J11: YDF30 | K11: HEALTH EDUCATION NORTH EAST | L11: GMS | M11: 13250 | N11: 6507 | O11: 6743 | P11: 6 | Q11: 5.80000025 | R11: 0 | S11: 0 | T11: 2 | U11: 2 | V11: 0 | W11: 2 | X11: 0 | Y11: 0 | Z11: 0 | AA11: 0 | AB11: 0 | AC11: 4 | AD11: 3.149999946 | AE11: 2 | AF11: 1.599999964 | AG11: 7 | AH11: 5.99000001
A12: A81029 | B12: PROSPECT SURGERY | C12: A81029 | D12: 00M | E12: NHS SOUTH TEES CCG | F12: Q74 | G12: NHS ENGLAND NORTH (CUMBRIA AND NORTH EAST) | H12: Y54 | I12: North of England | J12: YDF30 | K12: HEALTH EDUCATION NORTH EAST | L12: GMS | M12: 5808 | N12: 3209 | O12: 2599 | P12: 4 | Q12: 3.430000007 | R12: 0 | S12: 0 | T12: 0 | U12: 1 | V12: 1 | W12: 2 | X12: 0 | Y12: 0 | Z12: 0 | AA12: 0 | AB12: 0 | AC12: 2 | AD12: 1.339999974 | AE12: 1 | AF12: 0.610000014 | AG12: 10 | AH12: 6.580000013
A13: A81030 | B13: BOROUGH ROAD & NUNTHORPE MEDICAL GROUP | C13: A81030 | D13: 00M | E13: NHS SOUTH TEES CCG | F13: Q74 | G13: NHS ENGLAND NORTH (CUMBRIA AND NORTH EAST) | H13: Y54 | I13: North of England | J13: YDF30 | K13: HEALTH EDUCATION NORTH EAST | L13: GMS | M13: 12126 | N13: 6028 | O13: 6098 | P13: 7 | Q13: 6.130000055 | R13: 0 | S13: 0 | T13: 1 | U13: 0 | V13: 0 | W13: 1 | X13: 1 | Y13: 3 | Z13: 1 | AA13: 0 | AB13: 0 | AC13: 4 | AD13: 3.199999958 | AE13: 3 | AF13: 1.890000045 | AG13: 19 | AH13: 18.42000069
A14: A81031 | B14: HAVELOCK GRANGE PRACTICE | C14: A81031 | D14: 00K | E14: NHS HARTLEPOOL AND STOCKTON-ON-TEES CCG | F14: Q74 | G14: NHS ENGLAND NORTH (CUMBRIA AND NORTH EAST) | H14: Y54 | I14: North of England | J14: YDF30 | K14: HEALTH EDUCATION NORTH EAST | L14: GMS | M14: 12746 | N14: 6203 | O14: 6543 | P14: 12 | Q14: 9.750000119 | R14: 0 | S14: 2 | T14: 2 | U14: 3 | V14: 0 | W14: 4 | X14: 1 | Y14: 0 | Z14: 0 | AA14: 0 | AB14: 0 | AC14: 5 | AD14: 3.38000001 | AE14: 3 | AF14: 1.799999982 | AG14: 20 | AH14: 15.51999995
A15: A81033 | B15: OAKFIELD MEDICAL PRACTICE | C15: A81033 | D15: 00M | E15: NHS SOUTH TEES CCG | F15: Q74 | G15: NHS ENGLAND NORTH (CUMBRIA AND NORTH EAST) | H15: Y54 | I15: North of England | J15: YDF30 | K15: HEALTH EDUCATION NORTH EAST | L15: GMS | M15: 3384 | N15: 1886 | O15: 1498 | P15: 1 | Q15: 1.210000038 | R15: 0 | S15: 0 | T15: 0 | U15: 0 | V15: 1 | W15: 0 | X15: 0 | Y15: 0 | Z15: 0 | AA15: 0 | AB15: 0 | AC15: 3 | AD15: 1.780000001 | AE15: 1 | AF15: 0.529999971 | AG15: 8 | AH15: 6.209999979
A16: A81035 | B16: NEWLANDS MEDICAL CENTRE | C16: A81035 | D16: 00M | E16: NHS SOUTH TEES CCG | F16: Q74 | G16: NHS ENGLAND NORTH (CUMBRIA AND NORTH EAST) | H16: Y54 | I16: North of England | J16: YDF30 | K16: HEALTH EDUCATION NORTH EAST | L16: GMS | M16: 10753 | N16: 5493 | O16: 5260 | P16: NS | Q16: NS | R16: NS | S16: NS | T16: NS | U16: NS | V16: NS | W16: NS | X16: NS | Y16: NS | Z16: NS | AA16: NS | AB16: NS | AC16: NS | AD16: NS | AE16: NS | AF16: NS | AG16: NS | AH16: NS
A17: A81036 | B17: NORTON MEDICAL CENTRE | C17: A81036 | D17: 00K | E17: NHS HARTLEPOOL AND STOCKTON-ON-TEES CCG | F17: Q74 | G17: NHS ENGLAND NORTH (CUMBRIA AND NORTH EAST) | H17: Y54 | I17: North of England | J17: YDF30 | K17: HEALTH EDUCATION NORTH EAST | L17: GMS | M17: 17362 | N17: 8445 | O17: 8917 | P17: 11 | Q17: 9.71999985 | R17: 0 | S17: 0 | T17: 2 | U17: 2 | V17: 2 | W17: 1 | X17: 4 | Y17: 0 | Z17: 0 | AA17: 0 | AB17: 0 | AC17: 4 | AD17: 4.059999961 | AE17: 3 | AF17: 2.189999998 | AG17: 36 | AH17: 25.81000023
A18: A81038 | B18: HIRSEL MEDICAL CENTRE | C18: A81038 | D18: 00M | E18: NHS SOUTH TEES CCG | F18: Q74 | G18: NHS ENGLAND NORTH (CUMBRIA AND NORTH EAST) | H18: Y54 | I18: North of England | J18: YDF30 | K18: HEALTH EDUCATION NORTH EAST | L18: GMS | M18: 3313 | N18: 1702 | O18: 1611 | P18: 2 | Q18: 1.980000019 | R18: 0 | S18: 0 | T18: 2 | U18: 0 | V18: 0 | W18: 0 | X18: 0 | Y18: 0 | Z18: 0 | AA18: 0 | AB18: 0 | AC18: 2 | AD18: 1.039999962 | AE18: 0 | AF18: 0 | AG18: 8 | AH18: 5.389999956
A19: A81040 | B19: MARSH HOUSE MEDICAL PRACTICE | C19: A81040 | D19: 00K | E19: NHS HARTLEPOOL AND STOCKTON-ON-TEES CCG | F19: Q74 | G19: NHS ENGLAND NORTH (CUMBRIA AND NORTH EAST) | H19: Y54 | I19: North of England | J19: YDF30 | K19: HEALTH EDUCATION NORTH EAST | L19: GMS | M19: 8560 | N19: 4284 | O19: 4276 | P19: 7 | Q19: 6.410000205 | R19: 0 | S19: 2 | T19: 0 | U19: 2 | V19: 2 | W19: 1 | X19: 0 | Y19: 0 | Z19: 0 | AA19: 0 | AB19: 0 | AC19: 3 | AD19: 1.519999981 | AE19: 1 | AF19: 0.800000012 | AG19: 18 | AH19: 12.3300001
A20: A81042 | B20: SOUTH GRANGE MEDICAL CENTRE | C20: A81042 | D20: 00M | E20: NHS SOUTH TEES CCG | F20: Q74 | G20: NHS ENGLAND NORTH (CUMBRIA AND NORTH EAST) | H20: Y54 | I20: North of England | J20: YDF30 | K20: HEALTH EDUCATION NORTH EAST | L20: GMS | M20: 6378 | N20: 3131 | O20: 3247 | P20: NS | Q20: NS | R20: NS | S20: NS | T20: NS | U20: NS | V20: NS | W20: NS | X20: NS | Y20: NS | Z20: NS | AA20: NS | AB20: NS | AC20: NS | AD20: NS | AE20: NS | AF20: NS | AG20: NS | AH20: NS
A21: A81047 | B21: MARSKE MEDICAL CENTRE | C21: A81047 | D21: 00M | E21: NHS SOUTH TEES CCG | F21: Q74 | G21: NHS ENGLAND NORTH (CUMBRIA AND NORTH EAST) | H21: Y54 | I21: North of England | J21: YDF30 | K21: HEALTH EDUCATION NORTH EAST | L21: APMS | M21: 5562 | N21: 2689 | O21: 2873 | P21: 3 | Q21: 1.789999992 | R21: 0 | S21: 0 | T21: 0 | U21: 2 | V21: 1 | W21: 0 | X21: 0 | Y21: 0 | Z21: 0 | AA21: 0 | AB21: 0 | AC21: 5 | AD21: 3.710000008 | AE21: 2 | AF21: 1.020000011 | AG21: 10 | AH21: 7.820000052
A22: A81049 | B22: KINGS MEDICAL CENTRE | C22: A81049 | D22: 00M | E22: NHS SOUTH TEES CCG | F22: Q74 | G22: NHS ENGLAND NORTH (CUMBRIA AND NORTH EAST) | H22: Y54 | I22: North of England | J22: YDF30 | K22: HEALTH EDUCATION NORTH EAST | L22: GMS | M22: 5475 | N22: 2717 | O22: 2758 | P22: 3 | Q22: 2.380000025 | R22: 0 | S22: 0 | T22: 1 | U22: 1 | V22: 0 | W22: 0 | X22: 0 | Y22: 0 | Z22: 1 | AA22: 0 | AB22: 0 | AC22: 1 | AD22: 0.930000007 | AE22: 0 | AF22: 0 | AG22: 0 | AH22: 0
A23: A81051 | B23: CAMBRIDGE MEDICAL GROUP | C23: A81051 | D23: 00M | E23: NHS SOUTH TEES CCG | F23: Q74 | G23: NHS ENGLAND NORTH (CUMBRIA AND NORTH EAST) | H23: Y54 | I23: North of England | J23: YDF30 | K23: HEALTH EDUCATION NORTH EAST | L23: GMS | M23: 7561 | N23: 3674 | O23: 3887 | P23: 7 | Q23: 5.430000007 | R23: 0 | S23: 2 | T23: 3 | U23: 0 | V23: 0 | W23: 0 | X23: 2 | Y23: 0 | Z23: 0 | AA23: 0 | AB23: 0 | AC23: 3 | AD23: 2.959999979 | AE23: 2 | AF23: 0.889999986 | AG23: 15 | AH23: 11.54000005
A24: A81053 | B24: WOODSIDE SURGERY | C24: A81053 | D24: 00M | E24: NHS SOUTH TEES CCG | F24: Q74 | G24: NHS ENGLAND NORTH (CUMBRIA AND NORTH EAST) | H24: Y54 | I24: North of England | J24: YDF30 | K24: HEALTH EDUCATION NORTH EAST | L24: GMS | M24: 6517 | N24: 3327 | O24: 3190 | P24: 3 | Q24: 3.150000036 | R24: 0 | S24: 0 | T24: 0 | U24: 0 | V24: 0 | W24: 1 | X24: 2 | Y24: 0 | Z24: 0 | AA24: 0 | AB24: 0 | AC24: 3 | AD24: 2.719999969 | AE24: 1 | AF24: 0.790000021 | AG24: 15 | AH24: 9.470000058
A25: A81056 | B25: MELROSE SURGERY | C25: A81056 | D25: 00K | E25: NHS HARTLEPOOL AND STOCKTON-ON-TEES CCG | F25: Q74 | G25: NHS ENGLAND NORTH (CUMBRIA AND NORTH EAST) | H25: Y54 | I25: North of England | J25: YDF30 | K25: HEALTH EDUCATION NORTH EAST | L25: GMS | M25: 2566 | N25: 1304 | O25: 1262 | P25: 2 | Q25: 1.069999993 | R25: 0 | S25: 0 | T25: 1 | U25: 0 | V25: 0 | W25: 0 | X25: 0 | Y25: 1 | Z25: 0 | AA25: 0 | AB25: 0 | AC25: 1 | AD25: 0.370000005 | AE25: 1 | AF25: 0.589999974 | AG25: 4 | AH25: 2.799999952
A26: A81058 | B26: COULBY MEDICAL PRACTICE | C26: A81058 | D26: 00M | E26: NHS SOUTH TEES CCG | F26: Q74 | G26: NHS ENGLAND NORTH (CUMBRIA AND NORTH EAST) | H26: Y54 | I26: North of England | J26: YDF30 | K26: HEALTH EDUCATION NORTH EAST | L26: GMS | M26: 7506 | N26: 3498 | O26: 4008 | P26: 4 | Q26: 3.080000132 | R26: 0 | S26: 1 | T26: 1 | U26: 0 | V26: 0 | W26: 2 | X26: 0 | Y26: 0 | Z26: 0 | AA26: 0 | AB26: 0 | AC26: 2 | AD26: 2.719999939 | AE26: 2 | AF26: 1.069999993 | AG26: 18 | AH26: 12.36999989
A27: A81064 | B27: THE DISCOVERY PRACTICE | C27: A81064 | D27: 00M | E27: NHS SOUTH TEES CCG | F27: Q74 | G27: NHS ENGLAND NORTH (CUMBRIA AND NORTH EAST) | H27: Y54 | I27: North of England | J27: YDF30 | K27: HEALTH EDUCATION NORTH EAST | L27: GMS | M27: 6355 | N27: 3315 | O27: 3040 | P27: 3 | Q27: 3 | R27: 0 | S27: 0 | T27: 1 | U27: 0 | V27: 2 | W27: 0 | X27: 0 | Y27: 0 | Z27: 0 | AA27: 0 | AB27: 0 | AC27: 3 | AD27: 1.449999988 | AE27: 1 | AF27: 0.50999999 | AG27: 8 | AH27: 6.800000012
A28: A81067 | B28: ALMA MEDICAL CENTRE | C28: A81067 | D28: 00K | E28: NHS HARTLEPOOL AND STOCKTON-ON-TEES CCG | F28: Q74 | G28: NHS ENGLAND NORTH (CUMBRIA AND NORTH EAST) | H28: Y54 | I28: North of England | J28: YDF30 | K28: HEALTH EDUCATION NORTH EAST | L28: GMS | M28: 10666 | N28: 5268 | O28: 5398 | P28: 7 | Q28: 5.090000033 | R28: 0 | S28: 3 | T28: 0 | U28: 0 | V28: 2 | W28: 0 | X28: 2 | Y28: 0 | Z28: 0 | AA28: 0 | AB28: 0 | AC28: 3 | AD28: 1.970000029 | AE28: 1 | AF28: 0.99000001 | AG28: 14 | AH28: 11.13
A29: A81070 | B29: WYNYARD ROAD PRIMARY CARE CENTRE | C29: A81070 | D29: 00K | E29: NHS HARTLEPOOL AND STOCKTON-ON-TEES CCG | F29: Q74 | G29: NHS ENGLAND NORTH (CUMBRIA AND NORTH EAST) | H29: Y54 | I29: North of England | J29: YDF30 | K29: HEALTH EDUCATION NORTH EAST | L29: APMS by Ltd Company | M29: 1996 | N29: 1048 | O29: 948 | P29: 1 | Q29: 0.670000017 | R29: 0 | S29: 0 | T29: 0 | U29: 1 | V29: 0 | W29: 0 | X29: 0 | Y29: 0 | Z29: 0 | AA29: 0 | AB29: 0 | AC29: 1 | AD29: 1.230000019 | AE29: 0 | AF29: 0 | AG29: 3 | AH29: 2.600000024
A30: A81602 | B30: DR RASOOL | C30: A81602 | D30: 00K | E30: NHS HARTLEPOOL AND STOCKTON-ON-TEES CCG | F30: Q74 | G30: NHS ENGLAND NORTH (CUMBRIA AND NORTH EAST) | H30: Y54 | I30: North of England | J30: YDF30 | K30: HEALTH EDUCATION NORTH EAST | L30: GMS | M30: 2518 | N30: 1281 | O30: 1237 | P30: 1 | Q30: 1 | R30: 0 | S30: 0 | T30: 0 | U30: 0 | V30: 0 | W30: 0 | X30: 0 | Y30: 1 | Z30: 0 | AA30: 0 | AB30: 0 | AC30: 2 | AD30: 0.810000002 | AE30: 0 | AF30: 0 | AG30: 7 | AH30: 3.919999957
A31: A81608 | B31: ELM TREE SURGERY | C31: A81608 | D31: 00K | E31: NHS HARTLEPOOL AND STOCKTON-ON-TEES CCG | F31: Q74 | G31: NHS ENGLAND NORTH (CUMBRIA AND NORTH EAST) | H31: Y54 | I31: North of England | J31: YDF30 | K31: HEALTH EDUCATION NORTH EAST | L31: GMS | M31: 2957 | N31: 1508 | O31: 1449 | P31: 2 | Q31: 2 | R31: 0 | S31: 0 | T31: 0 | U31: 0 | V31: 0 | W31: 1 | X31: 1 | Y31: 0 | Z31: 0 | AA31: 0 | AB31: 0 | AC31: 0 | AD31: 0.819999978 | AE31: 1 | AF31: 0.370000005 | AG31: 10 | AH31: 5.909999907
A32: A81610 | B32: THE ROSEBERRY PRACTICE | C32: A81610 | D32: 00K | E32: NHS HARTLEPOOL AND STOCKTON-ON-TEES CCG | F32: Q74 | G32: NHS ENGLAND NORTH (CUMBRIA AND NORTH EAST) | H32: Y54 | I32: North of England | J32: YDF30 | K32: HEALTH EDUCATION NORTH EAST | L32: GMS | M32: 8213 | N32: 3969 | O32: 4244 | P32: 4 | Q32: 3.070000112 | R32: 1 | S32: 0 | T32: 1 | U32: 1 | V32: 0 | W32: 1 | X32: 0 | Y32: 0 | Z32: 0 | AA32: 0 | AB32: 0 | AC32: 3 | AD32: 4.290000021 | AE32: 0 | AF32: 0 | AG32: 15 | AH32: 10.53999998
A33: A81613 | B33: JOURNEE MEDICAL PRACTICE | C33: A81613 | D33: 00K | E33: NHS HARTLEPOOL AND STOCKTON-ON-TEES CCG | F33: Q74 | G33: NHS ENGLAND NORTH (CUMBRIA AND NORTH EAST) | H33: Y54 | I33: North of England | J33: YDF30 | K33: HEALTH EDUCATION NORTH EAST | L33: GMS | M33: 3326 | N33: 1662 | O33: 1664 | P33: 1 | Q33: 1 | R33: 0 | S33: 0 | T33: 0 | U33: 0 | V33: 0 | W33: 1 | X33: 0 | Y33: 0 | Z33: 0 | AA33: 0 | AB33: 0 | AC33: 0 | AD33: 1.800000012 | AE33: 1 | AF33: 0.280000001 | AG33: 1 | AH33: 1
A34: A81618 | B34: HUNTCLIFF SURGERY | C34: A81618 | D34: 00M | E34: NHS SOUTH TEES CCG | F34: Q74 | G34: NHS ENGLAND NORTH (CUMBRIA AND NORTH EAST) | H34: Y54 | I34: North of England | J34: YDF30 | K34: HEALTH EDUCATION NORTH EAST | L34: GMS | M34: 7740 | N34: 3778 | O34: 3962 | P34: 6 | Q34: 5.740000129 | R34: 0 | S34: 1 | T34: 0 | U34: 1 | V34: 3 | W34: 0 | X34: 1 | Y34: 0 | Z34: 0 | AA34: 0 | AB34: 0 | AC34: 2 | AD34: 3.550000012 | AE34: 1 | AF34: 0.800000012 | AG34: 14 | AH34: 9.189999938
A35: A81621 | B35: THORNTREE SURGERY | C35: A81621 | D35: 00M | E35: NHS SOUTH TEES CCG | F35: Q74 | G35: NHS ENGLAND NORTH (CUMBRIA AND NORTH EAST) | H35: Y54 | I35: North of England | J35: YDF30 | K35: HEALTH EDUCATION NORTH EAST | L35: GMS | M35: 2245 | N35: 1129 | O35: 1116 | P35: 3 | Q35: 2.650000036 | R35: 0 | S35: 0 | T35: 0 | U35: 0 | V35: 0 | W35: 2 | X35: 0 | Y35: 0 | Z35: 1 | AA35: 0 | AB35: 0 | AC35: 1 | AD35: 1.710000038 | AE35: 1 | AF35: 0.159999996 | AG35: 5 | AH35: 3.590000033
A36: A81622 | B36: GLADSTONE HOUSE SURGERY | C36: A81622 | D36: 00K | E36: NHS HARTLEPOOL AND STOCKTON-ON-TEES CCG | F36: Q74 | G36: NHS ENGLAND NORTH (CUMBRIA AND NORTH EAST) | H36: Y54 | I36: North of England | J36: YDF30 | K36: HEALTH EDUCATION NORTH EAST | L36: GMS | M36: 5140 | N36: 2601 | O36: 2539 | P36: 3 | Q36: 2.570000052 | R36: 0 | S36: 0 | T36: 0 | U36: 1 | V36: 0 | W36: 0 | X36: 1 | Y36: 0 | Z36: 1 | AA36: 0 | AB36: 0 | AC36: 1 | AD36: 1.360000014 | AE36: 1 | AF36: 0.800000012 | AG36: 7 | AH36: 4.939999938
A37: A81632 | B37: LAWSON STREET PRACTICE | C37: A81632 | D37: 00K | E37: NHS HARTLEPOOL AND STOCKTON-ON-TEES CCG | F37: Q74 | G37: NHS ENGLAND NORTH (CUMBRIA AND NORTH EAST) | H37: Y54 | I37: North of England | J37: YDF30 | K37: HEALTH EDUCATION NORTH EAST | L37: APMS by Ltd Company | M37: 667 | N37: 518 | O37: 149 | P37: 4 | Q37: 0.720000029 | R37: 0 | S37: 0 | T37: 1 | U37: 0 | V37: 1 | W37: 1 | X37: 1 | Y37: 0 | Z37: 0 | AA37: 0 | AB37: 0 | AC37: 0 | AD37: 1.319999993 | AE37: 0 | AF37: 0 | AG37: 1 | AH37: 1
A38: A81633 | B38: HAVEN MEDICAL PRACTICE | C38: A81633 | D38: 00M | E38: NHS SOUTH TEES CCG | F38: Q74 | G38: NHS ENGLAND NORTH (CUMBRIA AND NORTH EAST) | H38: Y54 | I38: North of England | J38: YDF30 | K38: HEALTH EDUCATION NORTH EAST | L38: PMS | M38: 916 | N38: 658 | O38: 258 | P38: 1 | Q38: 1.330000043 | R38: 0 | S38: 0 | T38: 0 | U38: 0 | V38: 0 | W38: 0 | X38: 1 | Y38: 0 | Z38: 0 | AA38: 0 | AB38: 0 | AC38: 0 | AD38: 1.009999961 | AE38: 0 | AF38: 0 | AG38: 3 | AH38: 2.459999979
A39: A82004 | B39: ALSTON MEDICAL PRACTICE | C39: A82004 | D39: 01H | E39: NHS CUMBRIA CCG | F39: Q74 | G39: NHS ENGLAND NORTH (CUMBRIA AND NORTH EAST) | H39: Y54 | I39: North of England | J39: YDF31 | K39: HEALTH EDUCATION NORTH WEST | L39: GMS | M39: 2290 | N39: 1143 | O39: 1147 | P39: 4 | Q39: 2.919999957 | R39: 0 | S39: 0 | T39: 1 | U39: 0 | V39: 0 | W39: 1 | X39: 1 | Y39: 1 | Z39: 0 | AA39: 0 | AB39: 0 | AC39: 1 | AD39: 0.930000007 | AE39: 3 | AF39: 2.049999952 | AG39: 4 | AH39: 2.620000005
A40: A82007 | B40: DUKE STREET SURGERY | C40: A82007 | D40: 01H | E40: NHS CUMBRIA CCG | F40: Q74 | G40: NHS ENGLAND NORTH (CUMBRIA AND NORTH EAST) | H40: Y54 | I40: North of England | J40: YDF31 | K40: HEALTH EDUCATION NORTH WEST | L40: GMS | M40: 9514 | N40: 4773 | O40: 4741 | P40: 9 | Q40: 6.650000036 | R40: 0 | S40: 6 | T40: 0 | U40: 0 | V40: 1 | W40: 2 | X40: 0 | Y40: 0 | Z40: 0 | AA40: 0 | AB40: 0 | AC40: 5 | AD40: 3.929999977 | AE40: 3 | AF40: 2.480000019 | AG40: 23 | AH40: 15.64000015
A41: A82009 | B41: BRIDGEGATE MEDICAL CENTRE | C41: A82009 | D41: 01H | E41: NHS CUMBRIA CCG | F41: Q74 | G41: NHS ENGLAND NORTH (CUMBRIA AND NORTH EAST) | H41: Y54 | I41: North of England | J41: YDF31 | K41: HEALTH EDUCATION NORTH WEST | L41: GMS | M41: 8818 | N41: 4348 | O41: 4470 | P41: 7 | Q41: 5.920000046 | R41: 0 | S41: 1 | T41: 2 | U41: 2 | V41: 0 | W41: 0 | X41: 1 | Y41: 1 | Z41: 0 | AA41: 0 | AB41: 0 | AC41: 3 | AD41: 1.790000021 | AE41: 3 | AF41: 1.990000039 | AG41: 18 | AH41: 12.8800002
A42: A82014 | B42: CALDBECK SURGERY | C42: A82014 | D42: 01H | E42: NHS CUMBRIA CCG | F42: Q74 | G42: NHS ENGLAND NORTH (CUMBRIA AND NORTH EAST) | H42: Y54 | I42: North of England | J42: YDF31 | K42: HEALTH EDUCATION NORTH WEST | L42: GMS | M42: 4258 | N42: 2148 | O42: 2110 | P42: 5 | Q42: 2.779999971 | R42: 0 | S42: 0 | T42: 1 | U42: 1 | V42: 1 | W42: 1 | X42: 0 | Y42: 1 | Z42: 0 | AA42: 0 | AB42: 0 | AC42: 4 | AD42: 3.200000048 | AE42: 9 | AF42: 4.490000069 | AG42: 8 | AH42: 4.970000029
A43: A82015 | B43: WARWICK ROAD SURGERY | C43: A82015 | D43: 01H | E43: NHS CUMBRIA CCG | F43: Q74 | G43: NHS ENGLAND NORTH (CUMBRIA AND NORTH EAST) | H43: Y54 | I43: North of England | J43: YDF31 | K43: HEALTH EDUCATION NORTH WEST | L43: GMS | M43: 5629 | N43: 2937 | O43: 2692 | P43: 2 | Q43: 2.400000036 | R43: 0 | S43: 0 | T43: 0 | U43: 1 | V43: 0 | W43: 0 | X43: 0 | Y43: 1 | Z43: 0 | AA43: 0 | AB43: 0 | AC43: 2 | AD43: 1.390000015 | AE43: 3 | AF43: 1.310000002 | AG43: 14 | AH43: 11.64000008
A44: A82016 | B44: ST PAUL'S MEDICAL PRACTICE | C44: A82016 | D44: 01H | E44: NHS CUMBRIA CCG | F44: Q74 | G44: NHS ENGLAND NORTH (CUMBRIA AND NORTH EAST) | H44: Y54 | I44: North of England | J44: YDF31 | K44: HEALTH EDUCATION NORTH WEST | L44: PMS | M44: 14263 | N44: 7134 | O44: 7129 | P44: 11 | Q44: 12.87999982 | R44: 0 | S44: 0 | T44: 2 | U44: 2 | V44: 3 | W44: 1 | X44: 2 | Y44: 1 | Z44: 0 | AA44: 0 | AB44: 0 | AC44: 6 | AD44: 6.559999943 | AE44: 4 | AF44: 2.630000055 | AG44: 33 | AH44: 24.92999986
A45: A82018 | B45: SPENCER ST SURGERY | C45: A82018 | D45: 01H | E45: NHS CUMBRIA CCG | F45: Q74 | G45: NHS ENGLAND NORTH (CUMBRIA AND NORTH EAST) | H45: Y54 | I45: North of England | J45: YDF31 | K45: HEALTH EDUCATION NORTH WEST | L45: GMS | M45: 11831 | N45: 5812 | O45: 6019 | P45: 9 | Q45: 13.52000004 | R45: 0 | S45: 1 | T45: 3 | U45: 1 | V45: 2 | W45: 1 | X45: 2 | Y45: 0 | Z45: 0 | AA45: 0 | AB45: 0 | AC45: 5 | AD45: 4.340000033 | AE45: 3 | AF45: 1.389999986 | AG45: 18 | AH45: 14.88000019
A46: A82020 | B46: EDEN MEDICAL GROUP | C46: A82020 | D46: 01H | E46: NHS CUMBRIA CCG | F46: Q74 | G46: NHS ENGLAND NORTH (CUMBRIA AND NORTH EAST) | H46: Y54 | I46: North of England | J46: YDF31 | K46: HEALTH EDUCATION NORTH WEST | L46: GMS | M46: 15231 | N46: 7396 | O46: 7835 | P46: 0 | Q46: 0 | R46: 0 | S46: 0 | T46: 0 | U46: 0 | V46: 0 | W46: 0 | X46: 0 | Y46: 0 | Z46: 0 | AA46: 0 | AB46: 0 | AC46: 0 | AD46: 0 | AE46: 0 | AF46: 0 | AG46: 1 | AH46: 1
A47: A82021 | B47: CASTLEGATE SURGERY | C47: A82021 | D47: 01H | E47: NHS CUMBRIA CCG | F47: Q74 | G47: NHS ENGLAND NORTH (CUMBRIA AND NORTH EAST) | H47: Y54 | I47: North of England | J47: YDF31 | K47: HEALTH EDUCATION NORTH WEST | L47: GMS | M47: 10504 | N47: 5191 | O47: 5313 | P47: 0 | Q47: 0 | R47: 0 | S47: 0 | T47: 0 | U47: 0 | V47: 0 | W47: 0 | X47: 0 | Y47: 0 | Z47: 0 | AA47: 0 | AB47: 0 | AC47: 7 | AD47: 5.839999974 | AE47: 2 | AF47: 1.039999962 | AG47: 17 | AH47: 13.09999999
A48: A82023 | B48: DISTINGTON SURGERY | C48: A82023 | D48: 01H | E48: NHS CUMBRIA CCG | F48: Q74 | G48: NHS ENGLAND NORTH (CUMBRIA AND NORTH EAST) | H48: Y54 | I48: North of England | J48: YDF31 | K48: HEALTH EDUCATION NORTH WEST | L48: GMS | M48: 3969 | N48: 1992 | O48: 1977 | P48: 6 | Q48: 4.680000156 | R48: 0 | S48: 0 | T48: 2 | U48: 1 | V48: 1 | W48: 1 | X48: 1 | Y48: 0 | Z48: 0 | AA48: 0 | AB48: 0 | AC48: 4 | AD48: 1.820000038 | AE48: 10 | AF48: 7.75999999 | AG48: 11 | AH48: 8.089999944
A49: A82025 | B49: CAPTAIN FRENCH SURGERY | C49: A82025 | D49: 01H | E49: NHS CUMBRIA CCG | F49: Q74 | G49: NHS ENGLAND NORTH (CUMBRIA AND NORTH EAST) | H49: Y54 | I49: North of England | J49: YDF31 | K49: HEALTH EDUCATION NORTH WEST | L49: GMS | M49: 9515 | N49: 4729 | O49: 4786 | P49: 7 | Q49: 5.340000093 | R49: 0 | S49: 1 | T49: 1 | U49: 3 | V49: 1 | W49: 0 | X49: 1 | Y49: 0 | Z49: 0 | AA49: 0 | AB49: 0 | AC49: 2 | AD49: 2.370000005 | AE49: 3 | AF49: 2.730000019 | AG49: 0 | AH49: 0
A50: A82026 | B50: THE JAMES COCHRANE PRACT. | C50: A82026 | D50: 01H | E50: NHS CUMBRIA CCG | F50: Q74 | G50: NHS ENGLAND NORTH (CUMBRIA AND NORTH EAST) | H50: Y54 | I50: North of England | J50: YDF31 | K50: HEALTH EDUCATION NORTH WEST | L50: GMS | M50: 16571 | N50: 8031 | O50: 8540 | P50: 7 | Q50: 4.369999945 | R50: 0 | S50: 2 | T50: 2 | U50: 1 | V50: 1 | W50: 0 | X50: 0 | Y50: 1 | Z50: 0 | AA50: 0 | AB50: 0 | AC50: 0 | AD50: 4.600000024 | AE50: 0 | AF50: 0 | AG50: 10 | AH50: 8.500000119
A51: A82028 | B51: CASTLEHEAD MEDICAL CENTRE | C51: A82028 | D51: 01H | E51: NHS CUMBRIA CCG | F51: Q74 | G51: NHS ENGLAND NORTH (CUMBRIA AND NORTH EAST) | H51: Y54 | I51: North of England | J51: YDF31 | K51: HEALTH EDUCATION NORTH WEST | L51: GMS | M51: 6532 | N51: 3200 | O51: 3332 | P51: 7 | Q51: 5.970000088 | R51: 1 | S51: 0 | T51: 0 | U51: 2 | V51: 0 | W51: 4 | X51: 0 | Y51: 0 | Z51: 0 | AA51: 0 | AB51: 0 | AC51: 2 | AD51: 1.730000019 | AE51: 5 | AF51: 3.690000027 | AG51: 13 | AH51: 8.360000014
A52: A82030 | B52: LUNESDALE SURGERY | C52: A82030 | D52: 01H | E52: NHS CUMBRIA CCG | F52: Q74 | G52: NHS ENGLAND NORTH (CUMBRIA AND NORTH EAST) | H52: Y54 | I52: North of England | J52: YDF31 | K52: HEALTH EDUCATION NORTH WEST | L52: GMS | M52: 6014 | N52: 2929 | O52: 3085 | P52: 6 | Q52: 4.110000074 | R52: 0 | S52: 0 | T52: 1 | U52: 1 | V52: 2 | W52: 1 | X52: 1 | Y52: 0 | Z52: 0 | AA52: 0 | AB52: 0 | AC52: 2 | AD52: 2.24000001 | AE52: 5 | AF52: 3.340000033 | AG52: 10 | AH52: 7.900000095
A53: A82032 | B53: MARYPORT HEALTH SERVICES | C53: A82032 | D53: 01H | E53: NHS CUMBRIA CCG | F53: Q74 | G53: NHS ENGLAND NORTH (CUMBRIA AND NORTH EAST) | H53: Y54 | I53: North of England | J53: YDF31 | K53: HEALTH EDUCATION NORTH WEST | L53: PMS | M53: 13599 | N53: 6778 | O53: 6821 | P53: 12 | Q53: 9.850000024 | R53: 0 | S53: 2 | T53: 1 | U53: 3 | V53: 1 | W53: 1 | X53: 3 | Y53: 1 | Z53: 0 | AA53: 0 | AB53: 0 | AC53: 10 | AD53: 7.570000008 | AE53: 5 | AF53: 3.319999993 | AG53: 28 | AH53: 21.66000012
A54: A82037 | B54: SILLOTH GROUP MEDICAL PRACTICE | C54: A82037 | D54: 01H | E54: NHS CUMBRIA CCG | F54: Q74 | G54: NHS ENGLAND NORTH (CUMBRIA AND NORTH EAST) | H54: Y54 | I54: North of England | J54: YDF31 | K54: HEALTH EDUCATION NORTH WEST | L54: GMS | M54: 4216 | N54: 2090 | O54: 2126 | P54: 3 | Q54: 2.970000029 | R54: 0 | S54: 0 | T54: 0 | U54: 1 | V54: 2 | W54: 0 | X54: 0 | Y54: 0 | Z54: 0 | AA54: 0 | AB54: 0 | AC54: 2 | AD54: 1.049999952 | AE54: 1 | AF54: 0.529999971 | AG54: 10 | AH54: 7.190000087
A55: A82039 | B55: DALTON SURGERY | C55: A82039 | D55: 01H | E55: NHS CUMBRIA CCG | F55: Q74 | G55: NHS ENGLAND NORTH (CUMBRIA AND NORTH EAST) | H55: Y54 | I55: North of England | J55: YDF31 | K55: HEALTH EDUCATION NORTH WEST | L55: GMS | M55: 8439 | N55: 4095 | O55: 4344 | P55: 9 | Q55: 7.310000062 | R55: 2 | S55: 1 | T55: 1 | U55: 1 | V55: 2 | W55: 2 | X55: 0 | Y55: 0 | Z55: 0 | AA55: 0 | AB55: 0 | AC55: 2 | AD55: 2.220000029 | AE55: 2 | AF55: 1.329999983 | AG55: 18 | AH55: 12.60000002
A56: A82041 | B56: LOWTHER MEDICAL CENTRE | C56: A82041 | D56: 01H | E56: NHS CUMBRIA CCG | F56: Q74 | G56: NHS ENGLAND NORTH (CUMBRIA AND NORTH EAST) | H56: Y54 | I56: North of England | J56: YDF31 | K56: HEALTH EDUCATION NORTH WEST | L56: GMS | M56: 10247 | N56: 5165 | O56: 5082 | P56: 1 | Q56: 0.850000024 | R56: 0 | S56: 1 | T56: 0 | U56: 0 | V56: 0 | W56: 0 | X56: 0 | Y56: 0 | Z56: 0 | AA56: 0 | AB56: 0 | AC56: 4 | AD56: 3.980000019 | AE56: 3 | AF56: 1.980000019 | AG56: 19 | AH56: 13.33999994
A57: A82044 | B57: FELLVIEW HEALTHCARE LTD | C57: A82044 | D57: 01H | E57: NHS CUMBRIA CCG | F57: Q74 | G57: NHS ENGLAND NORTH (CUMBRIA AND NORTH EAST) | H57: Y54 | I57: North of England | J57: YDF31 | K57: HEALTH EDUCATION NORTH WEST | L57: GMS | M57: 22462 | N57: 11304 | O57: 11158 | P57: 11 | Q57: 10.61000001 | R57: 0 | S57: 1 | T57: 2 | U57: 3 | V57: 3 | W57: 1 | X57: 1 | Y57: 0 | Z57: 0 | AA57: 0 | AB57: 0 | AC57: 10 | AD57: 10.35999995 | AE57: 4 | AF57: 2.520000041 | AG57: 65 | AH57: 40.7
A58: A82045 | B58: WIGTON GROUP MEDICAL PRACTICE | C58: A82045 | D58: 01H | E58: NHS CUMBRIA CCG | F58: Q74 | G58: NHS ENGLAND NORTH (CUMBRIA AND NORTH EAST) | H58: Y54 | I58: North of England | J58: YDF31 | K58: HEALTH EDUCATION NORTH WEST | L58: GMS | M58: 8349 | N58: 4101 | O58: 4248 | P58: 8 | Q58: 7.670000017 | R58: 0 | S58: 1 | T58: 1 | U58: 1 | V58: 0 | W58: 2 | X58: 3 | Y58: 0 | Z58: 0 | AA58: 0 | AB58: 0 | AC58: 3 | AD58: 2.129999995 | AE58: 4 | AF58: 2.680000067 | AG58: 18 | AH58: 12.71000004
A59: A82046 | B59: WINDERMERE HEALTH CENTRE | C59: A82046 | D59: 01H | E59: NHS CUMBRIA CCG | F59: Q74 | G59: NHS ENGLAND NORTH (CUMBRIA AND NORTH EAST) | H59: Y54 | I59: North of England | J59: YDF31 | K59: HEALTH EDUCATION NORTH WEST | L59: PMS | M59: 5756 | N59: 2936 | O59: 2820 | P59: 3 | Q59: 2.350000024 | R59: 0 | S59: 1 | T59: 0 | U59: 0 | V59: 0 | W59: 1 | X59: 0 | Y59: 0 | Z59: 0 | AA59: 0 | AB59: 1 | AC59: 3 | AD59: 3.199999914 | AE59: 4 | AF59: 1.920000032 | AG59: 16 | AH59: 8.019999981
A60: A82048 | B60: BEECHWOOD GROUP PRACTICE | C60: A82048 | D60: 01H | E60: NHS CUMBRIA CCG | F60: Q74 | G60: NHS ENGLAND NORTH (CUMBRIA AND NORTH EAST) | H60: Y54 | I60: North of England | J60: YDF31 | K60: HEALTH EDUCATION NORTH WEST | L60: GMS | M60: 6717 | N60: 3300 | O60: 3417 | P60: 3 | Q60: 3.210000157 | R60: 0 | S60: 0 | T60: 0 | U60: 1 | V60: 0 | W60: 0 | X60: 2 | Y60: 0 | Z60: 0 | AA60: 0 | AB60: 0 | AC60: 2 | AD60: 1.969999969 | AE60: 1 | AF60: 0.400000006 | AG60: 12 | AH60: 9.120000124
A61: A82052 | B61: NORTH CARLISLE MEDICAL PRACTICE | C61: A82052 | D61: 01H | E61: NHS CUMBRIA CCG | F61: Q74 | G61: NHS ENGLAND NORTH (CUMBRIA AND NORTH EAST) | H61: Y54 | I61: North of England | J61: YDF31 | K61: HEALTH EDUCATION NORTH WEST | L61: GMS | M61: 7613 | N61: 3659 | O61: 3954 | P61: 4 | Q61: 2.530000001 | R61: 0 | S61: 1 | T61: 1 | U61: 1 | V61: 0 | W61: 0 | X61: 1 | Y61: 0 | Z61: 0 | AA61: 0 | AB61: 0 | AC61: 3 | AD61: 3.530000031 | AE61: 5 | AF61: 3.810000032 | AG61: 13 | AH61: 10.09999993
A62: A82057 | B62: DERWENT HOUSE SURGERY | C62: A82057 | D62: 01H | E62: NHS CUMBRIA CCG | F62: Q74 | G62: NHS ENGLAND NORTH (CUMBRIA AND NORTH EAST) | H62: Y54 | I62: North of England | J62: YDF31 | K62: HEALTH EDUCATION NORTH WEST | L62: GMS | M62: 6626 | N62: 3250 | O62: 3376 | P62: 3 | Q62: 2 | R62: 0 | S62: 1 | T62: 1 | U62: 0 | V62: 0 | W62: 1 | X62: 0 | Y62: 0 | Z62: 0 | AA62: 0 | AB62: 0 | AC62: 4 | AD62: 2.870000005 | AE62: 7 | AF62: 5.060000047 | AG62: 14 | AH62: 8.860000044
A63: A82060 | B63: WHITEHAVEN MEDICAL CENTRE | C63: A82060 | D63: 01H | E63: NHS CUMBRIA CCG | F63: Q74 | G63: NHS ENGLAND NORTH (CUMBRIA AND NORTH EAST) | H63: Y54 | I63: North of England | J63: YDF31 | K63: HEALTH EDUCATION NORTH WEST | L63: GMS | M63: 1842 | N63: 1048 | O63: 794 | P63: 4 | Q63: 4.640000105 | R63: 0 | S63: 1 | T63: 0 | U63: 1 | V63: 1 | W63: 1 | X63: 0 | Y63: 0 | Z63: 0 | AA63: 0 | AB63: 0 | AC63: 1 | AD63: 2.270000041 | AE63: 1 | AF63: 0.99000001 | AG63: 2 | AH63: 2.019999981
A64: A82062 | B64: ATKINSON HEALTH CENTRE | C64: A82062 | D64: 01H | E64: NHS CUMBRIA CCG | F64: Q74 | G64: NHS ENGLAND NORTH (CUMBRIA AND NORTH EAST) | H64: Y54 | I64: North of England | J64: YDF31 | K64: HEALTH EDUCATION NORTH WEST | L64: GMS | M64: 4758 | N64: 2493 | O64: 2265 | P64: 4 | Q64: 3.379999995 | R64: 0 | S64: 1 | T64: 0 | U64: 1 | V64: 1 | W64: 0 | X64: 0 | Y64: 1 | Z64: 0 | AA64: 0 | AB64: 0 | AC64: 2 | AD64: 0.929999992 | AE64: 3 | AF64: 2.319999993 | AG64: 8 | AH64: 5.539999932
A65: A82072 | B65: RISEDALE SURGERY | C65: A82072 | D65: 01H | E65: NHS CUMBRIA CCG | F65: Q74 | G65: NHS ENGLAND NORTH (CUMBRIA AND NORTH EAST) | H65: Y54 | I65: North of England | J65: YDF31 | K65: HEALTH EDUCATION NORTH WEST | L65: PMS | M65: 6962 | N65: 3552 | O65: 3410 | P65: 5 | Q65: 5.860000014 | R65: 0 | S65: 1 | T65: 0 | U65: 1 | V65: 0 | W65: 2 | X65: 1 | Y65: 0 | Z65: 0 | AA65: 0 | AB65: 0 | AC65: 2 | AD65: 3.009999931 | AE65: 4 | AF65: 1.84999992 | AG65: 16 | AH65: 15.53000018
A66: A82074 | B66: ARNSIDE SURGERY | C66: A82074 | D66: 01H | E66: NHS CUMBRIA CCG | F66: Q74 | G66: NHS ENGLAND NORTH (CUMBRIA AND NORTH EAST) | H66: Y54 | I66: North of England | J66: YDF31 | K66: HEALTH EDUCATION NORTH WEST | L66: GMS | M66: 2322 | N66: 1127 | O66: 1195 | P66: NS | Q66: NS | R66: NS | S66: NS | T66: NS | U66: NS | V66: NS | W66: NS | X66: NS | Y66: NS | Z66: NS | AA66: NS | AB66: NS | AC66: NS | AD66: NS | AE66: NS | AF66: NS | AG66: NS | AH66: NS
A67: A81001 | B67: THE DENSHAM SURGERY | C67: A81001 | D67: 00K | E67: NHS HARTLEPOOL AND STOCKTON-ON-TEES CCG | F67: Q74 | G67: NHS ENGLAND NORTH (CUMBRIA AND NORTH EAST) | H67: Y54 | I67: North of England | J67: YDF30 | K67: HEALTH EDUCATION NORTH EAST | L67: GMS | M67: 4231 | N67: 2059 | O67: 2172 | P67: 2 | Q67: 2.140000105 | R67: 0 | S67: 0 | T67: 0 | U67: 0 | V67: 1 | W67: 1 | X67: 0 | Y67: 0 | Z67: 0 | AA67: 0 | AB67: 0 | AC67: 2 | AD67: 1 | AE67: 1 | AF67: 0.319999993 | AG67: 11 | AH67: 7.330000073
A68: A81003 | B68: VICTORIA MEDICAL PRACTICE | C68: A81003 | D68: 00K | E68: NHS HARTLEPOOL AND STOCKTON-ON-TEES CCG | F68: Q74 | G68: NHS ENGLAND NORTH (CUMBRIA AND NORTH EAST) | H68: Y54 | I68: North of England | J68: YDF30 | K68: HEALTH EDUCATION NORTH EAST | L68: GMS | M68: 3354 | N68: 1779 | O68: 1575 | P68: 2 | Q68: 1.669999957 | R68: 0 | S68: 0 | T68: 0 | U68: 0 | V68: 1 | W68: 1 | X68: 0 | Y68: 0 | Z68: 0 | AA68: 0 | AB68: 0 | AC68: 0 | AD68: 1.080000013 | AE68: 2 | AF68: 0.239999995 | AG68: 7 | AH68: 4.689999998
A69: A81004 | B69: WOODLANDS ROAD SURGERY | C69: A81004 | D69: 00M | E69: NHS SOUTH TEES CCG | F69: Q74 | G69: NHS ENGLAND NORTH (CUMBRIA AND NORTH EAST) | H69: Y54 | I69: North of England | J69: YDF30 | K69: HEALTH EDUCATION NORTH EAST | L69: GMS | M69: 9162 | N69: 4781 | O69: 4381 | P69: 3 | Q69: 2.970000029 | R69: 0 | S69: 0 | T69: 0 | U69: 1 | V69: 0 | W69: 0 | X69: 2 | Y69: 0 | Z69: 0 | AA69: 0 | AB69: 0 | AC69: 3 | AD69: 3.840000048 | AE69: 1 | AF69: 0.430000007 | AG69: 12 | AH69: 8.110000014
A70: A81005 | B70: SPRINGWOOD SURGERY | C70: A81005 | D70: 00M | E70: NHS SOUTH TEES CCG | F70: Q74 | G70: NHS ENGLAND NORTH (CUMBRIA AND NORTH EAST) | H70: Y54 | I70: North of England | J70: YDF30 | K70: HEALTH EDUCATION NORTH EAST | L70: GMS | M70: 7876 | N70: 3824 | O70: 4052 | P70: 7 | Q70: 5.339999974 | R70: 0 | S70: 0 | T70: 3 | U70: 0 | V70: 1 | W70: 3 | X70: 0 | Y70: 0 | Z70: 0 | AA70: 0 | AB70: 0 | AC70: 3 | AD70: 1.699999928 | AE70: 1 | AF70: 0.75 | AG70: 18 | AH70: 11.79000002
A71: A81006 | B71: TENNANT STREET MEDICAL PRACTICE | C71: A81006 | D71: 00K | E71: NHS HARTLEPOOL AND STOCKTON-ON-TEES CCG | F71: Q74 | G71: NHS ENGLAND NORTH (CUMBRIA AND NORTH EAST) | H71: Y54 | I71: North of England | J71: YDF30 | K71: HEALTH EDUCATION NORTH EAST | L71: GMS | M71: 12359 | N71: 6013 | O71: 6346 | P71: 8 | Q71: 8.140000284 | R71: 1 | S71: 0 | T71: 3 | U71: 2 | V71: 0 | W71: 2 | X71: 0 | Y71: 0 | Z71: 0 | AA71: 0 | AB71: 0 | AC71: 4 | AD71: 4.200000048 | AE71: 2 | AF71: 1.600000024 | AG71: 22 | AH71: 15.07000008
A72: A81008 | B72: ALBERT HOUSE CLINIC | C72: A81008 | D72: 00M | E72: NHS SOUTH TEES CCG | F72: Q74 | G72: NHS ENGLAND NORTH (CUMBRIA AND NORTH EAST) | H72: Y54 | I72: North of England | J72: YDF30 | K72: HEALTH EDUCATION NORTH EAST | L72: GMS | M72: 4028 | N72: 2091 | O72: 1937 | P72: 2 | Q72: 1.389999986 | R72: 0 | S72: 0 | T72: 0 | U72: 0 | V72: 0 | W72: 1 | X72: 0 | Y72: 0 | Z72: 0 | AA72: 1 | AB72: 0 | AC72: 1 | AD72: 0.769999981 | AE72: 1 | AF72: 0.75 | AG72: 9 | AH72: 6.150000036
A73: A81012 | B73: WESTBOURNE MEDICAL CENTRE | C73: A81012 | D73: 00M | E73: NHS SOUTH TEES CCG | F73: Q74 | G73: NHS ENGLAND NORTH (CUMBRIA AND NORTH EAST) | H73: Y54 | I73: North of England | J73: YDF30 | K73: HEALTH EDUCATION NORTH EAST | L73: GMS | M73: 4757 | N73: 2481 | O73: 2276 | P73: 2 | Q73: 2.140000105 | R73: 0 | S73: 0 | T73: 0 | U73: 0 | V73: 0 | W73: 1 | X73: 0 | Y73: 1 | Z73: 0 | AA73: 0 | AB73: 0 | AC73: 2 | AD73: 2.150000006 | AE73: 3 | AF73: 1.049999982 | AG73: 10 | AH73: 7.030000091
A74: A81014 | B74: QUEENSTREE PRACTICE | C74: A81014 | D74: 00K | E74: NHS HARTLEPOOL AND STOCKTON-ON-TEES CCG | F74: Q74 | G74: NHS ENGLAND NORTH (CUMBRIA AND NORTH EAST) | H74: Y54 | I74: North of England | J74: YDF30 | K74: HEALTH EDUCATION NORTH EAST | L74: GMS | M74: 3822 | N74: 1875 | O74: 1947 | P74: 3 | Q74: 1.999999985 | R74: 0 | S74: 0 | T74: 0 | U74: 0 | V74: 1 | W74: 0 | X74: 0 | Y74: 0 | Z74: 1 | AA74: 1 | AB74: 0 | AC74: 2 | AD74: 1.180000007 | AE74: 1 | AF74: 0.800000012 | AG74: 9 | AH74: 6.199999988
A75: A81017 | B75: WOODBRIDGE PRACTICE | C75: A81017 | D75: 00K | E75: NHS HARTLEPOOL AND STOCKTON-ON-TEES CCG | F75: Q74 | G75: NHS ENGLAND NORTH (CUMBRIA AND NORTH EAST) | H75: Y54 | I75: North of England | J75: YDF30 | K75: HEALTH EDUCATION NORTH EAST | L75: GMS | M75: 20734 | N75: 10209 | O75: 10525 | P75: 10 | Q75: 7.689999998 | R75: 0 | S75: 1 | T75: 1 | U75: 2 | V75: 3 | W75: 1 | X75: 0 | Y75: 1 | Z75: 1 | AA75: 0 | AB75: 0 | AC75: 0 | AD75: 6.350000024 | AE75: 2 | AF75: 1.600000024 | AG75: 31 | AH75: 24.62000024
A76: A81019 | B76: CROSSFELL HEALTH CENTRE | C76: A81019 | D76: 00M | E76: NHS SOUTH TEES CCG | F76: Q74 | G76: NHS ENGLAND NORTH (CUMBRIA AND NORTH EAST) | H76: Y54 | I76: North of England | J76: YDF30 | K76: HEALTH EDUCATION NORTH EAST | L76: GMS | M76: 10381 | N76: 4978 | O76: 5403 | P76: 6 | Q76: 4.350000083 | R76: 0 | S76: 0 | T76: 0 | U76: 2 | V76: 0 | W76: 3 | X76: 1 | Y76: 0 | Z76: 0 | AA76: 0 | AB76: 0 | AC76: 2 | AD76: 3.100000054 | AE76: 2 | AF76: 1.660000026 | AG76: 17 | AH76: 12.75000009
A77: A81020 | B77: MARTONSIDE MEDICAL CENTRE | C77: A81020 | D77: 00M | E77: NHS SOUTH TEES CCG | F77: Q74 | G77: NHS ENGLAND NORTH (CUMBRIA AND NORTH EAST) | H77: Y54 | I77: North of England | J77: YDF30 | K77: HEALTH EDUCATION NORTH EAST | L77: GMS | M77: 7918 | N77: 3900 | O77: 4018 | P77: 4 | Q77: 3.550000012 | R77: 0 | S77: 0 | T77: 0 | U77: 1 | V77: 1 | W77: 0 | X77: 2 | Y77: 0 | Z77: 0 | AA77: 0 | AB77: 0 | AC77: 4 | AD77: 2.310000002 | AE77: 3 | AF77: 1.75 | AG77: 0 | AH77: 0
A78: A81021 | B78: NORMANBY MEDICAL CENTRE | C78: A81021 | D78: 00M | E78: NHS SOUTH TEES CCG | F78: Q74 | G78: NHS ENGLAND NORTH (CUMBRIA AND NORTH EAST) | H78: Y54 | I78: North of England | J78: YDF30 | K78: HEALTH EDUCATION NORTH EAST | L78: GMS | M78: 13186 | N78: 6435 | O78: 6751 | P78: NS | Q78: NS | R78: NS | S78: NS | T78: NS | U78: NS | V78: NS | W78: NS | X78: NS | Y78: NS | Z78: NS | AA78: NS | AB78: NS | AC78: NS | AD78: NS | AE78: NS | AF78: NS | AG78: NS | AH78: NS
A79: A82077 | B79: LIVERPOOL HOUSE SURGERY | C79: A82077 | D79: 01H | E79: NHS CUMBRIA CCG | F79: Q74 | G79: NHS ENGLAND NORTH (CUMBRIA AND NORTH EAST) | H79: Y54 | I79: North of England | J79: YDF31 | K79: HEALTH EDUCATION NORTH WEST | L79: GMS | M79: 5322 | N79: 2541 | O79: 2781 | P79: 2 | Q79: 2.01000005 | R79: 0 | S79: 0 | T79: 0 | U79: 0 | V79: 0 | W79: 2 | X79: 0 | Y79: 0 | Z79: 0 | AA79: 0 | AB79: 0 | AC79: 2 | AD79: 0.909999996 | AE79: 1 | AF79: 0.50999999 | AG79: 8 | AH79: 5.069999993
A80: A82617 | B80: KIRKOSWALD SURGERY | C80: A82617 | D80: 01H | E80: NHS CUMBRIA CCG | F80: Q74 | G80: NHS ENGLAND NORTH (CUMBRIA AND NORTH EAST) | H80: Y54 | I80: North of England | J80: YDF31 | K80: HEALTH EDUCATION NORTH WEST | L80: GMS | M80: 2365 | N80: 1201 | O80: 1164 | P80: 2 | Q80: 1.600000024 | R80: 0 | S80: 0 | T80: 0 | U80: 0 | V80: 0 | W80: 0 | X80: 2 | Y80: 0 | Z80: 0 | AA80: 0 | AB80: 0 | AC80: 1 | AD80: 0.330000013 | AE80: 0 | AF80: 0 | AG80: 6 | AH80: 3.719999969
A81: A82620 | B81: GLENRIDDING HEALTH CENTRE | C81: A82620 | D81: 01H | E81: NHS CUMBRIA CCG | F81: Q74 | G81: NHS ENGLAND NORTH (CUMBRIA AND NORTH EAST) | H81: Y54 | I81: North of England | J81: YDF31 | K81: HEALTH EDUCATION NORTH WEST | L81: APMS | M81: 750 | N81: 405 | O81: 345 | P81: 3 | Q81: 1.599999964 | R81: 0 | S81: 0 | T81: 0 | U81: 1 | V81: 1 | W81: 1 | X81: 0 | Y81: 0 | Z81: 0 | AA81: 0 | AB81: 0 | AC81: 1 | AD81: 0.319999993 | AE81: 0 | AF81: 0 | AG81: 4 | AH81: 1.700000003
A82: A82623 | B82: SOLWAY HEALTH SERVICES | C82: A82623 | D82: 01H | E82: NHS CUMBRIA CCG | F82: Q74 | G82: NHS ENGLAND NORTH (CUMBRIA AND NORTH EAST) | H82: Y54 | I82: North of England | J82: YDF31 | K82: HEALTH EDUCATION NORTH WEST | L82: PMS | M82: 5270 | N82: 2651 | O82: 2619 | P82: 1 | Q82: 1 | R82: 0 | S82: 0 | T82: 0 | U82: 0 | V82: 0 | W82: 1 | X82: 0 | Y82: 0 | Z82: 0 | AA82: 0 | AB82: 0 | AC82: 1 | AD82: 2.410000026 | AE82: 1 | AF82: 0.639999986 | AG82: 10 | AH82: 7.429999948
A83: A82629 | B83: THE FAMILY PRACTICE | C83: A82629 | D83: 01H | E83: NHS CUMBRIA CCG | F83: Q74 | G83: NHS ENGLAND NORTH (CUMBRIA AND NORTH EAST) | H83: Y54 | I83: North of England | J83: YDF31 | K83: HEALTH EDUCATION NORTH WEST | L83: GMS | M83: 3774 | N83: 2066 | O83: 1708 | P83: 2 | Q83: 2.679999948 | R83: 0 | S83: 0 | T83: 0 | U83: 1 | V83: 1 | W83: 0 | X83: 0 | Y83: 0 | Z83: 0 | AA83: 0 | AB83: 0 | AC83: 0 | AD83: 0 | AE83: 0 | AF83: 0 | AG83: 8 | AH83: 4.799999982
A84: A82631 | B84: COURT THORN SURGERY | C84: A82631 | D84: 01H | E84: NHS CUMBRIA CCG | F84: Q74 | G84: NHS ENGLAND NORTH (CUMBRIA AND NORTH EAST) | H84: Y54 | I84: North of England | J84: YDF31 | K84: HEALTH EDUCATION NORTH WEST | L84: GMS | M84: 3003 | N84: 1479 | O84: 1524 | P84: 3 | Q84: 2.519999981 | R84: 0 | S84: 0 | T84: 0 | U84: 0 | V84: 1 | W84: 1 | X84: 1 | Y84: 0 | Z84: 0 | AA84: 0 | AB84: 0 | AC84: 2 | AD84: 1.089999974 | AE84: 3 | AF84: 2.980000019 | AG84: 6 | AH84: 4.710000098
A85: A82647 | B85: CARTMEL SURGERY | C85: A82647 | D85: 01H | E85: NHS CUMBRIA CCG | F85: Q74 | G85: NHS ENGLAND NORTH (CUMBRIA AND NORTH EAST) | H85: Y54 | I85: North of England | J85: YDF31 | K85: HEALTH EDUCATION NORTH WEST | L85: GMS | M85: 2404 | N85: 1190 | O85: 1214 | P85: 4 | Q85: 2.610000014 | R85: 1 | S85: 0 | T85: 0 | U85: 1 | V85: 0 | W85: 0 | X85: 2 | Y85: 0 | Z85: 0 | AA85: 0 | AB85: 0 | AC85: 1 | AD85: 0.560000002 | AE85: 5 | AF85: 3.609999985 | AG85: 4 | AH85: 1.879999965
A86: A82651 | B86: DUDDON VALLEY MEDICAL PRACTICE | C86: A82651 | D86: 01H | E86: NHS CUMBRIA CCG | F86: Q74 | G86: NHS ENGLAND NORTH (CUMBRIA AND NORTH EAST) | H86: Y54 | I86: North of England | J86: YDF31 | K86: HEALTH EDUCATION NORTH WEST | L86: GMS | M86: 3351 | N86: 1707 | O86: 1644 | P86: 2 | Q86: 1.959999979 | R86: 0 | S86: 0 | T86: 0 | U86: 0 | V86: 0 | W86: 1 | X86: 0 | Y86: 1 | Z86: 0 | AA86: 0 | AB86: 0 | AC86: 3 | AD86: 2.540000021 | AE86: 2 | AF86: 1.980000019 | AG86: 9 | AH86: 6.650000021
A87: A82654 | B87: GROSVENOR HOUSE SURGERY | C87: A82654 | D87: 01H | E87: NHS CUMBRIA CCG | F87: Q74 | G87: NHS ENGLAND NORTH (CUMBRIA AND NORTH EAST) | H87: Y54 | I87: North of England | J87: YDF31 | K87: HEALTH EDUCATION NORTH WEST | L87: GMS | M87: 7663 | N87: 3913 | O87: 3750 | P87: 4 | Q87: 4 | R87: 0 | S87: 0 | T87: 1 | U87: 0 | V87: 0 | W87: 0 | X87: 2 | Y87: 0 | Z87: 0 | AA87: 0 | AB87: 1 | AC87: 4 | AD87: 3.150000036 | AE87: 1 | AF87: 0.529999971 | AG87: 13 | AH87: 11.10000014
A88: A83001 | B88: ST ANDREW'S MEDICAL PRACTICE | C88: A83001 | D88: 00D | E88: NHS DURHAM DALES, EASINGTON AND SEDGEFIELD CCG | F88: Q74 | G88: NHS ENGLAND NORTH (CUMBRIA AND NORTH EAST) | H88: Y54 | I88: North of England | J88: YDF30 | K88: HEALTH EDUCATION NORTH EAST | L88: PMS | M88: 10543 | N88: 5159 | O88: 5384 | P88: 6 | Q88: 5.240000069 | R88: 1 | S88: 0 | T88: 0 | U88: 2 | V88: 1 | W88: 1 | X88: 1 | Y88: 0 | Z88: 0 | AA88: 0 | AB88: 0 | AC88: 3 | AD88: 3.030000031 | AE88: 4 | AF88: 2.709999979 | AG88: 16 | AH88: 10.51999995
A89: A83003 | B89: WILLINGTON MEDICAL GROUP | C89: A83003 | D89: 00D | E89: NHS DURHAM DALES, EASINGTON AND SEDGEFIELD CCG | F89: Q74 | G89: NHS ENGLAND NORTH (CUMBRIA AND NORTH EAST) | H89: Y54 | I89: North of England | J89: YDF30 | K89: HEALTH EDUCATION NORTH EAST | L89: GMS | M89: 9210 | N89: 4601 | O89: 4609 | P89: 8 | Q89: 10.36000025 | R89: 1 | S89: 1 | T89: 1 | U89: 2 | V89: 1 | W89: 0 | X89: 2 | Y89: 0 | Z89: 0 | AA89: 0 | AB89: 0 | AC89: 2 | AD89: 2.430000007 | AE89: 2 | AF89: 1.629999995 | AG89: 13 | AH89: 10.20000011
A90: A83012 | B90: WILLIAM BROWN CENTRE | C90: A83012 | D90: 00D | E90: NHS DURHAM DALES, EASINGTON AND SEDGEFIELD CCG | F90: Q74 | G90: NHS ENGLAND NORTH (CUMBRIA AND NORTH EAST) | H90: Y54 | I90: North of England | J90: YDF30 | K90: HEALTH EDUCATION NORTH EAST | L90: GMS | M90: 15162 | N90: 7444 | O90: 7718 | P90: 9 | Q90: 7.740000218 | R90: 0 | S90: 0 | T90: 0 | U90: 3 | V90: 2 | W90: 2 | X90: 2 | Y90: 0 | Z90: 0 | AA90: 0 | AB90: 0 | AC90: 4 | AD90: 8.25000006 | AE90: 6 | AF90: 4.889999986 | AG90: 30 | AH90: 22.03000012
A91: A83013 | B91: NEASHAM ROAD SURGERY | C91: A83013 | D91: 00C | E91: NHS DARLINGTON CCG | F91: Q74 | G91: NHS ENGLAND NORTH (CUMBRIA AND NORTH EAST) | H91: Y54 | I91: North of England | J91: YDF30 | K91: HEALTH EDUCATION NORTH EAST | L91: GMS | M91: 11362 | N91: 5640 | O91: 5722 | P91: 6 | Q91: 5.659999907 | R91: 0 | S91: 2 | T91: 1 | U91: 0 | V91: 1 | W91: 0 | X91: 2 | Y91: 0 | Z91: 0 | AA91: 0 | AB91: 0 | AC91: 3 | AD91: 3.550000012 | AE91: 2 | AF91: 1.569999993 | AG91: 12 | AH91: 9.079999983
A92: A83015 | B92: STATION VIEW MEDICAL CENTRE | C92: A83015 | D92: 00D | E92: NHS DURHAM DALES, EASINGTON AND SEDGEFIELD CCG | F92: Q74 | G92: NHS ENGLAND NORTH (CUMBRIA AND NORTH EAST) | H92: Y54 | I92: North of England | J92: YDF30 | K92: HEALTH EDUCATION NORTH EAST | L92: GMS | M92: 10412 | N92: 5113 | O92: 5299 | P92: 5 | Q92: 4.889999986 | R92: 0 | S92: 0 | T92: 0 | U92: 1 | V92: 0 | W92: 2 | X92: 2 | Y92: 0 | Z92: 0 | AA92: 0 | AB92: 0 | AC92: 0 | AD92: 3.790000021 | AE92: 3 | AF92: 2.25999999 | AG92: 13 | AH92: 7.799999863
A93: A83018 | B93: CONSETT MEDICAL CENTRE | C93: A83018 | D93: 00J | E93: NHS NORTH DURHAM CCG | F93: Q74 | G93: NHS ENGLAND NORTH (CUMBRIA AND NORTH EAST) | H93: Y54 | I93: North of England | J93: YDF30 | K93: HEALTH EDUCATION NORTH EAST | L93: PMS | M93: 19304 | N93: 9603 | O93: 9701 | P93: 13 | Q93: 11.81000047 | R93: 0 | S93: 0 | T93: 2 | U93: 1 | V93: 1 | W93: 4 | X93: 3 | Y93: 2 | Z93: 0 | AA93: 0 | AB93: 0 | AC93: 6 | AD93: 6.75000006 | AE93: 3 | AF93: 2.270000011 | AG93: 32 | AH93: 25.35000002
A94: A83021 | B94: AUCKLAND MEDICAL GROUP | C94: A83021 | D94: 00D | E94: NHS DURHAM DALES, EASINGTON AND SEDGEFIELD CCG | F94: Q74 | G94: NHS ENGLAND NORTH (CUMBRIA AND NORTH EAST) | H94: Y54 | I94: North of England | J94: YDF30 | K94: HEALTH EDUCATION NORTH EAST | L94: GMS | M94: 13874 | N94: 6817 | O94: 7057 | P94: 7 | Q94: 8.270000339 | R94: 0 | S94: 1 | T94: 1 | U94: 2 | V94: 0 | W94: 2 | X94: 1 | Y94: 0 | Z94: 0 | AA94: 0 | AB94: 0 | AC94: 9 | AD94: 8.640000075 | AE94: 0 | AF94: 0 | AG94: 24 | AH94: 18.34000015
A95: A83022 | B95: THE MEDICAL GROUP | C95: A83022 | D95: 00J | E95: NHS NORTH DURHAM CCG | F95: Q74 | G95: NHS ENGLAND NORTH (CUMBRIA AND NORTH EAST) | H95: Y54 | I95: North of England | J95: YDF30 | K95: HEALTH EDUCATION NORTH EAST | L95: GMS | M95: 23913 | N95: 11856 | O95: 12057 | P95: 17 | Q95: 12.53999999 | R95: 2 | S95: 1 | T95: 5 | U95: 3 | V95: 1 | W95: 3 | X95: 0 | Y95: 2 | Z95: 0 | AA95: 0 | AB95: 0 | AC95: 8 | AD95: 8.850000083 | AE95: 4 | AF95: 3.580000043 | AG95: 31 | AH95: 26.18000022
A96: A83023 | B96: STANLEY MEDICAL GROUP | C96: A83023 | D96: 00J | E96: NHS NORTH DURHAM CCG | F96: Q74 | G96: NHS ENGLAND NORTH (CUMBRIA AND NORTH EAST) | H96: Y54 | I96: North of England | J96: YDF30 | K96: HEALTH EDUCATION NORTH EAST | L96: PMS | M96: 11186 | N96: 5617 | O96: 5569 | P96: 5 | Q96: 5.080000222 | R96: 0 | S96: 3 | T96: 1 | U96: 0 | V96: 0 | W96: 1 | X96: 0 | Y96: 0 | Z96: 0 | AA96: 0 | AB96: 0 | AC96: 3 | AD96: 3.980000034 | AE96: 3 | AF96: 2.290000021 | AG96: 14 | AH96: 11.09000006
A97: A83025 | B97: BISHOPGATE MEDICAL CENTRE | C97: A83025 | D97: 00D | E97: NHS DURHAM DALES, EASINGTON AND SEDGEFIELD CCG | F97: Q74 | G97: NHS ENGLAND NORTH (CUMBRIA AND NORTH EAST) | H97: Y54 | I97: North of England | J97: YDF30 | K97: HEALTH EDUCATION NORTH EAST | L97: GMS | M97: 13508 | N97: 6691 | O97: 6817 | P97: 10 | Q97: 6.809999958 | R97: 1 | S97: 3 | T97: 2 | U97: 1 | V97: 0 | W97: 1 | X97: 2 | Y97: 0 | Z97: 0 | AA97: 0 | AB97: 0 | AC97: 7 | AD97: 5.63000001 | AE97: 4 | AF97: 3.370000064 | AG97: 21 | AH97: 16.14000022
A98: A83028 | B98: MIDDLE CHARE MEDICAL GROUP | C98: A83028 | D98: 00J | E98: NHS NORTH DURHAM CCG | F98: Q74 | G98: NHS ENGLAND NORTH (CUMBRIA AND NORTH EAST) | H98: Y54 | I98: North of England | J98: YDF30 | K98: HEALTH EDUCATION NORTH EAST | L98: GMS | M98: 9981 | N98: 4936 | O98: 5045 | P98: 7 | Q98: 5.800000072 | R98: 0 | S98: 2 | T98: 0 | U98: 1 | V98: 2 | W98: 1 | X98: 1 | Y98: 0 | Z98: 0 | AA98: 0 | AB98: 0 | AC98: 3 | AD98: 2.890000015 | AE98: 3 | AF98: 1.349999964 | AG98: 20 | AH98: 15.91000003
A99: A81023 | B99: THE ENDEAVOUR PRACTICE | C99: A81023 | D99: 00M | E99: NHS SOUTH TEES CCG | F99: Q74 | G99: NHS ENGLAND NORTH (CUMBRIA AND NORTH EAST) | H99: Y54 | I99: North of England | J99: YDF30 | K99: HEALTH EDUCATION NORTH EAST | L99: GMS | M99: 7677 | N99: 3971 | O99: 3706 | P99: 8 | Q99: 5.120000124 | R99: 0 | S99: 1 | T99: 1 | U99: 1 | V99: 1 | W99: 1 | X99: 1 | Y99: 2 | Z99: 0 | AA99: 0 | AB99: 0 | AC99: 3 | AD99: 1.809999973 | AE99: 3 | AF99: 1.640000001 | AG99: 13 | AH99: 12.33000004
A100: A81025 | B100: THE DOVECOT SURGERY | C100: A81025 | D100: 00K | E100: NHS HARTLEPOOL AND STOCKTON-ON-TEES CCG | F100: Q74 | G100: NHS ENGLAND NORTH (CUMBRIA AND NORTH EAST) | H100: Y54 | I100: North of England | J100: YDF30 | K100: HEALTH EDUCATION NORTH EAST | L100: GMS | M100: 4162 | N100: 2097 | O100: 2065 | P100: 2 | Q100: 2.140000105 | R100: 0 | S100: 0 | T100: 1 | U100: 0 | V100: 1 | W100: 0 | X100: 0 | Y100: 0 | Z100: 0 | AA100: 0 | AB100: 0 | AC100: 2 | AD100: 0.959999993 | AE100: 2 | AF100: 1.049999952 | AG100: 9 | AH100: 5.5
A101: A81026 | B101: THE LINTHORPE SURGERY | C101: A81026 | D101: 00M | E101: NHS SOUTH TEES CCG | F101: Q74 | G101: NHS ENGLAND NORTH (CUMBRIA AND NORTH EAST) | H101: Y54 | I101: North of England | J101: YDF30 | K101: HEALTH EDUCATION NORTH EAST | L101: GMS | M101: 13762 | N101: 6894 | O101: 6868 | P101: 10 | Q101: 10.96999991 | R101: 0 | S101: 3 | T101: 0 | U101: 1 | V101: 3 | W101: 1 | X101: 2 | Y101: 0 | Z101: 0 | AA101: 0 | AB101: 0 | AC101: 3 | AD101: 2.870000005 | AE101: 4 | AF101: 3.220000029 | AG101: 27 | AH101: 18.32000014
A102: A81032 | B102: THE GARTH | C102: A81032 | D102: 00M | E102: NHS SOUTH TEES CCG | F102: Q74 | G102: NHS ENGLAND NORTH (CUMBRIA AND NORTH EAST) | H102: Y54 | I102: North of England | J102: YDF30 | K102: HEALTH EDUCATION NORTH EAST | L102: PMS | M102: 10510 | N102: 5129 | O102: 5381 | P102: 9 | Q102: 5.409999967 | R102: 0 | S102: 0 | T102: 4 | U102: 0 | V102: 3 | W102: 1 | X102: 1 | Y102: 0 | Z102: 0 | AA102: 0 | AB102: 0 | AC102: 3 | AD102: 4.219999924 | AE102: 5 | AF102: 2.399999946 | AG102: 19 | AH102: 12.65000002
A103: A81034 | B103: THORNABY & BARWICK MEDICAL GROUP | C103: A81034 | D103: 00K | E103: NHS HARTLEPOOL AND STOCKTON-ON-TEES CCG | F103: Q74 | G103: NHS ENGLAND NORTH (CUMBRIA AND NORTH EAST) | H103: Y54 | I103: North of England | J103: YDF30 | K103: HEALTH EDUCATION NORTH EAST | L103: GMS | M103: 21788 | N103: 10864 | O103: 10924 | P103: 12 | Q103: 10.29000002 | R103: 0 | S103: 0 | T103: 4 | U103: 6 | V103: 2 | W103: 0 | X103: 0 | Y103: 0 | Z103: 0 | AA103: 0 | AB103: 0 | AC103: 4 | AD103: 3.550000012 | AE103: 2 | AF103: 1.980000019 | AG103: 26 | AH103: 23.5400002
A104: A81037 | B104: THE ERIMUS PRACTICE | C104: A81037 | D104: 00M | E104: NHS SOUTH TEES CCG | F104: Q74 | G104: NHS ENGLAND NORTH (CUMBRIA AND NORTH EAST) | H104: Y54 | I104: North of England | J104: YDF30 | K104: HEALTH EDUCATION NORTH EAST | L104: GMS | M104: 7040 | N104: 3687 | O104: 3353 | P104: 3 | Q104: 2.390000015 | R104: 0 | S104: 0 | T104: 1 | U104: 1 | V104: 1 | W104: 0 | X104: 0 | Y104: 0 | Z104: 0 | AA104: 0 | AB104: 0 | AC104: 3 | AD104: 1.800000072 | AE104: 1 | AF104: 1 | AG104: 13 | AH104: 9.700000018
A105: A81039 | B105: EAGLESCLIFFE MEDICAL PRACTICE | C105: A81039 | D105: 00K | E105: NHS HARTLEPOOL AND STOCKTON-ON-TEES CCG | F105: Q74 | G105: NHS ENGLAND NORTH (CUMBRIA AND NORTH EAST) | H105: Y54 | I105: North of England | J105: YDF30 | K105: HEALTH EDUCATION NORTH EAST | L105: GMS | M105: 9353 | N105: 4608 | O105: 4745 | P105: 7 | Q105: 4.77000007 | R105: 0 | S105: 1 | T105: 0 | U105: 2 | V105: 2 | W105: 0 | X105: 2 | Y105: 0 | Z105: 0 | AA105: 0 | AB105: 0 | AC105: 0 | AD105: 1.959999979 | AE105: 2 | AF105: 0.739999965 | AG105: 14 | AH105: 10.79000002
A106: A81041 | B106: HART MEDICAL PRACTICE | C106: A81041 | D106: 00K | E106: NHS HARTLEPOOL AND STOCKTON-ON-TEES CCG | F106: Q74 | G106: NHS ENGLAND NORTH (CUMBRIA AND NORTH EAST) | H106: Y54 | I106: North of England | J106: YDF30 | K106: HEALTH EDUCATION NORTH EAST | L106: GMS | M106: 9093 | N106: 4572 | O106: 4521 | P106: 5 | Q106: 4.450000048 | R106: 0 | S106: 0 | T106: 1 | U106: 2 | V106: 1 | W106: 0 | X106: 1 | Y106: 0 | Z106: 0 | AA106: 0 | AB106: 0 | AC106: 0 | AD106: 2.890000045 | AE106: 4 | AF106: 2.710000008 | AG106: 18 | AH106: 13.44000009
A107: A81043 | B107: THE MANOR HOUSE SURGERY | C107: A81043 | D107: 00M | E107: NHS SOUTH TEES CCG | F107: Q74 | G107: NHS ENGLAND NORTH (CUMBRIA AND NORTH EAST) | H107: Y54 | I107: North of England | J107: YDF30 | K107: HEALTH EDUCATION NORTH EAST | L107: GMS | M107: 8009 | N107: 3902 | O107: 4107 | P107: 7 | Q107: 4.640000015 | R107: 0 | S107: 0 | T107: 1 | U107: 0 | V107: 1 | W107: 4 | X107: 1 | Y107: 0 | Z107: 0 | AA107: 0 | AB107: 0 | AC107: 2 | AD107: 2.829999983 | AE107: 3 | AF107: 2.24000001 | AG107: 18 | AH107: 14.53
A108: A81044 | B108: MCKENZIE HOUSE SURGERY | C108: A81044 | D108: 00K | E108: NHS HARTLEPOOL AND STOCKTON-ON-TEES CCG | F108: Q74 | G108: NHS ENGLAND NORTH (CUMBRIA AND NORTH EAST) | H108: Y54 | I108: North of England | J108: YDF30 | K108: HEALTH EDUCATION NORTH EAST | L108: GMS | M108: 13828 | N108: 6848 | O108: 6980 | P108: 5 | Q108: 4.670000017 | R108: 0 | S108: 0 | T108: 0 | U108: 1 | V108: 1 | W108: 2 | X108: 1 | Y108: 0 | Z108: 0 | AA108: 0 | AB108: 0 | AC108: 0 | AD108: 7.920000061 | AE108: 5 | AF108: 3.369999975 | AG108: 26 | AH108: 19.04000007
A109: A81045 | B109: THE COATHAM ROAD SURGERY | C109: A81045 | D109: 00M | E109: NHS SOUTH TEES CCG | F109: Q74 | G109: NHS ENGLAND NORTH (CUMBRIA AND NORTH EAST) | H109: Y54 | I109: North of England | J109: YDF30 | K109: HEALTH EDUCATION NORTH EAST | L109: GMS | M109: 7770 | N109: 3733 | O109: 4037 | P109: 4 | Q109: 3.390000105 | R109: 1 | S109: 0 | T109: 0 | U109: 1 | V109: 0 | W109: 0 | X109: 2 | Y109: 0 | Z109: 0 | AA109: 0 | AB109: 0 | AC109: 4 | AD109: 4.390000001 | AE109: 1 | AF109: 0.910000026 | AG109: 14 | AH109: 12.23000014
A110: A81046 | B110: WOODLANDS FAMILY MEDICAL CENTRE | C110: A81046 | D110: 00K | E110: NHS HARTLEPOOL AND STOCKTON-ON-TEES CCG | F110: Q74 | G110: NHS ENGLAND NORTH (CUMBRIA AND NORTH EAST) | H110: Y54 | I110: North of England | J110: YDF30 | K110: HEALTH EDUCATION NORTH EAST | L110: GMS | M110: 12755 | N110: 6312 | O110: 6443 | P110: 7 | Q110: 5.350000024 | R110: 0 | S110: 0 | T110: 0 | U110: 5 | V110: 1 | W110: 1 | X110: 0 | Y110: 0 | Z110: 0 | AA110: 0 | AB110: 0 | AC110: 5 | AD110: 5.309999958 | AE110: 2 | AF110: 1.310000002 | AG110: 25 | AH110: 18.44000003
A111: A81048 | B111: ZETLAND MEDICAL PRACTICE | C111: A81048 | D111: 00M | E111: NHS SOUTH TEES CCG | F111: Q74 | G111: NHS ENGLAND NORTH (CUMBRIA AND NORTH EAST) | H111: Y54 | I111: North of England | J111: YDF30 | K111: HEALTH EDUCATION NORTH EAST | L111: GMS | M111: 5060 | N111: 2515 | O111: 2545 | P111: 6 | Q111: 4.769999981 | R111: 0 | S111: 0 | T111: 0 | U111: 2 | V111: 3 | W111: 1 | X111: 0 | Y111: 0 | Z111: 0 | AA111: 0 | AB111: 0 | AC111: 3 | AD111: 1.919999957 | AE111: 0 | AF111: 0 | AG111: 12 | AH111: 6.959999919
A112: A81052 | B112: THE GREEN HOUSE SURGERY | C112: A81052 | D112: 00M | E112: NHS SOUTH TEES CCG | F112: Q74 | G112: NHS ENGLAND NORTH (CUMBRIA AND NORTH EAST) | H112: Y54 | I112: North of England | J112: YDF30 | K112: HEALTH EDUCATION NORTH EAST | L112: GMS | M112: 7427 | N112: 3659 | O112: 3768 | P112: 4 | Q112: 3.480000079 | R112: 0 | S112: 0 | T112: 1 | U112: 0 | V112: 0 | W112: 3 | X112: 0 | Y112: 0 | Z112: 0 | AA112: 0 | AB112: 0 | AC112: 2 | AD112: 3.5 | AE112: 3 | AF112: 1.25999999 | AG112: 15 | AH112: 10.87000006
A113: A81054 | B113: THE SALTSCAR SURGERY | C113: A81054 | D113: 00M | E113: NHS SOUTH TEES CCG | F113: Q74 | G113: NHS ENGLAND NORTH (CUMBRIA AND NORTH EAST) | H113: Y54 | I113: North of England | J113: YDF30 | K113: HEALTH EDUCATION NORTH EAST | L113: GMS | M113: 7949 | N113: 3936 | O113: 4013 | P113: 4 | Q113: 3.779999971 | R113: 0 | S113: 0 | T113: 0 | U113: 1 | V113: 1 | W113: 1 | X113: 0 | Y113: 1 | Z113: 0 | AA113: 0 | AB113: 0 | AC113: 2 | AD113: 3.26000008 | AE113: 3 | AF113: 1.200000003 | AG113: 16 | AH113: 12.50000006
A114: A81057 | B114: KINGSWAY MEDICAL CENTRE | C114: A81057 | D114: 00K | E114: NHS HARTLEPOOL AND STOCKTON-ON-TEES CCG | F114: Q74 | G114: NHS ENGLAND NORTH (CUMBRIA AND NORTH EAST) | H114: Y54 | I114: North of England | J114: YDF30 | K114: HEALTH EDUCATION NORTH EAST | L114: GMS | M114: 8739 | N114: 4130 | O114: 4609 | P114: 5 | Q114: 5.27000016 | R114: 0 | S114: 0 | T114: 1 | U114: 0 | V114: 1 | W114: 2 | X114: 0 | Y114: 0 | Z114: 1 | AA114: 0 | AB114: 0 | AC114: 2 | AD114: 1.850000024 | AE114: 3 | AF114: 1.150000006 | AG114: 18 | AH114: 12.6100001
A115: A81060 | B115: THE KOH PRACTICE | C115: A81060 | D115: 00K | E115: NHS HARTLEPOOL AND STOCKTON-ON-TEES CCG | F115: Q74 | G115: NHS ENGLAND NORTH (CUMBRIA AND NORTH EAST) | H115: Y54 | I115: North of England | J115: YDF30 | K115: HEALTH EDUCATION NORTH EAST | L115: GMS | M115: 5428 | N115: 2625 | O115: 2803 | P115: 3 | Q115: 2.25 | R115: 0 | S115: 0 | T115: 0 | U115: 0 | V115: 0 | W115: 1 | X115: 1 | Y115: 0 | Z115: 0 | AA115: 1 | AB115: 0 | AC115: 0 | AD115: 1.370000005 | AE115: 2 | AF115: 0.560000002 | AG115: 7 | AH115: 4.340000033
A116: A81063 | B116: THE HEADLAND MEDICAL CENTRE | C116: A81063 | D116: 00K | E116: NHS HARTLEPOOL AND STOCKTON-ON-TEES CCG | F116: Q74 | G116: NHS ENGLAND NORTH (CUMBRIA AND NORTH EAST) | H116: Y54 | I116: North of England | J116: YDF30 | K116: HEALTH EDUCATION NORTH EAST | L116: GMS | M116: 5349 | N116: 2795 | O116: 2554 | P116: 2 | Q116: 2 | R116: 0 | S116: 0 | T116: 0 | U116: 0 | V116: 0 | W116: 0 | X116: 1 | Y116: 0 | Z116: 1 | AA116: 0 | AB116: 0 | AC116: 0 | AD116: 2.319999993 | AE116: 0 | AF116: 0 | AG116: 2 | AH116: 1.560000002
A117: A81065 | B117: THE ESTON SURGERY | C117: A81065 | D117: 00M | E117: NHS SOUTH TEES CCG | F117: Q74 | G117: NHS ENGLAND NORTH (CUMBRIA AND NORTH EAST) | H117: Y54 | I117: North of England | J117: YDF30 | K117: HEALTH EDUCATION NORTH EAST | L117: GMS | M117: 3417 | N117: 1765 | O117: 1652 | P117: 1 | Q117: 1.200000048 | R117: 0 | S117: 0 | T117: 0 | U117: 0 | V117: 1 | W117: 0 | X117: 0 | Y117: 0 | Z117: 0 | AA117: 0 | AB117: 0 | AC117: 1 | AD117: 0.970000014 | AE117: 1 | AF117: 0.529999971 | AG117: 10 | AH117: 5.700000077
A118: A81066 | B118: PARK LANE SURGERY | C118: A81066 | D118: 00K | E118: NHS HARTLEPOOL AND STOCKTON-ON-TEES CCG | F118: Q74 | G118: NHS ENGLAND NORTH (CUMBRIA AND NORTH EAST) | H118: Y54 | I118: North of England | J118: YDF30 | K118: HEALTH EDUCATION NORTH EAST | L118: GMS | M118: 4285 | N118: 2129 | O118: 2156 | P118: 3 | Q118: 3 | R118: 0 | S118: 0 | T118: 1 | U118: 1 | V118: 1 | W118: 0 | X118: 0 | Y118: 0 | Z118: 0 | AA118: 0 | AB118: 0 | AC118: 0 | AD118: 1.389999986 | AE118: 3 | AF118: 2.5 | AG118: 1 | AH118: 1
A119: A81611 | B119: PARKWAY MEDICAL CENTRE | C119: A81611 | D119: 00M | E119: NHS SOUTH TEES CCG | F119: Q74 | G119: NHS ENGLAND NORTH (CUMBRIA AND NORTH EAST) | H119: Y54 | I119: North of England | J119: YDF30 | K119: HEALTH EDUCATION NORTH EAST | L119: GMS | M119: 5332 | N119: 2596 | O119: 2736 | P119: 6 | Q119: 5.260000139 | R119: 0 | S119: 1 | T119: 1 | U119: 0 | V119: 2 | W119: 1 | X119: 0 | Y119: 1 | Z119: 0 | AA119: 0 | AB119: 0 | AC119: 1 | AD119: 1.569999993 | AE119: 2 | AF119: 1.189999998 | AG119: 8 | AH119: 7.560000002
A120: A81612 | B120: THE PATEL PRACTICE | C120: A81612 | D120: 00K | E120: NHS HARTLEPOOL AND STOCKTON-ON-TEES CCG | F120: Q74 | G120: NHS ENGLAND NORTH (CUMBRIA AND NORTH EAST) | H120: Y54 | I120: North of England | J120: YDF30 | K120: HEALTH EDUCATION NORTH EAST | L120: GMS | M120: 3005 | N120: 1518 | O120: 1487 | P120: 2 | Q120: 1.740000069 | R120: 0 | S120: 1 | T120: 0 | U120: 0 | V120: 0 | W120: 0 | X120: 0 | Y120: 0 | Z120: 0 | AA120: 1 | AB120: 0 | AC120: 2 | AD120: 1.310000017 | AE120: 1 | AF120: 0.589999974 | AG120: 6 | AH120: 4.780000031
A121: A81623 | B121: NORTH SHORE MEDICAL PRACTICE | C121: A81623 | D121: 00K | E121: NHS HARTLEPOOL AND STOCKTON-ON-TEES CCG | F121: Q74 | G121: NHS ENGLAND NORTH (CUMBRIA AND NORTH EAST) | H121: Y54 | I121: North of England | J121: YDF30 | K121: HEALTH EDUCATION NORTH EAST | L121: GMS | M121: 1742 | N121: 932 | O121: 810 | P121: NS | Q121: NS | R121: NS | S121: NS | T121: NS | U121: NS | V121: NS | W121: NS | X121: NS | Y121: NS | Z121: NS | AA121: NS | AB121: NS | AC121: NS | AD121: NS | AE121: NS | AF121: NS | AG121: NS | AH121: NS
A122: A83030 | B122: DUNELM MEDICAL PRACTICE | C122: A83030 | D122: 00J | E122: NHS NORTH DURHAM CCG | F122: Q74 | G122: NHS ENGLAND NORTH (CUMBRIA AND NORTH EAST) | H122: Y54 | I122: North of England | J122: YDF30 | K122: HEALTH EDUCATION NORTH EAST | L122: GMS | M122: 12107 | N122: 6064 | O122: 6043 | P122: 9 | Q122: 6.810000047 | R122: 0 | S122: 1 | T122: 2 | U122: 2 | V122: 0 | W122: 2 | X122: 2 | Y122: 0 | Z122: 0 | AA122: 0 | AB122: 0 | AC122: 3 | AD122: 5.75000003 | AE122: 4 | AF122: 3.49000001 | AG122: 0 | AH122: 0
A123: A83032 | B123: WOODVIEW MEDICAL PRACTICE | C123: A83032 | D123: 00D | E123: NHS DURHAM DALES, EASINGTON AND SEDGEFIELD CCG | F123: Q74 | G123: NHS ENGLAND NORTH (CUMBRIA AND NORTH EAST) | H123: Y54 | I123: North of England | J123: YDF30 | K123: HEALTH EDUCATION NORTH EAST | L123: GMS | M123: 2413 | N123: 1174 | O123: 1239 | P123: 2 | Q123: 1.600000024 | R123: 0 | S123: 0 | T123: 0 | U123: 0 | V123: 0 | W123: 1 | X123: 1 | Y123: 0 | Z123: 0 | AA123: 0 | AB123: 0 | AC123: 1 | AD123: 0.800000012 | AE123: 1 | AF123: 0.479999989 | AG123: 4 | AH123: 2.889999986
A124: A83033 | B124: PELTON & FELLROSE MEDICAL GROUP | C124: A83033 | D124: 00J | E124: NHS NORTH DURHAM CCG | F124: Q74 | G124: NHS ENGLAND NORTH (CUMBRIA AND NORTH EAST) | H124: Y54 | I124: North of England | J124: YDF30 | K124: HEALTH EDUCATION NORTH EAST | L124: GMS | M124: 8747 | N124: 4388 | O124: 4359 | P124: 5 | Q124: 4.560000002 | R124: 0 | S124: 0 | T124: 0 | U124: 1 | V124: 2 | W124: 1 | X124: 1 | Y124: 0 | Z124: 0 | AA124: 0 | AB124: 0 | AC124: 5 | AD124: 3.790000036 | AE124: 2 | AF124: 1.920000017 | AG124: 18 | AH124: 14.20000014
A125: A83034 | B125: BLACKETTS MEDICAL PRACTICE | C125: A83034 | D125: 00C | E125: NHS DARLINGTON CCG | F125: Q74 | G125: NHS ENGLAND NORTH (CUMBRIA AND NORTH EAST) | H125: Y54 | I125: North of England | J125: YDF30 | K125: HEALTH EDUCATION NORTH EAST | L125: GMS | M125: 10062 | N125: 4951 | O125: 5111 | P125: 8 | Q125: 6.070000052 | R125: 0 | S125: 0 | T125: 0 | U125: 3 | V125: 2 | W125: 1 | X125: 0 | Y125: 1 | Z125: 1 | AA125: 0 | AB125: 0 | AC125: 3 | AD125: 4.839999974 | AE125: 0 | AF125: 0 | AG125: 17 | AH125: 11.17000005
A126: A83035 | B126: THE WEARDALE PRACTICE | C126: A83035 | D126: 00D | E126: NHS DURHAM DALES, EASINGTON AND SEDGEFIELD CCG | F126: Q74 | G126: NHS ENGLAND NORTH (CUMBRIA AND NORTH EAST) | H126: Y54 | I126: North of England | J126: YDF30 | K126: HEALTH EDUCATION NORTH EAST | L126: GMS | M126: 7205 | N126: 3580 | O126: 3625 | P126: 9 | Q126: 7.600000054 | R126: 1 | S126: 4 | T126: 1 | U126: 0 | V126: 1 | W126: 1 | X126: 1 | Y126: 0 | Z126: 0 | AA126: 0 | AB126: 0 | AC126: 4 | AD126: 3.230000019 | AE126: 5 | AF126: 3.620000005 | AG126: 16 | AH126: 12.51000005
A127: A83038 | B127: CEDARS MEDICAL GROUP | C127: A83038 | D127: 00J | E127: NHS NORTH DURHAM CCG | F127: Q74 | G127: NHS ENGLAND NORTH (CUMBRIA AND NORTH EAST) | H127: Y54 | I127: North of England | J127: YDF30 | K127: HEALTH EDUCATION NORTH EAST | L127: PMS | M127: 5654 | N127: 2675 | O127: 2979 | P127: 4 | Q127: 3.460000038 | R127: 0 | S127: 1 | T127: 2 | U127: 0 | V127: 1 | W127: 0 | X127: 0 | Y127: 0 | Z127: 0 | AA127: 0 | AB127: 0 | AC127: 2 | AD127: 2.379999995 | AE127: 1 | AF127: 1 | AG127: 9 | AH127: 7.920000017
A128: A83041 | B128: MURTON MEDICAL CENTRE | C128: A83041 | D128: 00D | E128: NHS DURHAM DALES, EASINGTON AND SEDGEFIELD CCG | F128: Q74 | G128: NHS ENGLAND NORTH (CUMBRIA AND NORTH EAST) | H128: Y54 | I128: North of England | J128: YDF30 | K128: HEALTH EDUCATION NORTH EAST | L128: PMS | M128: 7662 | N128: 3768 | O128: 3894 | P128: 5 | Q128: 3.970000029 | R128: 0 | S128: 0 | T128: 1 | U128: 2 | V128: 0 | W128: 0 | X128: 1 | Y128: 1 | Z128: 0 | AA128: 0 | AB128: 0 | AC128: 1 | AD128: 2.730000019 | AE128: 2 | AF128: 1.639999986 | AG128: 15 | AH128: 12.98000011
A129: A83046 | B129: BARNARD CASTLE SURGERY | C129: A83046 | D129: 00D | E129: NHS DURHAM DALES, EASINGTON AND SEDGEFIELD CCG | F129: Q74 | G129: NHS ENGLAND NORTH (CUMBRIA AND NORTH EAST) | H129: Y54 | I129: North of England | J129: YDF30 | K129: HEALTH EDUCATION NORTH EAST | L129: GMS | M129: 10355 | N129: 5084 | O129: 5271 | P129: 12 | Q129: 10.69000036 | R129: 0 | S129: 4 | T129: 0 | U129: 1 | V129: 0 | W129: 5 | X129: 0 | Y129: 2 | Z129: 0 | AA129: 0 | AB129: 0 | AC129: 5 | AD129: 3.400000006 | AE129: 5 | AF129: 4.029999942 | AG129: 13 | AH129: 11.39999999
A130: A83047 | B130: DENMARK STREET SURGERY | C130: A83047 | D130: 00C | E130: NHS DARLINGTON CCG | F130: Q74 | G130: NHS ENGLAND NORTH (CUMBRIA AND NORTH EAST) | H130: Y54 | I130: North of England | J130: YDF30 | K130: HEALTH EDUCATION NORTH EAST | L130: GMS | M130: 14206 | N130: 6972 | O130: 7234 | P130: 15 | Q130: 18.1500001 | R130: 0 | S130: 4 | T130: 4 | U130: 3 | V130: 1 | W130: 2 | X130: 1 | Y130: 0 | Z130: 0 | AA130: 0 | AB130: 0 | AC130: 7 | AD130: 6.550000042 | AE130: 2 | AF130: 1.310000002 | AG130: 24 | AH130: 17.27
A131: A83049 | B131: QUEENS ROAD SURGERY | C131: A83049 | D131: 00J | E131: NHS NORTH DURHAM CCG | F131: Q74 | G131: NHS ENGLAND NORTH (CUMBRIA AND NORTH EAST) | H131: Y54 | I131: North of England | J131: YDF30 | K131: HEALTH EDUCATION NORTH EAST | L131: PMS | M131: 12872 | N131: 6271 | O131: 6601 | P131: 6 | Q131: 5.370000064 | R131: 0 | S131: 0 | T131: 0 | U131: 0 | V131: 1 | W131: 5 | X131: 0 | Y131: 0 | Z131: 0 | AA131: 0 | AB131: 0 | AC131: 4 | AD131: 6.200000107 | AE131: 2 | AF131: 1.980000019 | AG131: 22 | AH131: 17.14000025
A132: A81629 | B132: RIVERSIDE MEDICAL PRACTICE | C132: A81629 | D132: 00K | E132: NHS HARTLEPOOL AND STOCKTON-ON-TEES CCG | F132: Q74 | G132: NHS ENGLAND NORTH (CUMBRIA AND NORTH EAST) | H132: Y54 | I132: North of England | J132: YDF30 | K132: HEALTH EDUCATION NORTH EAST | L132: GMS | M132: 3799 | N132: 1978 | O132: 1821 | P132: 2 | Q132: 2.400000095 | R132: 0 | S132: 0 | T132: 1 | U132: 1 | V132: 0 | W132: 0 | X132: 0 | Y132: 0 | Z132: 0 | AA132: 0 | AB132: 0 | AC132: 0 | AD132: 0.920000017 | AE132: 1 | AF132: 0.330000013 | AG132: 0 | AH132: 0
A133: A81630 | B133: FULCRUM MEDICAL PRACTICE | C133: A81630 | D133: 00M | E133: NHS SOUTH TEES CCG | F133: Q74 | G133: NHS ENGLAND NORTH (CUMBRIA AND NORTH EAST) | H133: Y54 | I133: North of England | J133: YDF30 | K133: HEALTH EDUCATION NORTH EAST | L133: PMS | M133: 712 | N133: 538 | O133: 174 | P133: 3 | Q133: 1.229999974 | R133: 0 | S133: 0 | T133: 1 | U133: 0 | V133: 1 | W133: 0 | X133: 1 | Y133: 0 | Z133: 0 | AA133: 0 | AB133: 0 | AC133: 0 | AD133: 8.680000067 | AE133: 12 | AF133: 11.69000012 | AG133: 12 | AH133: 9.380000085
A134: A81631 | B134: WEST VIEW MILLENIUM SURGERY A | C134: A81631 | D134: 00K | E134: NHS HARTLEPOOL AND STOCKTON-ON-TEES CCG | F134: Q74 | G134: NHS ENGLAND NORTH (CUMBRIA AND NORTH EAST) | H134: Y54 | I134: North of England | J134: YDF30 | K134: HEALTH EDUCATION NORTH EAST | L134: GMS | M134: 6374 | N134: 3115 | O134: 3259 | P134: 4 | Q134: 3.670000017 | R134: 0 | S134: 0 | T134: 0 | U134: 0 | V134: 1 | W134: 1 | X134: 1 | Y134: 1 | Z134: 0 | AA134: 0 | AB134: 0 | AC134: 3 | AD134: 2.689999998 | AE134: 0 | AF134: 0 | AG134: 9 | AH134: 6.419999927
A135: A81634 | B135: THE ARRIVAL PRACTICE | C135: A81634 | D135: 00K | E135: NHS HARTLEPOOL AND STOCKTON-ON-TEES CCG | F135: Q74 | G135: NHS ENGLAND NORTH (CUMBRIA AND NORTH EAST) | H135: Y54 | I135: North of England | J135: YDF30 | K135: HEALTH EDUCATION NORTH EAST | L135: PMS | M135: 1532 | N135: 987 | O135: 545 | P135: 2 | Q135: 0.929999977 | R135: 0 | S135: 0 | T135: 0 | U135: 0 | V135: 0 | W135: 0 | X135: 2 | Y135: 0 | Z135: 0 | AA135: 0 | AB135: 0 | AC135: 2 | AD135: 1.150000006 | AE135: 0 | AF135: 0 | AG135: 5 | AH135: 3.849999964
A136: A83050 | B136: CESTRIA HEALTH CENTRE | C136: A83050 | D136: 00J | E136: NHS NORTH DURHAM CCG | F136: Q74 | G136: NHS ENGLAND NORTH (CUMBRIA AND NORTH EAST) | H136: Y54 | I136: North of England | J136: YDF30 | K136: HEALTH EDUCATION NORTH EAST | L136: PMS | M136: 11867 | N136: 5826 | O136: 6041 | P136: 10 | Q136: 7.240000069 | R136: 0 | S136: 2 | T136: 3 | U136: 3 | V136: 0 | W136: 1 | X136: 1 | Y136: 0 | Z136: 0 | AA136: 0 | AB136: 0 | AC136: 2 | AD136: 2.840000033 | AE136: 3 | AF136: 2.830000043 | AG136: 19 | AH136: 14.63000008
A137: A83051 | B137: MARLBOROUGH SURGERY | C137: A83051 | D137: 00D | E137: NHS DURHAM DALES, EASINGTON AND SEDGEFIELD CCG | F137: Q74 | G137: NHS ENGLAND NORTH (CUMBRIA AND NORTH EAST) | H137: Y54 | I137: North of England | J137: YDF30 | K137: HEALTH EDUCATION NORTH EAST | L137: GMS | M137: 10207 | N137: 5007 | O137: 5200 | P137: 7 | Q137: 5.670000136 | R137: 0 | S137: 0 | T137: 1 | U137: 1 | V137: 1 | W137: 3 | X137: 0 | Y137: 0 | Z137: 1 | AA137: 0 | AB137: 0 | AC137: 3 | AD137: 3.690000042 | AE137: 2 | AF137: 1.470000029 | AG137: 19 | AH137: 15.53000009
A138: A82003 | B138: ULVERSTON HEALTH CENTRE (MURRAY) | C138: A82003 | D138: 01H | E138: NHS CUMBRIA CCG | F138: Q74 | G138: NHS ENGLAND NORTH (CUMBRIA AND NORTH EAST) | H138: Y54 | I138: North of England | J138: YDF31 | K138: HEALTH EDUCATION NORTH WEST | L138: GMS | M138: 10998 | N138: 5426 | O138: 5572 | P138: 8 | Q138: 7.25 | R138: 0 | S138: 2 | T138: 3 | U138: 0 | V138: 1 | W138: 0 | X138: 2 | Y138: 0 | Z138: 0 | AA138: 0 | AB138: 0 | AC138: 4 | AD138: 3.379999995 | AE138: 4 | AF138: 2.169999987 | AG138: 19 | AH138: 16.54000002
A139: A82005 | B139: AMBLESIDE HEALTH CENTRE | C139: A82005 | D139: 01H | E139: NHS CUMBRIA CCG | F139: Q74 | G139: NHS ENGLAND NORTH (CUMBRIA AND NORTH EAST) | H139: Y54 | I139: North of England | J139: YDF31 | K139: HEALTH EDUCATION NORTH WEST | L139: GMS | M139: 5159 | N139: 2692 | O139: 2467 | P139: 4 | Q139: 2.579999983 | R139: 0 | S139: 0 | T139: 0 | U139: 0 | V139: 0 | W139: 4 | X139: 0 | Y139: 0 | Z139: 0 | AA139: 0 | AB139: 0 | AC139: 4 | AD139: 3.139999971 | AE139: 2 | AF139: 1.090000004 | AG139: 9 | AH139: 7.769999981
A140: A82006 | B140: APPLEBY MEDICAL PRACTICE | C140: A82006 | D140: 01H | E140: NHS CUMBRIA CCG | F140: Q74 | G140: NHS ENGLAND NORTH (CUMBRIA AND NORTH EAST) | H140: Y54 | I140: North of England | J140: YDF31 | K140: HEALTH EDUCATION NORTH WEST | L140: GMS | M140: 4822 | N140: 2428 | O140: 2394 | P140: 4 | Q140: 3.210000038 | R140: 0 | S140: 1 | T140: 0 | U140: 1 | V140: 0 | W140: 1 | X140: 0 | Y140: 1 | Z140: 0 | AA140: 0 | AB140: 0 | AC140: 2 | AD140: 1.600000024 | AE140: 2 | AF140: 1.980000019 | AG140: 8 | AH140: 5.75
A141: A82008 | B141: NORWOOD MEDICAL CENTRE | C141: A82008 | D141: 01H | E141: NHS CUMBRIA CCG | F141: Q74 | G141: NHS ENGLAND NORTH (CUMBRIA AND NORTH EAST) | H141: Y54 | I141: North of England | J141: YDF31 | K141: HEALTH EDUCATION NORTH WEST | L141: GMS | M141: 10974 | N141: 5473 | O141: 5501 | P141: 7 | Q141: 7.490000367 | R141: 0 | S141: 0 | T141: 2 | U141: 3 | V141: 0 | W141: 2 | X141: 0 | Y141: 0 | Z141: 0 | AA141: 0 | AB141: 0 | AC141: 5 | AD141: 3.950000048 | AE141: 2 | AF141: 1.980000019 | AG141: 17 | AH141: 14.69000015
A142: A82010 | B142: ABBEY ROAD SURGERY | C142: A82010 | D142: 01H | E142: NHS CUMBRIA CCG | F142: Q74 | G142: NHS ENGLAND NORTH (CUMBRIA AND NORTH EAST) | H142: Y54 | I142: North of England | J142: YDF31 | K142: HEALTH EDUCATION NORTH WEST | L142: GMS | M142: 6671 | N142: 3213 | O142: 3458 | P142: 4 | Q142: 3.069999993 | R142: 0 | S142: 0 | T142: 2 | U142: 0 | V142: 0 | W142: 2 | X142: 0 | Y142: 0 | Z142: 0 | AA142: 0 | AB142: 0 | AC142: 3 | AD142: 1.839999944 | AE142: 2 | AF142: 1.149999976 | AG142: 11 | AH142: 9.140000045
A143: A82012 | B143: BRAMPTON MEDICAL PRACTICE | C143: A82012 | D143: 01H | E143: NHS CUMBRIA CCG | F143: Q74 | G143: NHS ENGLAND NORTH (CUMBRIA AND NORTH EAST) | H143: Y54 | I143: North of England | J143: YDF31 | K143: HEALTH EDUCATION NORTH WEST | L143: GMS | M143: 15412 | N143: 7573 | O143: 7839 | P143: 12 | Q143: 9.940000176 | R143: 1 | S143: 0 | T143: 1 | U143: 1 | V143: 4 | W143: 4 | X143: 1 | Y143: 0 | Z143: 0 | AA143: 0 | AB143: 0 | AC143: 2 | AD143: 5.390000045 | AE143: 3 | AF143: 2.569999993 | AG143: 49 | AH143: 37.75000018
A144: A83057 | B144: SHINWELL MEDICAL GROUP | C144: A83057 | D144: 00D | E144: NHS DURHAM DALES, EASINGTON AND SEDGEFIELD CCG | F144: Q74 | G144: NHS ENGLAND NORTH (CUMBRIA AND NORTH EAST) | H144: Y54 | I144: North of England | J144: YDF30 | K144: HEALTH EDUCATION NORTH EAST | L144: PMS | M144: 6292 | N144: 3181 | O144: 3111 | P144: 3 | Q144: 1.759999983 | R144: 0 | S144: 0 | T144: 1 | U144: 0 | V144: 0 | W144: 1 | X144: 1 | Y144: 0 | Z144: 0 | AA144: 0 | AB144: 0 | AC144: 2 | AD144: 1.680000007 | AE144: 2 | AF144: 2 | AG144: 15 | AH144: 11.43000007
A145: A83061 | B145: GAINFORD SURGERY | C145: A83061 | D145: 00D | E145: NHS DURHAM DALES, EASINGTON AND SEDGEFIELD CCG | F145: Q74 | G145: NHS ENGLAND NORTH (CUMBRIA AND NORTH EAST) | H145: Y54 | I145: North of England | J145: YDF30 | K145: HEALTH EDUCATION NORTH EAST | L145: GMS | M145: 3370 | N145: 1675 | O145: 1695 | P145: 3 | Q145: 1.919999957 | R145: 0 | S145: 1 | T145: 0 | U145: 0 | V145: 0 | W145: 0 | X145: 0 | Y145: 2 | Z145: 0 | AA145: 0 | AB145: 0 | AC145: 2 | AD145: 1.059999943 | AE145: 0 | AF145: 0 | AG145: 8 | AH145: 5.199999928
A146: A82013 | B146: UPPER EDEN MEDICAL PRACTICE | C146: A82013 | D146: 01H | E146: NHS CUMBRIA CCG | F146: Q74 | G146: NHS ENGLAND NORTH (CUMBRIA AND NORTH EAST) | H146: Y54 | I146: North of England | J146: YDF31 | K146: HEALTH EDUCATION NORTH WEST | L146: GMS | M146: 6758 | N146: 3379 | O146: 3379 | P146: 7 | Q146: 5 | R146: 0 | S146: 1 | T146: 0 | U146: 1 | V146: 0 | W146: 1 | X146: 4 | Y146: 0 | Z146: 0 | AA146: 0 | AB146: 0 | AC146: 3 | AD146: 2.770000041 | AE146: 9 | AF146: 5.659999862 | AG146: 18 | AH146: 10.48000005
A147: A82017 | B147: BRUNSWICK HOUSE MEDICAL GROUP | C147: A82017 | D147: 01H | E147: NHS CUMBRIA CCG | F147: Q74 | G147: NHS ENGLAND NORTH (CUMBRIA AND NORTH EAST) | H147: Y54 | I147: North of England | J147: YDF31 | K147: HEALTH EDUCATION NORTH WEST | L147: GMS | M147: 14268 | N147: 6998 | O147: 7270 | P147: 12 | Q147: 10.86999997 | R147: 0 | S147: 0 | T147: 2 | U147: 1 | V147: 4 | W147: 4 | X147: 1 | Y147: 0 | Z147: 0 | AA147: 0 | AB147: 0 | AC147: 7 | AD147: 7.590000063 | AE147: 4 | AF147: 3 | AG147: 30 | AH147: 24.17999998
A148: A82019 | B148: FUSEHILL MEDICAL PRACTICE | C148: A82019 | D148: 01H | E148: NHS CUMBRIA CCG | F148: Q74 | G148: NHS ENGLAND NORTH (CUMBRIA AND NORTH EAST) | H148: Y54 | I148: North of England | J148: YDF31 | K148: HEALTH EDUCATION NORTH WEST | L148: GMS | M148: 8559 | N148: 4001 | O148: 4558 | P148: 7 | Q148: 9.11999996 | R148: 0 | S148: 0 | T148: 1 | U148: 3 | V148: 1 | W148: 0 | X148: 1 | Y148: 1 | Z148: 0 | AA148: 0 | AB148: 0 | AC148: 2 | AD148: 1.74000001 | AE148: 4 | AF148: 2.529999956 | AG148: 17 | AH148: 11.46999992
A149: A82022 | B149: DALSTON MEDICAL GROUP | C149: A82022 | D149: 01H | E149: NHS CUMBRIA CCG | F149: Q74 | G149: NHS ENGLAND NORTH (CUMBRIA AND NORTH EAST) | H149: Y54 | I149: North of England | J149: YDF31 | K149: HEALTH EDUCATION NORTH WEST | L149: GMS | M149: 5045 | N149: 2586 | O149: 2459 | P149: 5 | Q149: 3.069999993 | R149: 0 | S149: 1 | T149: 0 | U149: 1 | V149: 1 | W149: 1 | X149: 1 | Y149: 0 | Z149: 0 | AA149: 0 | AB149: 0 | AC149: 3 | AD149: 3 | AE149: 10 | AF149: 6.23999992 | AG149: 9 | AH149: 5.680000007
A150: A82024 | B150: SEASCALE HEALTH CENTRE | C150: A82024 | D150: 01H | E150: NHS CUMBRIA CCG | F150: Q74 | G150: NHS ENGLAND NORTH (CUMBRIA AND NORTH EAST) | H150: Y54 | I150: North of England | J150: YDF31 | K150: HEALTH EDUCATION NORTH WEST | L150: GMS | M150: 5630 | N150: 2849 | O150: 2781 | P150: 5 | Q150: 3.50000006 | R150: 0 | S150: 1 | T150: 0 | U150: 1 | V150: 0 | W150: 2 | X150: 1 | Y150: 0 | Z150: 0 | AA150: 0 | AB150: 0 | AC150: 4 | AD150: 4.539999992 | AE150: 7 | AF150: 4.280000031 | AG150: 16 | AH150: 12.57000011
A151: A82027 | B151: STATION HOUSE SURGERY | C151: A82027 | D151: 01H | E151: NHS CUMBRIA CCG | F151: Q74 | G151: NHS ENGLAND NORTH (CUMBRIA AND NORTH EAST) | H151: Y54 | I151: North of England | J151: YDF31 | K151: HEALTH EDUCATION NORTH WEST | L151: GMS | M151: 10656 | N151: 5347 | O151: 5309 | P151: 10 | Q151: 6.350000024 | R151: 0 | S151: 1 | T151: 1 | U151: 2 | V151: 2 | W151: 3 | X151: 0 | Y151: 1 | Z151: 0 | AA151: 0 | AB151: 0 | AC151: 5 | AD151: 3.300000012 | AE151: 7 | AF151: 6.00000006 | AG151: 15 | AH151: 11.53000009
A152: A82029 | B152: THE CROFT SURGERY | C152: A82029 | D152: 01H | E152: NHS CUMBRIA CCG | F152: Q74 | G152: NHS ENGLAND NORTH (CUMBRIA AND NORTH EAST) | H152: Y54 | I152: North of England | J152: YDF31 | K152: HEALTH EDUCATION NORTH WEST | L152: GMS | M152: 3416 | N152: 1727 | O152: 1689 | P152: 4 | Q152: 3.49000001 | R152: 0 | S152: 1 | T152: 0 | U152: 1 | V152: 0 | W152: 1 | X152: 1 | Y152: 0 | Z152: 0 | AA152: 0 | AB152: 0 | AC152: 3 | AD152: 1.659999967 | AE152: 0 | AF152: 0 | AG152: 10 | AH152: 5.49999997
A153: A82031 | B153: SHAP MEDICAL PRACTICE | C153: A82031 | D153: 01H | E153: NHS CUMBRIA CCG | F153: Q74 | G153: NHS ENGLAND NORTH (CUMBRIA AND NORTH EAST) | H153: Y54 | I153: North of England | J153: YDF31 | K153: HEALTH EDUCATION NORTH WEST | L153: GMS | M153: 2883 | N153: 1462 | O153: 1421 | P153: 3 | Q153: 2.409999967 | R153: 0 | S153: 0 | T153: 0 | U153: 0 | V153: 2 | W153: 0 | X153: 1 | Y153: 0 | Z153: 0 | AA153: 0 | AB153: 0 | AC153: 2 | AD153: 1.219999969 | AE153: 5 | AF153: 3.349999964 | AG153: 6 | AH153: 4.390000045
A154: A82033 | B154: WATERLOO HOUSE SURGERY | C154: A82033 | D154: 01H | E154: NHS CUMBRIA CCG | F154: Q74 | G154: NHS ENGLAND NORTH (CUMBRIA AND NORTH EAST) | H154: Y54 | I154: North of England | J154: YDF31 | K154: HEALTH EDUCATION NORTH WEST | L154: PMS | M154: 8383 | N154: 4196 | O154: 4187 | P154: 6 | Q154: 4.540000111 | R154: 0 | S154: 1 | T154: 1 | U154: 1 | V154: 1 | W154: 2 | X154: 0 | Y154: 0 | Z154: 0 | AA154: 0 | AB154: 0 | AC154: 4 | AD154: 3.179999977 | AE154: 2 | AF154: 1.5 | AG154: 12 | AH154: 9.579999983
A155: A82034 | B155: STONELEIGH SURGERY | C155: A82034 | D155: 01H | E155: NHS CUMBRIA CCG | F155: Q74 | G155: NHS ENGLAND NORTH (CUMBRIA AND NORTH EAST) | H155: Y54 | I155: North of England | J155: YDF31 | K155: HEALTH EDUCATION NORTH WEST | L155: GMS | M155: 6596 | N155: 3206 | O155: 3390 | P155: 6 | Q155: 4.430000007 | R155: 0 | S155: 1 | T155: 1 | U155: 0 | V155: 1 | W155: 2 | X155: 1 | Y155: 0 | Z155: 0 | AA155: 0 | AB155: 0 | AC155: 3 | AD155: 1.940000027 | AE155: 2 | AF155: 1.289999992 | AG155: 15 | AH155: 10.04999998
A156: A83070 | B156: FELIX HOUSE SURGERY | C156: A83070 | D156: 00C | E156: NHS DARLINGTON CCG | F156: Q74 | G156: NHS ENGLAND NORTH (CUMBRIA AND NORTH EAST) | H156: Y54 | I156: North of England | J156: YDF30 | K156: HEALTH EDUCATION NORTH EAST | L156: GMS | M156: 5549 | N156: 2796 | O156: 2753 | P156: 3 | Q156: 2.670000076 | R156: 0 | S156: 0 | T156: 0 | U156: 0 | V156: 1 | W156: 1 | X156: 1 | Y156: 0 | Z156: 0 | AA156: 0 | AB156: 0 | AC156: 1 | AD156: 1.25 | AE156: 3 | AF156: 2.570000052 | AG156: 11 | AH156: 7.469999969
A157: A83072 | B157: LANCHESTER MEDICAL CENTRE | C157: A83072 | D157: 00J | E157: NHS NORTH DURHAM CCG | F157: Q74 | G157: NHS ENGLAND NORTH (CUMBRIA AND NORTH EAST) | H157: Y54 | I157: North of England | J157: YDF30 | K157: HEALTH EDUCATION NORTH EAST | L157: PMS | M157: 4035 | N157: 1943 | O157: 2092 | P157: 2 | Q157: 1.800000012 | R157: 0 | S157: 1 | T157: 0 | U157: 0 | V157: 0 | W157: 0 | X157: 1 | Y157: 0 | Z157: 0 | AA157: 0 | AB157: 0 | AC157: 1 | AD157: 3.059999943 | AE157: 2 | AF157: 1.600000024 | AG157: 4 | AH157: 3.420000017
A158: A83073 | B158: DRS LAMBERT & NG | C158: A83073 | D158: 00J | E158: NHS NORTH DURHAM CCG | F158: Q74 | G158: NHS ENGLAND NORTH (CUMBRIA AND NORTH EAST) | H158: Y54 | I158: North of England | J158: YDF30 | K158: HEALTH EDUCATION NORTH EAST | L158: PMS | M158: 5049 | N158: 2483 | O158: 2566 | P158: 2 | Q158: 1.870000064 | R158: 0 | S158: 0 | T158: 1 | U158: 0 | V158: 0 | W158: 0 | X158: 1 | Y158: 0 | Z158: 0 | AA158: 0 | AB158: 0 | AC158: 1 | AD158: 2.480000019 | AE158: 1 | AF158: 0.99000001 | AG158: 7 | AH158: 6.379999995
A159: A83074 | B159: PEASE WAY MEDICAL CENTRE | C159: A83074 | D159: 00D | E159: NHS DURHAM DALES, EASINGTON AND SEDGEFIELD CCG | F159: Q74 | G159: NHS ENGLAND NORTH (CUMBRIA AND NORTH EAST) | H159: Y54 | I159: North of England | J159: YDF30 | K159: HEALTH EDUCATION NORTH EAST | L159: PMS | M159: 11388 | N159: 5665 | O159: 5723 | P159: 6 | Q159: 5.629999995 | R159: 0 | S159: 0 | T159: 1 | U159: 1 | V159: 2 | W159: 2 | X159: 0 | Y159: 0 | Z159: 0 | AA159: 0 | AB159: 0 | AC159: 0 | AD159: 6.940000087 | AE159: 5 | AF159: 3.930000007 | AG159: 21 | AH159: 14.48000006
A160: A83075 | B160: DENESIDE MEDICAL CENTRE | C160: A83075 | D160: 00D | E160: NHS DURHAM DALES, EASINGTON AND SEDGEFIELD CCG | F160: Q74 | G160: NHS ENGLAND NORTH (CUMBRIA AND NORTH EAST) | H160: Y54 | I160: North of England | J160: YDF30 | K160: HEALTH EDUCATION NORTH EAST | L160: GMS | M160: 4722 | N160: 2432 | O160: 2290 | P160: 2 | Q160: 1.340000063 | R160: 0 | S160: 0 | T160: 1 | U160: 0 | V160: 0 | W160: 0 | X160: 0 | Y160: 0 | Z160: 0 | AA160: 1 | AB160: 0 | AC160: 1 | AD160: 1.919999987 | AE160: 2 | AF160: 0.860000014 | AG160: 10 | AH160: 7.890000135
A161: A83603 | B161: OXFORD ROAD MEDICAL PRACTICE | C161: A83603 | D161: 00D | E161: NHS DURHAM DALES, EASINGTON AND SEDGEFIELD CCG | F161: Q74 | G161: NHS ENGLAND NORTH (CUMBRIA AND NORTH EAST) | H161: Y54 | I161: North of England | J161: YDF30 | K161: HEALTH EDUCATION NORTH EAST | L161: PMS | M161: 2736 | N161: 1387 | O161: 1349 | P161: 2 | Q161: 2 | R161: 0 | S161: 0 | T161: 0 | U161: 0 | V161: 0 | W161: 1 | X161: 1 | Y161: 0 | Z161: 0 | AA161: 0 | AB161: 0 | AC161: 2 | AD161: 1.150000006 | AE161: 1 | AF161: 1 | AG161: 5 | AH161: 3.889999986
A162: A83610 | B162: WINGATE MEDICAL PRACTICE INTRAHEALTH | C162: A83610 | D162: 00D | E162: NHS DURHAM DALES, EASINGTON AND SEDGEFIELD CCG | F162: Q74 | G162: NHS ENGLAND NORTH (CUMBRIA AND NORTH EAST) | H162: Y54 | I162: North of England | J162: YDF30 | K162: HEALTH EDUCATION NORTH EAST | L162: PMS | M162: 2823 | N162: 1455 | O162: 1368 | P162: 2 | Q162: 0.540000021 | R162: 0 | S162: 0 | T162: 0 | U162: 0 | V162: 0 | W162: 1 | X162: 1 | Y162: 0 | Z162: 0 | AA162: 0 | AB162: 0 | AC162: 1 | AD162: 1.600000024 | AE162: 1 | AF162: 1 | AG162: 6 | AH162: 4.290000021
A163: A83616 | B163: SHOTTON MEDICAL PRACTICE | C163: A83616 | D163: 00D | E163: NHS DURHAM DALES, EASINGTON AND SEDGEFIELD CCG | F163: Q74 | G163: NHS ENGLAND NORTH (CUMBRIA AND NORTH EAST) | H163: Y54 | I163: North of England | J163: YDF30 | K163: HEALTH EDUCATION NORTH EAST | L163: GMS | M163: 2325 | N163: 1221 | O163: 1104 | P163: 3 | Q163: 1.75 | R163: 0 | S163: 0 | T163: 2 | U163: 0 | V163: 0 | W163: 0 | X163: 0 | Y163: 0 | Z163: 0 | AA163: 1 | AB163: 0 | AC163: 2 | AD163: 0.63000001 | AE163: 2 | AF163: 1.389999986 | AG163: 4 | AH163: 3.470000029
A164: A82035 | B164: BIRBECK MEDICAL GROUP | C164: A82035 | D164: 01H | E164: NHS CUMBRIA CCG | F164: Q74 | G164: NHS ENGLAND NORTH (CUMBRIA AND NORTH EAST) | H164: Y54 | I164: North of England | J164: YDF31 | K164: HEALTH EDUCATION NORTH WEST | L164: GMS | M164: 15466 | N164: 7692 | O164: 7774 | P164: NS | Q164: NS | R164: NS | S164: NS | T164: NS | U164: NS | V164: NS | W164: NS | X164: NS | Y164: NS | Z164: NS | AA164: NS | AB164: NS | AC164: NS | AD164: NS | AE164: NS | AF164: NS | AG164: NS | AH164: NS
A165: A82036 | B165: THE LAKES MEDICAL PRACTICE | C165: A82036 | D165: 01H | E165: NHS CUMBRIA CCG | F165: Q74 | G165: NHS ENGLAND NORTH (CUMBRIA AND NORTH EAST) | H165: Y54 | I165: North of England | J165: YDF31 | K165: HEALTH EDUCATION NORTH WEST | L165: GMS | M165: 9404 | N165: 4655 | O165: 4749 | P165: 5 | Q165: 3.969999969 | R165: 0 | S165: 1 | T165: 1 | U165: 1 | V165: 1 | W165: 1 | X165: 0 | Y165: 0 | Z165: 0 | AA165: 0 | AB165: 0 | AC165: 5 | AD165: 3.630000025 | AE165: 5 | AF165: 3.800000072 | AG165: 14 | AH165: 9.950000048
A166: A83617 | B166: BROWNEY HOUSE SURGERY | C166: A83617 | D166: 00J | E166: NHS NORTH DURHAM CCG | F166: Q74 | G166: NHS ENGLAND NORTH (CUMBRIA AND NORTH EAST) | H166: Y54 | I166: North of England | J166: YDF30 | K166: HEALTH EDUCATION NORTH EAST | L166: PMS | M166: 2700 | N166: 1291 | O166: 1409 | P166: 1 | Q166: 1.070000052 | R166: 0 | S166: 0 | T166: 0 | U166: 0 | V166: 0 | W166: 0 | X166: 0 | Y166: 0 | Z166: 1 | AA166: 0 | AB166: 0 | AC166: 1 | AD166: 0.810000002 | AE166: 0 | AF166: 0 | AG166: 9 | AH166: 5.920000046
A167: A83618 | B167: OAKFIELDS HEALTH CENTRE | C167: A83618 | D167: 00J | E167: NHS NORTH DURHAM CCG | F167: Q74 | G167: NHS ENGLAND NORTH (CUMBRIA AND NORTH EAST) | H167: Y54 | I167: North of England | J167: YDF30 | K167: HEALTH EDUCATION NORTH EAST | L167: PMS | M167: 4221 | N167: 2041 | O167: 2180 | P167: 3 | Q167: 2.019999981 | R167: 0 | S167: 0 | T167: 1 | U167: 0 | V167: 0 | W167: 1 | X167: 1 | Y167: 0 | Z167: 0 | AA167: 0 | AB167: 0 | AC167: 2 | AD167: 2.340000033 | AE167: 5 | AF167: 3.450000018 | AG167: 8 | AH167: 5.560000002
A168: A83619 | B168: SOUTHDENE MEDICAL CENTRE | C168: A83619 | D168: 00D | E168: NHS DURHAM DALES, EASINGTON AND SEDGEFIELD CCG | F168: Q74 | G168: NHS ENGLAND NORTH (CUMBRIA AND NORTH EAST) | H168: Y54 | I168: North of England | J168: YDF30 | K168: HEALTH EDUCATION NORTH EAST | L168: PMS | M168: 2821 | N168: 1522 | O168: 1299 | P168: 2 | Q168: 1.870000064 | R168: 0 | S168: 0 | T168: 0 | U168: 0 | V168: 0 | W168: 0 | X168: 0 | Y168: 1 | Z168: 0 | AA168: 1 | AB168: 0 | AC168: 2 | AD168: 1.730000019 | AE168: 1 | AF168: 1 | AG168: 6 | AH168: 3.989999965
A169: A83626 | B169: EVENWOOD MEDICAL PRACTICE | C169: A83626 | D169: 00D | E169: NHS DURHAM DALES, EASINGTON AND SEDGEFIELD CCG | F169: Q74 | G169: NHS ENGLAND NORTH (CUMBRIA AND NORTH EAST) | H169: Y54 | I169: North of England | J169: YDF30 | K169: HEALTH EDUCATION NORTH EAST | L169: GMS | M169: 2019 | N169: 1030 | O169: 989 | P169: 4 | Q169: 0.839999974 | R169: 0 | S169: 0 | T169: 1 | U169: 0 | V169: 0 | W169: 1 | X169: 2 | Y169: 0 | Z169: 0 | AA169: 0 | AB169: 0 | AC169: 1 | AD169: 0.400000006 | AE169: 2 | AF169: 1.469999969 | AG169: 2 | AH169: 1.660000026
A170: A82038 | B170: TEMPLE SOWERBY MEDICAL PRACTICE | C170: A82038 | D170: 01H | E170: NHS CUMBRIA CCG | F170: Q74 | G170: NHS ENGLAND NORTH (CUMBRIA AND NORTH EAST) | H170: Y54 | I170: North of England | J170: YDF31 | K170: HEALTH EDUCATION NORTH WEST | L170: GMS | M170: 4420 | N170: 2206 | O170: 2214 | P170: 2 | Q170: 1.860000014 | R170: 0 | S170: 0 | T170: 0 | U170: 1 | V170: 1 | W170: 0 | X170: 0 | Y170: 0 | Z170: 0 | AA170: 0 | AB170: 0 | AC170: 2 | AD170: 1.159999967 | AE170: 4 | AF170: 2.769999981 | AG170: 9 | AH170: 6.599999994
A171: A82040 | B171: CATHERINE STREET SURGERY | C171: A82040 | D171: 01H | E171: NHS CUMBRIA CCG | F171: Q74 | G171: NHS ENGLAND NORTH (CUMBRIA AND NORTH EAST) | H171: Y54 | I171: North of England | J171: YDF31 | K171: HEALTH EDUCATION NORTH WEST | L171: GMS | M171: 2612 | N171: 1360 | O171: 1252 | P171: 3 | Q171: 3.460000098 | R171: 0 | S171: 0 | T171: 0 | U171: 0 | V171: 0 | W171: 0 | X171: 2 | Y171: 1 | Z171: 0 | AA171: 0 | AB171: 0 | AC171: 2 | AD171: 1.770000041 | AE171: 2 | AF171: 1.059999943 | AG171: 9 | AH171: 6.189999998
A172: A83630 | B172: DENHOLM HOUSE | C172: A83630 | D172: 00J | E172: NHS NORTH DURHAM CCG | F172: Q74 | G172: NHS ENGLAND NORTH (CUMBRIA AND NORTH EAST) | H172: Y54 | I172: North of England | J172: YDF30 | K172: HEALTH EDUCATION NORTH EAST | L172: GMS | M172: 2417 | N172: 1232 | O172: 1185 | P172: 2 | Q172: 1.550000042 | R172: 0 | S172: 0 | T172: 1 | U172: 0 | V172: 0 | W172: 1 | X172: 0 | Y172: 0 | Z172: 0 | AA172: 0 | AB172: 0 | AC172: 1 | AD172: 0.75 | AE172: 1 | AF172: 0.529999971 | AG172: 5 | AH172: 3.349999934
A173: A83637 | B173: PELTON FELL SURGERY | C173: A83637 | D173: 00J | E173: NHS NORTH DURHAM CCG | F173: Q74 | G173: NHS ENGLAND NORTH (CUMBRIA AND NORTH EAST) | H173: Y54 | I173: North of England | J173: YDF30 | K173: HEALTH EDUCATION NORTH EAST | L173: PMS | M173: 2047 | N173: 1043 | O173: 1004 | P173: 1 | Q173: 1 | R173: 0 | S173: 0 | T173: 0 | U173: 0 | V173: 1 | W173: 0 | X173: 0 | Y173: 0 | Z173: 0 | AA173: 0 | AB173: 0 | AC173: 1 | AD173: 0.870000005 | AE173: 1 | AF173: 0.479999989 | AG173: 5 | AH173: 3.270000011
A174: A83641 | B174: PARKGATE SURGERY | C174: A83641 | D174: 00C | E174: NHS DARLINGTON CCG | F174: Q74 | G174: NHS ENGLAND NORTH (CUMBRIA AND NORTH EAST) | H174: Y54 | I174: North of England | J174: YDF30 | K174: HEALTH EDUCATION NORTH EAST | L174: PMS | M174: 4819 | N174: 2612 | O174: 2207 | P174: 1 | Q174: 0.610000014 | R174: 0 | S174: 0 | T174: 0 | U174: 0 | V174: 0 | W174: 1 | X174: 0 | Y174: 0 | Z174: 0 | AA174: 0 | AB174: 0 | AC174: 2 | AD174: 3 | AE174: 1 | AF174: 0.800000012 | AG174: 9 | AH174: 5.800000012
A175: A83644 | B175: ANNFIELD PLAIN SURGERY | C175: A83644 | D175: 00J | E175: NHS NORTH DURHAM CCG | F175: Q74 | G175: NHS ENGLAND NORTH (CUMBRIA AND NORTH EAST) | H175: Y54 | I175: North of England | J175: YDF30 | K175: HEALTH EDUCATION NORTH EAST | L175: PMS | M175: 3433 | N175: 1788 | O175: 1645 | P175: 2 | Q175: 2.140000105 | R175: 0 | S175: 0 | T175: 1 | U175: 0 | V175: 0 | W175: 1 | X175: 0 | Y175: 0 | Z175: 0 | AA175: 0 | AB175: 0 | AC175: 1 | AD175: 1.910000026 | AE175: 1 | AF175: 0.209999993 | AG175: 5 | AH175: 4.730000019
A176: A82047 | B176: JAMES STREET GROUP PRACT | C176: A82047 | D176: 01H | E176: NHS CUMBRIA CCG | F176: Q74 | G176: NHS ENGLAND NORTH (CUMBRIA AND NORTH EAST) | H176: Y54 | I176: North of England | J176: YDF31 | K176: HEALTH EDUCATION NORTH WEST | L176: GMS | M176: 8981 | N176: 4486 | O176: 4495 | P176: 8 | Q176: 6.529999971 | R176: 0 | S176: 0 | T176: 2 | U176: 1 | V176: 1 | W176: 0 | X176: 4 | Y176: 0 | Z176: 0 | AA176: 0 | AB176: 0 | AC176: 6 | AD176: 4.5 | AE176: 2 | AF176: 1.139999986 | AG176: 19 | AH176: 13.98000002
A177: A82049 | B177: ORCHARD HOUSE SURGERY | C177: A82049 | D177: 01H | E177: NHS CUMBRIA CCG | F177: Q74 | G177: NHS ENGLAND NORTH (CUMBRIA AND NORTH EAST) | H177: Y54 | I177: North of England | J177: YDF31 | K177: HEALTH EDUCATION NORTH WEST | L177: GMS | M177: 5405 | N177: 2729 | O177: 2676 | P177: 4 | Q177: 3.390000045 | R177: 0 | S177: 0 | T177: 0 | U177: 1 | V177: 0 | W177: 1 | X177: 2 | Y177: 0 | Z177: 0 | AA177: 0 | AB177: 0 | AC177: 2 | AD177: 1.279999971 | AE177: 1 | AF177: 0.829999983 | AG177: 14 | AH177: 9.550000042
A178: A82050 | B178: OXFORD STREET SURGERY | C178: A82050 | D178: 01H | E178: NHS CUMBRIA CCG | F178: Q74 | G178: NHS ENGLAND NORTH (CUMBRIA AND NORTH EAST) | H178: Y54 | I178: North of England | J178: YDF31 | K178: HEALTH EDUCATION NORTH WEST | L178: GMS | M178: 7131 | N178: 3533 | O178: 3598 | P178: 3 | Q178: 2.379999995 | R178: 0 | S178: 1 | T178: 0 | U178: 1 | V178: 0 | W178: 1 | X178: 0 | Y178: 0 | Z178: 0 | AA178: 0 | AB178: 0 | AC178: 3 | AD178: 2.25 | AE178: 1 | AF178: 1 | AG178: 15 | AH178: 10.30000004
A179: A82053 | B179: NUTWOOD MEDICAL PRACTICE | C179: A82053 | D179: 01H | E179: NHS CUMBRIA CCG | F179: Q74 | G179: NHS ENGLAND NORTH (CUMBRIA AND NORTH EAST) | H179: Y54 | I179: North of England | J179: YDF31 | K179: HEALTH EDUCATION NORTH WEST | L179: GMS | M179: 4696 | N179: 2229 | O179: 2467 | P179: 6 | Q179: 4.270000011 | R179: 0 | S179: 2 | T179: 1 | U179: 2 | V179: 1 | W179: 0 | X179: 1 | Y179: 0 | Z179: 0 | AA179: 0 | AB179: 0 | AC179: 4 | AD179: 2.049999982 | AE179: 1 | AF179: 0.710000008 | AG179: 11 | AH179: 10.15999997
A180: A82055 | B180: ASPATRIA MEDICAL GROUP | C180: A82055 | D180: 01H | E180: NHS CUMBRIA CCG | F180: Q74 | G180: NHS ENGLAND NORTH (CUMBRIA AND NORTH EAST) | H180: Y54 | I180: North of England | J180: YDF31 | K180: HEALTH EDUCATION NORTH WEST | L180: GMS | M180: 6938 | N180: 3451 | O180: 3487 | P180: 5 | Q180: 4.750000119 | R180: 0 | S180: 0 | T180: 1 | U180: 2 | V180: 1 | W180: 1 | X180: 0 | Y180: 0 | Z180: 0 | AA180: 0 | AB180: 0 | AC180: 5 | AD180: 4.319999956 | AE180: 1 | AF180: 1 | AG180: 13 | AH180: 9.230000108
A181: A82058 | B181: QUEEN STREET MEDICAL PRACTICE | C181: A82058 | D181: 01H | E181: NHS CUMBRIA CCG | F181: Q74 | G181: NHS ENGLAND NORTH (CUMBRIA AND NORTH EAST) | H181: Y54 | I181: North of England | J181: YDF31 | K181: HEALTH EDUCATION NORTH WEST | L181: GMS | M181: 4061 | N181: 2022 | O181: 2039 | P181: 1 | Q181: 0.99000001 | R181: 0 | S181: 0 | T181: 0 | U181: 0 | V181: 0 | W181: 0 | X181: 1 | Y181: 0 | Z181: 0 | AA181: 0 | AB181: 0 | AC181: 3 | AD181: 1.35999997 | AE181: 1 | AF181: 0.800000012 | AG181: 9 | AH181: 6.180000037
A182: A84002 | B182: THE ROTHBURY PRACTICE | C182: A84002 | D182: 00L | E182: NHS NORTHUMBERLAND CCG | F182: Q74 | G182: NHS ENGLAND NORTH (CUMBRIA AND NORTH EAST) | H182: Y54 | I182: North of England | J182: YDF30 | K182: HEALTH EDUCATION NORTH EAST | L182: PMS | M182: 5679 | N182: 2785 | O182: 2894 | P182: 6 | Q182: 4.660000086 | R182: 0 | S182: 2 | T182: 0 | U182: 2 | V182: 0 | W182: 1 | X182: 1 | Y182: 0 | Z182: 0 | AA182: 0 | AB182: 0 | AC182: 3 | AD182: 2.140000015 | AE182: 1 | AF182: 0.189999998 | AG182: 0 | AH182: 0
A183: A84003 | B183: LINTONVILLE MEDICAL GROUP | C183: A84003 | D183: 00L | E183: NHS NORTHUMBERLAND CCG | F183: Q74 | G183: NHS ENGLAND NORTH (CUMBRIA AND NORTH EAST) | H183: Y54 | I183: North of England | J183: YDF30 | K183: HEALTH EDUCATION NORTH EAST | L183: PMS | M183: 13185 | N183: 6460 | O183: 6725 | P183: 8 | Q183: 6.880000055 | R183: 1 | S183: 1 | T183: 2 | U183: 1 | V183: 0 | W183: 1 | X183: 2 | Y183: 0 | Z183: 0 | AA183: 0 | AB183: 0 | AC183: 3 | AD183: 4 | AE183: 3 | AF183: 2.400000036 | AG183: 21 | AH183: 19.32999998
A184: A84005 | B184: BEDLINGTONSHIRE MED.GROUP | C184: A84005 | D184: 00L | E184: NHS NORTHUMBERLAND CCG | F184: Q74 | G184: NHS ENGLAND NORTH (CUMBRIA AND NORTH EAST) | H184: Y54 | I184: North of England | J184: YDF30 | K184: HEALTH EDUCATION NORTH EAST | L184: PMS | M184: 11138 | N184: 5435 | O184: 5703 | P184: 6 | Q184: 5.7299999 | R184: 1 | S184: 0 | T184: 2 | U184: 1 | V184: 1 | W184: 0 | X184: 1 | Y184: 0 | Z184: 0 | AA184: 0 | AB184: 0 | AC184: 3 | AD184: 2.839999989 | AE184: 1 | AF184: 1 | AG184: 19 | AH184: 17.81
A185: A84008 | B185: BELFORD MEDICAL PRACTICE | C185: A84008 | D185: 00L | E185: NHS NORTHUMBERLAND CCG | F185: Q74 | G185: NHS ENGLAND NORTH (CUMBRIA AND NORTH EAST) | H185: Y54 | I185: North of England | J185: YDF30 | K185: HEALTH EDUCATION NORTH EAST | L185: PMS | M185: 4434 | N185: 2153 | O185: 2281 | P185: 5 | Q185: 3.280000001 | R185: 1 | S185: 0 | T185: 1 | U185: 0 | V185: 2 | W185: 0 | X185: 0 | Y185: 1 | Z185: 0 | AA185: 0 | AB185: 0 | AC185: 2 | AD185: 1.870000005 | AE185: 6 | AF185: 4.349999964 | AG185: 5 | AH185: 4.150000036
A186: A84011 | B186: WHITE MEDICAL GROUP | C186: A84011 | D186: 00L | E186: NHS NORTHUMBERLAND CCG | F186: Q74 | G186: NHS ENGLAND NORTH (CUMBRIA AND NORTH EAST) | H186: Y54 | I186: North of England | J186: YDF30 | K186: HEALTH EDUCATION NORTH EAST | L186: GMS | M186: 7241 | N186: 3509 | O186: 3732 | P186: 6 | Q186: 4 | R186: 0 | S186: 0 | T186: 0 | U186: 2 | V186: 1 | W186: 1 | X186: 2 | Y186: 0 | Z186: 0 | AA186: 0 | AB186: 0 | AC186: 2 | AD186: 1.310000002 | AE186: 9 | AF186: 5.73999998 | AG186: 9 | AH186: 6.980000019
A187: A84016 | B187: PRUDHOE MEDICAL GROUP | C187: A84016 | D187: 00L | E187: NHS NORTHUMBERLAND CCG | F187: Q74 | G187: NHS ENGLAND NORTH (CUMBRIA AND NORTH EAST) | H187: Y54 | I187: North of England | J187: YDF30 | K187: HEALTH EDUCATION NORTH EAST | L187: PMS | M187: 6636 | N187: 3231 | O187: 3405 | P187: 5 | Q187: 3.74000001 | R187: 0 | S187: 0 | T187: 0 | U187: 1 | V187: 1 | W187: 0 | X187: 3 | Y187: 0 | Z187: 0 | AA187: 0 | AB187: 0 | AC187: 3 | AD187: 1.720000029 | AE187: 1 | AF187: 0.319999993 | AG187: 12 | AH187: 8.479999989
A188: A82063 | B188: BANK STREET SURGERY | C188: A82063 | D188: 01H | E188: NHS CUMBRIA CCG | F188: Q74 | G188: NHS ENGLAND NORTH (CUMBRIA AND NORTH EAST) | H188: Y54 | I188: North of England | J188: YDF31 | K188: HEALTH EDUCATION NORTH WEST | L188: GMS | M188: 1718 | N188: 898 | O188: 820 | P188: 1 | Q188: 1 | R188: 0 | S188: 0 | T188: 0 | U188: 0 | V188: 0 | W188: 0 | X188: 1 | Y188: 0 | Z188: 0 | AA188: 0 | AB188: 0 | AC188: 2 | AD188: 0.839999989 | AE188: 0 | AF188: 0 | AG188: 8 | AH188: 3.850000054
A189: A82064 | B189: WESTCROFT HOUSE SURGERY | C189: A82064 | D189: 01H | E189: NHS CUMBRIA CCG | F189: Q74 | G189: NHS ENGLAND NORTH (CUMBRIA AND NORTH EAST) | H189: Y54 | I189: North of England | J189: YDF31 | K189: HEALTH EDUCATION NORTH WEST | L189: GMS | M189: 4581 | N189: 2307 | O189: 2274 | P189: 3 | Q189: 2.50999999 | R189: 0 | S189: 0 | T189: 2 | U189: 0 | V189: 0 | W189: 0 | X189: 1 | Y189: 0 | Z189: 0 | AA189: 0 | AB189: 0 | AC189: 4 | AD189: 2.370000035 | AE189: 2 | AF189: 1.099999964 | AG189: 11 | AH189: 6.480000019
A190: A82065 | B190: PENINSULA MEDICAL PRACTICE | C190: A82065 | D190: 01H | E190: NHS CUMBRIA CCG | F190: Q74 | G190: NHS ENGLAND NORTH (CUMBRIA AND NORTH EAST) | H190: Y54 | I190: North of England | J190: YDF31 | K190: HEALTH EDUCATION NORTH WEST | L190: GMS | M190: 2938 | N190: 1449 | O190: 1489 | P190: 3 | Q190: 3.009999931 | R190: 0 | S190: 0 | T190: 1 | U190: 0 | V190: 0 | W190: 1 | X190: 1 | Y190: 0 | Z190: 0 | AA190: 0 | AB190: 0 | AC190: 2 | AD190: 0.799999982 | AE190: 1 | AF190: 0.270000011 | AG190: 10 | AH190: 5.189999938
A191: A82068 | B191: ULVERSTON COMMUNITY HEALTH CENTRE | C191: A82068 | D191: 01H | E191: NHS CUMBRIA CCG | F191: Q74 | G191: NHS ENGLAND NORTH (CUMBRIA AND NORTH EAST) | H191: Y54 | I191: North of England | J191: YDF31 | K191: HEALTH EDUCATION NORTH WEST | L191: GMS | M191: 4164 | N191: 2088 | O191: 2076 | P191: 3 | Q191: 2.600000024 | R191: 0 | S191: 1 | T191: 0 | U191: 1 | V191: 0 | W191: 1 | X191: 0 | Y191: 0 | Z191: 0 | AA191: 0 | AB191: 0 | AC191: 2 | AD191: 1.400000036 | AE191: 2 | AF191: 1.25999999 | AG191: 10 | AH191: 6.699999928
A192: A82070 | B192: ST.MARY'S SURGERY | C192: A82070 | D192: 01H | E192: NHS CUMBRIA CCG | F192: Q74 | G192: NHS ENGLAND NORTH (CUMBRIA AND NORTH EAST) | H192: Y54 | I192: North of England | J192: YDF31 | K192: HEALTH EDUCATION NORTH WEST | L192: GMS | M192: 6007 | N192: 2981 | O192: 3026 | P192: 6 | Q192: 4.159999967 | R192: 0 | S192: 1 | T192: 1 | U192: 1 | V192: 1 | W192: 1 | X192: 1 | Y192: 0 | Z192: 0 | AA192: 0 | AB192: 0 | AC192: 2 | AD192: 1.049999982 | AE192: 5 | AF192: 2.620000005 | AG192: 11 | AH192: 5.849999994
A193: A82071 | B193: BURNETT EDGAR MEDICAL CTR | C193: A82071 | D193: 01H | E193: NHS CUMBRIA CCG | F193: Q74 | G193: NHS ENGLAND NORTH (CUMBRIA AND NORTH EAST) | H193: Y54 | I193: North of England | J193: YDF31 | K193: HEALTH EDUCATION NORTH WEST | L193: GMS | M193: 4369 | N193: 2267 | O193: 2102 | P193: 2 | Q193: 2 | R193: 0 | S193: 0 | T193: 1 | U193: 0 | V193: 0 | W193: 0 | X193: 0 | Y193: 0 | Z193: 1 | AA193: 0 | AB193: 0 | AC193: 2 | AD193: 1.01000002 | AE193: 1 | AF193: 0.790000021 | AG193: 8 | AH193: 4.510000005
A194: A82075 | B194: MANSION HOUSE SURGERY | C194: A82075 | D194: 01H | E194: NHS CUMBRIA CCG | F194: Q74 | G194: NHS ENGLAND NORTH (CUMBRIA AND NORTH EAST) | H194: Y54 | I194: North of England | J194: YDF31 | K194: HEALTH EDUCATION NORTH WEST | L194: GMS | M194: 6385 | N194: 3083 | O194: 3302 | P194: 7 | Q194: 6.860000134 | R194: 0 | S194: 2 | T194: 1 | U194: 1 | V194: 1 | W194: 2 | X194: 0 | Y194: 0 | Z194: 0 | AA194: 0 | AB194: 0 | AC194: 3 | AD194: 1.959999979 | AE194: 3 | AF194: 2.620000005 | AG194: 13 | AH194: 10.24000007
A195: A82608 | B195: SEDBERGH MEDICAL PRACTICE | C195: A82608 | D195: 01H | E195: NHS CUMBRIA CCG | F195: Q74 | G195: NHS ENGLAND NORTH (CUMBRIA AND NORTH EAST) | H195: Y54 | I195: North of England | J195: YDF31 | K195: HEALTH EDUCATION NORTH WEST | L195: GMS | M195: 4128 | N195: 2103 | O195: 2025 | P195: 5 | Q195: 3.819999993 | R195: 0 | S195: 0 | T195: 0 | U195: 2 | V195: 2 | W195: 0 | X195: 0 | Y195: 1 | Z195: 0 | AA195: 0 | AB195: 0 | AC195: 2 | AD195: 2.189999998 | AE195: 4 | AF195: 3.25 | AG195: 7 | AH195: 5.630000085
A196: A82613 | B196: WRAYSDALE HOUSE SURGERY | C196: A82613 | D196: 01H | E196: NHS CUMBRIA CCG | F196: Q74 | G196: NHS ENGLAND NORTH (CUMBRIA AND NORTH EAST) | H196: Y54 | I196: North of England | J196: YDF31 | K196: HEALTH EDUCATION NORTH WEST | L196: GMS | M196: 966 | N196: 497 | O196: 469 | P196: 2 | Q196: 1.420000017 | R196: 0 | S196: 0 | T196: 0 | U196: 0 | V196: 1 | W196: 1 | X196: 0 | Y196: 0 | Z196: 0 | AA196: 0 | AB196: 0 | AC196: 0 | AD196: 0 | AE196: 0 | AF196: 0 | AG196: 2 | AH196: 1.279999971
A197: A82621 | B197: ASKAM SURGERY | C197: A82621 | D197: 01H | E197: NHS CUMBRIA CCG | F197: Q74 | G197: NHS ENGLAND NORTH (CUMBRIA AND NORTH EAST) | H197: Y54 | I197: North of England | J197: YDF31 | K197: HEALTH EDUCATION NORTH WEST | L197: GMS | M197: 1640 | N197: 900 | O197: 740 | P197: 1 | Q197: 1.370000005 | R197: 0 | S197: 0 | T197: 0 | U197: 0 | V197: 0 | W197: 0 | X197: 0 | Y197: 0 | Z197: 1 | AA197: 0 | AB197: 0 | AC197: 1 | AD197: 0.430000007 | AE197: 0 | AF197: 0 | AG197: 2 | AH197: 1.860000014
A198: A82646 | B198: LONGTOWN MEDICAL CENTRE | C198: A82646 | D198: 01H | E198: NHS CUMBRIA CCG | F198: Q74 | G198: NHS ENGLAND NORTH (CUMBRIA AND NORTH EAST) | H198: Y54 | I198: North of England | J198: YDF31 | K198: HEALTH EDUCATION NORTH WEST | L198: GMS | M198: 3547 | N198: 1833 | O198: 1714 | P198: 3 | Q198: 2.129999995 | R198: 0 | S198: 1 | T198: 0 | U198: 1 | V198: 1 | W198: 0 | X198: 0 | Y198: 0 | Z198: 0 | AA198: 0 | AB198: 0 | AC198: 2 | AD198: 1.569999993 | AE198: 1 | AF198: 0.639999986 | AG198: 8 | AH198: 5.210000038
A199: A82650 | B199: HAVERTHWAITE SURGERY | C199: A82650 | D199: 01H | E199: NHS CUMBRIA CCG | F199: Q74 | G199: NHS ENGLAND NORTH (CUMBRIA AND NORTH EAST) | H199: Y54 | I199: North of England | J199: YDF31 | K199: HEALTH EDUCATION NORTH WEST | L199: GMS | M199: 2739 | N199: 1395 | O199: 1344 | P199: 3 | Q199: 1.599999994 | R199: 0 | S199: 0 | T199: 0 | U199: 1 | V199: 1 | W199: 0 | X199: 1 | Y199: 0 | Z199: 0 | AA199: 0 | AB199: 0 | AC199: 2 | AD199: 0.620000005 | AE199: 1 | AF199: 0.959999979 | AG199: 8 | AH199: 6.680000007
A200: A83004 | B200: AVENUE FAMILY PRACTICE | C200: A83004 | D200: 00D | E200: NHS DURHAM DALES, EASINGTON AND SEDGEFIELD CCG | F200: Q74 | G200: NHS ENGLAND NORTH (CUMBRIA AND NORTH EAST) | H200: Y54 | I200: North of England | J200: YDF30 | K200: HEALTH EDUCATION NORTH EAST | L200: PMS | M200: 3715 | N200: 1924 | O200: 1791 | P200: 3 | Q200: 1.74000001 | R200: 0 | S200: 0 | T200: 2 | U200: 0 | V200: 0 | W200: 0 | X200: 0 | Y200: 0 | Z200: 0 | AA200: 1 | AB200: 0 | AC200: 0 | AD200: 0 | AE200: 0 | AF200: 0 | AG200: 5 | AH200: 3.790000051
... 2048 more rows

Sheet GP Input Sheet
A1: This sheet requires information about the GPs in your practice and your current ways of working.
A3: Please provide best estimates using data where possible or agreed consensus from your staff.
A4: If you do not know this information we have provided National consensus guides to provide assumptions to use.
A6: Please indicate the average consultation time your GPs spend with patients currently at your practice. | K6: 11 | L6: (mins)
A8: How many hours per day do the GPs in your practice currently work? | I8: 11.5 | J8: (hours)
A10: Of the hours worked in a typical day how many hours do the GPs in your practice spend doing the following non-patient facing activity?
H11: Prescriptions | K11: 45 | L11: (mins)
H12: Practice running admin | K12: 60 | L12: (mins)
H13: Patient related admin | K13: 50 | L13: (mins)
H14: Other-non patient facing | K14: 50 | L14: (mins)
H16: Total | K16: =K14+K13+K12+K11 -> 205 | L16: (mins)
M17: =(K16/60)/I8 -> 0.2971014493
A20: GP information
B25: Relevant KPIs | D25: Time
B26: Non patient facing admin time | D26: =M17 -> 0.2971014493
B27: Average consultations per day | D27: =(I8*60*(1-M17))/K6 -> 44.09090909
B28: GP FTE: Patient ratio | D28: ='Introduction and Summary Sheet'!I18/'Introduction and Summary Sheet'!M24 -> 1371.342901
O37: 2016 | P37: =O37+1 -> 2017 | Q37: =P37+1 -> 2018 | R37: 2019 | S37: 2020 | T37: 2021
N38: GP Demand | O38: ='Data back sheet '!Y36 -> 4.21518299 | P38: ='Data back sheet '!Z36 -> 4.265765186 | Q38: ='Data back sheet '!AA36 -> 4.316954368 | R38: ='Data back sheet '!AB36 -> 4.36875782 | S38: ='Data back sheet '!AC36 -> 4.421182914 | T38: ='Data back sheet '!AD36 -> 4.474237109
N39: GP Supply | O39: ='Data back sheet '!S36 -> 8.340000153 | P39: ='Data back sheet '!T36 -> 8.340000153 | Q39: ='Data back sheet '!U36 -> 8.340000153 | R39: ='Data back sheet '!V36 -> 8.340000153 | S39: ='Data back sheet '!W36 -> 8.340000153 | T39: ='Data back sheet '!X36 -> 8.340000153

Sheet Nurse Input Sheet
A1: This sheet requires information about the Nurses in your practice and your current ways of working
A3: Please provide best estimates using data where possible, or agreed consensus from your staff
A4: If you do not know this information we have provided National consensus guides to provide assumptions to use.
A6: Please indicate the average consultation time your Nurses spend with patients currently at your practice. | K6: 15 | L6: (mins)
A8: How many hours per day do the Nurses in your practice currently work? | I8: 8 | J8: (hours)
A10: Of the hours worked in a typical day how many hours do the Nurses in your practice spend doing the following non-patient facing activity?
H11: Prescriptions | K11: 15 | L11: (mins)
H12: Practice running admin | K12: 20 | L12: (mins)
H13: Patient related admin | K13: 10 | L13: (mins)
H14: Other-non patient facing | K14: 60 | L14: (mins)
H16: Total | K16: =K14+K13+K12+K11 -> 105
M17: =(K16/60)/I8 -> 0.21875
A20: Nurse information
B25: Relevant KPIs | D25: Time
B26: Non patient facing admin time | D26: =M17 -> 0.21875
B27: Average consultations per day | D27: =(I8*60*(1-M17))/K6 -> 25
B28: Nurse FTE: Patient ratio | D28: ='Introduction and Summary Sheet'!I18/'Introduction and Summary Sheet'!M25 -> 9076.984199
O37: 2016 | P37: =O37+1 -> 2017 | Q37: =P37+1 -> 2018 | R37: 2019 | S37: 2020 | T37: 2021
N38: Nurse Demand | O38: ='Data back sheet '!Y74 -> 2.17847619 | P38: ='Data back sheet '!Z74 -> 2.204617905 | Q38: ='Data back sheet '!AA74 -> 2.23107332 | R38: ='Data back sheet '!AB74 -> 2.257846199 | S38: ='Data back sheet '!AC74 -> 2.284940354 | T38: ='Data back sheet '!AD74 -> 2.312359638
N39: Nurse Supply | O39: ='Data back sheet '!S74 -> 1.25999999 | P39: ='Data back sheet '!T74 -> 1.25999999 | Q39: ='Data back sheet '!U74 -> 1.25999999 | R39: ='Data back sheet '!V74 -> 1.25999999 | S39: ='Data back sheet '!W74 -> 1.25999999 | T39: ='Data back sheet '!X74 -> 1.25999999

Sheet DPC Input Sheet
A1: This sheet requires information about the DPCs (NHS Digital's Classification for clinical staff other than GPs and Nurses) in your practice and your current ways of working.
A3: Please provide best estimates using data where possible or agreed consensus from your staff.
A4: If you do not know this information we have provided National consensus guides to provide assumptions to use.
A6: Please indicate the average consultation time your DPCs spend with patients currently at your practice. | K6: 10 | L6: (mins)
A8: How many hours per day do the DPCs in your practice currently work? | I8: 7 | J8: (hours)
A10: Of the hours worked in a typical day how many hours do the DPCs in your practice spend doing the following non-patient facing activity?
H11: Prescriptions | K11: 10 | L11: (mins)
H12: Practice running admin | K12: 30 | L12: (mins)
H13: Patient related admin | K13: 45 | L13: (mins)
H14: Other-non patient facing | K14: 60 | L14: (mins)
H16: Total | K16: =K14+K13+K12+K11 -> 145 | L16: (mins)
M17: =(K16/60)/I8 -> 0.3452380952
A20: DPC information
B25: Relevant KPIs | D25: Time
B26: Non patient facing admin time | D26: =M17 -> 0.3452380952
B27: Average consultations per day | D27: =(I8*60*(1-M17))/K6 -> 27.5
B28: DPC FTE: Patient ratio | D28: ='Introduction and Summary Sheet'!I18/'Introduction and Summary Sheet'!M26 -> 7148.124893
O37: 2016 | P37: =O37+1 -> 2017 | Q37: =P37+1 -> 2018 | R37: 2019 | S37: 2020 | T37: 2021
N38: DPC Demand | O38: ='Data back sheet '!Y111 -> 1.485324675 | P38: ='Data back sheet '!Z111 -> 1.503148571 | Q38: ='Data back sheet '!AA111 -> 1.521186354 | R38: ='Data back sheet '!AB111 -> 1.539440591 | S38: ='Data back sheet '!AC111 -> 1.557913878 | T38: ='Data back sheet '!AD111 -> 1.576608844
N39: DPC Supply | O39: ='Data back sheet '!S111 -> 1.600000024 | P39: ='Data back sheet '!T111 -> 1.600000024 | Q39: ='Data back sheet '!U111 -> 1.600000024 | R39: ='Data back sheet '!V111 -> 1.600000024 | S39: ='Data back sheet '!W111 -> 1.600000024 | T39: ='Data back sheet '!X111 -> 1.600000024

Sheet Admin Input Sheet
A1: This sheet requires information about the Admin roles in your practice and your current ways of working.
A3: Please provide best estimates using data where possible or agreed consensus from your staff.
A4: If you do not know this information we have provided National consensus guides to provide assumptions to use.
A6: Please indicate the average consultation time your Admin roles spend with patients currently at your practice. | K6: 5 | L6: (mins)
A8: How many hours per day do the Admins in your practice currently work? | I8: 8 | J8: (hours)
A10: In a typical day how many minutes do the Admins in your practice spend doing the following non-patient and patient facing activity?
H11: Answering phones | K11: 350 | L11: (mins)
H12: Paperwork / booking | K12: 200 | L12: (mins)
H13: Patient related admin | K13: 250 | L13: (mins)
H14: Other-non patient facing | K14: 100 | L14: (mins)
H15: Mentorship / Teaching | K15: 100 | L15: (mins)
H16: Training / Development | K16: 300 | L16: (mins)
H18: Total | K18: =K14+K13+K12+K11+K15+K16 -> 1300 | L18: (mins)
M19: =(K18/60)/I8 -> 2.708333333
A22: Admin information
B27: Relevant KPIs | D27: Time
B28: Non patient facing admin time | D28: -
B29: Average consultations per day | D29: -
B30: Admin FTE: Patient ratio | D30: ='Introduction and Summary Sheet'!I18/'Introduction and Summary Sheet'!M27 -> 1935.194518
O39: 2016 | P39: =O39+1 -> 2017 | Q39: =P39+1 -> 2018 | R39: 2019 | S39: 2020 | T39: 2021
N40: Admin Demand | P40: 2016 | Q40: =P40+1 -> 2017 | R40: 2018 | S40: 2019 | T40: 2020 | U40: 2021
N41: Admin Supply | O41: DPC Demand | P41: =K18/(I8*60) -> 2.708333333 | Q41: =P41*(1+('Introduction and Summary Sheet'!$K$20/5)) -> 2.740833333 | R41: =Q41*(1+('Introduction and Summary Sheet'!$K$20/5)) -> 2.773723333 | S41: =R41*(1+('Introduction and Summary Sheet'!$K$20/5)) -> 2.807008013 | T41: =S41*(1+('Introduction and Summary Sheet'!$K$20/5)) -> 2.840692109 | U41: =T41*(1+('Introduction and Summary Sheet'!$K$20/5)) -> 2.874780415
O42: DPC Supply | P42: ='Introduction and Summary Sheet'!$M$27 -> 5.910000205 | Q42: ='Introduction and Summary Sheet'!$M$27 -> 5.910000205 | R42: ='Introduction and Summary Sheet'!$M$27 -> 5.910000205 | S42: ='Introduction and Summary Sheet'!$M$27 -> 5.910000205 | T42: ='Introduction and Summary Sheet'!$M$27 -> 5.910000205 | U42: ='Introduction and Summary Sheet'!$M$27 -> 5.910000205

Sheet Data back sheet (2) (hidden)
S1: Supply | Y1: Demand
A2: Staff type | B2: CCG | C2: STP | D2: 2016 pop | E2: 2021 pop | F2: Annual % increase | G2: Total Staff FTE | H2: ST1 joiners | I2: %staff over 55 | J2: %over 55 retiring | K2: %leavers | L2: face to face appt time (mins) | M2: Telephone appt time | N2: home visit appt time | O2: days worked per year | P2: hours per day | Q2: appts per person | R2: %change in apps per year | S2: 2016 | T2: 2017 | U2: 2018 | V2: 2019 | W2: 2020 | X2: 2021 | Y2: 2016 | Z2: 2017 | AA2: 2018 | AB2: 2019 | AC2: 2020 | AD2: 2021
A3: GP | B3: Barking & Dagenham | C3: NEL | D3: 205773.0092 | E3: 222143.3815 | F3: 1.015427671 | G3: 87.32713652 | H3: 5 | I3: 0.380952381 | J3: 0.175 | K3: 0.06 | L3: 12.5 | M3: 10 | N3: 45 | O3: 210 | P3: 11 | Q3: 5.1 | R3: 0.01718771928 | S3: =G3 -> 87.32713652 | T3: =S3+'Input sheet (2)'!$A$3+$H$3-(S3*$I$3*'Input sheet (2)'!$A$1)-(S3*'Input sheet (2)'!$A$2) -> 89.84195339 | U3: =T3+'Input sheet (2)'!$A$3+$H$3-(T3*$I$3*'Input sheet (2)'!$A$1)-(T3*'Input sheet (2)'!$A$2) -> 92.14121453 | V3: =U3+'Input sheet (2)'!$A$3+$H$3-(U3*$I$3*'Input sheet (2)'!$A$1)-(U3*'Input sheet (2)'!$A$2) -> 94.24339614 | W3: =V3+'Input sheet (2)'!$A$3+$H$3-(V3*$I$3*'Input sheet (2)'!$A$1)-(V3*'Input sheet (2)'!$A$2) -> 96.16539075 | X3: =W3+'Input sheet (2)'!$A$3+$H$3-(W3*$I$3*'Input sheet (2)'!$A$1)-(W3*'Input sheet (2)'!$A$2) -> 97.92264298 | Y3: =(Q3*D3*'Input sheet (2)'!$A$8*'Input sheet (2)'!$A$10)/(O3*P3*60*(1-'Input sheet (2)'!$A$9)) -> 98.88458719 | Z3: =Y3*(F3+R3) -> 102.1097466 | AA3: =Z3*(F3+R3) -> 105.4400958 | AB3: =AA3*(F3+R3) -> 108.8790657 | AC3: =AB3*(F3+R3) -> 112.4301989 | AD3: =AC3*(F3+R3) -> 116.0971537
A4: GP | B4: Barnet | C4: NCL | D4: 385107.6572 | E4: 409895.3742 | F4: 1.012553951 | G4: 192.0871725 | H4: 5 | I4: 0.2688172043 | J4: 0.175 | K4: 0.06 | L4: 12.5 | M4: 10 | N4: 45 | O4: 200 | P4: 10.5 | Q4: 5.1 | R4: 0.01718771928 | S4: =G4 -> 192.0871725 | T4: =S4+'Input sheet (2)'!$A$3+$H$4-(S4*$I$4*'Input sheet (2)'!$A$1)-(S4*'Input sheet (2)'!$A$2) -> 188.2073252 | U4: =T4+'Input sheet (2)'!$A$3+$H$4-(T4*$I$4*'Input sheet (2)'!$A$1)-(T4*'Input sheet (2)'!$A$2) -> 184.6078281 | V4: =U4+'Input sheet (2)'!$A$3+$H$4-(U4*$I$4*'Input sheet (2)'!$A$1)-(U4*'Input sheet (2)'!$A$2) -> 181.2684238 | W4: =V4+'Input sheet (2)'!$A$3+$H$4-(V4*$I$4*'Input sheet (2)'!$A$1)-(V4*'Input sheet (2)'!$A$2) -> 178.1703183 | X4: =W4+'Input sheet (2)'!$A$3+$H$4-(W4*$I$4*'Input sheet (2)'!$A$1)-(W4*'Input sheet (2)'!$A$2) -> 175.2960759 | Y4: =(Q4*D4*'Input sheet (2)'!$A$8*'Input sheet (2)'!$A$10)/(O4*P4*60*(1-'Input sheet (2)'!$A$9)) -> 203.57059 | Z4: =Y4*(F4+R4) -> 209.6251193 | AA4: =Z4*(F4+R4) -> 215.8597205 | AB4: =AA4*(F4+R4) -> 222.2797492 | AC4: =AB4*(F4+R4) -> 228.8907202 | AD4: =AC4*(F4+R4) -> 235.6983125
A5: GP | B5: Bexley | C5: SEL | D5: 243302.5947 | E5: 248378.1074 | F5: 1.004137797 | G5: 104.0768287 | H5: 5 | I5: 0.2592592593 | J5: 0.175 | K5: 0.06 | L5: 12.5 | M5: 10 | N5: 45 | O5: 200 | P5: 10.5 | Q5: 5.1 | R5: 0.01718771928 | S5: 104.0768287 | T5: =S5+'Input sheet (2)'!$A$3+$H$5-(S5*$I$5*'Input sheet (2)'!$A$1)-(S5*'Input sheet (2)'!$A$2) -> 106.6758098 | U5: =T5+'Input sheet (2)'!$A$3+$H$5-(T5*$I$5*'Input sheet (2)'!$A$1)-(T5*'Input sheet (2)'!$A$2) -> 109.0899744 | V5: =U5+'Input sheet (2)'!$A$3+$H$5-(U5*$I$5*'Input sheet (2)'!$A$1)-(U5*'Input sheet (2)'!$A$2) -> 111.3324651 | W5: =V5+'Input sheet (2)'!$A$3+$H$5-(V5*$I$5*'Input sheet (2)'!$A$1)-(V5*'Input sheet (2)'!$A$2) -> 113.4154898 | X5: =W5+'Input sheet (2)'!$A$3+$H$5-(W5*$I$5*'Input sheet (2)'!$A$1)-(W5*'Input sheet (2)'!$A$2) -> 115.3503883 | Y5: =(Q5*D5*'Input sheet (2)'!$A$8*'Input sheet (2)'!$A$10)/(O5*P5*60*(1-'Input sheet (2)'!$A$9)) -> 128.6114462 | Z5: 131.3541516 | AA5: 134.1553467 | AB5: 137.0162787 | AC5: 139.9382215 | AD5: 142.9224763
A6: GP | B6: Brent | C6: NWL | D6: 328567.7276 | E6: 345659.8734 | F6: 1.010194065 | G6: 178.5742114 | H6: 5 | I6: 0.3056994819 | J6: 0.175 | K6: 0.06 | L6: 12.5 | M6: 10 | N6: 45 | O6: 200 | P6: 10.5 | Q6: 5.1 | R6: 0.01718771928 | S6: 178.5742114 | T6: =S6+'Input sheet (2)'!$A$3+$H$6-(S6*$I$6*'Input sheet (2)'!$A$1)-(S6*'Input sheet (2)'!$A$2) -> 174.8804377 | U6: =T6+'Input sheet (2)'!$A$3+$H$6-(T6*$I$6*'Input sheet (2)'!$A$1)-(T6*'Input sheet (2)'!$A$2) -> 171.469917 | V6: =U6+'Input sheet (2)'!$A$3+$H$6-(U6*$I$6*'Input sheet (2)'!$A$1)-(U6*'Input sheet (2)'!$A$2) -> 168.3209286 | W6: =V6+'Input sheet (2)'!$A$3+$H$6-(V6*$I$6*'Input sheet (2)'!$A$1)-(V6*'Input sheet (2)'!$A$2) -> 165.413417 | X6: =W6+'Input sheet (2)'!$A$3+$H$6-(W6*$I$6*'Input sheet (2)'!$A$1)-(W6*'Input sheet (2)'!$A$2) -> 162.7288648 | Y6: =(Q6*D6*'Input sheet (2)'!$A$8*'Input sheet (2)'!$A$10)/(O6*P6*60*(1-'Input sheet (2)'!$A$9)) -> 173.6831893 | Z6: 178.4389449 | AA6: 183.3249215 | AB6: 188.3446849 | AC6: 193.5018983 | AD6: 198.8003255
A7: GP | B7: Bromley | C7: SEL | D7: 326559.5853 | E7: 333607.5681 | F7: 1.004279717 | G7: 169.5708161 | H7: 5 | I7: 0.1944444444 | J7: 0.175 | K7: 0.06 | L7: 12.5 | M7: 10 | N7: 45 | O7: 200 | P7: 10.5 | Q7: 5.1 | R7: 0.01718771928 | S7: 169.5708161 | T7: =S7+'Input sheet (2)'!$A$3+$H$7-(S7*$I$7*'Input sheet (2)'!$A$1)-(S7*'Input sheet (2)'!$A$2) -> 168.8313311 | U7: =T7+'Input sheet (2)'!$A$3+$H$7-(T7*$I$7*'Input sheet (2)'!$A$1)-(T7*'Input sheet (2)'!$A$2) -> 168.1386801 | V7: =U7+'Input sheet (2)'!$A$3+$H$7-(U7*$I$7*'Input sheet (2)'!$A$1)-(U7*'Input sheet (2)'!$A$2) -> 167.489897 | W7: =V7+'Input sheet (2)'!$A$3+$H$7-(V7*$I$7*'Input sheet (2)'!$A$1)-(V7*'Input sheet (2)'!$A$2) -> 166.8822036 | X7: =W7+'Input sheet (2)'!$A$3+$H$7-(W7*$I$7*'Input sheet (2)'!$A$1)-(W7*'Input sheet (2)'!$A$2) -> 166.3129973 | Y7: =(Q7*D7*'Input sheet (2)'!$A$8*'Input sheet (2)'!$A$10)/(O7*P7*60*(1-'Input sheet (2)'!$A$9)) -> 172.6216713 | Z7: 176.3274161 | AA7: 180.1127138 | AB7: 183.979272 | AC7: 187.9288354 | AD7: 191.9631858
A8: GP | B8: Camden | C8: NCL | D8: 240595.1876 | E8: 249811.742 | F8: 1.007546694 | G8: 142.9753949 | H8: 5 | I8: 0.1594202899 | J8: 0.175 | K8: 0.06 | L8: 12.5 | M8: 10 | N8: 45 | O8: 200 | P8: 10.5 | Q8: 5.1 | R8: 0.01718771928 | S8: 142.9753949 | T8: =S8+'Input sheet (2)'!$A$3+$H$8-(S8*$I$8*'Input sheet (2)'!$A$1)-(S8*'Input sheet (2)'!$A$2) -> 144.5211977 | U8: =T8+'Input sheet (2)'!$A$3+$H$8-(T8*$I$8*'Input sheet (2)'!$A$1)-(T8*'Input sheet (2)'!$A$2) -> 145.9755964 | V8: =U8+'Input sheet (2)'!$A$3+$H$8-(U8*$I$8*'Input sheet (2)'!$A$1)-(U8*'Input sheet (2)'!$A$2) -> 147.3439959 | W8: =V8+'Input sheet (2)'!$A$3+$H$8-(V8*$I$8*'Input sheet (2)'!$A$1)-(V8*'Input sheet (2)'!$A$2) -> 148.6314814 | X8: =W8+'Input sheet (2)'!$A$3+$H$8-(W8*$I$8*'Input sheet (2)'!$A$1)-(W8*'Input sheet (2)'!$A$2) -> 149.8428373 | Y8: =(Q8*D8*'Input sheet (2)'!$A$8*'Input sheet (2)'!$A$10)/(O8*P8*60*(1-'Input sheet (2)'!$A$9)) -> 127.180292 | Z8: 130.3260219 | AA8: 133.5495595 | AB8: 136.8528295 | AC8: 140.2378039 | AD8: 143.7065037
A9: GP | B9: City & Hackney | C9: NEL | D9: 279460.0813 | E9: 298024.2591 | F9: 1.012946171 | G9: 168.5901913 | H9: 5 | I9: 0.1717791411 | J9: 0.175 | K9: 0.06 | L9: 12.5 | M9: 10 | N9: 45 | O9: 200 | P9: 10.5 | Q9: 5.1 | R9: 0.01718771928 | S9: 168.5901913 | T9: =S9+'Input sheet (2)'!$A$3+$H$9-(S9*$I$9*'Input sheet (2)'!$A$1)-(S9*'Input sheet (2)'!$A$2) -> 168.3713503 | U9: =T9+'Input sheet (2)'!$A$3+$H$9-(T9*$I$9*'Input sheet (2)'!$A$1)-(T9*'Input sheet (2)'!$A$2) -> 168.165774 | V9: =U9+'Input sheet (2)'!$A$3+$H$9-(U9*$I$9*'Input sheet (2)'!$A$1)-(U9*'Input sheet (2)'!$A$2) -> 167.9726583 | W9: =V9+'Input sheet (2)'!$A$3+$H$9-(V9*$I$9*'Input sheet (2)'!$A$1)-(V9*'Input sheet (2)'!$A$2) -> 167.7912481 | X9: =W9+'Input sheet (2)'!$A$3+$H$9-(W9*$I$9*'Input sheet (2)'!$A$1)-(W9*'Input sheet (2)'!$A$2) -> 167.6208338 | Y9: =(Q9*D9*'Input sheet (2)'!$A$8*'Input sheet (2)'!$A$10)/(O9*P9*60*(1-'Input sheet (2)'!$A$9)) -> 147.7245455 | Z9: 152.1760607 | AA9: 156.7617175 | AB9: 161.4855579 | AC9: 166.351746 | AD9: 171.3645713
A10: GP | B10: Croydon | C10: SWL | D10: 383407.6197 | E10: 399552.0842 | F10: 1.008283203 | G10: 201.1205659 | H10: 5 | I10: 0.2722513089 | J10: 0.175 | K10: 0.06 | L10: 12.5 | M10: 10 | N10: 45 | O10: 200 | P10: 10.5 | Q10: 5.1 | R10: 0.01718771928 | S10: 201.1205659 | T10: =S10+'Input sheet (2)'!$A$3+$H$10-(S10*$I$10*'Input sheet (2)'!$A$1)-(S10*'Input sheet (2)'!$A$2) -> 196.5051028 | U10: =T10+'Input sheet (2)'!$A$3+$H$10-(T10*$I$10*'Input sheet (2)'!$A$1)-(T10*'Input sheet (2)'!$A$2) -> 192.2250461 | V10: =U10+'Input sheet (2)'!$A$3+$H$10-(U10*$I$10*'Input sheet (2)'!$A$1)-(U10*'Input sheet (2)'!$A$2) -> 188.2560218 | W10: =V10+'Input sheet (2)'!$A$3+$H$10-(V10*$I$10*'Input sheet (2)'!$A$1)-(V10*'Input sheet (2)'!$A$2) -> 184.5754271 | X10: =W10+'Input sheet (2)'!$A$3+$H$10-(W10*$I$10*'Input sheet (2)'!$A$1)-(W10*'Input sheet (2)'!$A$2) -> 181.1623019 | Y10: =(Q10*D10*'Input sheet (2)'!$A$8*'Input sheet (2)'!$A$10)/(O10*P10*60*(1-'Input sheet (2)'!$A$9)) -> 202.6719383 | Z10: 207.8341794 | AA10: 213.1279075 | AB10: 218.5564718 | AC10: 224.1233066 | AD10: 229.8319338
A11: GP | B11: Ealing | C11: NWL | D11: 348532.5076 | E11: 364118.8288 | F11: 1.008788143 | G11: 194.6049187 | H11: 5 | I11: 0.2261306533 | J11: 0.175 | K11: 0.06 | L11: 12.5 | M11: 10 | N11: 45 | O11: 200 | P11: 10.5 | Q11: 5.1 | R11: 0.01718771928 | S11: 194.6049187 | T11: =S11+'Input sheet (2)'!$A$3+$H$11-(S11*$I$11*'Input sheet (2)'!$A$1)-(S11*'Input sheet (2)'!$A$2) -> 191.5399855 | U11: =T11+'Input sheet (2)'!$A$3+$H$11-(T11*$I$11*'Input sheet (2)'!$A$1)-(T11*'Input sheet (2)'!$A$2) -> 188.6808186 | V11: =U11+'Input sheet (2)'!$A$3+$H$11-(U11*$I$11*'Input sheet (2)'!$A$1)-(U11*'Input sheet (2)'!$A$2) -> 186.0136039 | W11: =V11+'Input sheet (2)'!$A$3+$H$11-(V11*$I$11*'Input sheet (2)'!$A$1)-(V11*'Input sheet (2)'!$A$2) -> 183.5254544 | X11: =W11+'Input sheet (2)'!$A$3+$H$11-(W11*$I$11*'Input sheet (2)'!$A$1)-(W11*'Input sheet (2)'!$A$2) -> 181.2043485 | Y11: =(Q11*D11*'Input sheet (2)'!$A$8*'Input sheet (2)'!$A$10)/(O11*P11*60*(1-'Input sheet (2)'!$A$9)) -> 184.2367111 | Z11: 189.0224186 | AA11: 193.932439 | AB11: 198.9700015 | AC11: 204.1384189 | AD11: 209.4410905
A12: GP | B12: Enfield | C12: NCL | D12: 330967.757 | E12: 341277.2065 | F12: 1.006153679 | G12: 149.99797 | H12: 5 | I12: 0.3157894737 | J12: 0.175 | K12: 0.06 | L12: 12.5 | M12: 10 | N12: 45 | O12: 200 | P12: 10.5 | Q12: 5.1 | R12: 0.01718771928 | S12: 149.99797 | T12: =S12+'Input sheet (2)'!$A$3+$H$12-(S12*$I$12*'Input sheet (2)'!$A$1)-(S12*'Input sheet (2)'!$A$2) -> 148.3139176 | U12: =T12+'Input sheet (2)'!$A$3+$H$12-(T12*$I$12*'Input sheet (2)'!$A$1)-(T12*'Input sheet (2)'!$A$2) -> 146.761044 | V12: =U12+'Input sheet (2)'!$A$3+$H$12-(U12*$I$12*'Input sheet (2)'!$A$1)-(U12*'Input sheet (2)'!$A$2) -> 145.3291311 | W12: =V12+'Input sheet (2)'!$A$3+$H$12-(V12*$I$12*'Input sheet (2)'!$A$1)-(V12*'Input sheet (2)'!$A$2) -> 144.0087567 | X12: =W12+'Input sheet (2)'!$A$3+$H$12-(W12*$I$12*'Input sheet (2)'!$A$1)-(W12*'Input sheet (2)'!$A$2) -> 142.7912325 | Y12: =(Q12*D12*'Input sheet (2)'!$A$8*'Input sheet (2)'!$A$10)/(O12*P12*60*(1-'Input sheet (2)'!$A$9)) -> 174.9518616 | Z12: 179.0354826 | AA12: 183.214421 | AB12: 187.4909017 | AC12: 191.8672014 | AD12: 196.3456501
A13: GP | B13: Hounslow | C13: NWL | D13: 275868.493 | E13: 300643.7565 | F13: 1.017349128 | G13: 152.9723759 | H13: 5 | I13: 0.3168316832 | J13: 0.175 | K13: 0.06 | L13: 12.5 | M13: 10 | N13: 45 | O13: 200 | P13: 10.5 | Q13: 5.1 | R13: 0.01718771928 | S13: 152.9723759 | T13: =S13+'Input sheet (2)'!$A$3+$H$13-(S13*$I$13*'Input sheet (2)'!$A$1)-(S13*'Input sheet (2)'!$A$2) -> 151.0375014 | U13: =T13+'Input sheet (2)'!$A$3+$H$13-(T13*$I$13*'Input sheet (2)'!$A$1)-(T13*'Input sheet (2)'!$A$2) -> 149.2535855 | V13: =U13+'Input sheet (2)'!$A$3+$H$13-(U13*$I$13*'Input sheet (2)'!$A$1)-(U13*'Input sheet (2)'!$A$2) -> 147.6088503 | W13: =V13+'Input sheet (2)'!$A$3+$H$13-(V13*$I$13*'Input sheet (2)'!$A$1)-(V13*'Input sheet (2)'!$A$2) -> 146.092437 | X13: =W13+'Input sheet (2)'!$A$3+$H$13-(W13*$I$13*'Input sheet (2)'!$A$1)-(W13*'Input sheet (2)'!$A$2) -> 144.694334 | Y13: =(Q13*D13*'Input sheet (2)'!$A$8*'Input sheet (2)'!$A$10)/(O13*P13*60*(1-'Input sheet (2)'!$A$9)) -> 145.8260069 | Z13: 150.8623775 | AA13: 156.0726884 | AB13: 161.4629471 | AC13: 167.0393683 | AD13: 172.8083815
A14: GP | B14: Greenwich | C14: SEL | D14: 183353.7672 | E14: 192209.9651 | F14: 1.009478823 | G14: 132.5600818 | H14: 5 | I14: 0.328125 | J14: 0.175 | K14: 0.06 | L14: 12.5 | M14: 10 | N14: 45 | O14: 200 | P14: 10.5 | Q14: 5.1 | R14: 0.01718771928 | S14: 132.5600818 | T14: =S14+'Input sheet (2)'!$A$3+$H$14-(S14*$I$14*'Input sheet (2)'!$A$1)-(S14*'Input sheet (2)'!$A$2) -> 132.0381253 | U14: =T14+'Input sheet (2)'!$A$3+$H$14-(T14*$I$14*'Input sheet (2)'!$A$1)-(T14*'Input sheet (2)'!$A$2) -> 131.5575991 | V14: =U14+'Input sheet (2)'!$A$3+$H$14-(U14*$I$14*'Input sheet (2)'!$A$1)-(U14*'Input sheet (2)'!$A$2) -> 131.1152147 | W14: =V14+'Input sheet (2)'!$A$3+$H$14-(V14*$I$14*'Input sheet (2)'!$A$1)-(V14*'Input sheet (2)'!$A$2) -> 130.7079445 | X14: =W14+'Input sheet (2)'!$A$3+$H$14-(W14*$I$14*'Input sheet (2)'!$A$1)-(W14*'Input sheet (2)'!$A$2) -> 130.3330014 | Y14: =(Q14*D14*'Input sheet (2)'!$A$8*'Input sheet (2)'!$A$10)/(O14*P14*60*(1-'Input sheet (2)'!$A$9)) -> 96.92207844 | Z14: 99.5066551 | AA14: 102.1601535 | AB14: 104.8844115 | AC14: 107.681316 | AD14: 110.5528043
A15: GP | B15: Hammersmith & Fulham | C15: NWL | D15: 274802.7844 | E15: 290455.0671 | F15: 1.011140639 | G15: 107.9522484 | H15: 5 | I15: 0.1829268293 | J15: 0.175 | K15: 0.06 | L15: 12.5 | M15: 10 | N15: 45 | O15: 200 | P15: 10.5 | Q15: 5.1 | R15: 0.01718771928 | S15: 107.9522484 | T15: =S15+'Input sheet (2)'!$A$3+$H$15-(S15*$I$15*'Input sheet (2)'!$A$1)-(S15*'Input sheet (2)'!$A$2) -> 111.264475 | U15: =T15+'Input sheet (2)'!$A$3+$H$15-(T15*$I$15*'Input sheet (2)'!$A$1)-(T15*'Input sheet (2)'!$A$2) -> 114.3715051 | V15: =U15+'Input sheet (2)'!$A$3+$H$15-(U15*$I$15*'Input sheet (2)'!$A$1)-(U15*'Input sheet (2)'!$A$2) -> 117.2860508 | W15: =V15+'Input sheet (2)'!$A$3+$H$15-(V15*$I$15*'Input sheet (2)'!$A$1)-(V15*'Input sheet (2)'!$A$2) -> 120.020037 | X15: =W15+'Input sheet (2)'!$A$3+$H$15-(W15*$I$15*'Input sheet (2)'!$A$1)-(W15*'Input sheet (2)'!$A$2) -> 122.5846493 | Y15: =(Q15*D15*'Input sheet (2)'!$A$8*'Input sheet (2)'!$A$10)/(O15*P15*60*(1-'Input sheet (2)'!$A$9)) -> 145.2626659 | Z15: 149.3777188 | AA15: 153.6093443 | AB15: 157.9608449 | AC15: 162.4356164 | AD15: 167.0371507
A16: GP | B16: Haringey | C16: NCL | D16: 250702.932 | E16: 258522.4137 | F16: 1.006161645 | G16: 134.3136984 | H16: 5 | I16: 0.3181818182 | J16: 0.175 | K16: 0.06 | L16: 12.5 | M16: 10 | N16: 45 | O16: 200 | P16: 10.5 | Q16: 5.1 | R16: 0.01718771928 | S16: 134.3136984 | T16: =S16+'Input sheet (2)'!$A$3+$H$16-(S16*$I$16*'Input sheet (2)'!$A$1)-(S16*'Input sheet (2)'!$A$2) -> 133.8128093 | U16: =T16+'Input sheet (2)'!$A$3+$H$16-(T16*$I$16*'Input sheet (2)'!$A$1)-(T16*'Input sheet (2)'!$A$2) -> 133.3510806 | V16: =U16+'Input sheet (2)'!$A$3+$H$16-(U16*$I$16*'Input sheet (2)'!$A$1)-(U16*'Input sheet (2)'!$A$2) -> 132.9254506 | W16: =V16+'Input sheet (2)'!$A$3+$H$16-(V16*$I$16*'Input sheet (2)'!$A$1)-(V16*'Input sheet (2)'!$A$2) -> 132.5330972 | X16: =W16+'Input sheet (2)'!$A$3+$H$16-(W16*$I$16*'Input sheet (2)'!$A$1)-(W16*'Input sheet (2)'!$A$2) -> 132.1714187 | Y16: =(Q16*D16*'Input sheet (2)'!$A$8*'Input sheet (2)'!$A$10)/(O16*P16*60*(1-'Input sheet (2)'!$A$9)) -> 132.5233161 | Z16: 135.6176512 | AA16: 138.7842371 | AB16: 142.0247607 | AC16: 145.3409486 | AD16: 148.7345672
A17: GP | B17: Harrow | C17: NWL | D17: 251610.7349 | E17: 265446.8105 | F17: 1.010763776 | G17: 134.1227787 | H17: 5 | I17: 0.2442748092 | J17: 0.175 | K17: 0.06 | L17: 12.5 | M17: 10 | N17: 45 | O17: 200 | P17: 10.5 | Q17: 5.1 | R17: 0.01718771928 | S17: 134.1227787 | T17: =S17+'Input sheet (2)'!$A$3+$H$17-(S17*$I$17*'Input sheet (2)'!$A$1)-(S17*'Input sheet (2)'!$A$2) -> 134.8263296 | U17: =T17+'Input sheet (2)'!$A$3+$H$17-(T17*$I$17*'Input sheet (2)'!$A$1)-(T17*'Input sheet (2)'!$A$2) -> 135.4811153 | V17: =U17+'Input sheet (2)'!$A$3+$H$17-(U17*$I$17*'Input sheet (2)'!$A$1)-(U17*'Input sheet (2)'!$A$2) -> 136.0905159 | W17: =V17+'Input sheet (2)'!$A$3+$H$17-(V17*$I$17*'Input sheet (2)'!$A$1)-(V17*'Input sheet (2)'!$A$2) -> 136.6576771 | X17: =W17+'Input sheet (2)'!$A$3+$H$17-(W17*$I$17*'Input sheet (2)'!$A$1)-(W17*'Input sheet (2)'!$A$2) -> 137.1855266 | Y17: =(Q17*D17*'Input sheet (2)'!$A$8*'Input sheet (2)'!$A$10)/(O17*P17*60*(1-'Input sheet (2)'!$A$9)) -> 133.003187 | Z17: 136.7208249 | AA17: 140.5423763 | AB17: 144.4707459 | AC17: 148.5089192 | AD17: 152.6599655
